Workbook

Sheet MODELO-CENTROS
A3: =Menu!C2 -> ESTADISTICA DE LA RED DE LABORATORIO DE SALUD PUBLICA - 2022
A4: ESTABLECIMIENTO | B4: :
A5: RED | B5: :
A7: ANALISIS | B7: TOTAL | H7: ENERO | N7: FEBRERO | T7: MARZO | Z7: ABRIL | AF7: MAYO | AL7: JUNIO | AR7: JULIO | AX7: AGOSTO | BD7: SETIEMBRE | BJ7: OCTUBRE | BP7: NOVIEMBRE | BV7: DICIEMBRE
B8: TOTAL | C8: DEM | D8: SIS/AUS | E8: EXO | F8: ESTR. | G8: CAMP | H8: TOTAL | I8: DEM | J8: SIS/AUS | K8: EXO | L8: ESTR. | M8: CAMP | N8: TOTAL | O8: DEM | P8: SIS/AUS | Q8: EXO | R8: ESTR. | S8: CAMP | T8: TOTAL | U8: DEM | V8: SIS/AUS | W8: EXO | X8: ESTR. | Y8: CAMP | Z8: TOTAL | AA8: DEM | AB8: SIS/AUS | AC8: EXO | AD8: ESTR. | AE8: CAMP | AF8: TOTAL | AG8: DEM | AH8: SIS/AUS | AI8: EXO | AJ8: ESTR. | AK8: CAMP | AL8: TOTAL | AM8: DEM | AN8: SIS/AUS | AO8: EXO | AP8: ESTR. | AQ8: CAMP | AR8: TOTAL | AS8: DEM | AT8: SIS/AUS | AU8: EXO | AV8: ESTR. | AW8: CAMP | AX8: TOTAL | AY8: DEM | AZ8: SIS/AUS | BA8: EXO | BB8: ESTR. | BC8: CAMP | BD8: TOTAL | BE8: DEM | BF8: SIS/AUS | BG8: EXO | BH8: ESTR. | BI8: CAMP | BJ8: TOTAL | BK8: DEM | BL8: SIS/AUS | BM8: EXO | BN8: ESTR. | BO8: CAMP | BP8: TOTAL | BQ8: DEM | BR8: SIS/AUS | BS8: EXO | BT8: ESTR. | BU8: CAMP | BV8: TOTAL | BW8: DEM | BX8: SIS/AUS | BY8: EXO | BZ8: ESTR. | CA8: CAMP
A9: BIOQUIMICA
A10: TOTAL | B10: =SUM(B11:B41) -> 0 | C10: 0 | D10: 0 | E10: 0 | F10: 0 | G10: 0 | H10: 0 | I10: 0 | J10: 0 | K10: 0 | L10: 0 | M10: 0 | N10: 0 | O10: 0 | P10: 0 | Q10: 0 | R10: 0 | S10: 0 | T10: 0 | U10: 0 | V10: 0 | W10: 0 | X10: 0 | Y10: 0 | Z10: 0 | AA10: 0 | AB10: 0 | AC10: 0 | AD10: 0 | AE10: 0 | AF10: 0 | AG10: 0 | AH10: =SUM(AH11:AH41) -> 0 | AI10: 0 | AJ10: 0 | AK10: 0 | AL10: 0 | AM10: 0 | AN10: 0 | AO10: 0 | AP10: 0 | AQ10: 0 | AR10: 0 | AS10: 0 | AT10: 0 | AU10: 0 | AV10: 0 | AW10: 0 | AX10: 0 | AY10: 0 | AZ10: 0 | BA10: 0 | BB10: 0 | BC10: 0 | BD10: 0 | BE10: 0 | BF10: 0 | BG10: 0 | BH10: 0 | BI10: 0 | BJ10: 0 | BK10: 0 | BL10: 0 | BM10: 0 | BN10: =SUM(BN11:BN41) -> 0 | BO10: 0 | BP10: 0 | BQ10: 0 | BR10: 0 | BS10: 0 | BT10: 0 | BU10: 0 | BV10: 0 | BW10: 0 | BX10: 0 | BY10: 0 | BZ10: 0 | CA10: 0
A11: ACIDO URICO | B11: =SUM(C11:G11) -> 0 | C11: =SUMIF($I$8:$CA11,$C$8,I11:CA11) -> 0 | D11: =SUMIF($I$8:$CA11,$D$8,I11:CA11) -> 0 | E11: =SUMIF($I$8:$CA11,$E$8,I11:CA11) -> 0 | F11: =SUMIF($I$8:$CA11,$F$8,I11:CA11) -> 0 | G11: =SUMIF($I$8:$CA11,$G$8,I11:CA11) -> 0 | H11: =SUM(I11:M11) -> 0 | N11: =SUM(O11:S11) -> 0 | T11: =SUM(U11:Y11) -> 0 | Z11: =SUM(AA11:AE11) -> 0 | AF11: =SUM(AG11:AK11) -> 0 | AL11: =SUM(AM11:AQ11) -> 0 | AR11: =SUM(AS11:AW11) -> 0 | AX11: =SUM(AY11:BC11) -> 0 | BD11: =SUM(BE11:BI11) -> 0 | BJ11: =SUM(BK11:BO11) -> 0 | BP11: =SUM(BQ11:BU11) -> 0 | BV11: =SUM(BW11:CA11) -> 0
A12: AMILASA SERICA | B12: 0 | C12: =SUMIF($I$8:$CA12,$C$8,I12:CA12) -> 0 | D12: =SUMIF($I$8:$CA12,$D$8,I12:CA12) -> 0 | E12: =SUMIF($I$8:$CA12,$E$8,I12:CA12) -> 0 | F12: =SUMIF($I$8:$CA12,$F$8,I12:CA12) -> 0 | G12: =SUMIF($I$8:$CA12,$G$8,I12:CA12) -> 0 | H12: 0 | N12: 0 | T12: 0 | Z12: 0 | AF12: 0 | AL12: 0 | AR12: 0 | AX12: 0 | BD12: 0 | BJ12: 0 | BP12: 0 | BV12: 0
A13: BILIRRUBINA TOTAL Y FRACCIONADA | B13: 0 | C13: =SUMIF($I$8:$CA13,$C$8,I13:CA13) -> 0 | D13: =SUMIF($I$8:$CA13,$D$8,I13:CA13) -> 0 | E13: =SUMIF($I$8:$CA13,$E$8,I13:CA13) -> 0 | F13: =SUMIF($I$8:$CA13,$F$8,I13:CA13) -> 0 | G13: =SUMIF($I$8:$CA13,$G$8,I13:CA13) -> 0 | H13: 0 | N13: 0 | T13: 0 | Z13: 0 | AF13: 0 | AL13: 0 | AR13: 0 | AX13: 0 | BD13: 0 | BJ13: 0 | BP13: 0 | BV13: 0
A14: CALCIO | B14: 0 | C14: =SUMIF($I$8:$CA14,$C$8,I14:CA14) -> 0 | D14: =SUMIF($I$8:$CA14,$D$8,I14:CA14) -> 0 | E14: =SUMIF($I$8:$CA14,$E$8,I14:CA14) -> 0 | F14: =SUMIF($I$8:$CA14,$F$8,I14:CA14) -> 0 | G14: =SUMIF($I$8:$CA14,$G$8,I14:CA14) -> 0 | H14: 0 | N14: 0 | T14: 0 | Z14: 0 | AF14: 0 | AL14: 0 | AR14: 0 | AX14: 0 | BD14: 0 | BJ14: 0 | BP14: 0 | BV14: 0
A15: COLESTEROL HDL | B15: 0 | C15: =SUMIF($I$8:$CA15,$C$8,I15:CA15) -> 0 | D15: =SUMIF($I$8:$CA15,$D$8,I15:CA15) -> 0 | E15: =SUMIF($I$8:$CA15,$E$8,I15:CA15) -> 0 | F15: =SUMIF($I$8:$CA15,$F$8,I15:CA15) -> 0 | G15: =SUMIF($I$8:$CA15,$G$8,I15:CA15) -> 0 | H15: 0 | N15: 0 | T15: 0 | Z15: 0 | AF15: 0 | AL15: 0 | AR15: 0 | AX15: 0 | BD15: 0 | BJ15: 0 | BP15: 0 | BV15: 0
A16: COLESTEROL LDL | B16: 0 | C16: =SUMIF($I$8:$CA16,$C$8,I16:CA16) -> 0 | D16: =SUMIF($I$8:$CA16,$D$8,I16:CA16) -> 0 | E16: =SUMIF($I$8:$CA16,$E$8,I16:CA16) -> 0 | F16: =SUMIF($I$8:$CA16,$F$8,I16:CA16) -> 0 | G16: =SUMIF($I$8:$CA16,$G$8,I16:CA16) -> 0 | H16: 0 | N16: 0 | T16: 0 | Z16: 0 | AF16: 0 | AL16: 0 | AR16: 0 | AX16: 0 | BD16: 0 | BJ16: 0 | BP16: 0 | BV16: 0
A17: COLESTEROL TOTAL | B17: 0 | C17: =SUMIF($I$8:$CA17,$C$8,I17:CA17) -> 0 | D17: =SUMIF($I$8:$CA17,$D$8,I17:CA17) -> 0 | E17: =SUMIF($I$8:$CA17,$E$8,I17:CA17) -> 0 | F17: =SUMIF($I$8:$CA17,$F$8,I17:CA17) -> 0 | G17: =SUMIF($I$8:$CA17,$G$8,I17:CA17) -> 0 | H17: 0 | N17: 0 | T17: 0 | Z17: 0 | AF17: 0 | AL17: 0 | AR17: 0 | AX17: 0 | BD17: 0 | BJ17: 0 | BP17: 0 | BV17: 0
A18: CREATINA KINASA CK | B18: 0 | C18: =SUMIF($I$8:$CA18,$C$8,I18:CA18) -> 0 | D18: =SUMIF($I$8:$CA18,$D$8,I18:CA18) -> 0 | E18: =SUMIF($I$8:$CA18,$E$8,I18:CA18) -> 0 | F18: =SUMIF($I$8:$CA18,$F$8,I18:CA18) -> 0 | G18: =SUMIF($I$8:$CA18,$G$8,I18:CA18) -> 0 | H18: 0 | N18: 0 | T18: 0 | Z18: 0 | AF18: 0 | AL18: 0 | AR18: 0 | AX18: 0 | BD18: 0 | BJ18: 0 | BP18: 0 | BV18: 0
A19: CREATINA KINASA MB | B19: 0 | C19: =SUMIF($I$8:$CA19,$C$8,I19:CA19) -> 0 | D19: =SUMIF($I$8:$CA19,$D$8,I19:CA19) -> 0 | E19: =SUMIF($I$8:$CA19,$E$8,I19:CA19) -> 0 | F19: =SUMIF($I$8:$CA19,$F$8,I19:CA19) -> 0 | G19: =SUMIF($I$8:$CA19,$G$8,I19:CA19) -> 0 | H19: 0 | N19: 0 | T19: 0 | Z19: 0 | AF19: 0 | AL19: 0 | AR19: 0 | AX19: 0 | BD19: 0 | BJ19: 0 | BP19: 0 | BV19: 0
A20: CREATININA | B20: 0 | C20: =SUMIF($I$8:$CA20,$C$8,I20:CA20) -> 0 | D20: =SUMIF($I$8:$CA20,$D$8,I20:CA20) -> 0 | E20: =SUMIF($I$8:$CA20,$E$8,I20:CA20) -> 0 | F20: =SUMIF($I$8:$CA20,$F$8,I20:CA20) -> 0 | G20: =SUMIF($I$8:$CA20,$G$8,I20:CA20) -> 0 | H20: 0 | N20: 0 | T20: 0 | Z20: 0 | AF20: 0 | AL20: 0 | AR20: 0 | AX20: 0 | BD20: 0 | BJ20: 0 | BP20: 0 | BV20: 0
A21: DEPURACION DE CREATININA | B21: 0 | C21: =SUMIF($I$8:$CA21,$C$8,I21:CA21) -> 0 | D21: =SUMIF($I$8:$CA21,$D$8,I21:CA21) -> 0 | E21: =SUMIF($I$8:$CA21,$E$8,I21:CA21) -> 0 | F21: =SUMIF($I$8:$CA21,$F$8,I21:CA21) -> 0 | G21: =SUMIF($I$8:$CA21,$G$8,I21:CA21) -> 0 | H21: 0 | N21: 0 | T21: 0 | Z21: 0 | AF21: 0 | AL21: 0 | AR21: 0 | AX21: 0 | BD21: 0 | BJ21: 0 | BP21: 0 | BV21: 0
A22: DESHIDROGENASA LACTICA | B22: 0 | C22: =SUMIF($I$8:$CA22,$C$8,I22:CA22) -> 0 | D22: =SUMIF($I$8:$CA22,$D$8,I22:CA22) -> 0 | E22: =SUMIF($I$8:$CA22,$E$8,I22:CA22) -> 0 | F22: =SUMIF($I$8:$CA22,$F$8,I22:CA22) -> 0 | G22: =SUMIF($I$8:$CA22,$G$8,I22:CA22) -> 0 | H22: 0 | N22: 0 | T22: 0 | Z22: 0 | AF22: 0 | AL22: 0 | AR22: 0 | AX22: 0 | BD22: 0 | BJ22: 0 | BP22: 0 | BV22: 0
A23: DOSAJE DE ADA | B23: 0 | C23: =SUMIF($I$8:$CA23,$C$8,I23:CA23) -> 0 | D23: =SUMIF($I$8:$CA23,$D$8,I23:CA23) -> 0 | E23: =SUMIF($I$8:$CA23,$E$8,I23:CA23) -> 0 | F23: =SUMIF($I$8:$CA23,$F$8,I23:CA23) -> 0 | G23: =SUMIF($I$8:$CA23,$G$8,I23:CA23) -> 0 | H23: 0 | N23: 0 | T23: 0 | Z23: 0 | AF23: 0 | AL23: 0 | AR23: 0 | AX23: 0 | BD23: 0 | BJ23: 0 | BP23: 0 | BV23: 0
A24: DOSAJE DE GASES Y ELECTROLITOS | B24: 0 | C24: =SUMIF($I$8:$CA24,$C$8,I24:CA24) -> 0 | D24: =SUMIF($I$8:$CA24,$D$8,I24:CA24) -> 0 | E24: =SUMIF($I$8:$CA24,$E$8,I24:CA24) -> 0 | F24: =SUMIF($I$8:$CA24,$F$8,I24:CA24) -> 0 | G24: =SUMIF($I$8:$CA24,$G$8,I24:CA24) -> 0 | H24: 0 | N24: 0 | T24: 0 | Z24: 0 | AF24: 0 | AL24: 0 | AR24: 0 | AX24: 0 | BD24: 0 | BJ24: 0 | BP24: 0 | BV24: 0
A25: EXAMEN COMPLETO DE ORINA | B25: 0 | C25: =SUMIF($I$8:$CA25,$C$8,I25:CA25) -> 0 | D25: =SUMIF($I$8:$CA25,$D$8,I25:CA25) -> 0 | E25: =SUMIF($I$8:$CA25,$E$8,I25:CA25) -> 0 | F25: =SUMIF($I$8:$CA25,$F$8,I25:CA25) -> 0 | G25: =SUMIF($I$8:$CA25,$G$8,I25:CA25) -> 0 | H25: 0 | N25: 0 | T25: 0 | Z25: 0 | AF25: 0 | AL25: 0 | AR25: 0 | AX25: 0 | BD25: 0 | BJ25: 0 | BP25: 0 | BV25: 0
A26: FOSFATASA ALCALINA | B26: 0 | C26: =SUMIF($I$8:$CA26,$C$8,I26:CA26) -> 0 | D26: =SUMIF($I$8:$CA26,$D$8,I26:CA26) -> 0 | E26: =SUMIF($I$8:$CA26,$E$8,I26:CA26) -> 0 | F26: =SUMIF($I$8:$CA26,$F$8,I26:CA26) -> 0 | G26: =SUMIF($I$8:$CA26,$G$8,I26:CA26) -> 0 | H26: 0 | N26: 0 | T26: 0 | Z26: 0 | AF26: 0 | AL26: 0 | AR26: 0 | AX26: 0 | BD26: 0 | BJ26: 0 | BP26: 0 | BV26: 0
A27: FOSFORO | B27: 0 | C27: =SUMIF($I$8:$CA27,$C$8,I27:CA27) -> 0 | D27: =SUMIF($I$8:$CA27,$D$8,I27:CA27) -> 0 | E27: =SUMIF($I$8:$CA27,$E$8,I27:CA27) -> 0 | F27: =SUMIF($I$8:$CA27,$F$8,I27:CA27) -> 0 | G27: =SUMIF($I$8:$CA27,$G$8,I27:CA27) -> 0 | H27: 0 | N27: 0 | T27: 0 | Z27: 0 | AF27: 0 | AL27: 0 | AR27: 0 | AX27: 0 | BD27: 0 | BJ27: 0 | BP27: 0 | BV27: 0
A28: GAMMA GLUTAMIL TRANSPEPTIDASA | B28: 0 | C28: =SUMIF($I$8:$CA28,$C$8,I28:CA28) -> 0 | D28: =SUMIF($I$8:$CA28,$D$8,I28:CA28) -> 0 | E28: =SUMIF($I$8:$CA28,$E$8,I28:CA28) -> 0 | F28: =SUMIF($I$8:$CA28,$F$8,I28:CA28) -> 0 | G28: =SUMIF($I$8:$CA28,$G$8,I28:CA28) -> 0 | H28: 0 | N28: 0 | T28: 0 | Z28: 0 | AF28: 0 | AL28: 0 | AR28: 0 | AX28: 0 | BD28: 0 | BJ28: 0 | BP28: 0 | BV28: 0
A29: GLUCOSA | B29: 0 | C29: =SUMIF($I$8:$CA29,$C$8,I29:CA29) -> 0 | D29: =SUMIF($I$8:$CA29,$D$8,I29:CA29) -> 0 | E29: =SUMIF($I$8:$CA29,$E$8,I29:CA29) -> 0 | F29: =SUMIF($I$8:$CA29,$F$8,I29:CA29) -> 0 | G29: =SUMIF($I$8:$CA29,$G$8,I29:CA29) -> 0 | H29: 0 | N29: 0 | T29: 0 | Z29: 0 | AF29: 0 | AL29: 0 | AR29: 0 | AX29: 0 | BD29: 0 | BJ29: 0 | BP29: 0 | BV29: 0
A30: HIERRO SERICO | B30: 0 | C30: =SUMIF($I$8:$CA30,$C$8,I30:CA30) -> 0 | D30: =SUMIF($I$8:$CA30,$D$8,I30:CA30) -> 0 | E30: =SUMIF($I$8:$CA30,$E$8,I30:CA30) -> 0 | F30: =SUMIF($I$8:$CA30,$F$8,I30:CA30) -> 0 | G30: =SUMIF($I$8:$CA30,$G$8,I30:CA30) -> 0 | H30: 0 | N30: 0 | T30: 0 | Z30: 0 | AF30: 0 | AL30: 0 | AR30: 0 | AX30: 0 | BD30: 0 | BJ30: 0 | BP30: 0 | BV30: 0
A31: MICROALBUMINURIA | B31: 0 | C31: =SUMIF($I$8:$CA31,$C$8,I31:CA31) -> 0 | D31: =SUMIF($I$8:$CA31,$D$8,I31:CA31) -> 0 | E31: =SUMIF($I$8:$CA31,$E$8,I31:CA31) -> 0 | F31: =SUMIF($I$8:$CA31,$F$8,I31:CA31) -> 0 | G31: =SUMIF($I$8:$CA31,$G$8,I31:CA31) -> 0 | H31: 0 | N31: 0 | T31: 0 | Z31: 0 | AF31: 0 | AL31: 0 | AR31: 0 | AX31: 0 | BD31: 0 | BJ31: 0 | BP31: 0 | BV31: 0
A32: PROTEINAS EN LCR Y LIQ. BIOLOGICOS | B32: 0 | C32: =SUMIF($I$8:$CA32,$C$8,I32:CA32) -> 0 | D32: =SUMIF($I$8:$CA32,$D$8,I32:CA32) -> 0 | E32: =SUMIF($I$8:$CA32,$E$8,I32:CA32) -> 0 | F32: =SUMIF($I$8:$CA32,$F$8,I32:CA32) -> 0 | G32: =SUMIF($I$8:$CA32,$G$8,I32:CA32) -> 0 | H32: 0 | N32: 0 | T32: 0 | Z32: 0 | AF32: 0 | AL32: 0 | AR32: 0 | AX32: 0 | BD32: 0 | BJ32: 0 | BP32: 0 | BV32: 0
A33: PROTEINAS TOTALES Y FRACCIONADAS | B33: 0 | C33: =SUMIF($I$8:$CA33,$C$8,I33:CA33) -> 0 | D33: =SUMIF($I$8:$CA33,$D$8,I33:CA33) -> 0 | E33: =SUMIF($I$8:$CA33,$E$8,I33:CA33) -> 0 | F33: =SUMIF($I$8:$CA33,$F$8,I33:CA33) -> 0 | G33: =SUMIF($I$8:$CA33,$G$8,I33:CA33) -> 0 | H33: 0 | N33: 0 | T33: 0 | Z33: 0 | AF33: 0 | AL33: 0 | AR33: 0 | AX33: 0 | BD33: 0 | BJ33: 0 | BP33: 0 | BV33: 0
A34: PROTEINURIA EN 24 HORAS | B34: 0 | C34: =SUMIF($I$8:$CA34,$C$8,I34:CA34) -> 0 | D34: =SUMIF($I$8:$CA34,$D$8,I34:CA34) -> 0 | E34: =SUMIF($I$8:$CA34,$E$8,I34:CA34) -> 0 | F34: =SUMIF($I$8:$CA34,$F$8,I34:CA34) -> 0 | G34: =SUMIF($I$8:$CA34,$G$8,I34:CA34) -> 0 | H34: 0 | N34: 0 | T34: 0 | Z34: 0 | AF34: 0 | AL34: 0 | AR34: 0 | AX34: 0 | BD34: 0 | BJ34: 0 | BP34: 0 | BV34: 0
A35: SEDIMENTO URINARIO | B35: 0 | C35: =SUMIF($I$8:$CA35,$C$8,I35:CA35) -> 0 | D35: =SUMIF($I$8:$CA35,$D$8,I35:CA35) -> 0 | E35: =SUMIF($I$8:$CA35,$E$8,I35:CA35) -> 0 | F35: =SUMIF($I$8:$CA35,$F$8,I35:CA35) -> 0 | G35: =SUMIF($I$8:$CA35,$G$8,I35:CA35) -> 0 | H35: 0 | N35: 0 | T35: 0 | Z35: 0 | AF35: 0 | AL35: 0 | AR35: 0 | AX35: 0 | BD35: 0 | BJ35: 0 | BP35: 0 | BV35: 0
A36: T.G.O. (TRANSAMINASAS) | B36: 0 | C36: =SUMIF($I$8:$CA36,$C$8,I36:CA36) -> 0 | D36: =SUMIF($I$8:$CA36,$D$8,I36:CA36) -> 0 | E36: =SUMIF($I$8:$CA36,$E$8,I36:CA36) -> 0 | F36: =SUMIF($I$8:$CA36,$F$8,I36:CA36) -> 0 | G36: =SUMIF($I$8:$CA36,$G$8,I36:CA36) -> 0 | H36: 0 | N36: 0 | T36: 0 | Z36: 0 | AF36: 0 | AL36: 0 | AR36: 0 | AX36: 0 | BD36: 0 | BJ36: 0 | BP36: 0 | BV36: 0
A37: T.G.P. (TRANSAMINASAS) | B37: 0 | C37: =SUMIF($I$8:$CA37,$C$8,I37:CA37) -> 0 | D37: =SUMIF($I$8:$CA37,$D$8,I37:CA37) -> 0 | E37: =SUMIF($I$8:$CA37,$E$8,I37:CA37) -> 0 | F37: =SUMIF($I$8:$CA37,$F$8,I37:CA37) -> 0 | G37: =SUMIF($I$8:$CA37,$G$8,I37:CA37) -> 0 | H37: 0 | N37: 0 | T37: 0 | Z37: 0 | AF37: 0 | AL37: 0 | AR37: 0 | AX37: 0 | BD37: 0 | BJ37: 0 | BP37: 0 | BV37: 0
A38: TEST DE GLUCOSA POSTPRANDIAL | B38: 0 | C38: =SUMIF($I$8:$CA38,$C$8,I38:CA38) -> 0 | D38: =SUMIF($I$8:$CA38,$D$8,I38:CA38) -> 0 | E38: =SUMIF($I$8:$CA38,$E$8,I38:CA38) -> 0 | F38: =SUMIF($I$8:$CA38,$F$8,I38:CA38) -> 0 | G38: =SUMIF($I$8:$CA38,$G$8,I38:CA38) -> 0 | H38: 0 | N38: 0 | T38: 0 | Z38: 0 | AF38: 0 | AL38: 0 | AR38: 0 | AX38: 0 | BD38: 0 | BJ38: 0 | BP38: 0 | BV38: 0
A39: TEST TOLERANCIA A LA GLUCOSA | B39: 0 | C39: =SUMIF($I$8:$CA39,$C$8,I39:CA39) -> 0 | D39: =SUMIF($I$8:$CA39,$D$8,I39:CA39) -> 0 | E39: =SUMIF($I$8:$CA39,$E$8,I39:CA39) -> 0 | F39: =SUMIF($I$8:$CA39,$F$8,I39:CA39) -> 0 | G39: =SUMIF($I$8:$CA39,$G$8,I39:CA39) -> 0 | H39: 0 | N39: 0 | T39: 0 | Z39: 0 | AF39: 0 | AL39: 0 | AR39: 0 | AX39: 0 | BD39: 0 | BJ39: 0 | BP39: 0 | BV39: 0
A40: TRIGLICERIDOS | B40: 0 | C40: =SUMIF($I$8:$CA40,$C$8,I40:CA40) -> 0 | D40: =SUMIF($I$8:$CA40,$D$8,I40:CA40) -> 0 | E40: =SUMIF($I$8:$CA40,$E$8,I40:CA40) -> 0 | F40: =SUMIF($I$8:$CA40,$F$8,I40:CA40) -> 0 | G40: =SUMIF($I$8:$CA40,$G$8,I40:CA40) -> 0 | H40: 0 | N40: 0 | T40: 0 | Z40: 0 | AF40: 0 | AL40: 0 | AR40: 0 | AX40: 0 | BD40: 0 | BJ40: 0 | BP40: 0 | BV40: 0
A41: UREA | B41: 0 | C41: =SUMIF($I$8:$CA41,$C$8,I41:CA41) -> 0 | D41: =SUMIF($I$8:$CA41,$D$8,I41:CA41) -> 0 | E41: =SUMIF($I$8:$CA41,$E$8,I41:CA41) -> 0 | F41: =SUMIF($I$8:$CA41,$F$8,I41:CA41) -> 0 | G41: =SUMIF($I$8:$CA41,$G$8,I41:CA41) -> 0 | H41: 0 | N41: 0 | T41: 0 | Z41: 0 | AF41: 0 | AL41: 0 | AR41: 0 | AX41: 0 | BD41: 0 | BJ41: 0 | BP41: 0 | BV41: 0
A42: FUENTE: ORDEN DE ANALISIS
A45: ANALISIS | B45: TOTAL | C45: DEM | D45: SIS/AUS | E45: EXO | F45: ESTR. | G45: CAMP | H45: TOTAL | I45: DEM | J45: SIS/AUS | K45: EXO | L45: ESTR. | M45: CAMP | N45: TOTAL | O45: DEM | P45: SIS/AUS | Q45: EXO | R45: ESTR. | S45: CAMP | T45: TOTAL | U45: DEM | V45: SIS/AUS | W45: EXO | X45: ESTR. | Y45: CAMP | Z45: TOTAL | AA45: DEM | AB45: SIS/AUS | AC45: EXO | AD45: ESTR. | AE45: CAMP | AF45: TOTAL | AG45: DEM | AH45: SIS/AUS | AI45: EXO | AJ45: ESTR. | AK45: CAMP | AL45: TOTAL | AM45: DEM | AN45: SIS/AUS | AO45: EXO | AP45: ESTR. | AQ45: CAMP | AR45: TOTAL | AS45: DEM | AT45: SIS/AUS | AU45: EXO | AV45: ESTR. | AW45: CAMP | AX45: TOTAL | AY45: DEM | AZ45: SIS/AUS | BA45: EXO | BB45: ESTR. | BC45: CAMP | BD45: TOTAL | BE45: DEM | BF45: SIS/AUS | BG45: EXO | BH45: ESTR. | BI45: CAMP | BJ45: TOTAL | BK45: DEM | BL45: SIS/AUS | BM45: EXO | BN45: ESTR. | BO45: CAMP | BP45: TOTAL | BQ45: DEM | BR45: SIS/AUS | BS45: EXO | BT45: ESTR. | BU45: CAMP | BV45: TOTAL | BW45: DEM | BX45: SIS/AUS | BY45: EXO | BZ45: ESTR. | CA45: CAMP
A46: INMUNOLOGIA
A47: TOTAL | B47: =SUM(B48:B67) -> 0 | C47: 0 | D47: 0 | E47: 0 | F47: 0 | G47: 0 | H47: 0 | I47: 0 | J47: 0 | K47: 0 | L47: 0 | M47: 0 | N47: 0 | O47: 0 | P47: 0 | Q47: 0 | R47: 0 | S47: 0 | T47: 0 | U47: 0 | V47: 0 | W47: 0 | X47: 0 | Y47: 0 | Z47: 0 | AA47: 0 | AB47: 0 | AC47: 0 | AD47: 0 | AE47: 0 | AF47: 0 | AG47: 0 | AH47: =SUM(AH48:AH67) -> 0 | AI47: 0 | AJ47: 0 | AK47: 0 | AL47: 0 | AM47: 0 | AN47: 0 | AO47: 0 | AP47: 0 | AQ47: 0 | AR47: 0 | AS47: 0 | AT47: 0 | AU47: 0 | AV47: 0 | AW47: 0 | AX47: 0 | AY47: 0 | AZ47: 0 | BA47: 0 | BB47: 0 | BC47: 0 | BD47: 0 | BE47: 0 | BF47: 0 | BG47: 0 | BH47: 0 | BI47: 0 | BJ47: 0 | BK47: 0 | BL47: 0 | BM47: 0 | BN47: =SUM(BN48:BN67) -> 0 | BO47: 0 | BP47: 0 | BQ47: 0 | BR47: 0 | BS47: 0 | BT47: 0 | BU47: 0 | BV47: 0 | BW47: 0 | BX47: 0 | BY47: 0 | BZ47: 0 | CA47: 0
A48: AGLUTINACIONES ( O, H, A, B, Brucella ) | B48: =SUM(C48:G48) -> 0 | C48: =SUMIF($I$45:$CA48,$C$45,I48:CA48) -> 0 | D48: =SUMIF($I$45:$CA48,$D$45,I48:CA48) -> 0 | E48: =SUMIF($I$45:$CA48,$E$45,I48:CA48) -> 0 | F48: =SUMIF($I$45:$CA48,$F$45,I48:CA48) -> 0 | G48: =SUMIF($I$45:$CA48,$G$45,I48:CA48) -> 0 | H48: =SUM(I48:M48) -> 0 | N48: =SUM(O48:S48) -> 0 | T48: =SUM(U48:Y48) -> 0 | Z48: =SUM(AA48:AE48) -> 0 | AF48: =SUM(AG48:AK48) -> 0 | AL48: =SUM(AM48:AQ48) -> 0 | AR48: =SUM(AS48:AW48) -> 0 | AX48: =SUM(AY48:BC48) -> 0 | BD48: =SUM(BE48:BI48) -> 0 | BJ48: =SUM(BK48:BO48) -> 0 | BP48: =SUM(BQ48:BU48) -> 0 | BV48: =SUM(BW48:CA48) -> 0
A49: ANTIESTREPTOLISINA "O" (ASO) | B49: 0 | C49: =SUMIF($I$45:$CA49,$C$45,I49:CA49) -> 0 | D49: =SUMIF($I$45:$CA49,$D$45,I49:CA49) -> 0 | E49: =SUMIF($I$45:$CA49,$E$45,I49:CA49) -> 0 | F49: =SUMIF($I$45:$CA49,$F$45,I49:CA49) -> 0 | G49: =SUMIF($I$45:$CA49,$G$45,I49:CA49) -> 0 | H49: 0 | N49: 0 | T49: 0 | Z49: 0 | AF49: 0 | AL49: 0 | AR49: 0 | AX49: 0 | BD49: 0 | BJ49: 0 | BP49: 0 | BV49: 0
A50: ANTIGENO PROSTATICO ESPECIFICO (PSA) | B50: 0 | C50: =SUMIF($I$45:$CA50,$C$45,I50:CA50) -> 0 | D50: =SUMIF($I$45:$CA50,$D$45,I50:CA50) -> 0 | E50: =SUMIF($I$45:$CA50,$E$45,I50:CA50) -> 0 | F50: =SUMIF($I$45:$CA50,$F$45,I50:CA50) -> 0 | G50: =SUMIF($I$45:$CA50,$G$45,I50:CA50) -> 0 | H50: 0 | N50: 0 | T50: 0 | Z50: 0 | AF50: 0 | AL50: 0 | AR50: 0 | AX50: 0 | BD50: 0 | BJ50: 0 | BP50: 0 | BV50: 0
A51: DOS MERCAPTO ETANOL | B51: 0 | C51: =SUMIF($I$45:$CA51,$C$45,I51:CA51) -> 0 | D51: =SUMIF($I$45:$CA51,$D$45,I51:CA51) -> 0 | E51: =SUMIF($I$45:$CA51,$E$45,I51:CA51) -> 0 | F51: =SUMIF($I$45:$CA51,$F$45,I51:CA51) -> 0 | G51: =SUMIF($I$45:$CA51,$G$45,I51:CA51) -> 0 | H51: 0 | N51: 0 | T51: 0 | Z51: 0 | AF51: 0 | AL51: 0 | AR51: 0 | AX51: 0 | BD51: 0 | BJ51: 0 | BP51: 0 | BV51: 0
A52: FACTOR REUMATOIDEO | B52: 0 | C52: =SUMIF($I$45:$CA52,$C$45,I52:CA52) -> 0 | D52: =SUMIF($I$45:$CA52,$D$45,I52:CA52) -> 0 | E52: =SUMIF($I$45:$CA52,$E$45,I52:CA52) -> 0 | F52: =SUMIF($I$45:$CA52,$F$45,I52:CA52) -> 0 | G52: =SUMIF($I$45:$CA52,$G$45,I52:CA52) -> 0 | H52: 0 | N52: 0 | T52: 0 | Z52: 0 | AF52: 0 | AL52: 0 | AR52: 0 | AX52: 0 | BD52: 0 | BJ52: 0 | BP52: 0 | BV52: 0
A53: HCG BETA CUALITATIVO | B53: 0 | C53: =SUMIF($I$45:$CA53,$C$45,I53:CA53) -> 0 | D53: =SUMIF($I$45:$CA53,$D$45,I53:CA53) -> 0 | E53: =SUMIF($I$45:$CA53,$E$45,I53:CA53) -> 0 | F53: =SUMIF($I$45:$CA53,$F$45,I53:CA53) -> 0 | G53: =SUMIF($I$45:$CA53,$G$45,I53:CA53) -> 0 | H53: 0 | N53: 0 | T53: 0 | Z53: 0 | AF53: 0 | AL53: 0 | AR53: 0 | AX53: 0 | BD53: 0 | BJ53: 0 | BP53: 0 | BV53: 0
A54: HCG BETA CUANTITATIVO | B54: 0 | C54: =SUMIF($I$45:$CA54,$C$45,I54:CA54) -> 0 | D54: =SUMIF($I$45:$CA54,$D$45,I54:CA54) -> 0 | E54: =SUMIF($I$45:$CA54,$E$45,I54:CA54) -> 0 | F54: =SUMIF($I$45:$CA54,$F$45,I54:CA54) -> 0 | G54: =SUMIF($I$45:$CA54,$G$45,I54:CA54) -> 0 | H54: 0 | N54: 0 | T54: 0 | Z54: 0 | AF54: 0 | AL54: 0 | AR54: 0 | AX54: 0 | BD54: 0 | BJ54: 0 | BP54: 0 | BV54: 0
A55: HEMOGLOBINA GLICOSILADA | B55: 0 | C55: =SUMIF($I$45:$CA55,$C$45,I55:CA55) -> 0 | D55: =SUMIF($I$45:$CA55,$D$45,I55:CA55) -> 0 | E55: =SUMIF($I$45:$CA55,$E$45,I55:CA55) -> 0 | F55: =SUMIF($I$45:$CA55,$F$45,I55:CA55) -> 0 | G55: =SUMIF($I$45:$CA55,$G$45,I55:CA55) -> 0 | H55: 0 | N55: 0 | T55: 0 | Z55: 0 | AF55: 0 | AL55: 0 | AR55: 0 | AX55: 0 | BD55: 0 | BJ55: 0 | BP55: 0 | BV55: 0
A56: HEPATITIS B (PRUEBA RAPIDA) | B56: 0 | C56: =SUMIF($I$45:$CA56,$C$45,I56:CA56) -> 0 | D56: =SUMIF($I$45:$CA56,$D$45,I56:CA56) -> 0 | E56: =SUMIF($I$45:$CA56,$E$45,I56:CA56) -> 0 | F56: =SUMIF($I$45:$CA56,$F$45,I56:CA56) -> 0 | G56: =SUMIF($I$45:$CA56,$G$45,I56:CA56) -> 0 | H56: 0 | N56: 0 | T56: 0 | Z56: 0 | AF56: 0 | AL56: 0 | AR56: 0 | AX56: 0 | BD56: 0 | BJ56: 0 | BP56: 0 | BV56: 0
A57: HEPATITIS C (PRUEBA RAPIDA) | B57: 0 | C57: =SUMIF($I$45:$CA57,$C$45,I57:CA57) -> 0 | D57: =SUMIF($I$45:$CA57,$D$45,I57:CA57) -> 0 | E57: =SUMIF($I$45:$CA57,$E$45,I57:CA57) -> 0 | F57: =SUMIF($I$45:$CA57,$F$45,I57:CA57) -> 0 | G57: =SUMIF($I$45:$CA57,$G$45,I57:CA57) -> 0 | H57: 0 | N57: 0 | T57: 0 | Z57: 0 | AF57: 0 | AL57: 0 | AR57: 0 | AX57: 0 | BD57: 0 | BJ57: 0 | BP57: 0 | BV57: 0
A58: PROTEINAS "C" REACTIVA (P.C.R.) | B58: 0 | C58: =SUMIF($I$45:$CA58,$C$45,I58:CA58) -> 0 | D58: =SUMIF($I$45:$CA58,$D$45,I58:CA58) -> 0 | E58: =SUMIF($I$45:$CA58,$E$45,I58:CA58) -> 0 | F58: =SUMIF($I$45:$CA58,$F$45,I58:CA58) -> 0 | G58: =SUMIF($I$45:$CA58,$G$45,I58:CA58) -> 0 | H58: 0 | N58: 0 | T58: 0 | Z58: 0 | AF58: 0 | AL58: 0 | AR58: 0 | AX58: 0 | BD58: 0 | BJ58: 0 | BP58: 0 | BV58: 0
A59: R.P.R. | B59: 0 | C59: =SUMIF($I$45:$CA59,$C$45,I59:CA59) -> 0 | D59: =SUMIF($I$45:$CA59,$D$45,I59:CA59) -> 0 | E59: =SUMIF($I$45:$CA59,$E$45,I59:CA59) -> 0 | F59: =SUMIF($I$45:$CA59,$F$45,I59:CA59) -> 0 | G59: =SUMIF($I$45:$CA59,$G$45,I59:CA59) -> 0 | H59: 0 | N59: 0 | T59: 0 | Z59: 0 | AF59: 0 | AL59: 0 | AR59: 0 | AX59: 0 | BD59: 0 | BJ59: 0 | BP59: 0 | BV59: 0
A60: ROSA DE BENGALA | B60: 0 | C60: =SUMIF($I$45:$CA60,$C$45,I60:CA60) -> 0 | D60: =SUMIF($I$45:$CA60,$D$45,I60:CA60) -> 0 | E60: =SUMIF($I$45:$CA60,$E$45,I60:CA60) -> 0 | F60: =SUMIF($I$45:$CA60,$F$45,I60:CA60) -> 0 | G60: =SUMIF($I$45:$CA60,$G$45,I60:CA60) -> 0 | H60: 0 | N60: 0 | T60: 0 | Z60: 0 | AF60: 0 | AL60: 0 | AR60: 0 | AX60: 0 | BD60: 0 | BJ60: 0 | BP60: 0 | BV60: 0
A61: ROTAVIRUS/ADENOVIRUS EN HECES | B61: 0 | C61: =SUMIF($I$45:$CA61,$C$45,I61:CA61) -> 0 | D61: =SUMIF($I$45:$CA61,$D$45,I61:CA61) -> 0 | E61: =SUMIF($I$45:$CA61,$E$45,I61:CA61) -> 0 | F61: =SUMIF($I$45:$CA61,$F$45,I61:CA61) -> 0 | G61: =SUMIF($I$45:$CA61,$G$45,I61:CA61) -> 0 | H61: 0 | N61: 0 | T61: 0 | Z61: 0 | AF61: 0 | AL61: 0 | AR61: 0 | AX61: 0 | BD61: 0 | BJ61: 0 | BP61: 0 | BV61: 0
A62: TEST DE COOMBS DIRECTO | B62: 0 | C62: =SUMIF($I$45:$CA62,$C$45,I62:CA62) -> 0 | D62: =SUMIF($I$45:$CA62,$D$45,I62:CA62) -> 0 | E62: =SUMIF($I$45:$CA62,$E$45,I62:CA62) -> 0 | F62: =SUMIF($I$45:$CA62,$F$45,I62:CA62) -> 0 | G62: =SUMIF($I$45:$CA62,$G$45,I62:CA62) -> 0 | H62: 0 | N62: 0 | T62: 0 | Z62: 0 | AF62: 0 | AL62: 0 | AR62: 0 | AX62: 0 | BD62: 0 | BJ62: 0 | BP62: 0 | BV62: 0
A63: TEST DE COOMBS INDIRECTO | B63: 0 | C63: =SUMIF($I$45:$CA63,$C$45,I63:CA63) -> 0 | D63: =SUMIF($I$45:$CA63,$D$45,I63:CA63) -> 0 | E63: =SUMIF($I$45:$CA63,$E$45,I63:CA63) -> 0 | F63: =SUMIF($I$45:$CA63,$F$45,I63:CA63) -> 0 | G63: =SUMIF($I$45:$CA63,$G$45,I63:CA63) -> 0 | H63: 0 | N63: 0 | T63: 0 | Z63: 0 | AF63: 0 | AL63: 0 | AR63: 0 | AX63: 0 | BD63: 0 | BJ63: 0 | BP63: 0 | BV63: 0
A64: TEST DE EMBARAZO(INMUNOCROMATOGRAFICA) | B64: 0 | C64: =SUMIF($I$45:$CA64,$C$45,I64:CA64) -> 0 | D64: =SUMIF($I$45:$CA64,$D$45,I64:CA64) -> 0 | E64: =SUMIF($I$45:$CA64,$E$45,I64:CA64) -> 0 | F64: =SUMIF($I$45:$CA64,$F$45,I64:CA64) -> 0 | G64: =SUMIF($I$45:$CA64,$G$45,I64:CA64) -> 0 | H64: 0 | N64: 0 | T64: 0 | Z64: 0 | AF64: 0 | AL64: 0 | AR64: 0 | AX64: 0 | BD64: 0 | BJ64: 0 | BP64: 0 | BV64: 0
A65: V.D.R.L. (SEROLOGICAS) | B65: 0 | C65: =SUMIF($I$45:$CA65,$C$45,I65:CA65) -> 0 | D65: =SUMIF($I$45:$CA65,$D$45,I65:CA65) -> 0 | E65: =SUMIF($I$45:$CA65,$E$45,I65:CA65) -> 0 | F65: =SUMIF($I$45:$CA65,$F$45,I65:CA65) -> 0 | G65: =SUMIF($I$45:$CA65,$G$45,I65:CA65) -> 0 | H65: 0 | N65: 0 | T65: 0 | Z65: 0 | AF65: 0 | AL65: 0 | AR65: 0 | AX65: 0 | BD65: 0 | BJ65: 0 | BP65: 0 | BV65: 0
A66: VIH - ELISA | B66: 0 | C66: =SUMIF($I$45:$CA66,$C$45,I66:CA66) -> 0 | D66: =SUMIF($I$45:$CA66,$D$45,I66:CA66) -> 0 | E66: =SUMIF($I$45:$CA66,$E$45,I66:CA66) -> 0 | F66: =SUMIF($I$45:$CA66,$F$45,I66:CA66) -> 0 | G66: =SUMIF($I$45:$CA66,$G$45,I66:CA66) -> 0 | H66: 0 | N66: 0 | T66: 0 | Z66: 0 | AF66: 0 | AL66: 0 | AR66: 0 | AX66: 0 | BD66: 0 | BJ66: 0 | BP66: 0 | BV66: 0
A67: VIH - PRUEBA RAPIDA | B67: 0 | C67: =SUMIF($I$45:$CA67,$C$45,I67:CA67) -> 0 | D67: =SUMIF($I$45:$CA67,$D$45,I67:CA67) -> 0 | E67: =SUMIF($I$45:$CA67,$E$45,I67:CA67) -> 0 | F67: =SUMIF($I$45:$CA67,$F$45,I67:CA67) -> 0 | G67: =SUMIF($I$45:$CA67,$G$45,I67:CA67) -> 0 | H67: 0 | N67: 0 | T67: 0 | Z67: 0 | AF67: 0 | AL67: 0 | AR67: 0 | AX67: 0 | BD67: 0 | BJ67: 0 | BP67: 0 | BV67: 0
A68: FUENTE: ORDEN DE ANALISIS
A71: ANALISIS | B71: TOTAL | C71: DEM | D71: SIS/AUS | E71: EXO | F71: ESTR. | G71: CAMP | H71: TOTAL | I71: DEM | J71: SIS/AUS | K71: EXO | L71: ESTR. | M71: CAMP | N71: TOTAL | O71: DEM | P71: SIS/AUS | Q71: EXO | R71: ESTR. | S71: CAMP | T71: TOTAL | U71: DEM | V71: SIS/AUS | W71: EXO | X71: ESTR. | Y71: CAMP | Z71: TOTAL | AA71: DEM | AB71: SIS/AUS | AC71: EXO | AD71: ESTR. | AE71: CAMP | AF71: TOTAL | AG71: DEM | AH71: SIS/AUS | AI71: EXO | AJ71: ESTR. | AK71: CAMP | AL71: TOTAL | AM71: DEM | AN71: SIS/AUS | AO71: EXO | AP71: ESTR. | AQ71: CAMP | AR71: TOTAL | AS71: DEM | AT71: SIS/AUS | AU71: EXO | AV71: ESTR. | AW71: CAMP | AX71: TOTAL | AY71: DEM | AZ71: SIS/AUS | BA71: EXO | BB71: ESTR. | BC71: CAMP | BD71: TOTAL | BE71: DEM | BF71: SIS/AUS | BG71: EXO | BH71: ESTR. | BI71: CAMP | BJ71: TOTAL | BK71: DEM | BL71: SIS/AUS | BM71: EXO | BN71: ESTR. | BO71: CAMP | BP71: TOTAL | BQ71: DEM | BR71: SIS/AUS | BS71: EXO | BT71: ESTR. | BU71: CAMP | BV71: TOTAL | BW71: DEM | BX71: SIS/AUS | BY71: EXO | BZ71: ESTR. | CA71: CAMP
A72: INMUNOLOGIA ESPECIAL:
A73: TOTAL | B73: =SUM(B74:B91) -> 0 | C73: 0 | D73: 0 | E73: 0 | F73: 0 | G73: 0 | H73: 0 | I73: 0 | J73: 0 | K73: 0 | L73: 0 | M73: 0 | N73: 0 | O73: 0 | P73: 0 | Q73: 0 | R73: 0 | S73: 0 | T73: 0 | U73: 0 | V73: 0 | W73: 0 | X73: 0 | Y73: 0 | Z73: 0 | AA73: 0 | AB73: 0 | AC73: 0 | AD73: 0 | AE73: 0 | AF73: 0 | AG73: 0 | AH73: =SUM(AH74:AH91) -> 0 | AI73: 0 | AJ73: 0 | AK73: 0 | AL73: 0 | AM73: 0 | AN73: 0 | AO73: 0 | AP73: 0 | AQ73: 0 | AR73: 0 | AS73: 0 | AT73: 0 | AU73: 0 | AV73: 0 | AW73: 0 | AX73: 0 | AY73: 0 | AZ73: 0 | BA73: 0 | BB73: 0 | BC73: 0 | BD73: 0 | BE73: 0 | BF73: 0 | BG73: 0 | BH73: 0 | BI73: 0 | BJ73: 0 | BK73: 0 | BL73: 0 | BM73: 0 | BN73: =SUM(BN74:BN91) -> 0 | BO73: 0 | BP73: 0 | BQ73: 0 | BR73: 0 | BS73: 0 | BT73: 0 | BU73: 0 | BV73: 0 | BW73: 0 | BX73: 0 | BY73: 0 | BZ73: 0 | CA73: 0
A74: AFP | B74: =SUM(C74:G74) -> 0 | C74: =SUMIF($I$71:$CA74,$C$71,I74:CA74) -> 0 | D74: =SUMIF($I$71:$CA74,$D$71,I74:CA74) -> 0 | E74: =SUMIF($I$71:$CA74,$E$71,I74:CA74) -> 0 | F74: =SUMIF($I$71:$CA74,$F$71,I74:CA74) -> 0 | G74: =SUMIF($I$71:$CA74,$G$71,I74:CA74) -> 0 | H74: =SUM(I74:M74) -> 0 | N74: =SUM(O74:S74) -> 0 | T74: =SUM(U74:Y74) -> 0 | Z74: =SUM(AA74:AE74) -> 0 | AF74: =SUM(AG74:AK74) -> 0 | AL74: =SUM(AM74:AQ74) -> 0 | AR74: =SUM(AS74:AW74) -> 0 | AX74: =SUM(AY74:BC74) -> 0 | BD74: =SUM(BE74:BI74) -> 0 | BJ74: =SUM(BK74:BO74) -> 0 | BP74: =SUM(BQ74:BU74) -> 0 | BV74: =SUM(BW74:CA74) -> 0
A75: CA - 125 | B75: 0 | C75: =SUMIF($I$71:$CA75,$C$71,I75:CA75) -> 0 | D75: =SUMIF($I$71:$CA75,$D$71,I75:CA75) -> 0 | E75: =SUMIF($I$71:$CA75,$E$71,I75:CA75) -> 0 | F75: =SUMIF($I$71:$CA75,$F$71,I75:CA75) -> 0 | G75: =SUMIF($I$71:$CA75,$G$71,I75:CA75) -> 0 | H75: 0 | N75: 0 | T75: 0 | Z75: 0 | AF75: 0 | AL75: 0 | AR75: 0 | AX75: 0 | BD75: 0 | BJ75: 0 | BP75: 0 | BV75: 0
A76: CA - 19 - 9 | B76: 0 | C76: =SUMIF($I$71:$CA76,$C$71,I76:CA76) -> 0 | D76: =SUMIF($I$71:$CA76,$D$71,I76:CA76) -> 0 | E76: =SUMIF($I$71:$CA76,$E$71,I76:CA76) -> 0 | F76: =SUMIF($I$71:$CA76,$F$71,I76:CA76) -> 0 | G76: =SUMIF($I$71:$CA76,$G$71,I76:CA76) -> 0 | H76: 0 | N76: 0 | T76: 0 | Z76: 0 | AF76: 0 | AL76: 0 | AR76: 0 | AX76: 0 | BD76: 0 | BJ76: 0 | BP76: 0 | BV76: 0
A77: CEA | B77: 0 | C77: =SUMIF($I$71:$CA77,$C$71,I77:CA77) -> 0 | D77: =SUMIF($I$71:$CA77,$D$71,I77:CA77) -> 0 | E77: =SUMIF($I$71:$CA77,$E$71,I77:CA77) -> 0 | F77: =SUMIF($I$71:$CA77,$F$71,I77:CA77) -> 0 | G77: =SUMIF($I$71:$CA77,$G$71,I77:CA77) -> 0 | H77: 0 | N77: 0 | T77: 0 | Z77: 0 | AF77: 0 | AL77: 0 | AR77: 0 | AX77: 0 | BD77: 0 | BJ77: 0 | BP77: 0 | BV77: 0
A78: ESTRADIOL | B78: 0 | C78: =SUMIF($I$71:$CA78,$C$71,I78:CA78) -> 0 | D78: =SUMIF($I$71:$CA78,$D$71,I78:CA78) -> 0 | E78: =SUMIF($I$71:$CA78,$E$71,I78:CA78) -> 0 | F78: =SUMIF($I$71:$CA78,$F$71,I78:CA78) -> 0 | G78: =SUMIF($I$71:$CA78,$G$71,I78:CA78) -> 0 | H78: 0 | N78: 0 | T78: 0 | Z78: 0 | AF78: 0 | AL78: 0 | AR78: 0 | AX78: 0 | BD78: 0 | BJ78: 0 | BP78: 0 | BV78: 0
A79: FSH | B79: 0 | C79: =SUMIF($I$71:$CA79,$C$71,I79:CA79) -> 0 | D79: =SUMIF($I$71:$CA79,$D$71,I79:CA79) -> 0 | E79: =SUMIF($I$71:$CA79,$E$71,I79:CA79) -> 0 | F79: =SUMIF($I$71:$CA79,$F$71,I79:CA79) -> 0 | G79: =SUMIF($I$71:$CA79,$G$71,I79:CA79) -> 0 | H79: 0 | N79: 0 | T79: 0 | Z79: 0 | AF79: 0 | AL79: 0 | AR79: 0 | AX79: 0 | BD79: 0 | BJ79: 0 | BP79: 0 | BV79: 0
A80: HCG | B80: 0 | C80: =SUMIF($I$71:$CA80,$C$71,I80:CA80) -> 0 | D80: =SUMIF($I$71:$CA80,$D$71,I80:CA80) -> 0 | E80: =SUMIF($I$71:$CA80,$E$71,I80:CA80) -> 0 | F80: =SUMIF($I$71:$CA80,$F$71,I80:CA80) -> 0 | G80: =SUMIF($I$71:$CA80,$G$71,I80:CA80) -> 0 | H80: 0 | N80: 0 | T80: 0 | Z80: 0 | AF80: 0 | AL80: 0 | AR80: 0 | AX80: 0 | BD80: 0 | BJ80: 0 | BP80: 0 | BV80: 0
A81: IgE | B81: 0 | C81: =SUMIF($I$71:$CA81,$C$71,I81:CA81) -> 0 | D81: =SUMIF($I$71:$CA81,$D$71,I81:CA81) -> 0 | E81: =SUMIF($I$71:$CA81,$E$71,I81:CA81) -> 0 | F81: =SUMIF($I$71:$CA81,$F$71,I81:CA81) -> 0 | G81: =SUMIF($I$71:$CA81,$G$71,I81:CA81) -> 0 | H81: 0 | N81: 0 | T81: 0 | Z81: 0 | AF81: 0 | AL81: 0 | AR81: 0 | AX81: 0 | BD81: 0 | BJ81: 0 | BP81: 0 | BV81: 0
A82: LH | B82: 0 | C82: =SUMIF($I$71:$CA82,$C$71,I82:CA82) -> 0 | D82: =SUMIF($I$71:$CA82,$D$71,I82:CA82) -> 0 | E82: =SUMIF($I$71:$CA82,$E$71,I82:CA82) -> 0 | F82: =SUMIF($I$71:$CA82,$F$71,I82:CA82) -> 0 | G82: =SUMIF($I$71:$CA82,$G$71,I82:CA82) -> 0 | H82: 0 | N82: 0 | T82: 0 | Z82: 0 | AF82: 0 | AL82: 0 | AR82: 0 | AX82: 0 | BD82: 0 | BJ82: 0 | BP82: 0 | BV82: 0
A83: PRL | B83: 0 | C83: =SUMIF($I$71:$CA83,$C$71,I83:CA83) -> 0 | D83: =SUMIF($I$71:$CA83,$D$71,I83:CA83) -> 0 | E83: =SUMIF($I$71:$CA83,$E$71,I83:CA83) -> 0 | F83: =SUMIF($I$71:$CA83,$F$71,I83:CA83) -> 0 | G83: =SUMIF($I$71:$CA83,$G$71,I83:CA83) -> 0 | H83: 0 | N83: 0 | T83: 0 | Z83: 0 | AF83: 0 | AL83: 0 | AR83: 0 | AX83: 0 | BD83: 0 | BJ83: 0 | BP83: 0 | BV83: 0
A84: PROGESTERONA | B84: 0 | C84: =SUMIF($I$71:$CA84,$C$71,I84:CA84) -> 0 | D84: =SUMIF($I$71:$CA84,$D$71,I84:CA84) -> 0 | E84: =SUMIF($I$71:$CA84,$E$71,I84:CA84) -> 0 | F84: =SUMIF($I$71:$CA84,$F$71,I84:CA84) -> 0 | G84: =SUMIF($I$71:$CA84,$G$71,I84:CA84) -> 0 | H84: 0 | N84: 0 | T84: 0 | Z84: 0 | AF84: 0 | AL84: 0 | AR84: 0 | AX84: 0 | BD84: 0 | BJ84: 0 | BP84: 0 | BV84: 0
A85: PSA | B85: 0 | C85: =SUMIF($I$71:$CA85,$C$71,I85:CA85) -> 0 | D85: =SUMIF($I$71:$CA85,$D$71,I85:CA85) -> 0 | E85: =SUMIF($I$71:$CA85,$E$71,I85:CA85) -> 0 | F85: =SUMIF($I$71:$CA85,$F$71,I85:CA85) -> 0 | G85: =SUMIF($I$71:$CA85,$G$71,I85:CA85) -> 0 | H85: 0 | N85: 0 | T85: 0 | Z85: 0 | AF85: 0 | AL85: 0 | AR85: 0 | AX85: 0 | BD85: 0 | BJ85: 0 | BP85: 0 | BV85: 0
A86: PSA Libre | B86: 0 | C86: =SUMIF($I$71:$CA86,$C$71,I86:CA86) -> 0 | D86: =SUMIF($I$71:$CA86,$D$71,I86:CA86) -> 0 | E86: =SUMIF($I$71:$CA86,$E$71,I86:CA86) -> 0 | F86: =SUMIF($I$71:$CA86,$F$71,I86:CA86) -> 0 | G86: =SUMIF($I$71:$CA86,$G$71,I86:CA86) -> 0 | H86: 0 | N86: 0 | T86: 0 | Z86: 0 | AF86: 0 | AL86: 0 | AR86: 0 | AX86: 0 | BD86: 0 | BJ86: 0 | BP86: 0 | BV86: 0
A87: T3 | B87: 0 | C87: =SUMIF($I$71:$CA87,$C$71,I87:CA87) -> 0 | D87: =SUMIF($I$71:$CA87,$D$71,I87:CA87) -> 0 | E87: =SUMIF($I$71:$CA87,$E$71,I87:CA87) -> 0 | F87: =SUMIF($I$71:$CA87,$F$71,I87:CA87) -> 0 | G87: =SUMIF($I$71:$CA87,$G$71,I87:CA87) -> 0 | H87: 0 | N87: 0 | T87: 0 | Z87: 0 | AF87: 0 | AL87: 0 | AR87: 0 | AX87: 0 | BD87: 0 | BJ87: 0 | BP87: 0 | BV87: 0
A88: T3 Libre | B88: 0 | C88: =SUMIF($I$71:$CA88,$C$71,I88:CA88) -> 0 | D88: =SUMIF($I$71:$CA88,$D$71,I88:CA88) -> 0 | E88: =SUMIF($I$71:$CA88,$E$71,I88:CA88) -> 0 | F88: =SUMIF($I$71:$CA88,$F$71,I88:CA88) -> 0 | G88: =SUMIF($I$71:$CA88,$G$71,I88:CA88) -> 0 | H88: 0 | N88: 0 | T88: 0 | Z88: 0 | AF88: 0 | AL88: 0 | AR88: 0 | AX88: 0 | BD88: 0 | BJ88: 0 | BP88: 0 | BV88: 0
A89: T4 | B89: 0 | C89: =SUMIF($I$71:$CA89,$C$71,I89:CA89) -> 0 | D89: =SUMIF($I$71:$CA89,$D$71,I89:CA89) -> 0 | E89: =SUMIF($I$71:$CA89,$E$71,I89:CA89) -> 0 | F89: =SUMIF($I$71:$CA89,$F$71,I89:CA89) -> 0 | G89: =SUMIF($I$71:$CA89,$G$71,I89:CA89) -> 0 | H89: 0 | N89: 0 | T89: 0 | Z89: 0 | AF89: 0 | AL89: 0 | AR89: 0 | AX89: 0 | BD89: 0 | BJ89: 0 | BP89: 0 | BV89: 0
A90: T4 Libre | B90: 0 | C90: =SUMIF($I$71:$CA90,$C$71,I90:CA90) -> 0 | D90: =SUMIF($I$71:$CA90,$D$71,I90:CA90) -> 0 | E90: =SUMIF($I$71:$CA90,$E$71,I90:CA90) -> 0 | F90: =SUMIF($I$71:$CA90,$F$71,I90:CA90) -> 0 | G90: =SUMIF($I$71:$CA90,$G$71,I90:CA90) -> 0 | H90: 0 | N90: 0 | T90: 0 | Z90: 0 | AF90: 0 | AL90: 0 | AR90: 0 | AX90: 0 | BD90: 0 | BJ90: 0 | BP90: 0 | BV90: 0
A91: TSH | B91: 0 | C91: =SUMIF($I$71:$CA91,$C$71,I91:CA91) -> 0 | D91: =SUMIF($I$71:$CA91,$D$71,I91:CA91) -> 0 | E91: =SUMIF($I$71:$CA91,$E$71,I91:CA91) -> 0 | F91: =SUMIF($I$71:$CA91,$F$71,I91:CA91) -> 0 | G91: =SUMIF($I$71:$CA91,$G$71,I91:CA91) -> 0 | H91: 0 | N91: 0 | T91: 0 | Z91: 0 | AF91: 0 | AL91: 0 | AR91: 0 | AX91: 0 | BD91: 0 | BJ91: 0 | BP91: 0 | BV91: 0
A92: FUENTE: ORDEN DE ANALISIS
A95: ANALISIS | B95: TOTAL | C95: DEM | D95: SIS/AUS | E95: EXO | F95: ESTR. | G95: CAMP | H95: TOTAL | I95: DEM | J95: SIS/AUS | K95: EXO | L95: ESTR. | M95: CAMP | N95: TOTAL | O95: DEM | P95: SIS/AUS | Q95: EXO | R95: ESTR. | S95: CAMP | T95: TOTAL | U95: DEM | V95: SIS/AUS | W95: EXO | X95: ESTR. | Y95: CAMP | Z95: TOTAL | AA95: DEM | AB95: SIS/AUS | AC95: EXO | AD95: ESTR. | AE95: CAMP | AF95: TOTAL | AG95: DEM | AH95: SIS/AUS | AI95: EXO | AJ95: ESTR. | AK95: CAMP | AL95: TOTAL | AM95: DEM | AN95: SIS/AUS | AO95: EXO | AP95: ESTR. | AQ95: CAMP | AR95: TOTAL | AS95: DEM | AT95: SIS/AUS | AU95: EXO | AV95: ESTR. | AW95: CAMP | AX95: TOTAL | AY95: DEM | AZ95: SIS/AUS | BA95: EXO | BB95: ESTR. | BC95: CAMP | BD95: TOTAL | BE95: DEM | BF95: SIS/AUS | BG95: EXO | BH95: ESTR. | BI95: CAMP | BJ95: TOTAL | BK95: DEM | BL95: SIS/AUS | BM95: EXO | BN95: ESTR. | BO95: CAMP | BP95: TOTAL | BQ95: DEM | BR95: SIS/AUS | BS95: EXO | BT95: ESTR. | BU95: CAMP | BV95: TOTAL | BW95: DEM | BX95: SIS/AUS | BY95: EXO | BZ95: ESTR. | CA95: CAMP
A96: HEMATOLOGIA
A97: TOTAL | B97: =SUM(B98:B114) -> 0 | C97: 0 | D97: 0 | E97: 0 | F97: 0 | G97: 0 | H97: 0 | I97: 0 | J97: 0 | K97: 0 | L97: 0 | M97: 0 | N97: 0 | O97: 0 | P97: 0 | Q97: 0 | R97: 0 | S97: 0 | T97: 0 | U97: 0 | V97: 0 | W97: 0 | X97: 0 | Y97: 0 | Z97: 0 | AA97: 0 | AB97: 0 | AC97: 0 | AD97: 0 | AE97: 0 | AF97: 0 | AG97: 0 | AH97: =SUM(AH98:AH114) -> 0 | AI97: 0 | AJ97: 0 | AK97: 0 | AL97: 0 | AM97: 0 | AN97: 0 | AO97: 0 | AP97: 0 | AQ97: 0 | AR97: 0 | AS97: 0 | AT97: 0 | AU97: 0 | AV97: 0 | AW97: 0 | AX97: 0 | AY97: 0 | AZ97: 0 | BA97: 0 | BB97: 0 | BC97: 0 | BD97: 0 | BE97: 0 | BF97: 0 | BG97: 0 | BH97: 0 | BI97: 0 | BJ97: 0 | BK97: 0 | BL97: 0 | BM97: 0 | BN97: =SUM(BN98:BN114) -> 0 | BO97: 0 | BP97: 0 | BQ97: 0 | BR97: 0 | BS97: 0 | BT97: 0 | BU97: 0 | BV97: 0 | BW97: 0 | BX97: 0 | BY97: 0 | BZ97: 0 | CA97: 0
A98: CONSTANTES CORPUSCULARES | B98: =SUM(C98:G98) -> 0 | C98: =SUMIF($I$95:$CA98,$C$95,I98:CA98) -> 0 | D98: =SUMIF($I$95:$CA98,$D$95,I98:CA98) -> 0 | E98: =SUMIF($I$95:$CA98,$E$95,I98:CA98) -> 0 | F98: =SUMIF($I$95:$CA98,$F$95,I98:CA98) -> 0 | G98: =SUMIF($I$95:$CA98,$G$95,I98:CA98) -> 0 | H98: =SUM(I98:M98) -> 0 | N98: =SUM(O98:S98) -> 0 | T98: =SUM(U98:Y98) -> 0 | Z98: =SUM(AA98:AE98) -> 0 | AF98: =SUM(AG98:AK98) -> 0 | AL98: =SUM(AM98:AQ98) -> 0 | AR98: =SUM(AS98:AW98) -> 0 | AX98: =SUM(AY98:BC98) -> 0 | BD98: =SUM(BE98:BI98) -> 0 | BJ98: =SUM(BK98:BO98) -> 0 | BP98: =SUM(BQ98:BU98) -> 0 | BV98: =SUM(BW98:CA98) -> 0
A99: DIMERO D | B99: 0 | C99: =SUMIF($I$95:$CA99,$C$95,I99:CA99) -> 0 | D99: =SUMIF($I$95:$CA99,$D$95,I99:CA99) -> 0 | E99: =SUMIF($I$95:$CA99,$E$95,I99:CA99) -> 0 | F99: =SUMIF($I$95:$CA99,$F$95,I99:CA99) -> 0 | G99: =SUMIF($I$95:$CA99,$G$95,I99:CA99) -> 0 | H99: 0 | N99: 0 | T99: 0 | Z99: 0 | AF99: 0 | AL99: 0 | AR99: 0 | AX99: 0 | BD99: 0 | BJ99: 0 | BP99: 0 | BV99: 0
A100: FIBRINOGENO | B100: 0 | C100: =SUMIF($I$95:$CA100,$C$95,I100:CA100) -> 0 | D100: =SUMIF($I$95:$CA100,$D$95,I100:CA100) -> 0 | E100: =SUMIF($I$95:$CA100,$E$95,I100:CA100) -> 0 | F100: =SUMIF($I$95:$CA100,$F$95,I100:CA100) -> 0 | G100: =SUMIF($I$95:$CA100,$G$95,I100:CA100) -> 0 | H100: 0 | N100: 0 | T100: 0 | Z100: 0 | AF100: 0 | AL100: 0 | AR100: 0 | AX100: 0 | BD100: 0 | BJ100: 0 | BP100: 0 | BV100: 0
A101: FROTIS DE SANGRE PERIFERICA | B101: 0 | C101: =SUMIF($I$95:$CA101,$C$95,I101:CA101) -> 0 | D101: =SUMIF($I$95:$CA101,$D$95,I101:CA101) -> 0 | E101: =SUMIF($I$95:$CA101,$E$95,I101:CA101) -> 0 | F101: =SUMIF($I$95:$CA101,$F$95,I101:CA101) -> 0 | G101: =SUMIF($I$95:$CA101,$G$95,I101:CA101) -> 0 | H101: 0 | N101: 0 | T101: 0 | Z101: 0 | AF101: 0 | AL101: 0 | AR101: 0 | AX101: 0 | BD101: 0 | BJ101: 0 | BP101: 0 | BV101: 0
A102: GOTA GRUESA | B102: 0 | C102: =SUMIF($I$95:$CA102,$C$95,I102:CA102) -> 0 | D102: =SUMIF($I$95:$CA102,$D$95,I102:CA102) -> 0 | E102: =SUMIF($I$95:$CA102,$E$95,I102:CA102) -> 0 | F102: =SUMIF($I$95:$CA102,$F$95,I102:CA102) -> 0 | G102: =SUMIF($I$95:$CA102,$G$95,I102:CA102) -> 0 | H102: 0 | N102: 0 | T102: 0 | Z102: 0 | AF102: 0 | AL102: 0 | AR102: 0 | AX102: 0 | BD102: 0 | BJ102: 0 | BP102: 0 | BV102: 0
A103: GRUPO SANGUINEO Y FACTOR RH. | B103: 0 | C103: =SUMIF($I$95:$CA103,$C$95,I103:CA103) -> 0 | D103: =SUMIF($I$95:$CA103,$D$95,I103:CA103) -> 0 | E103: =SUMIF($I$95:$CA103,$E$95,I103:CA103) -> 0 | F103: =SUMIF($I$95:$CA103,$F$95,I103:CA103) -> 0 | G103: =SUMIF($I$95:$CA103,$G$95,I103:CA103) -> 0 | H103: 0 | N103: 0 | T103: 0 | Z103: 0 | AF103: 0 | AL103: 0 | AR103: 0 | AX103: 0 | BD103: 0 | BJ103: 0 | BP103: 0 | BV103: 0
A104: HEMATOCRITO MANUAL | B104: 0 | C104: =SUMIF($I$95:$CA104,$C$95,I104:CA104) -> 0 | D104: =SUMIF($I$95:$CA104,$D$95,I104:CA104) -> 0 | E104: =SUMIF($I$95:$CA104,$E$95,I104:CA104) -> 0 | F104: =SUMIF($I$95:$CA104,$F$95,I104:CA104) -> 0 | G104: =SUMIF($I$95:$CA104,$G$95,I104:CA104) -> 0 | H104: 0 | N104: 0 | T104: 0 | Z104: 0 | AF104: 0 | AL104: 0 | AR104: 0 | AX104: 0 | BD104: 0 | BJ104: 0 | BP104: 0 | BV104: 0
A105: HEMOGLOBINA MANUAL | B105: 0 | C105: =SUMIF($I$95:$CA105,$C$95,I105:CA105) -> 0 | D105: =SUMIF($I$95:$CA105,$D$95,I105:CA105) -> 0 | E105: =SUMIF($I$95:$CA105,$E$95,I105:CA105) -> 0 | F105: =SUMIF($I$95:$CA105,$F$95,I105:CA105) -> 0 | G105: =SUMIF($I$95:$CA105,$G$95,I105:CA105) -> 0 | H105: 0 | N105: 0 | T105: 0 | Z105: 0 | AF105: 0 | AL105: 0 | AR105: 0 | AX105: 0 | BD105: 0 | BJ105: 0 | BP105: 0 | BV105: 0
A106: HEMOGRAMA AUTOMATIZADO 3/5 DIFERENCIALES | B106: 0 | C106: =SUMIF($I$95:$CA106,$C$95,I106:CA106) -> 0 | D106: =SUMIF($I$95:$CA106,$D$95,I106:CA106) -> 0 | E106: =SUMIF($I$95:$CA106,$E$95,I106:CA106) -> 0 | F106: =SUMIF($I$95:$CA106,$F$95,I106:CA106) -> 0 | G106: =SUMIF($I$95:$CA106,$G$95,I106:CA106) -> 0 | H106: 0 | N106: 0 | T106: 0 | Z106: 0 | AF106: 0 | AL106: 0 | AR106: 0 | AX106: 0 | BD106: 0 | BJ106: 0 | BP106: 0 | BV106: 0
A107: HEMOGRAMA MANUAL | B107: 0 | C107: =SUMIF($I$95:$CA107,$C$95,I107:CA107) -> 0 | D107: =SUMIF($I$95:$CA107,$D$95,I107:CA107) -> 0 | E107: =SUMIF($I$95:$CA107,$E$95,I107:CA107) -> 0 | F107: =SUMIF($I$95:$CA107,$F$95,I107:CA107) -> 0 | G107: =SUMIF($I$95:$CA107,$G$95,I107:CA107) -> 0 | H107: 0 | N107: 0 | T107: 0 | Z107: 0 | AF107: 0 | AL107: 0 | AR107: 0 | AX107: 0 | BD107: 0 | BJ107: 0 | BP107: 0 | BV107: 0
A108: LCR RECUENTO CELULAR Y DIFERENCIAL | B108: 0 | C108: =SUMIF($I$95:$CA108,$C$95,I108:CA108) -> 0 | D108: =SUMIF($I$95:$CA108,$D$95,I108:CA108) -> 0 | E108: =SUMIF($I$95:$CA108,$E$95,I108:CA108) -> 0 | F108: =SUMIF($I$95:$CA108,$F$95,I108:CA108) -> 0 | G108: =SUMIF($I$95:$CA108,$G$95,I108:CA108) -> 0 | H108: 0 | N108: 0 | T108: 0 | Z108: 0 | AF108: 0 | AL108: 0 | AR108: 0 | AX108: 0 | BD108: 0 | BJ108: 0 | BP108: 0 | BV108: 0
A109: RECUENTO DE PLAQUETAS | B109: 0 | C109: =SUMIF($I$95:$CA109,$C$95,I109:CA109) -> 0 | D109: =SUMIF($I$95:$CA109,$D$95,I109:CA109) -> 0 | E109: =SUMIF($I$95:$CA109,$E$95,I109:CA109) -> 0 | F109: =SUMIF($I$95:$CA109,$F$95,I109:CA109) -> 0 | G109: =SUMIF($I$95:$CA109,$G$95,I109:CA109) -> 0 | H109: 0 | N109: 0 | T109: 0 | Z109: 0 | AF109: 0 | AL109: 0 | AR109: 0 | AX109: 0 | BD109: 0 | BJ109: 0 | BP109: 0 | BV109: 0
A110: RECUENTO DE RETICULOCITOS | B110: 0 | C110: =SUMIF($I$95:$CA110,$C$95,I110:CA110) -> 0 | D110: =SUMIF($I$95:$CA110,$D$95,I110:CA110) -> 0 | E110: =SUMIF($I$95:$CA110,$E$95,I110:CA110) -> 0 | F110: =SUMIF($I$95:$CA110,$F$95,I110:CA110) -> 0 | G110: =SUMIF($I$95:$CA110,$G$95,I110:CA110) -> 0 | H110: 0 | N110: 0 | T110: 0 | Z110: 0 | AF110: 0 | AL110: 0 | AR110: 0 | AX110: 0 | BD110: 0 | BJ110: 0 | BP110: 0 | BV110: 0
A111: TIEMPO DE COAGULAC.Y SANGRIA | B111: 0 | C111: =SUMIF($I$95:$CA111,$C$95,I111:CA111) -> 0 | D111: =SUMIF($I$95:$CA111,$D$95,I111:CA111) -> 0 | E111: =SUMIF($I$95:$CA111,$E$95,I111:CA111) -> 0 | F111: =SUMIF($I$95:$CA111,$F$95,I111:CA111) -> 0 | G111: =SUMIF($I$95:$CA111,$G$95,I111:CA111) -> 0 | H111: 0 | N111: 0 | T111: 0 | Z111: 0 | AF111: 0 | AL111: 0 | AR111: 0 | AX111: 0 | BD111: 0 | BJ111: 0 | BP111: 0 | BV111: 0
A112: TIEMPO DE PROTOMBINA | B112: 0 | C112: =SUMIF($I$95:$CA112,$C$95,I112:CA112) -> 0 | D112: =SUMIF($I$95:$CA112,$D$95,I112:CA112) -> 0 | E112: =SUMIF($I$95:$CA112,$E$95,I112:CA112) -> 0 | F112: =SUMIF($I$95:$CA112,$F$95,I112:CA112) -> 0 | G112: =SUMIF($I$95:$CA112,$G$95,I112:CA112) -> 0 | H112: 0 | N112: 0 | T112: 0 | Z112: 0 | AF112: 0 | AL112: 0 | AR112: 0 | AX112: 0 | BD112: 0 | BJ112: 0 | BP112: 0 | BV112: 0
A113: TIEMPO DE TROMBOPLASTINA ACTIVADO | B113: 0 | C113: =SUMIF($I$95:$CA113,$C$95,I113:CA113) -> 0 | D113: =SUMIF($I$95:$CA113,$D$95,I113:CA113) -> 0 | E113: =SUMIF($I$95:$CA113,$E$95,I113:CA113) -> 0 | F113: =SUMIF($I$95:$CA113,$F$95,I113:CA113) -> 0 | G113: =SUMIF($I$95:$CA113,$G$95,I113:CA113) -> 0 | H113: 0 | N113: 0 | T113: 0 | Z113: 0 | AF113: 0 | AL113: 0 | AR113: 0 | AX113: 0 | BD113: 0 | BJ113: 0 | BP113: 0 | BV113: 0
A114: VELOC.DE SEDIMENTACION (V.S.G.) | B114: 0 | C114: =SUMIF($I$95:$CA114,$C$95,I114:CA114) -> 0 | D114: =SUMIF($I$95:$CA114,$D$95,I114:CA114) -> 0 | E114: =SUMIF($I$95:$CA114,$E$95,I114:CA114) -> 0 | F114: =SUMIF($I$95:$CA114,$F$95,I114:CA114) -> 0 | G114: =SUMIF($I$95:$CA114,$G$95,I114:CA114) -> 0 | H114: 0 | N114: 0 | T114: 0 | Z114: 0 | AF114: 0 | AL114: 0 | AR114: 0 | AX114: 0 | BD114: 0 | BJ114: 0 | BP114: 0 | BV114: 0
A115: FUENTE: ORDEN DE ANALISIS
A118: ANALISIS | B118: TOTAL | C118: DEM | D118: SIS/AUS | E118: EXO | F118: ESTR. | G118: CAMP | H118: TOTAL | I118: DEM | J118: SIS/AUS | K118: EXO | L118: ESTR. | M118: CAMP | N118: TOTAL | O118: DEM | P118: SIS/AUS | Q118: EXO | R118: ESTR. | S118: CAMP | T118: TOTAL | U118: DEM | V118: SIS/AUS | W118: EXO | X118: ESTR. | Y118: CAMP | Z118: TOTAL | AA118: DEM | AB118: SIS/AUS | AC118: EXO | AD118: ESTR. | AE118: CAMP | AF118: TOTAL | AG118: DEM | AH118: SIS/AUS | AI118: EXO | AJ118: ESTR. | AK118: CAMP | AL118: TOTAL | AM118: DEM | AN118: SIS/AUS | AO118: EXO | AP118: ESTR. | AQ118: CAMP | AR118: TOTAL | AS118: DEM | AT118: SIS/AUS | AU118: EXO | AV118: ESTR. | AW118: CAMP | AX118: TOTAL | AY118: DEM | AZ118: SIS/AUS | BA118: EXO | BB118: ESTR. | BC118: CAMP | BD118: TOTAL | BE118: DEM | BF118: SIS/AUS | BG118: EXO | BH118: ESTR. | BI118: CAMP | BJ118: TOTAL | BK118: DEM | BL118: SIS/AUS | BM118: EXO | BN118: ESTR. | BO118: CAMP | BP118: TOTAL | BQ118: DEM | BR118: SIS/AUS | BS118: EXO | BT118: ESTR. | BU118: CAMP | BV118: TOTAL | BW118: DEM | BX118: SIS/AUS | BY118: EXO | BZ118: ESTR. | CA118: CAMP
A119: MICROBIOLOGIA
A120: TOTAL | B120: =SUM(B121:B147) -> 0 | C120: 0 | D120: 0 | E120: 0 | F120: 0 | G120: 0 | H120: 0 | I120: 0 | J120: 0 | K120: 0 | L120: 0 | M120: 0 | N120: 0 | O120: 0 | P120: 0 | Q120: 0 | R120: 0 | S120: 0 | T120: 0 | U120: 0 | V120: 0 | W120: 0 | X120: 0 | Y120: 0 | Z120: 0 | AA120: 0 | AB120: 0 | AC120: 0 | AD120: 0 | AE120: 0 | AF120: 0 | AG120: 0 | AH120: =SUM(AH121:AH147) -> 0 | AI120: 0 | AJ120: 0 | AK120: 0 | AL120: 0 | AM120: 0 | AN120: 0 | AO120: 0 | AP120: 0 | AQ120: 0 | AR120: 0 | AS120: 0 | AT120: 0 | AU120: 0 | AV120: 0 | AW120: 0 | AX120: 0 | AY120: 0 | AZ120: 0 | BA120: 0 | BB120: 0 | BC120: 0 | BD120: 0 | BE120: 0 | BF120: 0 | BG120: 0 | BH120: 0 | BI120: 0 | BJ120: 0 | BK120: 0 | BL120: 0 | BM120: 0 | BN120: =SUM(BN121:BN147) -> 0 | BO120: 0 | BP120: 0 | BQ120: 0 | BR120: 0 | BS120: 0 | BT120: 0 | BU120: 0 | BV120: 0 | BW120: 0 | BX120: 0 | BY120: 0 | BZ120: 0 | CA120: 0
A121: BK CONCENTRADO | B121: =SUM(C121:G121) -> 0 | C121: =SUMIF($I$118:$CA121,$C$118,I121:CA121) -> 0 | D121: =SUMIF($I$118:$CA121,$D$118,I121:CA121) -> 0 | E121: =SUMIF($I$118:$CA121,$E$118,I121:CA121) -> 0 | F121: =SUMIF($I$118:$CA121,$F$118,I121:CA121) -> 0 | G121: =SUMIF($I$118:$CA121,$G$118,I121:CA121) -> 0 | H121: =SUM(I121:M121) -> 0 | N121: =SUM(O121:S121) -> 0 | T121: =SUM(U121:Y121) -> 0 | Z121: =SUM(AA121:AE121) -> 0 | AF121: =SUM(AG121:AK121) -> 0 | AL121: =SUM(AM121:AQ121) -> 0 | AR121: =SUM(AS121:AW121) -> 0 | AX121: =SUM(AY121:BC121) -> 0 | BD121: =SUM(BE121:BI121) -> 0 | BJ121: =SUM(BK121:BO121) -> 0 | BP121: =SUM(BQ121:BU121) -> 0 | BV121: =SUM(BW121:CA121) -> 0
A122: BK EN ESPUTO | B122: 0 | C122: =SUMIF($I$118:$CA122,$C$118,I122:CA122) -> 0 | D122: =SUMIF($I$118:$CA122,$D$118,I122:CA122) -> 0 | E122: =SUMIF($I$118:$CA122,$E$118,I122:CA122) -> 0 | F122: =SUMIF($I$118:$CA122,$F$118,I122:CA122) -> 0 | G122: =SUMIF($I$118:$CA122,$G$118,I122:CA122) -> 0 | H122: 0 | N122: 0 | T122: 0 | Z122: 0 | AF122: 0 | AL122: 0 | AR122: 0 | AX122: 0 | BD122: 0 | BJ122: 0 | BP122: 0 | BV122: 0
A123: BK FLUORESCENCIA | B123: 0 | C123: =SUMIF($I$118:$CA123,$C$118,I123:CA123) -> 0 | D123: =SUMIF($I$118:$CA123,$D$118,I123:CA123) -> 0 | E123: =SUMIF($I$118:$CA123,$E$118,I123:CA123) -> 0 | F123: =SUMIF($I$118:$CA123,$F$118,I123:CA123) -> 0 | G123: =SUMIF($I$118:$CA123,$G$118,I123:CA123) -> 0 | H123: 0 | N123: 0 | T123: 0 | Z123: 0 | AF123: 0 | AL123: 0 | AR123: 0 | AX123: 0 | BD123: 0 | BJ123: 0 | BP123: 0 | BV123: 0
A124: COPROCULTIVO Y ANTIBIOGRAMA | B124: 0 | C124: =SUMIF($I$118:$CA124,$C$118,I124:CA124) -> 0 | D124: =SUMIF($I$118:$CA124,$D$118,I124:CA124) -> 0 | E124: =SUMIF($I$118:$CA124,$E$118,I124:CA124) -> 0 | F124: =SUMIF($I$118:$CA124,$F$118,I124:CA124) -> 0 | G124: =SUMIF($I$118:$CA124,$G$118,I124:CA124) -> 0 | H124: 0 | N124: 0 | T124: 0 | Z124: 0 | AF124: 0 | AL124: 0 | AR124: 0 | AX124: 0 | BD124: 0 | BJ124: 0 | BP124: 0 | BV124: 0
A125: COPROLOGICO FUNCIONAL | B125: 0 | C125: =SUMIF($I$118:$CA125,$C$118,I125:CA125) -> 0 | D125: =SUMIF($I$118:$CA125,$D$118,I125:CA125) -> 0 | E125: =SUMIF($I$118:$CA125,$E$118,I125:CA125) -> 0 | F125: =SUMIF($I$118:$CA125,$F$118,I125:CA125) -> 0 | G125: =SUMIF($I$118:$CA125,$G$118,I125:CA125) -> 0 | H125: 0 | N125: 0 | T125: 0 | Z125: 0 | AF125: 0 | AL125: 0 | AR125: 0 | AX125: 0 | BD125: 0 | BJ125: 0 | BP125: 0 | BV125: 0
A126: CULTIVO DE SECRECIONES | B126: 0 | C126: =SUMIF($I$118:$CA126,$C$118,I126:CA126) -> 0 | D126: =SUMIF($I$118:$CA126,$D$118,I126:CA126) -> 0 | E126: =SUMIF($I$118:$CA126,$E$118,I126:CA126) -> 0 | F126: =SUMIF($I$118:$CA126,$F$118,I126:CA126) -> 0 | G126: =SUMIF($I$118:$CA126,$G$118,I126:CA126) -> 0 | H126: 0 | N126: 0 | T126: 0 | Z126: 0 | AF126: 0 | AL126: 0 | AR126: 0 | AX126: 0 | BD126: 0 | BJ126: 0 | BP126: 0 | BV126: 0
A127: CULTIVO MIGIT | B127: 0 | C127: =SUMIF($I$118:$CA127,$C$118,I127:CA127) -> 0 | D127: =SUMIF($I$118:$CA127,$D$118,I127:CA127) -> 0 | E127: =SUMIF($I$118:$CA127,$E$118,I127:CA127) -> 0 | F127: =SUMIF($I$118:$CA127,$F$118,I127:CA127) -> 0 | G127: =SUMIF($I$118:$CA127,$G$118,I127:CA127) -> 0 | H127: 0 | N127: 0 | T127: 0 | Z127: 0 | AF127: 0 | AL127: 0 | AR127: 0 | AX127: 0 | BD127: 0 | BJ127: 0 | BP127: 0 | BV127: 0
A128: CULTIVO MODS | B128: 0 | C128: =SUMIF($I$118:$CA128,$C$118,I128:CA128) -> 0 | D128: =SUMIF($I$118:$CA128,$D$118,I128:CA128) -> 0 | E128: =SUMIF($I$118:$CA128,$E$118,I128:CA128) -> 0 | F128: =SUMIF($I$118:$CA128,$F$118,I128:CA128) -> 0 | G128: =SUMIF($I$118:$CA128,$G$118,I128:CA128) -> 0 | H128: 0 | N128: 0 | T128: 0 | Z128: 0 | AF128: 0 | AL128: 0 | AR128: 0 | AX128: 0 | BD128: 0 | BJ128: 0 | BP128: 0 | BV128: 0
A129: CULTIVO OGAWA | B129: 0 | C129: =SUMIF($I$118:$CA129,$C$118,I129:CA129) -> 0 | D129: =SUMIF($I$118:$CA129,$D$118,I129:CA129) -> 0 | E129: =SUMIF($I$118:$CA129,$E$118,I129:CA129) -> 0 | F129: =SUMIF($I$118:$CA129,$F$118,I129:CA129) -> 0 | G129: =SUMIF($I$118:$CA129,$G$118,I129:CA129) -> 0 | H129: 0 | N129: 0 | T129: 0 | Z129: 0 | AF129: 0 | AL129: 0 | AR129: 0 | AX129: 0 | BD129: 0 | BJ129: 0 | BP129: 0 | BV129: 0
A130: DIRECTO DE ACAROS | B130: 0 | C130: =SUMIF($I$118:$CA130,$C$118,I130:CA130) -> 0 | D130: =SUMIF($I$118:$CA130,$D$118,I130:CA130) -> 0 | E130: =SUMIF($I$118:$CA130,$E$118,I130:CA130) -> 0 | F130: =SUMIF($I$118:$CA130,$F$118,I130:CA130) -> 0 | G130: =SUMIF($I$118:$CA130,$G$118,I130:CA130) -> 0 | H130: 0 | N130: 0 | T130: 0 | Z130: 0 | AF130: 0 | AL130: 0 | AR130: 0 | AX130: 0 | BD130: 0 | BJ130: 0 | BP130: 0 | BV130: 0
A131: DIRECTO DE HONGOS | B131: 0 | C131: =SUMIF($I$118:$CA131,$C$118,I131:CA131) -> 0 | D131: =SUMIF($I$118:$CA131,$D$118,I131:CA131) -> 0 | E131: =SUMIF($I$118:$CA131,$E$118,I131:CA131) -> 0 | F131: =SUMIF($I$118:$CA131,$F$118,I131:CA131) -> 0 | G131: =SUMIF($I$118:$CA131,$G$118,I131:CA131) -> 0 | H131: 0 | N131: 0 | T131: 0 | Z131: 0 | AF131: 0 | AL131: 0 | AR131: 0 | AX131: 0 | BD131: 0 | BJ131: 0 | BP131: 0 | BV131: 0
A132: DIRECTO DE SECRECION URETRAL | B132: 0 | C132: =SUMIF($I$118:$CA132,$C$118,I132:CA132) -> 0 | D132: =SUMIF($I$118:$CA132,$D$118,I132:CA132) -> 0 | E132: =SUMIF($I$118:$CA132,$E$118,I132:CA132) -> 0 | F132: =SUMIF($I$118:$CA132,$F$118,I132:CA132) -> 0 | G132: =SUMIF($I$118:$CA132,$G$118,I132:CA132) -> 0 | H132: 0 | N132: 0 | T132: 0 | Z132: 0 | AF132: 0 | AL132: 0 | AR132: 0 | AX132: 0 | BD132: 0 | BJ132: 0 | BP132: 0 | BV132: 0
A133: DIRECTO DE SECRECION VAGINAL | B133: 0 | C133: =SUMIF($I$118:$CA133,$C$118,I133:CA133) -> 0 | D133: =SUMIF($I$118:$CA133,$D$118,I133:CA133) -> 0 | E133: =SUMIF($I$118:$CA133,$E$118,I133:CA133) -> 0 | F133: =SUMIF($I$118:$CA133,$F$118,I133:CA133) -> 0 | G133: =SUMIF($I$118:$CA133,$G$118,I133:CA133) -> 0 | H133: 0 | N133: 0 | T133: 0 | Z133: 0 | AF133: 0 | AL133: 0 | AR133: 0 | AX133: 0 | BD133: 0 | BJ133: 0 | BP133: 0 | BV133: 0
A134: EXAMEN DE HECES CONCENTRADO | B134: 0 | C134: =SUMIF($I$118:$CA134,$C$118,I134:CA134) -> 0 | D134: =SUMIF($I$118:$CA134,$D$118,I134:CA134) -> 0 | E134: =SUMIF($I$118:$CA134,$E$118,I134:CA134) -> 0 | F134: =SUMIF($I$118:$CA134,$F$118,I134:CA134) -> 0 | G134: =SUMIF($I$118:$CA134,$G$118,I134:CA134) -> 0 | H134: 0 | N134: 0 | T134: 0 | Z134: 0 | AF134: 0 | AL134: 0 | AR134: 0 | AX134: 0 | BD134: 0 | BJ134: 0 | BP134: 0 | BV134: 0
A135: EXAMEN DE HECES DIRECTO (1 MUESTRA) | B135: 0 | C135: =SUMIF($I$118:$CA135,$C$118,I135:CA135) -> 0 | D135: =SUMIF($I$118:$CA135,$D$118,I135:CA135) -> 0 | E135: =SUMIF($I$118:$CA135,$E$118,I135:CA135) -> 0 | F135: =SUMIF($I$118:$CA135,$F$118,I135:CA135) -> 0 | G135: =SUMIF($I$118:$CA135,$G$118,I135:CA135) -> 0 | H135: 0 | N135: 0 | T135: 0 | Z135: 0 | AF135: 0 | AL135: 0 | AR135: 0 | AX135: 0 | BD135: 0 | BJ135: 0 | BP135: 0 | BV135: 0
A136: HEMOCULTIVO | B136: 0 | C136: =SUMIF($I$118:$CA136,$C$118,I136:CA136) -> 0 | D136: =SUMIF($I$118:$CA136,$D$118,I136:CA136) -> 0 | E136: =SUMIF($I$118:$CA136,$E$118,I136:CA136) -> 0 | F136: =SUMIF($I$118:$CA136,$F$118,I136:CA136) -> 0 | G136: =SUMIF($I$118:$CA136,$G$118,I136:CA136) -> 0 | H136: 0 | N136: 0 | T136: 0 | Z136: 0 | AF136: 0 | AL136: 0 | AR136: 0 | AX136: 0 | BD136: 0 | BJ136: 0 | BP136: 0 | BV136: 0
A137: IDENTIFICACION DE AMEBAS | B137: 0 | C137: =SUMIF($I$118:$CA137,$C$118,I137:CA137) -> 0 | D137: =SUMIF($I$118:$CA137,$D$118,I137:CA137) -> 0 | E137: =SUMIF($I$118:$CA137,$E$118,I137:CA137) -> 0 | F137: =SUMIF($I$118:$CA137,$F$118,I137:CA137) -> 0 | G137: =SUMIF($I$118:$CA137,$G$118,I137:CA137) -> 0 | H137: 0 | N137: 0 | T137: 0 | Z137: 0 | AF137: 0 | AL137: 0 | AR137: 0 | AX137: 0 | BD137: 0 | BJ137: 0 | BP137: 0 | BV137: 0
A138: IDENTIFICACION DE COCCIDEOS EN HECES | B138: 0 | C138: =SUMIF($I$118:$CA138,$C$118,I138:CA138) -> 0 | D138: =SUMIF($I$118:$CA138,$D$118,I138:CA138) -> 0 | E138: =SUMIF($I$118:$CA138,$E$118,I138:CA138) -> 0 | F138: =SUMIF($I$118:$CA138,$F$118,I138:CA138) -> 0 | G138: =SUMIF($I$118:$CA138,$G$118,I138:CA138) -> 0 | H138: 0 | N138: 0 | T138: 0 | Z138: 0 | AF138: 0 | AL138: 0 | AR138: 0 | AX138: 0 | BD138: 0 | BJ138: 0 | BP138: 0 | BV138: 0
A139: OBSERVACION DE EOSINOFILOS EN ESPUTO | B139: 0 | C139: =SUMIF($I$118:$CA139,$C$118,I139:CA139) -> 0 | D139: =SUMIF($I$118:$CA139,$D$118,I139:CA139) -> 0 | E139: =SUMIF($I$118:$CA139,$E$118,I139:CA139) -> 0 | F139: =SUMIF($I$118:$CA139,$F$118,I139:CA139) -> 0 | G139: =SUMIF($I$118:$CA139,$G$118,I139:CA139) -> 0 | H139: 0 | N139: 0 | T139: 0 | Z139: 0 | AF139: 0 | AL139: 0 | AR139: 0 | AX139: 0 | BD139: 0 | BJ139: 0 | BP139: 0 | BV139: 0
A140: OBSERVACION EN TINTA CHINA | B140: 0 | C140: =SUMIF($I$118:$CA140,$C$118,I140:CA140) -> 0 | D140: =SUMIF($I$118:$CA140,$D$118,I140:CA140) -> 0 | E140: =SUMIF($I$118:$CA140,$E$118,I140:CA140) -> 0 | F140: =SUMIF($I$118:$CA140,$F$118,I140:CA140) -> 0 | G140: =SUMIF($I$118:$CA140,$G$118,I140:CA140) -> 0 | H140: 0 | N140: 0 | T140: 0 | Z140: 0 | AF140: 0 | AL140: 0 | AR140: 0 | AX140: 0 | BD140: 0 | BJ140: 0 | BP140: 0 | BV140: 0
A141: PRUEBA DE SUCEPTIBILIDAD 1ERA LINEA | B141: 0 | C141: =SUMIF($I$118:$CA141,$C$118,I141:CA141) -> 0 | D141: =SUMIF($I$118:$CA141,$D$118,I141:CA141) -> 0 | E141: =SUMIF($I$118:$CA141,$E$118,I141:CA141) -> 0 | F141: =SUMIF($I$118:$CA141,$F$118,I141:CA141) -> 0 | G141: =SUMIF($I$118:$CA141,$G$118,I141:CA141) -> 0 | H141: 0 | N141: 0 | T141: 0 | Z141: 0 | AF141: 0 | AL141: 0 | AR141: 0 | AX141: 0 | BD141: 0 | BJ141: 0 | BP141: 0 | BV141: 0
A142: REACCION INFLAMATORIA | B142: 0 | C142: =SUMIF($I$118:$CA142,$C$118,I142:CA142) -> 0 | D142: =SUMIF($I$118:$CA142,$D$118,I142:CA142) -> 0 | E142: =SUMIF($I$118:$CA142,$E$118,I142:CA142) -> 0 | F142: =SUMIF($I$118:$CA142,$F$118,I142:CA142) -> 0 | G142: =SUMIF($I$118:$CA142,$G$118,I142:CA142) -> 0 | H142: 0 | N142: 0 | T142: 0 | Z142: 0 | AF142: 0 | AL142: 0 | AR142: 0 | AX142: 0 | BD142: 0 | BJ142: 0 | BP142: 0 | BV142: 0
A143: SANGRE OCULTA EN HECES (THEVENON) | B143: 0 | C143: =SUMIF($I$118:$CA143,$C$118,I143:CA143) -> 0 | D143: =SUMIF($I$118:$CA143,$D$118,I143:CA143) -> 0 | E143: =SUMIF($I$118:$CA143,$E$118,I143:CA143) -> 0 | F143: =SUMIF($I$118:$CA143,$F$118,I143:CA143) -> 0 | G143: =SUMIF($I$118:$CA143,$G$118,I143:CA143) -> 0 | H143: 0 | N143: 0 | T143: 0 | Z143: 0 | AF143: 0 | AL143: 0 | AR143: 0 | AX143: 0 | BD143: 0 | BJ143: 0 | BP143: 0 | BV143: 0
A144: TEST DE GRAHAM | B144: 0 | C144: =SUMIF($I$118:$CA144,$C$118,I144:CA144) -> 0 | D144: =SUMIF($I$118:$CA144,$D$118,I144:CA144) -> 0 | E144: =SUMIF($I$118:$CA144,$E$118,I144:CA144) -> 0 | F144: =SUMIF($I$118:$CA144,$F$118,I144:CA144) -> 0 | G144: =SUMIF($I$118:$CA144,$G$118,I144:CA144) -> 0 | H144: 0 | N144: 0 | T144: 0 | Z144: 0 | AF144: 0 | AL144: 0 | AR144: 0 | AX144: 0 | BD144: 0 | BJ144: 0 | BP144: 0 | BV144: 0
A145: TEST DE HELECHO | B145: 0 | C145: =SUMIF($I$118:$CA145,$C$118,I145:CA145) -> 0 | D145: =SUMIF($I$118:$CA145,$D$118,I145:CA145) -> 0 | E145: =SUMIF($I$118:$CA145,$E$118,I145:CA145) -> 0 | F145: =SUMIF($I$118:$CA145,$F$118,I145:CA145) -> 0 | G145: =SUMIF($I$118:$CA145,$G$118,I145:CA145) -> 0 | H145: 0 | N145: 0 | T145: 0 | Z145: 0 | AF145: 0 | AL145: 0 | AR145: 0 | AX145: 0 | BD145: 0 | BJ145: 0 | BP145: 0 | BV145: 0
A146: TINCION DE GRAM | B146: 0 | C146: =SUMIF($I$118:$CA146,$C$118,I146:CA146) -> 0 | D146: =SUMIF($I$118:$CA146,$D$118,I146:CA146) -> 0 | E146: =SUMIF($I$118:$CA146,$E$118,I146:CA146) -> 0 | F146: =SUMIF($I$118:$CA146,$F$118,I146:CA146) -> 0 | G146: =SUMIF($I$118:$CA146,$G$118,I146:CA146) -> 0 | H146: 0 | N146: 0 | T146: 0 | Z146: 0 | AF146: 0 | AL146: 0 | AR146: 0 | AX146: 0 | BD146: 0 | BJ146: 0 | BP146: 0 | BV146: 0
A147: UROCULTIVO Y ANTIBIOGRAMA | B147: 0 | C147: =SUMIF($I$118:$CA147,$C$118,I147:CA147) -> 0 | D147: =SUMIF($I$118:$CA147,$D$118,I147:CA147) -> 0 | E147: =SUMIF($I$118:$CA147,$E$118,I147:CA147) -> 0 | F147: =SUMIF($I$118:$CA147,$F$118,I147:CA147) -> 0 | G147: =SUMIF($I$118:$CA147,$G$118,I147:CA147) -> 0 | H147: 0 | N147: 0 | T147: 0 | Z147: 0 | AF147: 0 | AL147: 0 | AR147: 0 | AX147: 0 | BD147: 0 | BJ147: 0 | BP147: 0 | BV147: 0
A148: FUENTE: ORDEN DE ANALISIS
A151: ANALISIS | B151: TOTAL | C151: DEM | D151: SIS/AUS | E151: EXO | F151: ESTR. | G151: CAMP | H151: TOTAL | I151: DEM | J151: SIS/AUS | K151: EXO | L151: ESTR. | M151: CAMP | N151: TOTAL | O151: DEM | P151: SIS/AUS | Q151: EXO | R151: ESTR. | S151: CAMP | T151: TOTAL | U151: DEM | V151: SIS/AUS | W151: EXO | X151: ESTR. | Y151: CAMP | Z151: TOTAL | AA151: DEM | AB151: SIS/AUS | AC151: EXO | AD151: ESTR. | AE151: CAMP | AF151: TOTAL | AG151: DEM | AH151: SIS/AUS | AI151: EXO | AJ151: ESTR. | AK151: CAMP | AL151: TOTAL | AM151: DEM | AN151: SIS/AUS | AO151: EXO | AP151: ESTR. | AQ151: CAMP | AR151: TOTAL | AS151: DEM | AT151: SIS/AUS | AU151: EXO | AV151: ESTR. | AW151: CAMP | AX151: TOTAL | AY151: DEM | AZ151: SIS/AUS | BA151: EXO | BB151: ESTR. | BC151: CAMP | BD151: TOTAL | BE151: DEM | BF151: SIS/AUS | BG151: EXO | BH151: ESTR. | BI151: CAMP | BJ151: TOTAL | BK151: DEM | BL151: SIS/AUS | BM151: EXO | BN151: ESTR. | BO151: CAMP | BP151: TOTAL | BQ151: DEM | BR151: SIS/AUS | BS151: EXO | BT151: ESTR. | BU151: CAMP | BV151: TOTAL | BW151: DEM | BX151: SIS/AUS | BY151: EXO | BZ151: ESTR. | CA151: CAMP
A152: PATOLOGIA
A153: TOTAL | B153: =SUM(B154:B160) -> 0 | C153: 0 | D153: 0 | E153: 0 | F153: 0 | G153: 0 | H153: 0 | I153: 0 | J153: 0 | K153: 0 | L153: 0 | M153: 0 | N153: 0 | O153: 0 | P153: 0 | Q153: 0 | R153: 0 | S153: 0 | T153: 0 | U153: 0 | V153: 0 | W153: 0 | X153: 0 | Y153: 0 | Z153: 0 | AA153: 0 | AB153: 0 | AC153: 0 | AD153: 0 | AE153: 0 | AF153: 0 | AG153: 0 | AH153: =SUM(AH154:AH160) -> 0 | AI153: 0 | AJ153: 0 | AK153: 0 | AL153: 0 | AM153: 0 | AN153: 0 | AO153: 0 | AP153: 0 | AQ153: 0 | AR153: 0 | AS153: 0 | AT153: 0 | AU153: 0 | AV153: 0 | AW153: 0 | AX153: 0 | AY153: 0 | AZ153: 0 | BA153: 0 | BB153: 0 | BC153: 0 | BD153: 0 | BE153: 0 | BF153: 0 | BG153: 0 | BH153: 0 | BI153: 0 | BJ153: 0 | BK153: 0 | BL153: 0 | BM153: 0 | BN153: =SUM(BN154:BN160) -> 0 | BO153: 0 | BP153: 0 | BQ153: 0 | BR153: 0 | BS153: 0 | BT153: 0 | BU153: 0 | BV153: 0 | BW153: 0 | BX153: 0 | BY153: 0 | BZ153: 0 | CA153: 0
A154: BIOPSIA MEDIANA | B154: =SUM(C154:G154) -> 0 | C154: =SUMIF($I$151:$CA154,$C$151,I154:CA154) -> 0 | D154: =SUMIF($I$151:$CA154,$D$151,I154:CA154) -> 0 | E154: =SUMIF($I$151:$CA154,$E$151,I154:CA154) -> 0 | F154: =SUMIF($I$151:$CA154,$F$151,I154:CA154) -> 0 | G154: =SUMIF($I$151:$CA154,$G$151,I154:CA154) -> 0 | H154: =SUM(I154:M154) -> 0 | N154: =SUM(O154:S154) -> 0 | T154: =SUM(U154:Y154) -> 0 | Z154: =SUM(AA154:AE154) -> 0 | AF154: =SUM(AG154:AK154) -> 0 | AL154: =SUM(AM154:AQ154) -> 0 | AR154: =SUM(AS154:AW154) -> 0 | AX154: =SUM(AY154:BC154) -> 0 | BD154: =SUM(BE154:BI154) -> 0 | BJ154: =SUM(BK154:BO154) -> 0 | BP154: =SUM(BQ154:BU154) -> 0 | BV154: =SUM(BW154:CA154) -> 0
A155: BIOPSIA PEQUEÑA | B155: 0 | C155: =SUMIF($I$151:$CA155,$C$151,I155:CA155) -> 0 | D155: =SUMIF($I$151:$CA155,$D$151,I155:CA155) -> 0 | E155: =SUMIF($I$151:$CA155,$E$151,I155:CA155) -> 0 | F155: =SUMIF($I$151:$CA155,$F$151,I155:CA155) -> 0 | G155: =SUMIF($I$151:$CA155,$G$151,I155:CA155) -> 0 | H155: 0 | N155: 0 | T155: 0 | Z155: 0 | AF155: 0 | AL155: 0 | AR155: 0 | AX155: 0 | BD155: 0 | BJ155: 0 | BP155: 0 | BV155: 0
A156: BLOCK CELL | B156: 0 | C156: =SUMIF($I$151:$CA156,$C$151,I156:CA156) -> 0 | D156: =SUMIF($I$151:$CA156,$D$151,I156:CA156) -> 0 | E156: =SUMIF($I$151:$CA156,$E$151,I156:CA156) -> 0 | F156: =SUMIF($I$151:$CA156,$F$151,I156:CA156) -> 0 | G156: =SUMIF($I$151:$CA156,$G$151,I156:CA156) -> 0 | H156: 0 | N156: 0 | T156: 0 | Z156: 0 | AF156: 0 | AL156: 0 | AR156: 0 | AX156: 0 | BD156: 0 | BJ156: 0 | BP156: 0 | BV156: 0
A157: CITOLOGIA CERVICO VAGINAL - PAP | B157: 0 | C157: =SUMIF($I$151:$CA157,$C$151,I157:CA157) -> 0 | D157: =SUMIF($I$151:$CA157,$D$151,I157:CA157) -> 0 | E157: =SUMIF($I$151:$CA157,$E$151,I157:CA157) -> 0 | F157: =SUMIF($I$151:$CA157,$F$151,I157:CA157) -> 0 | G157: =SUMIF($I$151:$CA157,$G$151,I157:CA157) -> 0 | H157: 0 | N157: 0 | T157: 0 | Z157: 0 | AF157: 0 | AL157: 0 | AR157: 0 | AX157: 0 | BD157: 0 | BJ157: 0 | BP157: 0 | BV157: 0
A158: CITOLOGIA DE LIQUIDOS (ASCITICO, PLEURAL, PERICARDICO, SINOVIAL, LCR, ORINA) | B158: 0 | C158: =SUMIF($I$151:$CA158,$C$151,I158:CA158) -> 0 | D158: =SUMIF($I$151:$CA158,$D$151,I158:CA158) -> 0 | E158: =SUMIF($I$151:$CA158,$E$151,I158:CA158) -> 0 | F158: =SUMIF($I$151:$CA158,$F$151,I158:CA158) -> 0 | G158: =SUMIF($I$151:$CA158,$G$151,I158:CA158) -> 0 | H158: 0 | N158: 0 | T158: 0 | Z158: 0 | AF158: 0 | AL158: 0 | AR158: 0 | AX158: 0 | BD158: 0 | BJ158: 0 | BP158: 0 | BV158: 0
A159: CITOLOGICO DE ESPUTO | B159: 0 | C159: =SUMIF($I$151:$CA159,$C$151,I159:CA159) -> 0 | D159: =SUMIF($I$151:$CA159,$D$151,I159:CA159) -> 0 | E159: =SUMIF($I$151:$CA159,$E$151,I159:CA159) -> 0 | F159: =SUMIF($I$151:$CA159,$F$151,I159:CA159) -> 0 | G159: =SUMIF($I$151:$CA159,$G$151,I159:CA159) -> 0 | H159: 0 | N159: 0 | T159: 0 | Z159: 0 | AF159: 0 | AL159: 0 | AR159: 0 | AX159: 0 | BD159: 0 | BJ159: 0 | BP159: 0 | BV159: 0
A160: ESPECIMEN QUIRURGICO | B160: 0 | C160: =SUMIF($I$151:$CA160,$C$151,I160:CA160) -> 0 | D160: =SUMIF($I$151:$CA160,$D$151,I160:CA160) -> 0 | E160: =SUMIF($I$151:$CA160,$E$151,I160:CA160) -> 0 | F160: =SUMIF($I$151:$CA160,$F$151,I160:CA160) -> 0 | G160: =SUMIF($I$151:$CA160,$G$151,I160:CA160) -> 0 | H160: 0 | N160: 0 | T160: 0 | Z160: 0 | AF160: 0 | AL160: 0 | AR160: 0 | AX160: 0 | BD160: 0 | BJ160: 0 | BP160: 0 | BV160: 0
A161: FUENTE: ORDEN DE ANALISIS
A163: CONSOLIDADO
A164: ANALISIS | B164: TOTAL | C164: DEM | D164: SIS/AUS | E164: EXO | F164: ESTR. | G164: CAMP | H164: TOTAL | I164: DEM | J164: SIS/AUS | K164: EXO | L164: ESTR. | M164: CAMP | N164: TOTAL | O164: DEM | P164: SIS/AUS | Q164: EXO | R164: ESTR. | S164: CAMP | T164: TOTAL | U164: DEM | V164: SIS/AUS | W164: EXO | X164: ESTR. | Y164: CAMP | Z164: TOTAL | AA164: DEM | AB164: SIS/AUS | AC164: EXO | AD164: ESTR. | AE164: CAMP | AF164: TOTAL | AG164: DEM | AH164: SIS/AUS | AI164: EXO | AJ164: ESTR. | AK164: CAMP | AL164: TOTAL | AM164: DEM | AN164: SIS/AUS | AO164: EXO | AP164: ESTR. | AQ164: CAMP | AR164: TOTAL | AS164: DEM | AT164: SIS/AUS | AU164: EXO | AV164: ESTR. | AW164: CAMP | AX164: TOTAL | AY164: DEM | AZ164: SIS/AUS | BA164: EXO | BB164: ESTR. | BC164: CAMP | BD164: TOTAL | BE164: DEM | BF164: SIS/AUS | BG164: EXO | BH164: ESTR. | BI164: CAMP | BJ164: TOTAL | BK164: DEM | BL164: SIS/AUS | BM164: EXO | BN164: ESTR. | BO164: CAMP | BP164: TOTAL | BQ164: DEM | BR164: SIS/AUS | BS164: EXO | BT164: ESTR. | BU164: CAMP | BV164: TOTAL | BW164: DEM | BX164: SIS/AUS | BY164: EXO | BZ164: ESTR. | CA164: CAMP
A165: TOTAL GENERAL | B165: =SUM(B166:B171) -> 0 | C165: 0 | D165: 0 | E165: 0 | F165: 0 | G165: 0 | H165: 0 | I165: 0 | J165: 0 | K165: 0 | L165: 0 | M165: 0 | N165: 0 | O165: 0 | P165: 0 | Q165: 0 | R165: 0 | S165: 0 | T165: 0 | U165: 0 | V165: 0 | W165: 0 | X165: 0 | Y165: 0 | Z165: 0 | AA165: 0 | AB165: 0 | AC165: 0 | AD165: 0 | AE165: 0 | AF165: 0 | AG165: 0 | AH165: =SUM(AH166:AH171) -> 0 | AI165: 0 | AJ165: 0 | AK165: 0 | AL165: 0 | AM165: 0 | AN165: 0 | AO165: 0 | AP165: 0 | AQ165: 0 | AR165: 0 | AS165: 0 | AT165: 0 | AU165: 0 | AV165: 0 | AW165: 0 | AX165: 0 | AY165: 0 | AZ165: 0 | BA165: 0 | BB165: 0 | BC165: 0 | BD165: 0 | BE165: 0 | BF165: 0 | BG165: 0 | BH165: 0 | BI165: 0 | BJ165: 0 | BK165: 0 | BL165: 0 | BM165: 0 | BN165: =SUM(BN166:BN171) -> 0 | BO165: 0 | BP165: 0 | BQ165: 0 | BR165: 0 | BS165: 0 | BT165: 0 | BU165: 0 | BV165: 0 | BW165: 0 | BX165: 0 | BY165: 0 | BZ165: 0 | CA165: 0
A166: BIOQUIMICA | B166: =SUM(C166:G166) -> 0 | C166: =+C10 -> 0 | D166: =+D10 -> 0 | E166: =+E10 -> 0 | F166: =+F10 -> 0 | G166: =+G10 -> 0 | H166: =SUM(I166:M166) -> 0 | I166: =+I10 -> 0 | J166: =+J10 -> 0 | K166: =+K10 -> 0 | L166: =+L10 -> 0 | M166: =+M10 -> 0 | N166: =SUM(O166:S166) -> 0 | O166: =+O10 -> 0 | P166: =+P10 -> 0 | Q166: =+Q10 -> 0 | R166: =+R10 -> 0 | S166: =+S10 -> 0 | T166: =SUM(U166:Y166) -> 0 | U166: =+U10 -> 0 | V166: =+V10 -> 0 | W166: =+W10 -> 0 | X166: =+X10 -> 0 | Y166: =+Y10 -> 0 | Z166: =SUM(AA166:AE166) -> 0 | AA166: =+AA10 -> 0 | AB166: =+AB10 -> 0 | AC166: =+AC10 -> 0 | AD166: =+AD10 -> 0 | AE166: =+AE10 -> 0 | AF166: =SUM(AG166:AK166) -> 0 | AG166: =+AG10 -> 0 | AH166: =+AH10 -> 0 | AI166: =+AI10 -> 0 | AJ166: =+AJ10 -> 0 | AK166: =+AK10 -> 0 | AL166: =SUM(AM166:AQ166) -> 0 | AM166: =+AM10 -> 0 | AN166: =+AN10 -> 0 | AO166: =+AO10 -> 0 | AP166: =+AP10 -> 0 | AQ166: =+AQ10 -> 0 | AR166: =SUM(AS166:AW166) -> 0 | AS166: =+AS10 -> 0 | AT166: =+AT10 -> 0 | AU166: =+AU10 -> 0 | AV166: =+AV10 -> 0 | AW166: =+AW10 -> 0 | AX166: =SUM(AY166:BC166) -> 0 | AY166: =+AY10 -> 0 | AZ166: =+AZ10 -> 0 | BA166: =+BA10 -> 0 | BB166: =+BB10 -> 0 | BC166: =+BC10 -> 0 | BD166: =SUM(BE166:BI166) -> 0 | BE166: =+BE10 -> 0 | BF166: =+BF10 -> 0 | BG166: =+BG10 -> 0 | BH166: =+BH10 -> 0 | BI166: =+BI10 -> 0 | BJ166: =SUM(BK166:BO166) -> 0 | BK166: =+BK10 -> 0 | BL166: =+BL10 -> 0 | BM166: =+BM10 -> 0 | BN166: =+BN10 -> 0 | BO166: =+BO10 -> 0 | BP166: =SUM(BQ166:BU166) -> 0 | BQ166: =+BQ10 -> 0 | BR166: =+BR10 -> 0 | BS166: =+BS10 -> 0 | BT166: =+BT10 -> 0 | BU166: =+BU10 -> 0 | BV166: =SUM(BW166:CA166) -> 0 | BW166: =+BW10 -> 0 | BX166: =+BX10 -> 0 | BY166: =+BY10 -> 0 | BZ166: =+BZ10 -> 0 | CA166: =+CA10 -> 0
A167: INMUNOLOGIA | B167: 0 | C167: =+C47 -> 0 | D167: =+D47 -> 0 | E167: =+E47 -> 0 | F167: =+F47 -> 0 | G167: =+G47 -> 0 | H167: 0 | I167: =+I47 -> 0 | J167: =+J47 -> 0 | K167: =+K47 -> 0 | L167: =+L47 -> 0 | M167: =+M47 -> 0 | N167: 0 | O167: =+O47 -> 0 | P167: =+P47 -> 0 | Q167: =+Q47 -> 0 | R167: =+R47 -> 0 | S167: =+S47 -> 0 | T167: 0 | U167: =+U47 -> 0 | V167: =+V47 -> 0 | W167: =+W47 -> 0 | X167: =+X47 -> 0 | Y167: =+Y47 -> 0 | Z167: 0 | AA167: =+AA47 -> 0 | AB167: =+AB47 -> 0 | AC167: =+AC47 -> 0 | AD167: =+AD47 -> 0 | AE167: =+AE47 -> 0 | AF167: 0 | AG167: =+AG47 -> 0 | AH167: =+AH47 -> 0 | AI167: =+AI47 -> 0 | AJ167: =+AJ47 -> 0 | AK167: =+AK47 -> 0 | AL167: 0 | AM167: =+AM47 -> 0 | AN167: =+AN47 -> 0 | AO167: =+AO47 -> 0 | AP167: =+AP47 -> 0 | AQ167: =+AQ47 -> 0 | AR167: 0 | AS167: =+AS47 -> 0 | AT167: =+AT47 -> 0 | AU167: =+AU47 -> 0 | AV167: =+AV47 -> 0 | AW167: =+AW47 -> 0 | AX167: 0 | AY167: =+AY47 -> 0 | AZ167: =+AZ47 -> 0 | BA167: =+BA47 -> 0 | BB167: =+BB47 -> 0 | BC167: =+BC47 -> 0 | BD167: 0 | BE167: =+BE47 -> 0 | BF167: =+BF47 -> 0 | BG167: =+BG47 -> 0 | BH167: =+BH47 -> 0 | BI167: =+BI47 -> 0 | BJ167: 0 | BK167: =+BK47 -> 0 | BL167: =+BL47 -> 0 | BM167: =+BM47 -> 0 | BN167: =+BN47 -> 0 | BO167: =+BO47 -> 0 | BP167: 0 | BQ167: =+BQ47 -> 0 | BR167: =+BR47 -> 0 | BS167: =+BS47 -> 0 | BT167: =+BT47 -> 0 | BU167: =+BU47 -> 0 | BV167: 0 | BW167: =+BW47 -> 0 | BX167: =+BX47 -> 0 | BY167: =+BY47 -> 0 | BZ167: =+BZ47 -> 0 | CA167: =+CA47 -> 0
A168: INMUNOLOGIA ESPECIAL | B168: 0 | C168: =+C73 -> 0 | D168: =+D73 -> 0 | E168: =+E73 -> 0 | F168: =+F73 -> 0 | G168: =+G73 -> 0 | H168: 0 | I168: =+I73 -> 0 | J168: =+J73 -> 0 | K168: =+K73 -> 0 | L168: =+L73 -> 0 | M168: =+M73 -> 0 | N168: 0 | O168: =+O73 -> 0 | P168: =+P73 -> 0 | Q168: =+Q73 -> 0 | R168: =+R73 -> 0 | S168: =+S73 -> 0 | T168: 0 | U168: =+U73 -> 0 | V168: =+V73 -> 0 | W168: =+W73 -> 0 | X168: =+X73 -> 0 | Y168: =+Y73 -> 0 | Z168: 0 | AA168: =+AA73 -> 0 | AB168: =+AB73 -> 0 | AC168: =+AC73 -> 0 | AD168: =+AD73 -> 0 | AE168: =+AE73 -> 0 | AF168: 0 | AG168: =+AG73 -> 0 | AH168: =+AH73 -> 0 | AI168: =+AI73 -> 0 | AJ168: =+AJ73 -> 0 | AK168: =+AK73 -> 0 | AL168: 0 | AM168: =+AM73 -> 0 | AN168: =+AN73 -> 0 | AO168: =+AO73 -> 0 | AP168: =+AP73 -> 0 | AQ168: =+AQ73 -> 0 | AR168: 0 | AS168: =+AS73 -> 0 | AT168: =+AT73 -> 0 | AU168: =+AU73 -> 0 | AV168: =+AV73 -> 0 | AW168: =+AW73 -> 0 | AX168: 0 | AY168: =+AY73 -> 0 | AZ168: =+AZ73 -> 0 | BA168: =+BA73 -> 0 | BB168: =+BB73 -> 0 | BC168: =+BC73 -> 0 | BD168: 0 | BE168: =+BE73 -> 0 | BF168: =+BF73 -> 0 | BG168: =+BG73 -> 0 | BH168: =+BH73 -> 0 | BI168: =+BI73 -> 0 | BJ168: 0 | BK168: =+BK73 -> 0 | BL168: =+BL73 -> 0 | BM168: =+BM73 -> 0 | BN168: =+BN73 -> 0 | BO168: =+BO73 -> 0 | BP168: 0 | BQ168: =+BQ73 -> 0 | BR168: =+BR73 -> 0 | BS168: =+BS73 -> 0 | BT168: =+BT73 -> 0 | BU168: =+BU73 -> 0 | BV168: 0 | BW168: =+BW73 -> 0 | BX168: =+BX73 -> 0 | BY168: =+BY73 -> 0 | BZ168: =+BZ73 -> 0 | CA168: =+CA73 -> 0
A169: HEMATOLOGIA | B169: 0 | C169: =+C97 -> 0 | D169: =+D97 -> 0 | E169: =+E97 -> 0 | F169: =+F97 -> 0 | G169: =+G97 -> 0 | H169: 0 | I169: =+I97 -> 0 | J169: =+J97 -> 0 | K169: =+K97 -> 0 | L169: =+L97 -> 0 | M169: =+M97 -> 0 | N169: 0 | O169: =+O97 -> 0 | P169: =+P97 -> 0 | Q169: =+Q97 -> 0 | R169: =+R97 -> 0 | S169: =+S97 -> 0 | T169: 0 | U169: =+U97 -> 0 | V169: =+V97 -> 0 | W169: =+W97 -> 0 | X169: =+X97 -> 0 | Y169: =+Y97 -> 0 | Z169: 0 | AA169: =+AA97 -> 0 | AB169: =+AB97 -> 0 | AC169: =+AC97 -> 0 | AD169: =+AD97 -> 0 | AE169: =+AE97 -> 0 | AF169: 0 | AG169: =+AG97 -> 0 | AH169: =+AH97 -> 0 | AI169: =+AI97 -> 0 | AJ169: =+AJ97 -> 0 | AK169: =+AK97 -> 0 | AL169: 0 | AM169: =+AM97 -> 0 | AN169: =+AN97 -> 0 | AO169: =+AO97 -> 0 | AP169: =+AP97 -> 0 | AQ169: =+AQ97 -> 0 | AR169: 0 | AS169: =+AS97 -> 0 | AT169: =+AT97 -> 0 | AU169: =+AU97 -> 0 | AV169: =+AV97 -> 0 | AW169: =+AW97 -> 0 | AX169: 0 | AY169: =+AY97 -> 0 | AZ169: =+AZ97 -> 0 | BA169: =+BA97 -> 0 | BB169: =+BB97 -> 0 | BC169: =+BC97 -> 0 | BD169: 0 | BE169: =+BE97 -> 0 | BF169: =+BF97 -> 0 | BG169: =+BG97 -> 0 | BH169: =+BH97 -> 0 | BI169: =+BI97 -> 0 | BJ169: 0 | BK169: =+BK97 -> 0 | BL169: =+BL97 -> 0 | BM169: =+BM97 -> 0 | BN169: =+BN97 -> 0 | BO169: =+BO97 -> 0 | BP169: 0 | BQ169: =+BQ97 -> 0 | BR169: =+BR97 -> 0 | BS169: =+BS97 -> 0 | BT169: =+BT97 -> 0 | BU169: =+BU97 -> 0 | BV169: 0 | BW169: =+BW97 -> 0 | BX169: =+BX97 -> 0 | BY169: =+BY97 -> 0 | BZ169: =+BZ97 -> 0 | CA169: =+CA97 -> 0
A170: MICROBIOLOGIA | B170: 0 | C170: =+C120 -> 0 | D170: =+D120 -> 0 | E170: =+E120 -> 0 | F170: =+F120 -> 0 | G170: =+G120 -> 0 | H170: 0 | I170: =+I120 -> 0 | J170: =+J120 -> 0 | K170: =+K120 -> 0 | L170: =+L120 -> 0 | M170: =+M120 -> 0 | N170: 0 | O170: =+O120 -> 0 | P170: =+P120 -> 0 | Q170: =+Q120 -> 0 | R170: =+R120 -> 0 | S170: =+S120 -> 0 | T170: 0 | U170: =+U120 -> 0 | V170: =+V120 -> 0 | W170: =+W120 -> 0 | X170: =+X120 -> 0 | Y170: =+Y120 -> 0 | Z170: 0 | AA170: =+AA120 -> 0 | AB170: =+AB120 -> 0 | AC170: =+AC120 -> 0 | AD170: =+AD120 -> 0 | AE170: =+AE120 -> 0 | AF170: 0 | AG170: =+AG120 -> 0 | AH170: =+AH120 -> 0 | AI170: =+AI120 -> 0 | AJ170: =+AJ120 -> 0 | AK170: =+AK120 -> 0 | AL170: 0 | AM170: =+AM120 -> 0 | AN170: =+AN120 -> 0 | AO170: =+AO120 -> 0 | AP170: =+AP120 -> 0 | AQ170: =+AQ120 -> 0 | AR170: 0 | AS170: =+AS120 -> 0 | AT170: =+AT120 -> 0 | AU170: =+AU120 -> 0 | AV170: =+AV120 -> 0 | AW170: =+AW120 -> 0 | AX170: 0 | AY170: =+AY120 -> 0 | AZ170: =+AZ120 -> 0 | BA170: =+BA120 -> 0 | BB170: =+BB120 -> 0 | BC170: =+BC120 -> 0 | BD170: 0 | BE170: =+BE120 -> 0 | BF170: =+BF120 -> 0 | BG170: =+BG120 -> 0 | BH170: =+BH120 -> 0 | BI170: =+BI120 -> 0 | BJ170: 0 | BK170: =+BK120 -> 0 | BL170: =+BL120 -> 0 | BM170: =+BM120 -> 0 | BN170: =+BN120 -> 0 | BO170: =+BO120 -> 0 | BP170: 0 | BQ170: =+BQ120 -> 0 | BR170: =+BR120 -> 0 | BS170: =+BS120 -> 0 | BT170: =+BT120 -> 0 | BU170: =+BU120 -> 0 | BV170: 0 | BW170: =+BW120 -> 0 | BX170: =+BX120 -> 0 | BY170: =+BY120 -> 0 | BZ170: =+BZ120 -> 0 | CA170: =+CA120 -> 0
A171: PATOLOGIA | B171: 0 | C171: =+C153 -> 0 | D171: =+D153 -> 0 | E171: =+E153 -> 0 | F171: =+F153 -> 0 | G171: =+G153 -> 0 | H171: 0 | I171: =+I153 -> 0 | J171: =+J153 -> 0 | K171: =+K153 -> 0 | L171: =+L153 -> 0 | M171: =+M153 -> 0 | N171: 0 | O171: =+O153 -> 0 | P171: =+P153 -> 0 | Q171: =+Q153 -> 0 | R171: =+R153 -> 0 | S171: =+S153 -> 0 | T171: 0 | U171: =+U153 -> 0 | V171: =+V153 -> 0 | W171: =+W153 -> 0 | X171: =+X153 -> 0 | Y171: =+Y153 -> 0 | Z171: 0 | AA171: =+AA153 -> 0 | AB171: =+AB153 -> 0 | AC171: =+AC153 -> 0 | AD171: =+AD153 -> 0 | AE171: =+AE153 -> 0 | AF171: 0 | AG171: =+AG153 -> 0 | AH171: =+AH153 -> 0 | AI171: =+AI153 -> 0 | AJ171: =+AJ153 -> 0 | AK171: =+AK153 -> 0 | AL171: 0 | AM171: =+AM153 -> 0 | AN171: =+AN153 -> 0 | AO171: =+AO153 -> 0 | AP171: =+AP153 -> 0 | AQ171: =+AQ153 -> 0 | AR171: 0 | AS171: =+AS153 -> 0 | AT171: =+AT153 -> 0 | AU171: =+AU153 -> 0 | AV171: =+AV153 -> 0 | AW171: =+AW153 -> 0 | AX171: 0 | AY171: =+AY153 -> 0 | AZ171: =+AZ153 -> 0 | BA171: =+BA153 -> 0 | BB171: =+BB153 -> 0 | BC171: =+BC153 -> 0 | BD171: 0 | BE171: =+BE153 -> 0 | BF171: =+BF153 -> 0 | BG171: =+BG153 -> 0 | BH171: =+BH153 -> 0 | BI171: =+BI153 -> 0 | BJ171: 0 | BK171: =+BK153 -> 0 | BL171: =+BL153 -> 0 | BM171: =+BM153 -> 0 | BN171: =+BN153 -> 0 | BO171: =+BO153 -> 0 | BP171: 0 | BQ171: =+BQ153 -> 0 | BR171: =+BR153 -> 0 | BS171: =+BS153 -> 0 | BT171: =+BT153 -> 0 | BU171: =+BU153 -> 0 | BV171: 0 | BW171: =+BW153 -> 0 | BX171: =+BX153 -> 0 | BY171: =+BY153 -> 0 | BZ171: =+BZ153 -> 0 | CA171: =+CA153 -> 0
A172: FUENTE: ORDEN DE ANALISIS

Sheet Menu
C2: ESTADISTICA DE LA RED DE LABORATORIO DE SALUD PUBLICA - 2022
A5: DIRECCIÓN REGIONAL DE SALUD CALLAO
A6: 2022
A7: LABORATORIO
A20: +
J25: (*) La información del Hospital de Ventanilla y Hosp. De rehabilitacion , son Unidades Ejecutoras.
C30: Patrocinado por Equipo de Estadística

Sheet RedBonilla (hidden)
A3: =Menu!C2 -> ESTADISTICA DE LA RED DE LABORATORIO DE SALUD PUBLICA - 2022
A4: ESTABLECIMIENTO | B4: : -----------------
A5: RED | B5: : 01 BONILLA
A7: ANALISIS | B7: TOTAL | H7: ENERO | N7: FEBRERO | T7: MARZO | Z7: ABRIL | AF7: MAYO | AL7: JUNIO | AR7: JULIO | AX7: AGOSTO | BD7: SETIEMBRE | BJ7: OCTUBRE | BP7: NOVIEMBRE | BV7: DICIEMBRE
B8: TOTAL | C8: DEM | D8: SIS/AUS | E8: EXO | F8: ESTR. | G8: CAMP | H8: TOTAL | I8: DEM | J8: SIS/AUS | K8: EXO | L8: ESTR. | M8: CAMP | N8: TOTAL | O8: DEM | P8: SIS/AUS | Q8: EXO | R8: ESTR. | S8: CAMP | T8: TOTAL | U8: DEM | V8: SIS/AUS | W8: EXO | X8: ESTR. | Y8: CAMP | Z8: TOTAL | AA8: DEM | AB8: SIS/AUS | AC8: EXO | AD8: ESTR. | AE8: CAMP | AF8: TOTAL | AG8: DEM | AH8: SIS/AUS | AI8: EXO | AJ8: ESTR. | AK8: CAMP | AL8: TOTAL | AM8: DEM | AN8: SIS/AUS | AO8: EXO | AP8: ESTR. | AQ8: CAMP | AR8: TOTAL | AS8: DEM | AT8: SIS/AUS | AU8: EXO | AV8: ESTR. | AW8: CAMP | AX8: TOTAL | AY8: DEM | AZ8: SIS/AUS | BA8: EXO | BB8: ESTR. | BC8: CAMP | BD8: TOTAL | BE8: DEM | BF8: SIS/AUS | BG8: EXO | BH8: ESTR. | BI8: CAMP | BJ8: TOTAL | BK8: DEM | BL8: SIS/AUS | BM8: EXO | BN8: ESTR. | BO8: CAMP | BP8: TOTAL | BQ8: DEM | BR8: SIS/AUS | BS8: EXO | BT8: ESTR. | BU8: CAMP | BV8: TOTAL | BW8: DEM | BX8: SIS/AUS | BY8: EXO | BZ8: ESTR. | CA8: CAMP
A9: BIOQUIMICA
A10: TOTAL | B10: =SUM(B11:B41) -> 238369 | C10: 4589 | D10: 209696 | E10: 4340 | F10: 3081 | G10: 16663 | H10: 11980 | I10: 239 | J10: 10905 | K10: 492 | L10: 334 | M10: 10 | N10: 24625 | O10: 331 | P10: 20161 | Q10: 621 | R10: 460 | S10: 3052 | T10: 33811 | U10: 402 | V10: 26256 | W10: 281 | X10: 270 | Y10: 6602 | Z10: 20641 | AA10: 147 | AB10: 16949 | AC10: 385 | AD10: 167 | AE10: 2993 | AF10: 19819 | AG10: 150 | AH10: =SUM(AH11:AH41) -> 17468 | AI10: 291 | AJ10: 238 | AK10: 1672 | AL10: 16405 | AM10: 174 | AN10: 15655 | AO10: 423 | AP10: 153 | AQ10: 0 | AR10: 17892 | AS10: 183 | AT10: 16628 | AU10: 228 | AV10: 199 | AW10: 654 | AX10: 20262 | AY10: 283 | AZ10: 19018 | BA10: 492 | BB10: 230 | BC10: 239 | BD10: 18336 | BE10: 2214 | BF10: 15232 | BG10: 185 | BH10: 235 | BI10: 470 | BJ10: 19871 | BK10: 230 | BL10: 18126 | BM10: 530 | BN10: =SUM(BN11:BN41) -> 445 | BO10: 540 | BP10: 17526 | BQ10: 96 | BR10: 16834 | BS10: 193 | BT10: 173 | BU10: 230 | BV10: 17201 | BW10: 140 | BX10: 16464 | BY10: 219 | BZ10: 177 | CA10: 201
A11: ACIDO URICO | B11: =SUM(C11:G11) -> 940 | C11: =SUMIF($I$8:$CA11,$C$8,I11:CA11) -> 15 | D11: =SUMIF($I$8:$CA11,$D$8,I11:CA11) -> 864 | E11: =SUMIF($I$8:$CA11,$E$8,I11:CA11) -> 47 | F11: =SUMIF($I$8:$CA11,$F$8,I11:CA11) -> 13 | G11: =SUMIF($I$8:$CA11,$G$8,I11:CA11) -> 1 | H11: =SUM(I11:M11) -> 300 | I11: =barton!I11+gambetta!I11+acapulco!I11 -> 5 | J11: =barton!J11+gambetta!J11+acapulco!J11 -> 270 | K11: =barton!K11+gambetta!K11+acapulco!K11 -> 21 | L11: =barton!L11+gambetta!L11+acapulco!L11 -> 4 | M11: =barton!M11+gambetta!M11+acapulco!M11 -> 0 | N11: =SUM(O11:S11) -> 249 | O11: =barton!O11+gambetta!O11+acapulco!O11 -> 4 | P11: =barton!P11+gambetta!P11+acapulco!P11 -> 228 | Q11: =barton!Q11+gambetta!Q11+acapulco!Q11 -> 13 | R11: =barton!R11+gambetta!R11+acapulco!R11 -> 4 | S11: =barton!S11+gambetta!S11+acapulco!S11 -> 0 | T11: =SUM(U11:Y11) -> 3 | U11: =barton!U11+gambetta!U11+acapulco!U11 -> 0 | V11: =barton!V11+gambetta!V11+acapulco!V11 -> 3 | W11: =barton!W11+gambetta!W11+acapulco!W11 -> 0 | X11: =barton!X11+gambetta!X11+acapulco!X11 -> 0 | Y11: =barton!Y11+gambetta!Y11+acapulco!Y11 -> 0 | Z11: =SUM(AA11:AE11) -> 20 | AA11: =barton!AA11+gambetta!AA11+acapulco!AA11 -> 1 | AB11: =barton!AB11+gambetta!AB11+acapulco!AB11 -> 19 | AC11: =barton!AC11+gambetta!AC11+acapulco!AC11 -> 0 | AD11: =barton!AD11+gambetta!AD11+acapulco!AD11 -> 0 | AE11: =barton!AE11+gambetta!AE11+acapulco!AE11 -> 0 | AF11: =SUM(AG11:AK11) -> 3 | AG11: =barton!AG11+gambetta!AG11+acapulco!AG11 -> 0 | AH11: =barton!AH11+gambetta!AH11+acapulco!AH11 -> 1 | AI11: =barton!AI11+gambetta!AI11+acapulco!AI11 -> 2 | AJ11: =barton!AJ11+gambetta!AJ11+acapulco!AJ11 -> 0 | AK11: =barton!AK11+gambetta!AK11+acapulco!AK11 -> 0 | AL11: =SUM(AM11:AQ11) -> 0 | AM11: =barton!AM11+gambetta!AM11+acapulco!AM11 -> 0 | AN11: =barton!AN11+gambetta!AN11+acapulco!AN11 -> 0 | AO11: =barton!AO11+gambetta!AO11+acapulco!AO11 -> 0 | AP11: =barton!AP11+gambetta!AP11+acapulco!AP11 -> 0 | AQ11: =barton!AQ11+gambetta!AQ11+acapulco!AQ11 -> 0 | AR11: =SUM(AS11:AW11) -> 0 | AS11: =barton!AS11+gambetta!AS11+acapulco!AS11 -> 0 | AT11: =barton!AT11+gambetta!AT11+acapulco!AT11 -> 0 | AU11: =barton!AU11+gambetta!AU11+acapulco!AU11 -> 0 | AV11: =barton!AV11+gambetta!AV11+acapulco!AV11 -> 0 | AW11: =barton!AW11+gambetta!AW11+acapulco!AW11 -> 0 | AX11: =SUM(AY11:BC11) -> 14 | AY11: =barton!AY11+gambetta!AY11+acapulco!AY11 -> 2 | AZ11: =barton!AZ11+gambetta!AZ11+acapulco!AZ11 -> 11 | BA11: =barton!BA11+gambetta!BA11+acapulco!BA11 -> 1 | BB11: =barton!BB11+gambetta!BB11+acapulco!BB11 -> 0 | BC11: =barton!BC11+gambetta!BC11+acapulco!BC11 -> 0 | BD11: =SUM(BE11:BI11) -> 0 | BE11: =barton!BE11+gambetta!BE11+acapulco!BE11 -> 0 | BF11: =barton!BF11+gambetta!BF11+acapulco!BF11 -> 0 | BG11: =barton!BG11+gambetta!BG11+acapulco!BG11 -> 0 | BH11: =barton!BH11+gambetta!BH11+acapulco!BH11 -> 0 | BI11: =barton!BI11+gambetta!BI11+acapulco!BI11 -> 0 | BJ11: =SUM(BK11:BO11) -> 0 | BK11: =barton!BK11+gambetta!BK11+acapulco!BK11 -> 0 | BL11: =barton!BL11+gambetta!BL11+acapulco!BL11 -> 0 | BM11: =barton!BM11+gambetta!BM11+acapulco!BM11 -> 0 | BN11: =barton!BN11+gambetta!BN11+acapulco!BN11 -> 0 | BO11: =barton!BO11+gambetta!BO11+acapulco!BO11 -> 0 | BP11: =SUM(BQ11:BU11) -> 161 | BQ11: =barton!BQ11+gambetta!BQ11+acapulco!BQ11 -> 1 | BR11: =barton!BR11+gambetta!BR11+acapulco!BR11 -> 156 | BS11: =barton!BS11+gambetta!BS11+acapulco!BS11 -> 3 | BT11: =barton!BT11+gambetta!BT11+acapulco!BT11 -> 1 | BU11: =barton!BU11+gambetta!BU11+acapulco!BU11 -> 0 | BV11: =SUM(BW11:CA11) -> 190 | BW11: =barton!BW11+gambetta!BW11+acapulco!BW11 -> 2 | BX11: =barton!BX11+gambetta!BX11+acapulco!BX11 -> 176 | BY11: =barton!BY11+gambetta!BY11+acapulco!BY11 -> 7 | BZ11: =barton!BZ11+gambetta!BZ11+acapulco!BZ11 -> 4 | CA11: =barton!CA11+gambetta!CA11+acapulco!CA11 -> 1
A12: AMILASA SERICA | B12: 978 | C12: =SUMIF($I$8:$CA12,$C$8,I12:CA12) -> 7 | D12: =SUMIF($I$8:$CA12,$D$8,I12:CA12) -> 932 | E12: =SUMIF($I$8:$CA12,$E$8,I12:CA12) -> 18 | F12: =SUMIF($I$8:$CA12,$F$8,I12:CA12) -> 16 | G12: =SUMIF($I$8:$CA12,$G$8,I12:CA12) -> 5 | H12: =SUM(I12:M12) -> 0 | I12: =barton!I12+gambetta!I12+acapulco!I12 -> 0 | J12: =barton!J12+gambetta!J12+acapulco!J12 -> 0 | K12: =barton!K12+gambetta!K12+acapulco!K12 -> 0 | L12: =barton!L12+gambetta!L12+acapulco!L12 -> 0 | M12: =barton!M12+gambetta!M12+acapulco!M12 -> 0 | N12: =SUM(O12:S12) -> 0 | O12: =barton!O12+gambetta!O12+acapulco!O12 -> 0 | P12: =barton!P12+gambetta!P12+acapulco!P12 -> 0 | Q12: =barton!Q12+gambetta!Q12+acapulco!Q12 -> 0 | R12: =barton!R12+gambetta!R12+acapulco!R12 -> 0 | S12: =barton!S12+gambetta!S12+acapulco!S12 -> 0 | T12: =SUM(U12:Y12) -> 0 | U12: =barton!U12+gambetta!U12+acapulco!U12 -> 0 | V12: =barton!V12+gambetta!V12+acapulco!V12 -> 0 | W12: =barton!W12+gambetta!W12+acapulco!W12 -> 0 | X12: =barton!X12+gambetta!X12+acapulco!X12 -> 0 | Y12: =barton!Y12+gambetta!Y12+acapulco!Y12 -> 0 | Z12: =SUM(AA12:AE12) -> 0 | AA12: =barton!AA12+gambetta!AA12+acapulco!AA12 -> 0 | AB12: =barton!AB12+gambetta!AB12+acapulco!AB12 -> 0 | AC12: =barton!AC12+gambetta!AC12+acapulco!AC12 -> 0 | AD12: =barton!AD12+gambetta!AD12+acapulco!AD12 -> 0 | AE12: =barton!AE12+gambetta!AE12+acapulco!AE12 -> 0 | AF12: =SUM(AG12:AK12) -> 0 | AG12: =barton!AG12+gambetta!AG12+acapulco!AG12 -> 0 | AH12: =barton!AH12+gambetta!AH12+acapulco!AH12 -> 0 | AI12: =barton!AI12+gambetta!AI12+acapulco!AI12 -> 0 | AJ12: =barton!AJ12+gambetta!AJ12+acapulco!AJ12 -> 0 | AK12: =barton!AK12+gambetta!AK12+acapulco!AK12 -> 0 | AL12: =SUM(AM12:AQ12) -> 0 | AM12: =barton!AM12+gambetta!AM12+acapulco!AM12 -> 0 | AN12: =barton!AN12+gambetta!AN12+acapulco!AN12 -> 0 | AO12: =barton!AO12+gambetta!AO12+acapulco!AO12 -> 0 | AP12: =barton!AP12+gambetta!AP12+acapulco!AP12 -> 0 | AQ12: =barton!AQ12+gambetta!AQ12+acapulco!AQ12 -> 0 | AR12: =SUM(AS12:AW12) -> 0 | AS12: =barton!AS12+gambetta!AS12+acapulco!AS12 -> 0 | AT12: =barton!AT12+gambetta!AT12+acapulco!AT12 -> 0 | AU12: =barton!AU12+gambetta!AU12+acapulco!AU12 -> 0 | AV12: =barton!AV12+gambetta!AV12+acapulco!AV12 -> 0 | AW12: =barton!AW12+gambetta!AW12+acapulco!AW12 -> 0 | AX12: =SUM(AY12:BC12) -> 95 | AY12: =barton!AY12+gambetta!AY12+acapulco!AY12 -> 1 | AZ12: =barton!AZ12+gambetta!AZ12+acapulco!AZ12 -> 85 | BA12: =barton!BA12+gambetta!BA12+acapulco!BA12 -> 4 | BB12: =barton!BB12+gambetta!BB12+acapulco!BB12 -> 5 | BC12: =barton!BC12+gambetta!BC12+acapulco!BC12 -> 0 | BD12: =SUM(BE12:BI12) -> 0 | BE12: =barton!BE12+gambetta!BE12+acapulco!BE12 -> 0 | BF12: =barton!BF12+gambetta!BF12+acapulco!BF12 -> 0 | BG12: =barton!BG12+gambetta!BG12+acapulco!BG12 -> 0 | BH12: =barton!BH12+gambetta!BH12+acapulco!BH12 -> 0 | BI12: =barton!BI12+gambetta!BI12+acapulco!BI12 -> 0 | BJ12: =SUM(BK12:BO12) -> 0 | BK12: =barton!BK12+gambetta!BK12+acapulco!BK12 -> 0 | BL12: =barton!BL12+gambetta!BL12+acapulco!BL12 -> 0 | BM12: =barton!BM12+gambetta!BM12+acapulco!BM12 -> 0 | BN12: =barton!BN12+gambetta!BN12+acapulco!BN12 -> 0 | BO12: =barton!BO12+gambetta!BO12+acapulco!BO12 -> 0 | BP12: =SUM(BQ12:BU12) -> 15 | BQ12: =barton!BQ12+gambetta!BQ12+acapulco!BQ12 -> 0 | BR12: =barton!BR12+gambetta!BR12+acapulco!BR12 -> 15 | BS12: =barton!BS12+gambetta!BS12+acapulco!BS12 -> 0 | BT12: =barton!BT12+gambetta!BT12+acapulco!BT12 -> 0 | BU12: =barton!BU12+gambetta!BU12+acapulco!BU12 -> 0 | BV12: =SUM(BW12:CA12) -> 868 | BW12: =barton!BW12+gambetta!BW12+acapulco!BW12 -> 6 | BX12: =barton!BX12+gambetta!BX12+acapulco!BX12 -> 832 | BY12: =barton!BY12+gambetta!BY12+acapulco!BY12 -> 14 | BZ12: =barton!BZ12+gambetta!BZ12+acapulco!BZ12 -> 11 | CA12: =barton!CA12+gambetta!CA12+acapulco!CA12 -> 5
A13: BILIRRUBINA TOTAL Y FRACCIONADA | B13: 6271 | C13: =SUMIF($I$8:$CA13,$C$8,I13:CA13) -> 73 | D13: =SUMIF($I$8:$CA13,$D$8,I13:CA13) -> 5894 | E13: =SUMIF($I$8:$CA13,$E$8,I13:CA13) -> 147 | F13: =SUMIF($I$8:$CA13,$F$8,I13:CA13) -> 137 | G13: =SUMIF($I$8:$CA13,$G$8,I13:CA13) -> 20 | H13: 679 | I13: =barton!I13+gambetta!I13+acapulco!I13 -> 10 | J13: =barton!J13+gambetta!J13+acapulco!J13 -> 616 | K13: =barton!K13+gambetta!K13+acapulco!K13 -> 32 | L13: =barton!L13+gambetta!L13+acapulco!L13 -> 21 | M13: =barton!M13+gambetta!M13+acapulco!M13 -> 0 | N13: 1262 | O13: =barton!O13+gambetta!O13+acapulco!O13 -> 14 | P13: =barton!P13+gambetta!P13+acapulco!P13 -> 1163 | Q13: =barton!Q13+gambetta!Q13+acapulco!Q13 -> 46 | R13: =barton!R13+gambetta!R13+acapulco!R13 -> 34 | S13: =barton!S13+gambetta!S13+acapulco!S13 -> 5 | T13: 1170 | U13: =barton!U13+gambetta!U13+acapulco!U13 -> 19 | V13: =barton!V13+gambetta!V13+acapulco!V13 -> 1117 | W13: =barton!W13+gambetta!W13+acapulco!W13 -> 10 | X13: =barton!X13+gambetta!X13+acapulco!X13 -> 18 | Y13: =barton!Y13+gambetta!Y13+acapulco!Y13 -> 6 | Z13: 4 | AA13: =barton!AA13+gambetta!AA13+acapulco!AA13 -> 0 | AB13: =barton!AB13+gambetta!AB13+acapulco!AB13 -> 4 | AC13: =barton!AC13+gambetta!AC13+acapulco!AC13 -> 0 | AD13: =barton!AD13+gambetta!AD13+acapulco!AD13 -> 0 | AE13: =barton!AE13+gambetta!AE13+acapulco!AE13 -> 0 | AF13: 1 | AG13: =barton!AG13+gambetta!AG13+acapulco!AG13 -> 0 | AH13: =barton!AH13+gambetta!AH13+acapulco!AH13 -> 0 | AI13: =barton!AI13+gambetta!AI13+acapulco!AI13 -> 0 | AJ13: =barton!AJ13+gambetta!AJ13+acapulco!AJ13 -> 0 | AK13: =barton!AK13+gambetta!AK13+acapulco!AK13 -> 1 | AL13: 0 | AM13: =barton!AM13+gambetta!AM13+acapulco!AM13 -> 0 | AN13: =barton!AN13+gambetta!AN13+acapulco!AN13 -> 0 | AO13: =barton!AO13+gambetta!AO13+acapulco!AO13 -> 0 | AP13: =barton!AP13+gambetta!AP13+acapulco!AP13 -> 0 | AQ13: =barton!AQ13+gambetta!AQ13+acapulco!AQ13 -> 0 | AR13: 536 | AS13: =barton!AS13+gambetta!AS13+acapulco!AS13 -> 4 | AT13: =barton!AT13+gambetta!AT13+acapulco!AT13 -> 511 | AU13: =barton!AU13+gambetta!AU13+acapulco!AU13 -> 13 | AV13: =barton!AV13+gambetta!AV13+acapulco!AV13 -> 5 | AW13: =barton!AW13+gambetta!AW13+acapulco!AW13 -> 3 | AX13: 810 | AY13: =barton!AY13+gambetta!AY13+acapulco!AY13 -> 11 | AZ13: =barton!AZ13+gambetta!AZ13+acapulco!AZ13 -> 778 | BA13: =barton!BA13+gambetta!BA13+acapulco!BA13 -> 8 | BB13: =barton!BB13+gambetta!BB13+acapulco!BB13 -> 13 | BC13: =barton!BC13+gambetta!BC13+acapulco!BC13 -> 0 | BD13: 112 | BE13: =barton!BE13+gambetta!BE13+acapulco!BE13 -> 1 | BF13: =barton!BF13+gambetta!BF13+acapulco!BF13 -> 104 | BG13: =barton!BG13+gambetta!BG13+acapulco!BG13 -> 2 | BH13: =barton!BH13+gambetta!BH13+acapulco!BH13 -> 5 | BI13: =barton!BI13+gambetta!BI13+acapulco!BI13 -> 0 | BJ13: 850 | BK13: =barton!BK13+gambetta!BK13+acapulco!BK13 -> 11 | BL13: =barton!BL13+gambetta!BL13+acapulco!BL13 -> 782 | BM13: =barton!BM13+gambetta!BM13+acapulco!BM13 -> 23 | BN13: =barton!BN13+gambetta!BN13+acapulco!BN13 -> 33 | BO13: =barton!BO13+gambetta!BO13+acapulco!BO13 -> 1 | BP13: 847 | BQ13: =barton!BQ13+gambetta!BQ13+acapulco!BQ13 -> 3 | BR13: =barton!BR13+gambetta!BR13+acapulco!BR13 -> 819 | BS13: =barton!BS13+gambetta!BS13+acapulco!BS13 -> 13 | BT13: =barton!BT13+gambetta!BT13+acapulco!BT13 -> 8 | BU13: =barton!BU13+gambetta!BU13+acapulco!BU13 -> 4 | BV13: 0 | BW13: =barton!BW13+gambetta!BW13+acapulco!BW13 -> 0 | BX13: =barton!BX13+gambetta!BX13+acapulco!BX13 -> 0 | BY13: =barton!BY13+gambetta!BY13+acapulco!BY13 -> 0 | BZ13: =barton!BZ13+gambetta!BZ13+acapulco!BZ13 -> 0 | CA13: =barton!CA13+gambetta!CA13+acapulco!CA13 -> 0
A14: CALCIO | B14: 0 | C14: =SUMIF($I$8:$CA14,$C$8,I14:CA14) -> 0 | D14: =SUMIF($I$8:$CA14,$D$8,I14:CA14) -> 0 | E14: =SUMIF($I$8:$CA14,$E$8,I14:CA14) -> 0 | F14: =SUMIF($I$8:$CA14,$F$8,I14:CA14) -> 0 | G14: =SUMIF($I$8:$CA14,$G$8,I14:CA14) -> 0 | H14: 0 | I14: =barton!I14+gambetta!I14+acapulco!I14 -> 0 | J14: =barton!J14+gambetta!J14+acapulco!J14 -> 0 | K14: =barton!K14+gambetta!K14+acapulco!K14 -> 0 | L14: =barton!L14+gambetta!L14+acapulco!L14 -> 0 | M14: =barton!M14+gambetta!M14+acapulco!M14 -> 0 | N14: 0 | O14: =barton!O14+gambetta!O14+acapulco!O14 -> 0 | P14: =barton!P14+gambetta!P14+acapulco!P14 -> 0 | Q14: =barton!Q14+gambetta!Q14+acapulco!Q14 -> 0 | R14: =barton!R14+gambetta!R14+acapulco!R14 -> 0 | S14: =barton!S14+gambetta!S14+acapulco!S14 -> 0 | T14: 0 | U14: =barton!U14+gambetta!U14+acapulco!U14 -> 0 | V14: =barton!V14+gambetta!V14+acapulco!V14 -> 0 | W14: =barton!W14+gambetta!W14+acapulco!W14 -> 0 | X14: =barton!X14+gambetta!X14+acapulco!X14 -> 0 | Y14: =barton!Y14+gambetta!Y14+acapulco!Y14 -> 0 | Z14: 0 | AA14: =barton!AA14+gambetta!AA14+acapulco!AA14 -> 0 | AB14: =barton!AB14+gambetta!AB14+acapulco!AB14 -> 0 | AC14: =barton!AC14+gambetta!AC14+acapulco!AC14 -> 0 | AD14: =barton!AD14+gambetta!AD14+acapulco!AD14 -> 0 | AE14: =barton!AE14+gambetta!AE14+acapulco!AE14 -> 0 | AF14: 0 | AG14: =barton!AG14+gambetta!AG14+acapulco!AG14 -> 0 | AH14: =barton!AH14+gambetta!AH14+acapulco!AH14 -> 0 | AI14: =barton!AI14+gambetta!AI14+acapulco!AI14 -> 0 | AJ14: =barton!AJ14+gambetta!AJ14+acapulco!AJ14 -> 0 | AK14: =barton!AK14+gambetta!AK14+acapulco!AK14 -> 0 | AL14: 0 | AM14: =barton!AM14+gambetta!AM14+acapulco!AM14 -> 0 | AN14: =barton!AN14+gambetta!AN14+acapulco!AN14 -> 0 | AO14: =barton!AO14+gambetta!AO14+acapulco!AO14 -> 0 | AP14: =barton!AP14+gambetta!AP14+acapulco!AP14 -> 0 | AQ14: =barton!AQ14+gambetta!AQ14+acapulco!AQ14 -> 0 | AR14: 0 | AS14: =barton!AS14+gambetta!AS14+acapulco!AS14 -> 0 | AT14: =barton!AT14+gambetta!AT14+acapulco!AT14 -> 0 | AU14: =barton!AU14+gambetta!AU14+acapulco!AU14 -> 0 | AV14: =barton!AV14+gambetta!AV14+acapulco!AV14 -> 0 | AW14: =barton!AW14+gambetta!AW14+acapulco!AW14 -> 0 | AX14: 0 | AY14: =barton!AY14+gambetta!AY14+acapulco!AY14 -> 0 | AZ14: =barton!AZ14+gambetta!AZ14+acapulco!AZ14 -> 0 | BA14: =barton!BA14+gambetta!BA14+acapulco!BA14 -> 0 | BB14: =barton!BB14+gambetta!BB14+acapulco!BB14 -> 0 | BC14: =barton!BC14+gambetta!BC14+acapulco!BC14 -> 0 | BD14: 0 | BE14: =barton!BE14+gambetta!BE14+acapulco!BE14 -> 0 | BF14: =barton!BF14+gambetta!BF14+acapulco!BF14 -> 0 | BG14: =barton!BG14+gambetta!BG14+acapulco!BG14 -> 0 | BH14: =barton!BH14+gambetta!BH14+acapulco!BH14 -> 0 | BI14: =barton!BI14+gambetta!BI14+acapulco!BI14 -> 0 | BJ14: 0 | BK14: =barton!BK14+gambetta!BK14+acapulco!BK14 -> 0 | BL14: =barton!BL14+gambetta!BL14+acapulco!BL14 -> 0 | BM14: =barton!BM14+gambetta!BM14+acapulco!BM14 -> 0 | BN14: =barton!BN14+gambetta!BN14+acapulco!BN14 -> 0 | BO14: =barton!BO14+gambetta!BO14+acapulco!BO14 -> 0 | BP14: 0 | BQ14: =barton!BQ14+gambetta!BQ14+acapulco!BQ14 -> 0 | BR14: =barton!BR14+gambetta!BR14+acapulco!BR14 -> 0 | BS14: =barton!BS14+gambetta!BS14+acapulco!BS14 -> 0 | BT14: =barton!BT14+gambetta!BT14+acapulco!BT14 -> 0 | BU14: =barton!BU14+gambetta!BU14+acapulco!BU14 -> 0 | BV14: 0 | BW14: =barton!BW14+gambetta!BW14+acapulco!BW14 -> 0 | BX14: =barton!BX14+gambetta!BX14+acapulco!BX14 -> 0 | BY14: =barton!BY14+gambetta!BY14+acapulco!BY14 -> 0 | BZ14: =barton!BZ14+gambetta!BZ14+acapulco!BZ14 -> 0 | CA14: =barton!CA14+gambetta!CA14+acapulco!CA14 -> 0
A15: COLESTEROL HDL | B15: 19836 | C15: =SUMIF($I$8:$CA15,$C$8,I15:CA15) -> 201 | D15: =SUMIF($I$8:$CA15,$D$8,I15:CA15) -> 17799 | E15: =SUMIF($I$8:$CA15,$E$8,I15:CA15) -> 377 | F15: =SUMIF($I$8:$CA15,$F$8,I15:CA15) -> 213 | G15: =SUMIF($I$8:$CA15,$G$8,I15:CA15) -> 1246 | H15: 874 | I15: =barton!I15+gambetta!I15+acapulco!I15 -> 18 | J15: =barton!J15+gambetta!J15+acapulco!J15 -> 795 | K15: =barton!K15+gambetta!K15+acapulco!K15 -> 36 | L15: =barton!L15+gambetta!L15+acapulco!L15 -> 24 | M15: =barton!M15+gambetta!M15+acapulco!M15 -> 1 | N15: 2025 | O15: =barton!O15+gambetta!O15+acapulco!O15 -> 25 | P15: =barton!P15+gambetta!P15+acapulco!P15 -> 1605 | Q15: =barton!Q15+gambetta!Q15+acapulco!Q15 -> 47 | R15: =barton!R15+gambetta!R15+acapulco!R15 -> 31 | S15: =barton!S15+gambetta!S15+acapulco!S15 -> 317 | T15: 2917 | U15: =barton!U15+gambetta!U15+acapulco!U15 -> 27 | V15: =barton!V15+gambetta!V15+acapulco!V15 -> 2259 | W15: =barton!W15+gambetta!W15+acapulco!W15 -> 23 | X15: =barton!X15+gambetta!X15+acapulco!X15 -> 19 | Y15: =barton!Y15+gambetta!Y15+acapulco!Y15 -> 589 | Z15: 1638 | AA15: =barton!AA15+gambetta!AA15+acapulco!AA15 -> 13 | AB15: =barton!AB15+gambetta!AB15+acapulco!AB15 -> 1550 | AC15: =barton!AC15+gambetta!AC15+acapulco!AC15 -> 36 | AD15: =barton!AD15+gambetta!AD15+acapulco!AD15 -> 9 | AE15: =barton!AE15+gambetta!AE15+acapulco!AE15 -> 30 | AF15: 1852 | AG15: =barton!AG15+gambetta!AG15+acapulco!AG15 -> 15 | AH15: =barton!AH15+gambetta!AH15+acapulco!AH15 -> 1677 | AI15: =barton!AI15+gambetta!AI15+acapulco!AI15 -> 32 | AJ15: =barton!AJ15+gambetta!AJ15+acapulco!AJ15 -> 20 | AK15: =barton!AK15+gambetta!AK15+acapulco!AK15 -> 108 | AL15: 1597 | AM15: =barton!AM15+gambetta!AM15+acapulco!AM15 -> 16 | AN15: =barton!AN15+gambetta!AN15+acapulco!AN15 -> 1539 | AO15: =barton!AO15+gambetta!AO15+acapulco!AO15 -> 30 | AP15: =barton!AP15+gambetta!AP15+acapulco!AP15 -> 12 | AQ15: =barton!AQ15+gambetta!AQ15+acapulco!AQ15 -> 0 | AR15: 1713 | AS15: =barton!AS15+gambetta!AS15+acapulco!AS15 -> 17 | AT15: =barton!AT15+gambetta!AT15+acapulco!AT15 -> 1593 | AU15: =barton!AU15+gambetta!AU15+acapulco!AU15 -> 20 | AV15: =barton!AV15+gambetta!AV15+acapulco!AV15 -> 18 | AW15: =barton!AW15+gambetta!AW15+acapulco!AW15 -> 65 | AX15: 1754 | AY15: =barton!AY15+gambetta!AY15+acapulco!AY15 -> 19 | AZ15: =barton!AZ15+gambetta!AZ15+acapulco!AZ15 -> 1654 | BA15: =barton!BA15+gambetta!BA15+acapulco!BA15 -> 51 | BB15: =barton!BB15+gambetta!BB15+acapulco!BB15 -> 14 | BC15: =barton!BC15+gambetta!BC15+acapulco!BC15 -> 16 | BD15: 2121 | BE15: =barton!BE15+gambetta!BE15+acapulco!BE15 -> 22 | BF15: =barton!BF15+gambetta!BF15+acapulco!BF15 -> 2046 | BG15: =barton!BG15+gambetta!BG15+acapulco!BG15 -> 19 | BH15: =barton!BH15+gambetta!BH15+acapulco!BH15 -> 23 | BI15: =barton!BI15+gambetta!BI15+acapulco!BI15 -> 11 | BJ15: 1942 | BK15: =barton!BK15+gambetta!BK15+acapulco!BK15 -> 19 | BL15: =barton!BL15+gambetta!BL15+acapulco!BL15 -> 1735 | BM15: =barton!BM15+gambetta!BM15+acapulco!BM15 -> 67 | BN15: =barton!BN15+gambetta!BN15+acapulco!BN15 -> 32 | BO15: =barton!BO15+gambetta!BO15+acapulco!BO15 -> 89 | BP15: 0 | BQ15: =barton!BQ15+gambetta!BQ15+acapulco!BQ15 -> 0 | BR15: =barton!BR15+gambetta!BR15+acapulco!BR15 -> 0 | BS15: =barton!BS15+gambetta!BS15+acapulco!BS15 -> 0 | BT15: =barton!BT15+gambetta!BT15+acapulco!BT15 -> 0 | BU15: =barton!BU15+gambetta!BU15+acapulco!BU15 -> 0 | BV15: 1403 | BW15: =barton!BW15+gambetta!BW15+acapulco!BW15 -> 10 | BX15: =barton!BX15+gambetta!BX15+acapulco!BX15 -> 1346 | BY15: =barton!BY15+gambetta!BY15+acapulco!BY15 -> 16 | BZ15: =barton!BZ15+gambetta!BZ15+acapulco!BZ15 -> 11 | CA15: =barton!CA15+gambetta!CA15+acapulco!CA15 -> 20
A16: COLESTEROL LDL | B16: 19842 | C16: =SUMIF($I$8:$CA16,$C$8,I16:CA16) -> 2225 | D16: =SUMIF($I$8:$CA16,$D$8,I16:CA16) -> 15781 | E16: =SUMIF($I$8:$CA16,$E$8,I16:CA16) -> 377 | F16: =SUMIF($I$8:$CA16,$F$8,I16:CA16) -> 213 | G16: =SUMIF($I$8:$CA16,$G$8,I16:CA16) -> 1246 | H16: 874 | I16: =barton!I16+gambetta!I16+acapulco!I16 -> 18 | J16: =barton!J16+gambetta!J16+acapulco!J16 -> 795 | K16: =barton!K16+gambetta!K16+acapulco!K16 -> 36 | L16: =barton!L16+gambetta!L16+acapulco!L16 -> 24 | M16: =barton!M16+gambetta!M16+acapulco!M16 -> 1 | N16: 2025 | O16: =barton!O16+gambetta!O16+acapulco!O16 -> 25 | P16: =barton!P16+gambetta!P16+acapulco!P16 -> 1605 | Q16: =barton!Q16+gambetta!Q16+acapulco!Q16 -> 47 | R16: =barton!R16+gambetta!R16+acapulco!R16 -> 31 | S16: =barton!S16+gambetta!S16+acapulco!S16 -> 317 | T16: 2917 | U16: =barton!U16+gambetta!U16+acapulco!U16 -> 27 | V16: =barton!V16+gambetta!V16+acapulco!V16 -> 2259 | W16: =barton!W16+gambetta!W16+acapulco!W16 -> 23 | X16: =barton!X16+gambetta!X16+acapulco!X16 -> 19 | Y16: =barton!Y16+gambetta!Y16+acapulco!Y16 -> 589 | Z16: 1638 | AA16: =barton!AA16+gambetta!AA16+acapulco!AA16 -> 13 | AB16: =barton!AB16+gambetta!AB16+acapulco!AB16 -> 1550 | AC16: =barton!AC16+gambetta!AC16+acapulco!AC16 -> 36 | AD16: =barton!AD16+gambetta!AD16+acapulco!AD16 -> 9 | AE16: =barton!AE16+gambetta!AE16+acapulco!AE16 -> 30 | AF16: 1853 | AG16: =barton!AG16+gambetta!AG16+acapulco!AG16 -> 15 | AH16: =barton!AH16+gambetta!AH16+acapulco!AH16 -> 1678 | AI16: =barton!AI16+gambetta!AI16+acapulco!AI16 -> 32 | AJ16: =barton!AJ16+gambetta!AJ16+acapulco!AJ16 -> 20 | AK16: =barton!AK16+gambetta!AK16+acapulco!AK16 -> 108 | AL16: 1598 | AM16: =barton!AM16+gambetta!AM16+acapulco!AM16 -> 16 | AN16: =barton!AN16+gambetta!AN16+acapulco!AN16 -> 1540 | AO16: =barton!AO16+gambetta!AO16+acapulco!AO16 -> 30 | AP16: =barton!AP16+gambetta!AP16+acapulco!AP16 -> 12 | AQ16: =barton!AQ16+gambetta!AQ16+acapulco!AQ16 -> 0 | AR16: 1713 | AS16: =barton!AS16+gambetta!AS16+acapulco!AS16 -> 17 | AT16: =barton!AT16+gambetta!AT16+acapulco!AT16 -> 1593 | AU16: =barton!AU16+gambetta!AU16+acapulco!AU16 -> 20 | AV16: =barton!AV16+gambetta!AV16+acapulco!AV16 -> 18 | AW16: =barton!AW16+gambetta!AW16+acapulco!AW16 -> 65 | AX16: 1756 | AY16: =barton!AY16+gambetta!AY16+acapulco!AY16 -> 19 | AZ16: =barton!AZ16+gambetta!AZ16+acapulco!AZ16 -> 1656 | BA16: =barton!BA16+gambetta!BA16+acapulco!BA16 -> 51 | BB16: =barton!BB16+gambetta!BB16+acapulco!BB16 -> 14 | BC16: =barton!BC16+gambetta!BC16+acapulco!BC16 -> 16 | BD16: 2121 | BE16: =barton!BE16+gambetta!BE16+acapulco!BE16 -> 2046 | BF16: =barton!BF16+gambetta!BF16+acapulco!BF16 -> 22 | BG16: =barton!BG16+gambetta!BG16+acapulco!BG16 -> 19 | BH16: =barton!BH16+gambetta!BH16+acapulco!BH16 -> 23 | BI16: =barton!BI16+gambetta!BI16+acapulco!BI16 -> 11 | BJ16: 1944 | BK16: =barton!BK16+gambetta!BK16+acapulco!BK16 -> 19 | BL16: =barton!BL16+gambetta!BL16+acapulco!BL16 -> 1737 | BM16: =barton!BM16+gambetta!BM16+acapulco!BM16 -> 67 | BN16: =barton!BN16+gambetta!BN16+acapulco!BN16 -> 32 | BO16: =barton!BO16+gambetta!BO16+acapulco!BO16 -> 89 | BP16: 0 | BQ16: =barton!BQ16+gambetta!BQ16+acapulco!BQ16 -> 0 | BR16: =barton!BR16+gambetta!BR16+acapulco!BR16 -> 0 | BS16: =barton!BS16+gambetta!BS16+acapulco!BS16 -> 0 | BT16: =barton!BT16+gambetta!BT16+acapulco!BT16 -> 0 | BU16: =barton!BU16+gambetta!BU16+acapulco!BU16 -> 0 | BV16: 1403 | BW16: =barton!BW16+gambetta!BW16+acapulco!BW16 -> 10 | BX16: =barton!BX16+gambetta!BX16+acapulco!BX16 -> 1346 | BY16: =barton!BY16+gambetta!BY16+acapulco!BY16 -> 16 | BZ16: =barton!BZ16+gambetta!BZ16+acapulco!BZ16 -> 11 | CA16: =barton!CA16+gambetta!CA16+acapulco!CA16 -> 20
A17: COLESTEROL TOTAL | B17: 27153 | C17: =SUMIF($I$8:$CA17,$C$8,I17:CA17) -> 274 | D17: =SUMIF($I$8:$CA17,$D$8,I17:CA17) -> 22396 | E17: =SUMIF($I$8:$CA17,$E$8,I17:CA17) -> 422 | F17: =SUMIF($I$8:$CA17,$F$8,I17:CA17) -> 224 | G17: =SUMIF($I$8:$CA17,$G$8,I17:CA17) -> 3837 | H17: 980 | I17: =barton!I17+gambetta!I17+acapulco!I17 -> 24 | J17: =barton!J17+gambetta!J17+acapulco!J17 -> 893 | K17: =barton!K17+gambetta!K17+acapulco!K17 -> 37 | L17: =barton!L17+gambetta!L17+acapulco!L17 -> 24 | M17: =barton!M17+gambetta!M17+acapulco!M17 -> 2 | N17: 2554 | O17: =barton!O17+gambetta!O17+acapulco!O17 -> 30 | P17: =barton!P17+gambetta!P17+acapulco!P17 -> 1863 | Q17: =barton!Q17+gambetta!Q17+acapulco!Q17 -> 48 | R17: =barton!R17+gambetta!R17+acapulco!R17 -> 31 | S17: =barton!S17+gambetta!S17+acapulco!S17 -> 582 | T17: 4174 | U17: =barton!U17+gambetta!U17+acapulco!U17 -> 36 | V17: =barton!V17+gambetta!V17+acapulco!V17 -> 2695 | W17: =barton!W17+gambetta!W17+acapulco!W17 -> 27 | X17: =barton!X17+gambetta!X17+acapulco!X17 -> 19 | Y17: =barton!Y17+gambetta!Y17+acapulco!Y17 -> 1397 | Z17: 2940 | AA17: =barton!AA17+gambetta!AA17+acapulco!AA17 -> 19 | AB17: =barton!AB17+gambetta!AB17+acapulco!AB17 -> 1904 | AC17: =barton!AC17+gambetta!AC17+acapulco!AC17 -> 41 | AD17: =barton!AD17+gambetta!AD17+acapulco!AD17 -> 9 | AE17: =barton!AE17+gambetta!AE17+acapulco!AE17 -> 967 | AF17: 2572 | AG17: =barton!AG17+gambetta!AG17+acapulco!AG17 -> 19 | AH17: =barton!AH17+gambetta!AH17+acapulco!AH17 -> 2017 | AI17: =barton!AI17+gambetta!AI17+acapulco!AI17 -> 35 | AJ17: =barton!AJ17+gambetta!AJ17+acapulco!AJ17 -> 20 | AK17: =barton!AK17+gambetta!AK17+acapulco!AK17 -> 481 | AL17: 1856 | AM17: =barton!AM17+gambetta!AM17+acapulco!AM17 -> 21 | AN17: =barton!AN17+gambetta!AN17+acapulco!AN17 -> 1790 | AO17: =barton!AO17+gambetta!AO17+acapulco!AO17 -> 32 | AP17: =barton!AP17+gambetta!AP17+acapulco!AP17 -> 13 | AQ17: =barton!AQ17+gambetta!AQ17+acapulco!AQ17 -> 0 | AR17: 1979 | AS17: =barton!AS17+gambetta!AS17+acapulco!AS17 -> 24 | AT17: =barton!AT17+gambetta!AT17+acapulco!AT17 -> 1778 | AU17: =barton!AU17+gambetta!AU17+acapulco!AU17 -> 21 | AV17: =barton!AV17+gambetta!AV17+acapulco!AV17 -> 18 | AW17: =barton!AW17+gambetta!AW17+acapulco!AW17 -> 138 | AX17: 1982 | AY17: =barton!AY17+gambetta!AY17+acapulco!AY17 -> 25 | AZ17: =barton!AZ17+gambetta!AZ17+acapulco!AZ17 -> 1826 | BA17: =barton!BA17+gambetta!BA17+acapulco!BA17 -> 51 | BB17: =barton!BB17+gambetta!BB17+acapulco!BB17 -> 14 | BC17: =barton!BC17+gambetta!BC17+acapulco!BC17 -> 66 | BD17: 2212 | BE17: =barton!BE17+gambetta!BE17+acapulco!BE17 -> 28 | BF17: =barton!BF17+gambetta!BF17+acapulco!BF17 -> 2126 | BG17: =barton!BG17+gambetta!BG17+acapulco!BG17 -> 20 | BH17: =barton!BH17+gambetta!BH17+acapulco!BH17 -> 23 | BI17: =barton!BI17+gambetta!BI17+acapulco!BI17 -> 15 | BJ17: 2171 | BK17: =barton!BK17+gambetta!BK17+acapulco!BK17 -> 24 | BL17: =barton!BL17+gambetta!BL17+acapulco!BL17 -> 1926 | BM17: =barton!BM17+gambetta!BM17+acapulco!BM17 -> 70 | BN17: =barton!BN17+gambetta!BN17+acapulco!BN17 -> 32 | BO17: =barton!BO17+gambetta!BO17+acapulco!BO17 -> 119 | BP17: 2234 | BQ17: =barton!BQ17+gambetta!BQ17+acapulco!BQ17 -> 9 | BR17: =barton!BR17+gambetta!BR17+acapulco!BR17 -> 2130 | BS17: =barton!BS17+gambetta!BS17+acapulco!BS17 -> 20 | BT17: =barton!BT17+gambetta!BT17+acapulco!BT17 -> 10 | BU17: =barton!BU17+gambetta!BU17+acapulco!BU17 -> 65 | BV17: 1499 | BW17: =barton!BW17+gambetta!BW17+acapulco!BW17 -> 15 | BX17: =barton!BX17+gambetta!BX17+acapulco!BX17 -> 1448 | BY17: =barton!BY17+gambetta!BY17+acapulco!BY17 -> 20 | BZ17: =barton!BZ17+gambetta!BZ17+acapulco!BZ17 -> 11 | CA17: =barton!CA17+gambetta!CA17+acapulco!CA17 -> 5
A18: CREATINA KINASA CK | B18: 0 | C18: =SUMIF($I$8:$CA18,$C$8,I18:CA18) -> 0 | D18: =SUMIF($I$8:$CA18,$D$8,I18:CA18) -> 0 | E18: =SUMIF($I$8:$CA18,$E$8,I18:CA18) -> 0 | F18: =SUMIF($I$8:$CA18,$F$8,I18:CA18) -> 0 | G18: =SUMIF($I$8:$CA18,$G$8,I18:CA18) -> 0 | H18: 0 | I18: =barton!I18+gambetta!I18+acapulco!I18 -> 0 | J18: =barton!J18+gambetta!J18+acapulco!J18 -> 0 | K18: =barton!K18+gambetta!K18+acapulco!K18 -> 0 | L18: =barton!L18+gambetta!L18+acapulco!L18 -> 0 | M18: =barton!M18+gambetta!M18+acapulco!M18 -> 0 | N18: 0 | O18: =barton!O18+gambetta!O18+acapulco!O18 -> 0 | P18: =barton!P18+gambetta!P18+acapulco!P18 -> 0 | Q18: =barton!Q18+gambetta!Q18+acapulco!Q18 -> 0 | R18: =barton!R18+gambetta!R18+acapulco!R18 -> 0 | S18: =barton!S18+gambetta!S18+acapulco!S18 -> 0 | T18: 0 | U18: =barton!U18+gambetta!U18+acapulco!U18 -> 0 | V18: =barton!V18+gambetta!V18+acapulco!V18 -> 0 | W18: =barton!W18+gambetta!W18+acapulco!W18 -> 0 | X18: =barton!X18+gambetta!X18+acapulco!X18 -> 0 | Y18: =barton!Y18+gambetta!Y18+acapulco!Y18 -> 0 | Z18: 0 | AA18: =barton!AA18+gambetta!AA18+acapulco!AA18 -> 0 | AB18: =barton!AB18+gambetta!AB18+acapulco!AB18 -> 0 | AC18: =barton!AC18+gambetta!AC18+acapulco!AC18 -> 0 | AD18: =barton!AD18+gambetta!AD18+acapulco!AD18 -> 0 | AE18: =barton!AE18+gambetta!AE18+acapulco!AE18 -> 0 | AF18: 0 | AG18: =barton!AG18+gambetta!AG18+acapulco!AG18 -> 0 | AH18: =barton!AH18+gambetta!AH18+acapulco!AH18 -> 0 | AI18: =barton!AI18+gambetta!AI18+acapulco!AI18 -> 0 | AJ18: =barton!AJ18+gambetta!AJ18+acapulco!AJ18 -> 0 | AK18: =barton!AK18+gambetta!AK18+acapulco!AK18 -> 0 | AL18: 0 | AM18: =barton!AM18+gambetta!AM18+acapulco!AM18 -> 0 | AN18: =barton!AN18+gambetta!AN18+acapulco!AN18 -> 0 | AO18: =barton!AO18+gambetta!AO18+acapulco!AO18 -> 0 | AP18: =barton!AP18+gambetta!AP18+acapulco!AP18 -> 0 | AQ18: =barton!AQ18+gambetta!AQ18+acapulco!AQ18 -> 0 | AR18: 0 | AS18: =barton!AS18+gambetta!AS18+acapulco!AS18 -> 0 | AT18: =barton!AT18+gambetta!AT18+acapulco!AT18 -> 0 | AU18: =barton!AU18+gambetta!AU18+acapulco!AU18 -> 0 | AV18: =barton!AV18+gambetta!AV18+acapulco!AV18 -> 0 | AW18: =barton!AW18+gambetta!AW18+acapulco!AW18 -> 0 | AX18: 0 | AY18: =barton!AY18+gambetta!AY18+acapulco!AY18 -> 0 | AZ18: =barton!AZ18+gambetta!AZ18+acapulco!AZ18 -> 0 | BA18: =barton!BA18+gambetta!BA18+acapulco!BA18 -> 0 | BB18: =barton!BB18+gambetta!BB18+acapulco!BB18 -> 0 | BC18: =barton!BC18+gambetta!BC18+acapulco!BC18 -> 0 | BD18: 0 | BE18: =barton!BE18+gambetta!BE18+acapulco!BE18 -> 0 | BF18: =barton!BF18+gambetta!BF18+acapulco!BF18 -> 0 | BG18: =barton!BG18+gambetta!BG18+acapulco!BG18 -> 0 | BH18: =barton!BH18+gambetta!BH18+acapulco!BH18 -> 0 | BI18: =barton!BI18+gambetta!BI18+acapulco!BI18 -> 0 | BJ18: 0 | BK18: =barton!BK18+gambetta!BK18+acapulco!BK18 -> 0 | BL18: =barton!BL18+gambetta!BL18+acapulco!BL18 -> 0 | BM18: =barton!BM18+gambetta!BM18+acapulco!BM18 -> 0 | BN18: =barton!BN18+gambetta!BN18+acapulco!BN18 -> 0 | BO18: =barton!BO18+gambetta!BO18+acapulco!BO18 -> 0 | BP18: 0 | BQ18: =barton!BQ18+gambetta!BQ18+acapulco!BQ18 -> 0 | BR18: =barton!BR18+gambetta!BR18+acapulco!BR18 -> 0 | BS18: =barton!BS18+gambetta!BS18+acapulco!BS18 -> 0 | BT18: =barton!BT18+gambetta!BT18+acapulco!BT18 -> 0 | BU18: =barton!BU18+gambetta!BU18+acapulco!BU18 -> 0 | BV18: 0 | BW18: =barton!BW18+gambetta!BW18+acapulco!BW18 -> 0 | BX18: =barton!BX18+gambetta!BX18+acapulco!BX18 -> 0 | BY18: =barton!BY18+gambetta!BY18+acapulco!BY18 -> 0 | BZ18: =barton!BZ18+gambetta!BZ18+acapulco!BZ18 -> 0 | CA18: =barton!CA18+gambetta!CA18+acapulco!CA18 -> 0
A19: CREATINA KINASA MB | B19: 0 | C19: =SUMIF($I$8:$CA19,$C$8,I19:CA19) -> 0 | D19: =SUMIF($I$8:$CA19,$D$8,I19:CA19) -> 0 | E19: =SUMIF($I$8:$CA19,$E$8,I19:CA19) -> 0 | F19: =SUMIF($I$8:$CA19,$F$8,I19:CA19) -> 0 | G19: =SUMIF($I$8:$CA19,$G$8,I19:CA19) -> 0 | H19: 0 | I19: =barton!I19+gambetta!I19+acapulco!I19 -> 0 | J19: =barton!J19+gambetta!J19+acapulco!J19 -> 0 | K19: =barton!K19+gambetta!K19+acapulco!K19 -> 0 | L19: =barton!L19+gambetta!L19+acapulco!L19 -> 0 | M19: =barton!M19+gambetta!M19+acapulco!M19 -> 0 | N19: 0 | O19: =barton!O19+gambetta!O19+acapulco!O19 -> 0 | P19: =barton!P19+gambetta!P19+acapulco!P19 -> 0 | Q19: =barton!Q19+gambetta!Q19+acapulco!Q19 -> 0 | R19: =barton!R19+gambetta!R19+acapulco!R19 -> 0 | S19: =barton!S19+gambetta!S19+acapulco!S19 -> 0 | T19: 0 | U19: =barton!U19+gambetta!U19+acapulco!U19 -> 0 | V19: =barton!V19+gambetta!V19+acapulco!V19 -> 0 | W19: =barton!W19+gambetta!W19+acapulco!W19 -> 0 | X19: =barton!X19+gambetta!X19+acapulco!X19 -> 0 | Y19: =barton!Y19+gambetta!Y19+acapulco!Y19 -> 0 | Z19: 0 | AA19: =barton!AA19+gambetta!AA19+acapulco!AA19 -> 0 | AB19: =barton!AB19+gambetta!AB19+acapulco!AB19 -> 0 | AC19: =barton!AC19+gambetta!AC19+acapulco!AC19 -> 0 | AD19: =barton!AD19+gambetta!AD19+acapulco!AD19 -> 0 | AE19: =barton!AE19+gambetta!AE19+acapulco!AE19 -> 0 | AF19: 0 | AG19: =barton!AG19+gambetta!AG19+acapulco!AG19 -> 0 | AH19: =barton!AH19+gambetta!AH19+acapulco!AH19 -> 0 | AI19: =barton!AI19+gambetta!AI19+acapulco!AI19 -> 0 | AJ19: =barton!AJ19+gambetta!AJ19+acapulco!AJ19 -> 0 | AK19: =barton!AK19+gambetta!AK19+acapulco!AK19 -> 0 | AL19: 0 | AM19: =barton!AM19+gambetta!AM19+acapulco!AM19 -> 0 | AN19: =barton!AN19+gambetta!AN19+acapulco!AN19 -> 0 | AO19: =barton!AO19+gambetta!AO19+acapulco!AO19 -> 0 | AP19: =barton!AP19+gambetta!AP19+acapulco!AP19 -> 0 | AQ19: =barton!AQ19+gambetta!AQ19+acapulco!AQ19 -> 0 | AR19: 0 | AS19: =barton!AS19+gambetta!AS19+acapulco!AS19 -> 0 | AT19: =barton!AT19+gambetta!AT19+acapulco!AT19 -> 0 | AU19: =barton!AU19+gambetta!AU19+acapulco!AU19 -> 0 | AV19: =barton!AV19+gambetta!AV19+acapulco!AV19 -> 0 | AW19: =barton!AW19+gambetta!AW19+acapulco!AW19 -> 0 | AX19: 0 | AY19: =barton!AY19+gambetta!AY19+acapulco!AY19 -> 0 | AZ19: =barton!AZ19+gambetta!AZ19+acapulco!AZ19 -> 0 | BA19: =barton!BA19+gambetta!BA19+acapulco!BA19 -> 0 | BB19: =barton!BB19+gambetta!BB19+acapulco!BB19 -> 0 | BC19: =barton!BC19+gambetta!BC19+acapulco!BC19 -> 0 | BD19: 0 | BE19: =barton!BE19+gambetta!BE19+acapulco!BE19 -> 0 | BF19: =barton!BF19+gambetta!BF19+acapulco!BF19 -> 0 | BG19: =barton!BG19+gambetta!BG19+acapulco!BG19 -> 0 | BH19: =barton!BH19+gambetta!BH19+acapulco!BH19 -> 0 | BI19: =barton!BI19+gambetta!BI19+acapulco!BI19 -> 0 | BJ19: 0 | BK19: =barton!BK19+gambetta!BK19+acapulco!BK19 -> 0 | BL19: =barton!BL19+gambetta!BL19+acapulco!BL19 -> 0 | BM19: =barton!BM19+gambetta!BM19+acapulco!BM19 -> 0 | BN19: =barton!BN19+gambetta!BN19+acapulco!BN19 -> 0 | BO19: =barton!BO19+gambetta!BO19+acapulco!BO19 -> 0 | BP19: 0 | BQ19: =barton!BQ19+gambetta!BQ19+acapulco!BQ19 -> 0 | BR19: =barton!BR19+gambetta!BR19+acapulco!BR19 -> 0 | BS19: =barton!BS19+gambetta!BS19+acapulco!BS19 -> 0 | BT19: =barton!BT19+gambetta!BT19+acapulco!BT19 -> 0 | BU19: =barton!BU19+gambetta!BU19+acapulco!BU19 -> 0 | BV19: 0 | BW19: =barton!BW19+gambetta!BW19+acapulco!BW19 -> 0 | BX19: =barton!BX19+gambetta!BX19+acapulco!BX19 -> 0 | BY19: =barton!BY19+gambetta!BY19+acapulco!BY19 -> 0 | BZ19: =barton!BZ19+gambetta!BZ19+acapulco!BZ19 -> 0 | CA19: =barton!CA19+gambetta!CA19+acapulco!CA19 -> 0
A20: CREATININA | B20: 13325 | C20: =SUMIF($I$8:$CA20,$C$8,I20:CA20) -> 145 | D20: =SUMIF($I$8:$CA20,$D$8,I20:CA20) -> 11378 | E20: =SUMIF($I$8:$CA20,$E$8,I20:CA20) -> 469 | F20: =SUMIF($I$8:$CA20,$F$8,I20:CA20) -> 209 | G20: =SUMIF($I$8:$CA20,$G$8,I20:CA20) -> 1124 | H20: 647 | I20: =barton!I20+gambetta!I20+acapulco!I20 -> 12 | J20: =barton!J20+gambetta!J20+acapulco!J20 -> 584 | K20: =barton!K20+gambetta!K20+acapulco!K20 -> 31 | L20: =barton!L20+gambetta!L20+acapulco!L20 -> 19 | M20: =barton!M20+gambetta!M20+acapulco!M20 -> 1 | N20: 1421 | O20: =barton!O20+gambetta!O20+acapulco!O20 -> 17 | P20: =barton!P20+gambetta!P20+acapulco!P20 -> 1015 | Q20: =barton!Q20+gambetta!Q20+acapulco!Q20 -> 42 | R20: =barton!R20+gambetta!R20+acapulco!R20 -> 29 | S20: =barton!S20+gambetta!S20+acapulco!S20 -> 318 | T20: 2158 | U20: =barton!U20+gambetta!U20+acapulco!U20 -> 28 | V20: =barton!V20+gambetta!V20+acapulco!V20 -> 1519 | W20: =barton!W20+gambetta!W20+acapulco!W20 -> 21 | X20: =barton!X20+gambetta!X20+acapulco!X20 -> 18 | Y20: =barton!Y20+gambetta!Y20+acapulco!Y20 -> 572 | Z20: 1017 | AA20: =barton!AA20+gambetta!AA20+acapulco!AA20 -> 9 | AB20: =barton!AB20+gambetta!AB20+acapulco!AB20 -> 959 | AC20: =barton!AC20+gambetta!AC20+acapulco!AC20 -> 34 | AD20: =barton!AD20+gambetta!AD20+acapulco!AD20 -> 11 | AE20: =barton!AE20+gambetta!AE20+acapulco!AE20 -> 4 | AF20: 1162 | AG20: =barton!AG20+gambetta!AG20+acapulco!AG20 -> 9 | AH20: =barton!AH20+gambetta!AH20+acapulco!AH20 -> 1108 | AI20: =barton!AI20+gambetta!AI20+acapulco!AI20 -> 28 | AJ20: =barton!AJ20+gambetta!AJ20+acapulco!AJ20 -> 17 | AK20: =barton!AK20+gambetta!AK20+acapulco!AK20 -> 0 | AL20: 1176 | AM20: =barton!AM20+gambetta!AM20+acapulco!AM20 -> 10 | AN20: =barton!AN20+gambetta!AN20+acapulco!AN20 -> 969 | AO20: =barton!AO20+gambetta!AO20+acapulco!AO20 -> 184 | AP20: =barton!AP20+gambetta!AP20+acapulco!AP20 -> 13 | AQ20: =barton!AQ20+gambetta!AQ20+acapulco!AQ20 -> 0 | AR20: 1030 | AS20: =barton!AS20+gambetta!AS20+acapulco!AS20 -> 12 | AT20: =barton!AT20+gambetta!AT20+acapulco!AT20 -> 958 | AU20: =barton!AU20+gambetta!AU20+acapulco!AU20 -> 19 | AV20: =barton!AV20+gambetta!AV20+acapulco!AV20 -> 17 | AW20: =barton!AW20+gambetta!AW20+acapulco!AW20 -> 24 | AX20: 1048 | AY20: =barton!AY20+gambetta!AY20+acapulco!AY20 -> 20 | AZ20: =barton!AZ20+gambetta!AZ20+acapulco!AZ20 -> 961 | BA20: =barton!BA20+gambetta!BA20+acapulco!BA20 -> 49 | BB20: =barton!BB20+gambetta!BB20+acapulco!BB20 -> 16 | BC20: =barton!BC20+gambetta!BC20+acapulco!BC20 -> 2 | BD20: 1401 | BE20: =barton!BE20+gambetta!BE20+acapulco!BE20 -> 11 | BF20: =barton!BF20+gambetta!BF20+acapulco!BF20 -> 1158 | BG20: =barton!BG20+gambetta!BG20+acapulco!BG20 -> 19 | BH20: =barton!BH20+gambetta!BH20+acapulco!BH20 -> 17 | BI20: =barton!BI20+gambetta!BI20+acapulco!BI20 -> 196 | BJ20: 683 | BK20: =barton!BK20+gambetta!BK20+acapulco!BK20 -> 4 | BL20: =barton!BL20+gambetta!BL20+acapulco!BL20 -> 633 | BM20: =barton!BM20+gambetta!BM20+acapulco!BM20 -> 18 | BN20: =barton!BN20+gambetta!BN20+acapulco!BN20 -> 28 | BO20: =barton!BO20+gambetta!BO20+acapulco!BO20 -> 0 | BP20: 839 | BQ20: =barton!BQ20+gambetta!BQ20+acapulco!BQ20 -> 6 | BR20: =barton!BR20+gambetta!BR20+acapulco!BR20 -> 806 | BS20: =barton!BS20+gambetta!BS20+acapulco!BS20 -> 12 | BT20: =barton!BT20+gambetta!BT20+acapulco!BT20 -> 12 | BU20: =barton!BU20+gambetta!BU20+acapulco!BU20 -> 3 | BV20: 743 | BW20: =barton!BW20+gambetta!BW20+acapulco!BW20 -> 7 | BX20: =barton!BX20+gambetta!BX20+acapulco!BX20 -> 708 | BY20: =barton!BY20+gambetta!BY20+acapulco!BY20 -> 12 | BZ20: =barton!BZ20+gambetta!BZ20+acapulco!BZ20 -> 12 | CA20: =barton!CA20+gambetta!CA20+acapulco!CA20 -> 4
A21: DEPURACION DE CREATININA | B21: 0 | C21: =SUMIF($I$8:$CA21,$C$8,I21:CA21) -> 0 | D21: =SUMIF($I$8:$CA21,$D$8,I21:CA21) -> 0 | E21: =SUMIF($I$8:$CA21,$E$8,I21:CA21) -> 0 | F21: =SUMIF($I$8:$CA21,$F$8,I21:CA21) -> 0 | G21: =SUMIF($I$8:$CA21,$G$8,I21:CA21) -> 0 | H21: 0 | I21: =barton!I21+gambetta!I21+acapulco!I21 -> 0 | J21: =barton!J21+gambetta!J21+acapulco!J21 -> 0 | K21: =barton!K21+gambetta!K21+acapulco!K21 -> 0 | L21: =barton!L21+gambetta!L21+acapulco!L21 -> 0 | M21: =barton!M21+gambetta!M21+acapulco!M21 -> 0 | N21: 0 | O21: =barton!O21+gambetta!O21+acapulco!O21 -> 0 | P21: =barton!P21+gambetta!P21+acapulco!P21 -> 0 | Q21: =barton!Q21+gambetta!Q21+acapulco!Q21 -> 0 | R21: =barton!R21+gambetta!R21+acapulco!R21 -> 0 | S21: =barton!S21+gambetta!S21+acapulco!S21 -> 0 | T21: 0 | U21: =barton!U21+gambetta!U21+acapulco!U21 -> 0 | V21: =barton!V21+gambetta!V21+acapulco!V21 -> 0 | W21: =barton!W21+gambetta!W21+acapulco!W21 -> 0 | X21: =barton!X21+gambetta!X21+acapulco!X21 -> 0 | Y21: =barton!Y21+gambetta!Y21+acapulco!Y21 -> 0 | Z21: 0 | AA21: =barton!AA21+gambetta!AA21+acapulco!AA21 -> 0 | AB21: =barton!AB21+gambetta!AB21+acapulco!AB21 -> 0 | AC21: =barton!AC21+gambetta!AC21+acapulco!AC21 -> 0 | AD21: =barton!AD21+gambetta!AD21+acapulco!AD21 -> 0 | AE21: =barton!AE21+gambetta!AE21+acapulco!AE21 -> 0 | AF21: 0 | AG21: =barton!AG21+gambetta!AG21+acapulco!AG21 -> 0 | AH21: =barton!AH21+gambetta!AH21+acapulco!AH21 -> 0 | AI21: =barton!AI21+gambetta!AI21+acapulco!AI21 -> 0 | AJ21: =barton!AJ21+gambetta!AJ21+acapulco!AJ21 -> 0 | AK21: =barton!AK21+gambetta!AK21+acapulco!AK21 -> 0 | AL21: 0 | AM21: =barton!AM21+gambetta!AM21+acapulco!AM21 -> 0 | AN21: =barton!AN21+gambetta!AN21+acapulco!AN21 -> 0 | AO21: =barton!AO21+gambetta!AO21+acapulco!AO21 -> 0 | AP21: =barton!AP21+gambetta!AP21+acapulco!AP21 -> 0 | AQ21: =barton!AQ21+gambetta!AQ21+acapulco!AQ21 -> 0 | AR21: 0 | AS21: =barton!AS21+gambetta!AS21+acapulco!AS21 -> 0 | AT21: =barton!AT21+gambetta!AT21+acapulco!AT21 -> 0 | AU21: =barton!AU21+gambetta!AU21+acapulco!AU21 -> 0 | AV21: =barton!AV21+gambetta!AV21+acapulco!AV21 -> 0 | AW21: =barton!AW21+gambetta!AW21+acapulco!AW21 -> 0 | AX21: 0 | AY21: =barton!AY21+gambetta!AY21+acapulco!AY21 -> 0 | AZ21: =barton!AZ21+gambetta!AZ21+acapulco!AZ21 -> 0 | BA21: =barton!BA21+gambetta!BA21+acapulco!BA21 -> 0 | BB21: =barton!BB21+gambetta!BB21+acapulco!BB21 -> 0 | BC21: =barton!BC21+gambetta!BC21+acapulco!BC21 -> 0 | BD21: 0 | BE21: =barton!BE21+gambetta!BE21+acapulco!BE21 -> 0 | BF21: =barton!BF21+gambetta!BF21+acapulco!BF21 -> 0 | BG21: =barton!BG21+gambetta!BG21+acapulco!BG21 -> 0 | BH21: =barton!BH21+gambetta!BH21+acapulco!BH21 -> 0 | BI21: =barton!BI21+gambetta!BI21+acapulco!BI21 -> 0 | BJ21: 0 | BK21: =barton!BK21+gambetta!BK21+acapulco!BK21 -> 0 | BL21: =barton!BL21+gambetta!BL21+acapulco!BL21 -> 0 | BM21: =barton!BM21+gambetta!BM21+acapulco!BM21 -> 0 | BN21: =barton!BN21+gambetta!BN21+acapulco!BN21 -> 0 | BO21: =barton!BO21+gambetta!BO21+acapulco!BO21 -> 0 | BP21: 0 | BQ21: =barton!BQ21+gambetta!BQ21+acapulco!BQ21 -> 0 | BR21: =barton!BR21+gambetta!BR21+acapulco!BR21 -> 0 | BS21: =barton!BS21+gambetta!BS21+acapulco!BS21 -> 0 | BT21: =barton!BT21+gambetta!BT21+acapulco!BT21 -> 0 | BU21: =barton!BU21+gambetta!BU21+acapulco!BU21 -> 0 | BV21: 0 | BW21: =barton!BW21+gambetta!BW21+acapulco!BW21 -> 0 | BX21: =barton!BX21+gambetta!BX21+acapulco!BX21 -> 0 | BY21: =barton!BY21+gambetta!BY21+acapulco!BY21 -> 0 | BZ21: =barton!BZ21+gambetta!BZ21+acapulco!BZ21 -> 0 | CA21: =barton!CA21+gambetta!CA21+acapulco!CA21 -> 0
A22: DESHIDROGENASA LACTICA | B22: 5295 | C22: =SUMIF($I$8:$CA22,$C$8,I22:CA22) -> 36 | D22: =SUMIF($I$8:$CA22,$D$8,I22:CA22) -> 5050 | E22: =SUMIF($I$8:$CA22,$E$8,I22:CA22) -> 105 | F22: =SUMIF($I$8:$CA22,$F$8,I22:CA22) -> 89 | G22: =SUMIF($I$8:$CA22,$G$8,I22:CA22) -> 15 | H22: 0 | I22: =barton!I22+gambetta!I22+acapulco!I22 -> 0 | J22: =barton!J22+gambetta!J22+acapulco!J22 -> 0 | K22: =barton!K22+gambetta!K22+acapulco!K22 -> 0 | L22: =barton!L22+gambetta!L22+acapulco!L22 -> 0 | M22: =barton!M22+gambetta!M22+acapulco!M22 -> 0 | N22: 0 | O22: =barton!O22+gambetta!O22+acapulco!O22 -> 0 | P22: =barton!P22+gambetta!P22+acapulco!P22 -> 0 | Q22: =barton!Q22+gambetta!Q22+acapulco!Q22 -> 0 | R22: =barton!R22+gambetta!R22+acapulco!R22 -> 0 | S22: =barton!S22+gambetta!S22+acapulco!S22 -> 0 | T22: 0 | U22: =barton!U22+gambetta!U22+acapulco!U22 -> 0 | V22: =barton!V22+gambetta!V22+acapulco!V22 -> 0 | W22: =barton!W22+gambetta!W22+acapulco!W22 -> 0 | X22: =barton!X22+gambetta!X22+acapulco!X22 -> 0 | Y22: =barton!Y22+gambetta!Y22+acapulco!Y22 -> 0 | Z22: 0 | AA22: =barton!AA22+gambetta!AA22+acapulco!AA22 -> 0 | AB22: =barton!AB22+gambetta!AB22+acapulco!AB22 -> 0 | AC22: =barton!AC22+gambetta!AC22+acapulco!AC22 -> 0 | AD22: =barton!AD22+gambetta!AD22+acapulco!AD22 -> 0 | AE22: =barton!AE22+gambetta!AE22+acapulco!AE22 -> 0 | AF22: 1 | AG22: =barton!AG22+gambetta!AG22+acapulco!AG22 -> 0 | AH22: =barton!AH22+gambetta!AH22+acapulco!AH22 -> 0 | AI22: =barton!AI22+gambetta!AI22+acapulco!AI22 -> 1 | AJ22: =barton!AJ22+gambetta!AJ22+acapulco!AJ22 -> 0 | AK22: =barton!AK22+gambetta!AK22+acapulco!AK22 -> 0 | AL22: 1007 | AM22: =barton!AM22+gambetta!AM22+acapulco!AM22 -> 4 | AN22: =barton!AN22+gambetta!AN22+acapulco!AN22 -> 977 | AO22: =barton!AO22+gambetta!AO22+acapulco!AO22 -> 14 | AP22: =barton!AP22+gambetta!AP22+acapulco!AP22 -> 12 | AQ22: =barton!AQ22+gambetta!AQ22+acapulco!AQ22 -> 0 | AR22: 542 | AS22: =barton!AS22+gambetta!AS22+acapulco!AS22 -> 1 | AT22: =barton!AT22+gambetta!AT22+acapulco!AT22 -> 516 | AU22: =barton!AU22+gambetta!AU22+acapulco!AU22 -> 13 | AV22: =barton!AV22+gambetta!AV22+acapulco!AV22 -> 9 | AW22: =barton!AW22+gambetta!AW22+acapulco!AW22 -> 3 | AX22: 983 | AY22: =barton!AY22+gambetta!AY22+acapulco!AY22 -> 14 | AZ22: =barton!AZ22+gambetta!AZ22+acapulco!AZ22 -> 935 | BA22: =barton!BA22+gambetta!BA22+acapulco!BA22 -> 19 | BB22: =barton!BB22+gambetta!BB22+acapulco!BB22 -> 15 | BC22: =barton!BC22+gambetta!BC22+acapulco!BC22 -> 0 | BD22: 270 | BE22: =barton!BE22+gambetta!BE22+acapulco!BE22 -> 0 | BF22: =barton!BF22+gambetta!BF22+acapulco!BF22 -> 252 | BG22: =barton!BG22+gambetta!BG22+acapulco!BG22 -> 10 | BH22: =barton!BH22+gambetta!BH22+acapulco!BH22 -> 6 | BI22: =barton!BI22+gambetta!BI22+acapulco!BI22 -> 2 | BJ22: 803 | BK22: =barton!BK22+gambetta!BK22+acapulco!BK22 -> 10 | BL22: =barton!BL22+gambetta!BL22+acapulco!BL22 -> 746 | BM22: =barton!BM22+gambetta!BM22+acapulco!BM22 -> 22 | BN22: =barton!BN22+gambetta!BN22+acapulco!BN22 -> 24 | BO22: =barton!BO22+gambetta!BO22+acapulco!BO22 -> 1 | BP22: 892 | BQ22: =barton!BQ22+gambetta!BQ22+acapulco!BQ22 -> 4 | BR22: =barton!BR22+gambetta!BR22+acapulco!BR22 -> 859 | BS22: =barton!BS22+gambetta!BS22+acapulco!BS22 -> 13 | BT22: =barton!BT22+gambetta!BT22+acapulco!BT22 -> 12 | BU22: =barton!BU22+gambetta!BU22+acapulco!BU22 -> 4 | BV22: 797 | BW22: =barton!BW22+gambetta!BW22+acapulco!BW22 -> 3 | BX22: =barton!BX22+gambetta!BX22+acapulco!BX22 -> 765 | BY22: =barton!BY22+gambetta!BY22+acapulco!BY22 -> 13 | BZ22: =barton!BZ22+gambetta!BZ22+acapulco!BZ22 -> 11 | CA22: =barton!CA22+gambetta!CA22+acapulco!CA22 -> 5
A23: DOSAJE DE ADA | B23: 0 | C23: =SUMIF($I$8:$CA23,$C$8,I23:CA23) -> 0 | D23: =SUMIF($I$8:$CA23,$D$8,I23:CA23) -> 0 | E23: =SUMIF($I$8:$CA23,$E$8,I23:CA23) -> 0 | F23: =SUMIF($I$8:$CA23,$F$8,I23:CA23) -> 0 | G23: =SUMIF($I$8:$CA23,$G$8,I23:CA23) -> 0 | H23: 0 | I23: =barton!I23+gambetta!I23+acapulco!I23 -> 0 | J23: =barton!J23+gambetta!J23+acapulco!J23 -> 0 | K23: =barton!K23+gambetta!K23+acapulco!K23 -> 0 | L23: =barton!L23+gambetta!L23+acapulco!L23 -> 0 | M23: =barton!M23+gambetta!M23+acapulco!M23 -> 0 | N23: 0 | O23: =barton!O23+gambetta!O23+acapulco!O23 -> 0 | P23: =barton!P23+gambetta!P23+acapulco!P23 -> 0 | Q23: =barton!Q23+gambetta!Q23+acapulco!Q23 -> 0 | R23: =barton!R23+gambetta!R23+acapulco!R23 -> 0 | S23: =barton!S23+gambetta!S23+acapulco!S23 -> 0 | T23: 0 | U23: =barton!U23+gambetta!U23+acapulco!U23 -> 0 | V23: =barton!V23+gambetta!V23+acapulco!V23 -> 0 | W23: =barton!W23+gambetta!W23+acapulco!W23 -> 0 | X23: =barton!X23+gambetta!X23+acapulco!X23 -> 0 | Y23: =barton!Y23+gambetta!Y23+acapulco!Y23 -> 0 | Z23: 0 | AA23: =barton!AA23+gambetta!AA23+acapulco!AA23 -> 0 | AB23: =barton!AB23+gambetta!AB23+acapulco!AB23 -> 0 | AC23: =barton!AC23+gambetta!AC23+acapulco!AC23 -> 0 | AD23: =barton!AD23+gambetta!AD23+acapulco!AD23 -> 0 | AE23: =barton!AE23+gambetta!AE23+acapulco!AE23 -> 0 | AF23: 0 | AG23: =barton!AG23+gambetta!AG23+acapulco!AG23 -> 0 | AH23: =barton!AH23+gambetta!AH23+acapulco!AH23 -> 0 | AI23: =barton!AI23+gambetta!AI23+acapulco!AI23 -> 0 | AJ23: =barton!AJ23+gambetta!AJ23+acapulco!AJ23 -> 0 | AK23: =barton!AK23+gambetta!AK23+acapulco!AK23 -> 0 | AL23: 0 | AM23: =barton!AM23+gambetta!AM23+acapulco!AM23 -> 0 | AN23: =barton!AN23+gambetta!AN23+acapulco!AN23 -> 0 | AO23: =barton!AO23+gambetta!AO23+acapulco!AO23 -> 0 | AP23: =barton!AP23+gambetta!AP23+acapulco!AP23 -> 0 | AQ23: =barton!AQ23+gambetta!AQ23+acapulco!AQ23 -> 0 | AR23: 0 | AS23: =barton!AS23+gambetta!AS23+acapulco!AS23 -> 0 | AT23: =barton!AT23+gambetta!AT23+acapulco!AT23 -> 0 | AU23: =barton!AU23+gambetta!AU23+acapulco!AU23 -> 0 | AV23: =barton!AV23+gambetta!AV23+acapulco!AV23 -> 0 | AW23: =barton!AW23+gambetta!AW23+acapulco!AW23 -> 0 | AX23: 0 | AY23: =barton!AY23+gambetta!AY23+acapulco!AY23 -> 0 | AZ23: =barton!AZ23+gambetta!AZ23+acapulco!AZ23 -> 0 | BA23: =barton!BA23+gambetta!BA23+acapulco!BA23 -> 0 | BB23: =barton!BB23+gambetta!BB23+acapulco!BB23 -> 0 | BC23: =barton!BC23+gambetta!BC23+acapulco!BC23 -> 0 | BD23: 0 | BE23: =barton!BE23+gambetta!BE23+acapulco!BE23 -> 0 | BF23: =barton!BF23+gambetta!BF23+acapulco!BF23 -> 0 | BG23: =barton!BG23+gambetta!BG23+acapulco!BG23 -> 0 | BH23: =barton!BH23+gambetta!BH23+acapulco!BH23 -> 0 | BI23: =barton!BI23+gambetta!BI23+acapulco!BI23 -> 0 | BJ23: 0 | BK23: =barton!BK23+gambetta!BK23+acapulco!BK23 -> 0 | BL23: =barton!BL23+gambetta!BL23+acapulco!BL23 -> 0 | BM23: =barton!BM23+gambetta!BM23+acapulco!BM23 -> 0 | BN23: =barton!BN23+gambetta!BN23+acapulco!BN23 -> 0 | BO23: =barton!BO23+gambetta!BO23+acapulco!BO23 -> 0 | BP23: 0 | BQ23: =barton!BQ23+gambetta!BQ23+acapulco!BQ23 -> 0 | BR23: =barton!BR23+gambetta!BR23+acapulco!BR23 -> 0 | BS23: =barton!BS23+gambetta!BS23+acapulco!BS23 -> 0 | BT23: =barton!BT23+gambetta!BT23+acapulco!BT23 -> 0 | BU23: =barton!BU23+gambetta!BU23+acapulco!BU23 -> 0 | BV23: 0 | BW23: =barton!BW23+gambetta!BW23+acapulco!BW23 -> 0 | BX23: =barton!BX23+gambetta!BX23+acapulco!BX23 -> 0 | BY23: =barton!BY23+gambetta!BY23+acapulco!BY23 -> 0 | BZ23: =barton!BZ23+gambetta!BZ23+acapulco!BZ23 -> 0 | CA23: =barton!CA23+gambetta!CA23+acapulco!CA23 -> 0
A24: DOSAJE DE GASES Y ELECTROLITOS | B24: 0 | C24: =SUMIF($I$8:$CA24,$C$8,I24:CA24) -> 0 | D24: =SUMIF($I$8:$CA24,$D$8,I24:CA24) -> 0 | E24: =SUMIF($I$8:$CA24,$E$8,I24:CA24) -> 0 | F24: =SUMIF($I$8:$CA24,$F$8,I24:CA24) -> 0 | G24: =SUMIF($I$8:$CA24,$G$8,I24:CA24) -> 0 | H24: 0 | I24: =barton!I24+gambetta!I24+acapulco!I24 -> 0 | J24: =barton!J24+gambetta!J24+acapulco!J24 -> 0 | K24: =barton!K24+gambetta!K24+acapulco!K24 -> 0 | L24: =barton!L24+gambetta!L24+acapulco!L24 -> 0 | M24: =barton!M24+gambetta!M24+acapulco!M24 -> 0 | N24: 0 | O24: =barton!O24+gambetta!O24+acapulco!O24 -> 0 | P24: =barton!P24+gambetta!P24+acapulco!P24 -> 0 | Q24: =barton!Q24+gambetta!Q24+acapulco!Q24 -> 0 | R24: =barton!R24+gambetta!R24+acapulco!R24 -> 0 | S24: =barton!S24+gambetta!S24+acapulco!S24 -> 0 | T24: 0 | U24: =barton!U24+gambetta!U24+acapulco!U24 -> 0 | V24: =barton!V24+gambetta!V24+acapulco!V24 -> 0 | W24: =barton!W24+gambetta!W24+acapulco!W24 -> 0 | X24: =barton!X24+gambetta!X24+acapulco!X24 -> 0 | Y24: =barton!Y24+gambetta!Y24+acapulco!Y24 -> 0 | Z24: 0 | AA24: =barton!AA24+gambetta!AA24+acapulco!AA24 -> 0 | AB24: =barton!AB24+gambetta!AB24+acapulco!AB24 -> 0 | AC24: =barton!AC24+gambetta!AC24+acapulco!AC24 -> 0 | AD24: =barton!AD24+gambetta!AD24+acapulco!AD24 -> 0 | AE24: =barton!AE24+gambetta!AE24+acapulco!AE24 -> 0 | AF24: 0 | AG24: =barton!AG24+gambetta!AG24+acapulco!AG24 -> 0 | AH24: =barton!AH24+gambetta!AH24+acapulco!AH24 -> 0 | AI24: =barton!AI24+gambetta!AI24+acapulco!AI24 -> 0 | AJ24: =barton!AJ24+gambetta!AJ24+acapulco!AJ24 -> 0 | AK24: =barton!AK24+gambetta!AK24+acapulco!AK24 -> 0 | AL24: 0 | AM24: =barton!AM24+gambetta!AM24+acapulco!AM24 -> 0 | AN24: =barton!AN24+gambetta!AN24+acapulco!AN24 -> 0 | AO24: =barton!AO24+gambetta!AO24+acapulco!AO24 -> 0 | AP24: =barton!AP24+gambetta!AP24+acapulco!AP24 -> 0 | AQ24: =barton!AQ24+gambetta!AQ24+acapulco!AQ24 -> 0 | AR24: 0 | AS24: =barton!AS24+gambetta!AS24+acapulco!AS24 -> 0 | AT24: =barton!AT24+gambetta!AT24+acapulco!AT24 -> 0 | AU24: =barton!AU24+gambetta!AU24+acapulco!AU24 -> 0 | AV24: =barton!AV24+gambetta!AV24+acapulco!AV24 -> 0 | AW24: =barton!AW24+gambetta!AW24+acapulco!AW24 -> 0 | AX24: 0 | AY24: =barton!AY24+gambetta!AY24+acapulco!AY24 -> 0 | AZ24: =barton!AZ24+gambetta!AZ24+acapulco!AZ24 -> 0 | BA24: =barton!BA24+gambetta!BA24+acapulco!BA24 -> 0 | BB24: =barton!BB24+gambetta!BB24+acapulco!BB24 -> 0 | BC24: =barton!BC24+gambetta!BC24+acapulco!BC24 -> 0 | BD24: 0 | BE24: =barton!BE24+gambetta!BE24+acapulco!BE24 -> 0 | BF24: =barton!BF24+gambetta!BF24+acapulco!BF24 -> 0 | BG24: =barton!BG24+gambetta!BG24+acapulco!BG24 -> 0 | BH24: =barton!BH24+gambetta!BH24+acapulco!BH24 -> 0 | BI24: =barton!BI24+gambetta!BI24+acapulco!BI24 -> 0 | BJ24: 0 | BK24: =barton!BK24+gambetta!BK24+acapulco!BK24 -> 0 | BL24: =barton!BL24+gambetta!BL24+acapulco!BL24 -> 0 | BM24: =barton!BM24+gambetta!BM24+acapulco!BM24 -> 0 | BN24: =barton!BN24+gambetta!BN24+acapulco!BN24 -> 0 | BO24: =barton!BO24+gambetta!BO24+acapulco!BO24 -> 0 | BP24: 0 | BQ24: =barton!BQ24+gambetta!BQ24+acapulco!BQ24 -> 0 | BR24: =barton!BR24+gambetta!BR24+acapulco!BR24 -> 0 | BS24: =barton!BS24+gambetta!BS24+acapulco!BS24 -> 0 | BT24: =barton!BT24+gambetta!BT24+acapulco!BT24 -> 0 | BU24: =barton!BU24+gambetta!BU24+acapulco!BU24 -> 0 | BV24: 0 | BW24: =barton!BW24+gambetta!BW24+acapulco!BW24 -> 0 | BX24: =barton!BX24+gambetta!BX24+acapulco!BX24 -> 0 | BY24: =barton!BY24+gambetta!BY24+acapulco!BY24 -> 0 | BZ24: =barton!BZ24+gambetta!BZ24+acapulco!BZ24 -> 0 | CA24: =barton!CA24+gambetta!CA24+acapulco!CA24 -> 0
A25: EXAMEN COMPLETO DE ORINA | B25: 21401 | C25: =SUMIF($I$8:$CA25,$C$8,I25:CA25) -> 274 | D25: =SUMIF($I$8:$CA25,$D$8,I25:CA25) -> 20677 | E25: =SUMIF($I$8:$CA25,$E$8,I25:CA25) -> 45 | F25: =SUMIF($I$8:$CA25,$F$8,I25:CA25) -> 393 | G25: =SUMIF($I$8:$CA25,$G$8,I25:CA25) -> 12 | H25: 846 | I25: =barton!I25+gambetta!I25+acapulco!I25 -> 14 | J25: =barton!J25+gambetta!J25+acapulco!J25 -> 796 | K25: =barton!K25+gambetta!K25+acapulco!K25 -> 0 | L25: =barton!L25+gambetta!L25+acapulco!L25 -> 36 | M25: =barton!M25+gambetta!M25+acapulco!M25 -> 0 | N25: 1029 | O25: =barton!O25+gambetta!O25+acapulco!O25 -> 25 | P25: =barton!P25+gambetta!P25+acapulco!P25 -> 966 | Q25: =barton!Q25+gambetta!Q25+acapulco!Q25 -> 0 | R25: =barton!R25+gambetta!R25+acapulco!R25 -> 38 | S25: =barton!S25+gambetta!S25+acapulco!S25 -> 0 | T25: 1161 | U25: =barton!U25+gambetta!U25+acapulco!U25 -> 18 | V25: =barton!V25+gambetta!V25+acapulco!V25 -> 1118 | W25: =barton!W25+gambetta!W25+acapulco!W25 -> 0 | X25: =barton!X25+gambetta!X25+acapulco!X25 -> 25 | Y25: =barton!Y25+gambetta!Y25+acapulco!Y25 -> 0 | Z25: 1547 | AA25: =barton!AA25+gambetta!AA25+acapulco!AA25 -> 7 | AB25: =barton!AB25+gambetta!AB25+acapulco!AB25 -> 1504 | AC25: =barton!AC25+gambetta!AC25+acapulco!AC25 -> 0 | AD25: =barton!AD25+gambetta!AD25+acapulco!AD25 -> 36 | AE25: =barton!AE25+gambetta!AE25+acapulco!AE25 -> 0 | AF25: 1454 | AG25: =barton!AG25+gambetta!AG25+acapulco!AG25 -> 4 | AH25: =barton!AH25+gambetta!AH25+acapulco!AH25 -> 1411 | AI25: =barton!AI25+gambetta!AI25+acapulco!AI25 -> 0 | AJ25: =barton!AJ25+gambetta!AJ25+acapulco!AJ25 -> 39 | AK25: =barton!AK25+gambetta!AK25+acapulco!AK25 -> 0 | AL25: 2299 | AM25: =barton!AM25+gambetta!AM25+acapulco!AM25 -> 36 | AN25: =barton!AN25+gambetta!AN25+acapulco!AN25 -> 2214 | AO25: =barton!AO25+gambetta!AO25+acapulco!AO25 -> 13 | AP25: =barton!AP25+gambetta!AP25+acapulco!AP25 -> 36 | AQ25: =barton!AQ25+gambetta!AQ25+acapulco!AQ25 -> 0 | AR25: 2396 | AS25: =barton!AS25+gambetta!AS25+acapulco!AS25 -> 31 | AT25: =barton!AT25+gambetta!AT25+acapulco!AT25 -> 2328 | AU25: =barton!AU25+gambetta!AU25+acapulco!AU25 -> 5 | AV25: =barton!AV25+gambetta!AV25+acapulco!AV25 -> 28 | AW25: =barton!AW25+gambetta!AW25+acapulco!AW25 -> 4 | AX25: 2327 | AY25: =barton!AY25+gambetta!AY25+acapulco!AY25 -> 38 | AZ25: =barton!AZ25+gambetta!AZ25+acapulco!AZ25 -> 2238 | BA25: =barton!BA25+gambetta!BA25+acapulco!BA25 -> 10 | BB25: =barton!BB25+gambetta!BB25+acapulco!BB25 -> 38 | BC25: =barton!BC25+gambetta!BC25+acapulco!BC25 -> 3 | BD25: 1644 | BE25: =barton!BE25+gambetta!BE25+acapulco!BE25 -> 16 | BF25: =barton!BF25+gambetta!BF25+acapulco!BF25 -> 1596 | BG25: =barton!BG25+gambetta!BG25+acapulco!BG25 -> 0 | BH25: =barton!BH25+gambetta!BH25+acapulco!BH25 -> 32 | BI25: =barton!BI25+gambetta!BI25+acapulco!BI25 -> 0 | BJ25: 2381 | BK25: =barton!BK25+gambetta!BK25+acapulco!BK25 -> 37 | BL25: =barton!BL25+gambetta!BL25+acapulco!BL25 -> 2310 | BM25: =barton!BM25+gambetta!BM25+acapulco!BM25 -> 6 | BN25: =barton!BN25+gambetta!BN25+acapulco!BN25 -> 28 | BO25: =barton!BO25+gambetta!BO25+acapulco!BO25 -> 0 | BP25: 2308 | BQ25: =barton!BQ25+gambetta!BQ25+acapulco!BQ25 -> 29 | BR25: =barton!BR25+gambetta!BR25+acapulco!BR25 -> 2226 | BS25: =barton!BS25+gambetta!BS25+acapulco!BS25 -> 11 | BT25: =barton!BT25+gambetta!BT25+acapulco!BT25 -> 40 | BU25: =barton!BU25+gambetta!BU25+acapulco!BU25 -> 2 | BV25: 2009 | BW25: =barton!BW25+gambetta!BW25+acapulco!BW25 -> 19 | BX25: =barton!BX25+gambetta!BX25+acapulco!BX25 -> 1970 | BY25: =barton!BY25+gambetta!BY25+acapulco!BY25 -> 0 | BZ25: =barton!BZ25+gambetta!BZ25+acapulco!BZ25 -> 17 | CA25: =barton!CA25+gambetta!CA25+acapulco!CA25 -> 3
A26: FOSFATASA ALCALINA | B26: 9904 | C26: =SUMIF($I$8:$CA26,$C$8,I26:CA26) -> 93 | D26: =SUMIF($I$8:$CA26,$D$8,I26:CA26) -> 9358 | E26: =SUMIF($I$8:$CA26,$E$8,I26:CA26) -> 234 | F26: =SUMIF($I$8:$CA26,$F$8,I26:CA26) -> 185 | G26: =SUMIF($I$8:$CA26,$G$8,I26:CA26) -> 34 | H26: 679 | I26: =barton!I26+gambetta!I26+acapulco!I26 -> 10 | J26: =barton!J26+gambetta!J26+acapulco!J26 -> 616 | K26: =barton!K26+gambetta!K26+acapulco!K26 -> 32 | L26: =barton!L26+gambetta!L26+acapulco!L26 -> 21 | M26: =barton!M26+gambetta!M26+acapulco!M26 -> 0 | N26: 1262 | O26: =barton!O26+gambetta!O26+acapulco!O26 -> 14 | P26: =barton!P26+gambetta!P26+acapulco!P26 -> 1163 | Q26: =barton!Q26+gambetta!Q26+acapulco!Q26 -> 46 | R26: =barton!R26+gambetta!R26+acapulco!R26 -> 34 | S26: =barton!S26+gambetta!S26+acapulco!S26 -> 5 | T26: 1580 | U26: =barton!U26+gambetta!U26+acapulco!U26 -> 23 | V26: =barton!V26+gambetta!V26+acapulco!V26 -> 1509 | W26: =barton!W26+gambetta!W26+acapulco!W26 -> 20 | X26: =barton!X26+gambetta!X26+acapulco!X26 -> 19 | Y26: =barton!Y26+gambetta!Y26+acapulco!Y26 -> 9 | Z26: 889 | AA26: =barton!AA26+gambetta!AA26+acapulco!AA26 -> 5 | AB26: =barton!AB26+gambetta!AB26+acapulco!AB26 -> 837 | AC26: =barton!AC26+gambetta!AC26+acapulco!AC26 -> 32 | AD26: =barton!AD26+gambetta!AD26+acapulco!AD26 -> 11 | AE26: =barton!AE26+gambetta!AE26+acapulco!AE26 -> 4 | AF26: 1102 | AG26: =barton!AG26+gambetta!AG26+acapulco!AG26 -> 6 | AH26: =barton!AH26+gambetta!AH26+acapulco!AH26 -> 1052 | AI26: =barton!AI26+gambetta!AI26+acapulco!AI26 -> 20 | AJ26: =barton!AJ26+gambetta!AJ26+acapulco!AJ26 -> 21 | AK26: =barton!AK26+gambetta!AK26+acapulco!AK26 -> 3 | AL26: 612 | AM26: =barton!AM26+gambetta!AM26+acapulco!AM26 -> 2 | AN26: =barton!AN26+gambetta!AN26+acapulco!AN26 -> 593 | AO26: =barton!AO26+gambetta!AO26+acapulco!AO26 -> 12 | AP26: =barton!AP26+gambetta!AP26+acapulco!AP26 -> 5 | AQ26: =barton!AQ26+gambetta!AQ26+acapulco!AQ26 -> 0 | AR26: 532 | AS26: =barton!AS26+gambetta!AS26+acapulco!AS26 -> 4 | AT26: =barton!AT26+gambetta!AT26+acapulco!AT26 -> 507 | AU26: =barton!AU26+gambetta!AU26+acapulco!AU26 -> 13 | AV26: =barton!AV26+gambetta!AV26+acapulco!AV26 -> 5 | AW26: =barton!AW26+gambetta!AW26+acapulco!AW26 -> 3 | AX26: 709 | AY26: =barton!AY26+gambetta!AY26+acapulco!AY26 -> 9 | AZ26: =barton!AZ26+gambetta!AZ26+acapulco!AZ26 -> 681 | BA26: =barton!BA26+gambetta!BA26+acapulco!BA26 -> 8 | BB26: =barton!BB26+gambetta!BB26+acapulco!BB26 -> 11 | BC26: =barton!BC26+gambetta!BC26+acapulco!BC26 -> 0 | BD26: 112 | BE26: =barton!BE26+gambetta!BE26+acapulco!BE26 -> 1 | BF26: =barton!BF26+gambetta!BF26+acapulco!BF26 -> 104 | BG26: =barton!BG26+gambetta!BG26+acapulco!BG26 -> 2 | BH26: =barton!BH26+gambetta!BH26+acapulco!BH26 -> 5 | BI26: =barton!BI26+gambetta!BI26+acapulco!BI26 -> 0 | BJ26: 628 | BK26: =barton!BK26+gambetta!BK26+acapulco!BK26 -> 9 | BL26: =barton!BL26+gambetta!BL26+acapulco!BL26 -> 567 | BM26: =barton!BM26+gambetta!BM26+acapulco!BM26 -> 21 | BN26: =barton!BN26+gambetta!BN26+acapulco!BN26 -> 30 | BO26: =barton!BO26+gambetta!BO26+acapulco!BO26 -> 1 | BP26: 931 | BQ26: =barton!BQ26+gambetta!BQ26+acapulco!BQ26 -> 4 | BR26: =barton!BR26+gambetta!BR26+acapulco!BR26 -> 897 | BS26: =barton!BS26+gambetta!BS26+acapulco!BS26 -> 14 | BT26: =barton!BT26+gambetta!BT26+acapulco!BT26 -> 12 | BU26: =barton!BU26+gambetta!BU26+acapulco!BU26 -> 4 | BV26: 868 | BW26: =barton!BW26+gambetta!BW26+acapulco!BW26 -> 6 | BX26: =barton!BX26+gambetta!BX26+acapulco!BX26 -> 832 | BY26: =barton!BY26+gambetta!BY26+acapulco!BY26 -> 14 | BZ26: =barton!BZ26+gambetta!BZ26+acapulco!BZ26 -> 11 | CA26: =barton!CA26+gambetta!CA26+acapulco!CA26 -> 5
A27: FOSFORO | B27: 0 | C27: =SUMIF($I$8:$CA27,$C$8,I27:CA27) -> 0 | D27: =SUMIF($I$8:$CA27,$D$8,I27:CA27) -> 0 | E27: =SUMIF($I$8:$CA27,$E$8,I27:CA27) -> 0 | F27: =SUMIF($I$8:$CA27,$F$8,I27:CA27) -> 0 | G27: =SUMIF($I$8:$CA27,$G$8,I27:CA27) -> 0 | H27: 0 | I27: =barton!I27+gambetta!I27+acapulco!I27 -> 0 | J27: =barton!J27+gambetta!J27+acapulco!J27 -> 0 | K27: =barton!K27+gambetta!K27+acapulco!K27 -> 0 | L27: =barton!L27+gambetta!L27+acapulco!L27 -> 0 | M27: =barton!M27+gambetta!M27+acapulco!M27 -> 0 | N27: 0 | O27: =barton!O27+gambetta!O27+acapulco!O27 -> 0 | P27: =barton!P27+gambetta!P27+acapulco!P27 -> 0 | Q27: =barton!Q27+gambetta!Q27+acapulco!Q27 -> 0 | R27: =barton!R27+gambetta!R27+acapulco!R27 -> 0 | S27: =barton!S27+gambetta!S27+acapulco!S27 -> 0 | T27: 0 | U27: =barton!U27+gambetta!U27+acapulco!U27 -> 0 | V27: =barton!V27+gambetta!V27+acapulco!V27 -> 0 | W27: =barton!W27+gambetta!W27+acapulco!W27 -> 0 | X27: =barton!X27+gambetta!X27+acapulco!X27 -> 0 | Y27: =barton!Y27+gambetta!Y27+acapulco!Y27 -> 0 | Z27: 0 | AA27: =barton!AA27+gambetta!AA27+acapulco!AA27 -> 0 | AB27: =barton!AB27+gambetta!AB27+acapulco!AB27 -> 0 | AC27: =barton!AC27+gambetta!AC27+acapulco!AC27 -> 0 | AD27: =barton!AD27+gambetta!AD27+acapulco!AD27 -> 0 | AE27: =barton!AE27+gambetta!AE27+acapulco!AE27 -> 0 | AF27: 0 | AG27: =barton!AG27+gambetta!AG27+acapulco!AG27 -> 0 | AH27: =barton!AH27+gambetta!AH27+acapulco!AH27 -> 0 | AI27: =barton!AI27+gambetta!AI27+acapulco!AI27 -> 0 | AJ27: =barton!AJ27+gambetta!AJ27+acapulco!AJ27 -> 0 | AK27: =barton!AK27+gambetta!AK27+acapulco!AK27 -> 0 | AL27: 0 | AM27: =barton!AM27+gambetta!AM27+acapulco!AM27 -> 0 | AN27: =barton!AN27+gambetta!AN27+acapulco!AN27 -> 0 | AO27: =barton!AO27+gambetta!AO27+acapulco!AO27 -> 0 | AP27: =barton!AP27+gambetta!AP27+acapulco!AP27 -> 0 | AQ27: =barton!AQ27+gambetta!AQ27+acapulco!AQ27 -> 0 | AR27: 0 | AS27: =barton!AS27+gambetta!AS27+acapulco!AS27 -> 0 | AT27: =barton!AT27+gambetta!AT27+acapulco!AT27 -> 0 | AU27: =barton!AU27+gambetta!AU27+acapulco!AU27 -> 0 | AV27: =barton!AV27+gambetta!AV27+acapulco!AV27 -> 0 | AW27: =barton!AW27+gambetta!AW27+acapulco!AW27 -> 0 | AX27: 0 | AY27: =barton!AY27+gambetta!AY27+acapulco!AY27 -> 0 | AZ27: =barton!AZ27+gambetta!AZ27+acapulco!AZ27 -> 0 | BA27: =barton!BA27+gambetta!BA27+acapulco!BA27 -> 0 | BB27: =barton!BB27+gambetta!BB27+acapulco!BB27 -> 0 | BC27: =barton!BC27+gambetta!BC27+acapulco!BC27 -> 0 | BD27: 0 | BE27: =barton!BE27+gambetta!BE27+acapulco!BE27 -> 0 | BF27: =barton!BF27+gambetta!BF27+acapulco!BF27 -> 0 | BG27: =barton!BG27+gambetta!BG27+acapulco!BG27 -> 0 | BH27: =barton!BH27+gambetta!BH27+acapulco!BH27 -> 0 | BI27: =barton!BI27+gambetta!BI27+acapulco!BI27 -> 0 | BJ27: 0 | BK27: =barton!BK27+gambetta!BK27+acapulco!BK27 -> 0 | BL27: =barton!BL27+gambetta!BL27+acapulco!BL27 -> 0 | BM27: =barton!BM27+gambetta!BM27+acapulco!BM27 -> 0 | BN27: =barton!BN27+gambetta!BN27+acapulco!BN27 -> 0 | BO27: =barton!BO27+gambetta!BO27+acapulco!BO27 -> 0 | BP27: 0 | BQ27: =barton!BQ27+gambetta!BQ27+acapulco!BQ27 -> 0 | BR27: =barton!BR27+gambetta!BR27+acapulco!BR27 -> 0 | BS27: =barton!BS27+gambetta!BS27+acapulco!BS27 -> 0 | BT27: =barton!BT27+gambetta!BT27+acapulco!BT27 -> 0 | BU27: =barton!BU27+gambetta!BU27+acapulco!BU27 -> 0 | BV27: 0 | BW27: =barton!BW27+gambetta!BW27+acapulco!BW27 -> 0 | BX27: =barton!BX27+gambetta!BX27+acapulco!BX27 -> 0 | BY27: =barton!BY27+gambetta!BY27+acapulco!BY27 -> 0 | BZ27: =barton!BZ27+gambetta!BZ27+acapulco!BZ27 -> 0 | CA27: =barton!CA27+gambetta!CA27+acapulco!CA27 -> 0
A28: GAMMA GLUTAMIL TRANSPEPTIDASA | B28: 10592 | C28: =SUMIF($I$8:$CA28,$C$8,I28:CA28) -> 89 | D28: =SUMIF($I$8:$CA28,$D$8,I28:CA28) -> 10021 | E28: =SUMIF($I$8:$CA28,$E$8,I28:CA28) -> 241 | F28: =SUMIF($I$8:$CA28,$F$8,I28:CA28) -> 184 | G28: =SUMIF($I$8:$CA28,$G$8,I28:CA28) -> 57 | H28: 627 | I28: =barton!I28+gambetta!I28+acapulco!I28 -> 9 | J28: =barton!J28+gambetta!J28+acapulco!J28 -> 563 | K28: =barton!K28+gambetta!K28+acapulco!K28 -> 34 | L28: =barton!L28+gambetta!L28+acapulco!L28 -> 21 | M28: =barton!M28+gambetta!M28+acapulco!M28 -> 0 | N28: 1236 | O28: =barton!O28+gambetta!O28+acapulco!O28 -> 14 | P28: =barton!P28+gambetta!P28+acapulco!P28 -> 1140 | Q28: =barton!Q28+gambetta!Q28+acapulco!Q28 -> 43 | R28: =barton!R28+gambetta!R28+acapulco!R28 -> 33 | S28: =barton!S28+gambetta!S28+acapulco!S28 -> 6 | T28: 1416 | U28: =barton!U28+gambetta!U28+acapulco!U28 -> 19 | V28: =barton!V28+gambetta!V28+acapulco!V28 -> 1350 | W28: =barton!W28+gambetta!W28+acapulco!W28 -> 20 | X28: =barton!X28+gambetta!X28+acapulco!X28 -> 17 | Y28: =barton!Y28+gambetta!Y28+acapulco!Y28 -> 10 | Z28: 858 | AA28: =barton!AA28+gambetta!AA28+acapulco!AA28 -> 5 | AB28: =barton!AB28+gambetta!AB28+acapulco!AB28 -> 809 | AC28: =barton!AC28+gambetta!AC28+acapulco!AC28 -> 30 | AD28: =barton!AD28+gambetta!AD28+acapulco!AD28 -> 10 | AE28: =barton!AE28+gambetta!AE28+acapulco!AE28 -> 4 | AF28: 1109 | AG28: =barton!AG28+gambetta!AG28+acapulco!AG28 -> 6 | AH28: =barton!AH28+gambetta!AH28+acapulco!AH28 -> 1060 | AI28: =barton!AI28+gambetta!AI28+acapulco!AI28 -> 20 | AJ28: =barton!AJ28+gambetta!AJ28+acapulco!AJ28 -> 21 | AK28: =barton!AK28+gambetta!AK28+acapulco!AK28 -> 2 | AL28: 1013 | AM28: =barton!AM28+gambetta!AM28+acapulco!AM28 -> 4 | AN28: =barton!AN28+gambetta!AN28+acapulco!AN28 -> 983 | AO28: =barton!AO28+gambetta!AO28+acapulco!AO28 -> 14 | AP28: =barton!AP28+gambetta!AP28+acapulco!AP28 -> 12 | AQ28: =barton!AQ28+gambetta!AQ28+acapulco!AQ28 -> 0 | AR28: 888 | AS28: =barton!AS28+gambetta!AS28+acapulco!AS28 -> 5 | AT28: =barton!AT28+gambetta!AT28+acapulco!AT28 -> 830 | AU28: =barton!AU28+gambetta!AU28+acapulco!AU28 -> 17 | AV28: =barton!AV28+gambetta!AV28+acapulco!AV28 -> 14 | AW28: =barton!AW28+gambetta!AW28+acapulco!AW28 -> 22 | AX28: 1005 | AY28: =barton!AY28+gambetta!AY28+acapulco!AY28 -> 15 | AZ28: =barton!AZ28+gambetta!AZ28+acapulco!AZ28 -> 954 | BA28: =barton!BA28+gambetta!BA28+acapulco!BA28 -> 20 | BB28: =barton!BB28+gambetta!BB28+acapulco!BB28 -> 16 | BC28: =barton!BC28+gambetta!BC28+acapulco!BC28 -> 0 | BD28: 911 | BE28: =barton!BE28+gambetta!BE28+acapulco!BE28 -> 4 | BF28: =barton!BF28+gambetta!BF28+acapulco!BF28 -> 865 | BG28: =barton!BG28+gambetta!BG28+acapulco!BG28 -> 17 | BH28: =barton!BH28+gambetta!BH28+acapulco!BH28 -> 19 | BI28: =barton!BI28+gambetta!BI28+acapulco!BI28 -> 6 | BJ28: 4 | BK28: =barton!BK28+gambetta!BK28+acapulco!BK28 -> 0 | BL28: =barton!BL28+gambetta!BL28+acapulco!BL28 -> 1 | BM28: =barton!BM28+gambetta!BM28+acapulco!BM28 -> 1 | BN28: =barton!BN28+gambetta!BN28+acapulco!BN28 -> 2 | BO28: =barton!BO28+gambetta!BO28+acapulco!BO28 -> 0 | BP28: 875 | BQ28: =barton!BQ28+gambetta!BQ28+acapulco!BQ28 -> 4 | BR28: =barton!BR28+gambetta!BR28+acapulco!BR28 -> 844 | BS28: =barton!BS28+gambetta!BS28+acapulco!BS28 -> 13 | BT28: =barton!BT28+gambetta!BT28+acapulco!BT28 -> 10 | BU28: =barton!BU28+gambetta!BU28+acapulco!BU28 -> 4 | BV28: 650 | BW28: =barton!BW28+gambetta!BW28+acapulco!BW28 -> 4 | BX28: =barton!BX28+gambetta!BX28+acapulco!BX28 -> 622 | BY28: =barton!BY28+gambetta!BY28+acapulco!BY28 -> 12 | BZ28: =barton!BZ28+gambetta!BZ28+acapulco!BZ28 -> 9 | CA28: =barton!CA28+gambetta!CA28+acapulco!CA28 -> 3
A29: GLUCOSA | B29: 30911 | C29: =SUMIF($I$8:$CA29,$C$8,I29:CA29) -> 353 | D29: =SUMIF($I$8:$CA29,$D$8,I29:CA29) -> 25976 | E29: =SUMIF($I$8:$CA29,$E$8,I29:CA29) -> 432 | F29: =SUMIF($I$8:$CA29,$F$8,I29:CA29) -> 253 | G29: =SUMIF($I$8:$CA29,$G$8,I29:CA29) -> 3897 | H29: 1305 | I29: =barton!I29+gambetta!I29+acapulco!I29 -> 35 | J29: =barton!J29+gambetta!J29+acapulco!J29 -> 1205 | K29: =barton!K29+gambetta!K29+acapulco!K29 -> 37 | L29: =barton!L29+gambetta!L29+acapulco!L29 -> 26 | M29: =barton!M29+gambetta!M29+acapulco!M29 -> 2 | N29: 2961 | O29: =barton!O29+gambetta!O29+acapulco!O29 -> 43 | P29: =barton!P29+gambetta!P29+acapulco!P29 -> 2255 | Q29: =barton!Q29+gambetta!Q29+acapulco!Q29 -> 49 | R29: =barton!R29+gambetta!R29+acapulco!R29 -> 31 | S29: =barton!S29+gambetta!S29+acapulco!S29 -> 583 | T29: 4510 | U29: =barton!U29+gambetta!U29+acapulco!U29 -> 48 | V29: =barton!V29+gambetta!V29+acapulco!V29 -> 2988 | W29: =barton!W29+gambetta!W29+acapulco!W29 -> 29 | X29: =barton!X29+gambetta!X29+acapulco!X29 -> 22 | Y29: =barton!Y29+gambetta!Y29+acapulco!Y29 -> 1423 | Z29: 3167 | AA29: =barton!AA29+gambetta!AA29+acapulco!AA29 -> 19 | AB29: =barton!AB29+gambetta!AB29+acapulco!AB29 -> 2124 | AC29: =barton!AC29+gambetta!AC29+acapulco!AC29 -> 42 | AD29: =barton!AD29+gambetta!AD29+acapulco!AD29 -> 13 | AE29: =barton!AE29+gambetta!AE29+acapulco!AE29 -> 969 | AF29: 2770 | AG29: =barton!AG29+gambetta!AG29+acapulco!AG29 -> 24 | AH29: =barton!AH29+gambetta!AH29+acapulco!AH29 -> 2251 | AI29: =barton!AI29+gambetta!AI29+acapulco!AI29 -> 34 | AJ29: =barton!AJ29+gambetta!AJ29+acapulco!AJ29 -> 21 | AK29: =barton!AK29+gambetta!AK29+acapulco!AK29 -> 440 | AL29: 2186 | AM29: =barton!AM29+gambetta!AM29+acapulco!AM29 -> 32 | AN29: =barton!AN29+gambetta!AN29+acapulco!AN29 -> 2111 | AO29: =barton!AO29+gambetta!AO29+acapulco!AO29 -> 30 | AP29: =barton!AP29+gambetta!AP29+acapulco!AP29 -> 13 | AQ29: =barton!AQ29+gambetta!AQ29+acapulco!AQ29 -> 0 | AR29: 2315 | AS29: =barton!AS29+gambetta!AS29+acapulco!AS29 -> 27 | AT29: =barton!AT29+gambetta!AT29+acapulco!AT29 -> 2089 | AU29: =barton!AU29+gambetta!AU29+acapulco!AU29 -> 21 | AV29: =barton!AV29+gambetta!AV29+acapulco!AV29 -> 19 | AW29: =barton!AW29+gambetta!AW29+acapulco!AW29 -> 159 | AX29: 2360 | AY29: =barton!AY29+gambetta!AY29+acapulco!AY29 -> 33 | AZ29: =barton!AZ29+gambetta!AZ29+acapulco!AZ29 -> 2186 | BA29: =barton!BA29+gambetta!BA29+acapulco!BA29 -> 58 | BB29: =barton!BB29+gambetta!BB29+acapulco!BB29 -> 16 | BC29: =barton!BC29+gambetta!BC29+acapulco!BC29 -> 67 | BD29: 2552 | BE29: =barton!BE29+gambetta!BE29+acapulco!BE29 -> 31 | BF29: =barton!BF29+gambetta!BF29+acapulco!BF29 -> 2459 | BG29: =barton!BG29+gambetta!BG29+acapulco!BG29 -> 22 | BH29: =barton!BH29+gambetta!BH29+acapulco!BH29 -> 25 | BI29: =barton!BI29+gambetta!BI29+acapulco!BI29 -> 15 | BJ29: 2480 | BK29: =barton!BK29+gambetta!BK29+acapulco!BK29 -> 31 | BL29: =barton!BL29+gambetta!BL29+acapulco!BL29 -> 2217 | BM29: =barton!BM29+gambetta!BM29+acapulco!BM29 -> 71 | BN29: =barton!BN29+gambetta!BN29+acapulco!BN29 -> 42 | BO29: =barton!BO29+gambetta!BO29+acapulco!BO29 -> 119 | BP29: 2483 | BQ29: =barton!BQ29+gambetta!BQ29+acapulco!BQ29 -> 12 | BR29: =barton!BR29+gambetta!BR29+acapulco!BR29 -> 2375 | BS29: =barton!BS29+gambetta!BS29+acapulco!BS29 -> 20 | BT29: =barton!BT29+gambetta!BT29+acapulco!BT29 -> 12 | BU29: =barton!BU29+gambetta!BU29+acapulco!BU29 -> 64 | BV29: 1822 | BW29: =barton!BW29+gambetta!BW29+acapulco!BW29 -> 18 | BX29: =barton!BX29+gambetta!BX29+acapulco!BX29 -> 1716 | BY29: =barton!BY29+gambetta!BY29+acapulco!BY29 -> 19 | BZ29: =barton!BZ29+gambetta!BZ29+acapulco!BZ29 -> 13 | CA29: =barton!CA29+gambetta!CA29+acapulco!CA29 -> 56
A30: HIERRO SERICO | B30: 0 | C30: =SUMIF($I$8:$CA30,$C$8,I30:CA30) -> 0 | D30: =SUMIF($I$8:$CA30,$D$8,I30:CA30) -> 0 | E30: =SUMIF($I$8:$CA30,$E$8,I30:CA30) -> 0 | F30: =SUMIF($I$8:$CA30,$F$8,I30:CA30) -> 0 | G30: =SUMIF($I$8:$CA30,$G$8,I30:CA30) -> 0 | H30: 0 | I30: =barton!I30+gambetta!I30+acapulco!I30 -> 0 | J30: =barton!J30+gambetta!J30+acapulco!J30 -> 0 | K30: =barton!K30+gambetta!K30+acapulco!K30 -> 0 | L30: =barton!L30+gambetta!L30+acapulco!L30 -> 0 | M30: =barton!M30+gambetta!M30+acapulco!M30 -> 0 | N30: 0 | O30: =barton!O30+gambetta!O30+acapulco!O30 -> 0 | P30: =barton!P30+gambetta!P30+acapulco!P30 -> 0 | Q30: =barton!Q30+gambetta!Q30+acapulco!Q30 -> 0 | R30: =barton!R30+gambetta!R30+acapulco!R30 -> 0 | S30: =barton!S30+gambetta!S30+acapulco!S30 -> 0 | T30: 0 | U30: =barton!U30+gambetta!U30+acapulco!U30 -> 0 | V30: =barton!V30+gambetta!V30+acapulco!V30 -> 0 | W30: =barton!W30+gambetta!W30+acapulco!W30 -> 0 | X30: =barton!X30+gambetta!X30+acapulco!X30 -> 0 | Y30: =barton!Y30+gambetta!Y30+acapulco!Y30 -> 0 | Z30: 0 | AA30: =barton!AA30+gambetta!AA30+acapulco!AA30 -> 0 | AB30: =barton!AB30+gambetta!AB30+acapulco!AB30 -> 0 | AC30: =barton!AC30+gambetta!AC30+acapulco!AC30 -> 0 | AD30: =barton!AD30+gambetta!AD30+acapulco!AD30 -> 0 | AE30: =barton!AE30+gambetta!AE30+acapulco!AE30 -> 0 | AF30: 0 | AG30: =barton!AG30+gambetta!AG30+acapulco!AG30 -> 0 | AH30: =barton!AH30+gambetta!AH30+acapulco!AH30 -> 0 | AI30: =barton!AI30+gambetta!AI30+acapulco!AI30 -> 0 | AJ30: =barton!AJ30+gambetta!AJ30+acapulco!AJ30 -> 0 | AK30: =barton!AK30+gambetta!AK30+acapulco!AK30 -> 0 | AL30: 0 | AM30: =barton!AM30+gambetta!AM30+acapulco!AM30 -> 0 | AN30: =barton!AN30+gambetta!AN30+acapulco!AN30 -> 0 | AO30: =barton!AO30+gambetta!AO30+acapulco!AO30 -> 0 | AP30: =barton!AP30+gambetta!AP30+acapulco!AP30 -> 0 | AQ30: =barton!AQ30+gambetta!AQ30+acapulco!AQ30 -> 0 | AR30: 0 | AS30: =barton!AS30+gambetta!AS30+acapulco!AS30 -> 0 | AT30: =barton!AT30+gambetta!AT30+acapulco!AT30 -> 0 | AU30: =barton!AU30+gambetta!AU30+acapulco!AU30 -> 0 | AV30: =barton!AV30+gambetta!AV30+acapulco!AV30 -> 0 | AW30: =barton!AW30+gambetta!AW30+acapulco!AW30 -> 0 | AX30: 0 | AY30: =barton!AY30+gambetta!AY30+acapulco!AY30 -> 0 | AZ30: =barton!AZ30+gambetta!AZ30+acapulco!AZ30 -> 0 | BA30: =barton!BA30+gambetta!BA30+acapulco!BA30 -> 0 | BB30: =barton!BB30+gambetta!BB30+acapulco!BB30 -> 0 | BC30: =barton!BC30+gambetta!BC30+acapulco!BC30 -> 0 | BD30: 0 | BE30: =barton!BE30+gambetta!BE30+acapulco!BE30 -> 0 | BF30: =barton!BF30+gambetta!BF30+acapulco!BF30 -> 0 | BG30: =barton!BG30+gambetta!BG30+acapulco!BG30 -> 0 | BH30: =barton!BH30+gambetta!BH30+acapulco!BH30 -> 0 | BI30: =barton!BI30+gambetta!BI30+acapulco!BI30 -> 0 | BJ30: 0 | BK30: =barton!BK30+gambetta!BK30+acapulco!BK30 -> 0 | BL30: =barton!BL30+gambetta!BL30+acapulco!BL30 -> 0 | BM30: =barton!BM30+gambetta!BM30+acapulco!BM30 -> 0 | BN30: =barton!BN30+gambetta!BN30+acapulco!BN30 -> 0 | BO30: =barton!BO30+gambetta!BO30+acapulco!BO30 -> 0 | BP30: 0 | BQ30: =barton!BQ30+gambetta!BQ30+acapulco!BQ30 -> 0 | BR30: =barton!BR30+gambetta!BR30+acapulco!BR30 -> 0 | BS30: =barton!BS30+gambetta!BS30+acapulco!BS30 -> 0 | BT30: =barton!BT30+gambetta!BT30+acapulco!BT30 -> 0 | BU30: =barton!BU30+gambetta!BU30+acapulco!BU30 -> 0 | BV30: 0 | BW30: =barton!BW30+gambetta!BW30+acapulco!BW30 -> 0 | BX30: =barton!BX30+gambetta!BX30+acapulco!BX30 -> 0 | BY30: =barton!BY30+gambetta!BY30+acapulco!BY30 -> 0 | BZ30: =barton!BZ30+gambetta!BZ30+acapulco!BZ30 -> 0 | CA30: =barton!CA30+gambetta!CA30+acapulco!CA30 -> 0
A31: MICROALBUMINURIA | B31: 0 | C31: =SUMIF($I$8:$CA31,$C$8,I31:CA31) -> 0 | D31: =SUMIF($I$8:$CA31,$D$8,I31:CA31) -> 0 | E31: =SUMIF($I$8:$CA31,$E$8,I31:CA31) -> 0 | F31: =SUMIF($I$8:$CA31,$F$8,I31:CA31) -> 0 | G31: =SUMIF($I$8:$CA31,$G$8,I31:CA31) -> 0 | H31: 0 | I31: =barton!I31+gambetta!I31+acapulco!I31 -> 0 | J31: =barton!J31+gambetta!J31+acapulco!J31 -> 0 | K31: =barton!K31+gambetta!K31+acapulco!K31 -> 0 | L31: =barton!L31+gambetta!L31+acapulco!L31 -> 0 | M31: =barton!M31+gambetta!M31+acapulco!M31 -> 0 | N31: 0 | O31: =barton!O31+gambetta!O31+acapulco!O31 -> 0 | P31: =barton!P31+gambetta!P31+acapulco!P31 -> 0 | Q31: =barton!Q31+gambetta!Q31+acapulco!Q31 -> 0 | R31: =barton!R31+gambetta!R31+acapulco!R31 -> 0 | S31: =barton!S31+gambetta!S31+acapulco!S31 -> 0 | T31: 0 | U31: =barton!U31+gambetta!U31+acapulco!U31 -> 0 | V31: =barton!V31+gambetta!V31+acapulco!V31 -> 0 | W31: =barton!W31+gambetta!W31+acapulco!W31 -> 0 | X31: =barton!X31+gambetta!X31+acapulco!X31 -> 0 | Y31: =barton!Y31+gambetta!Y31+acapulco!Y31 -> 0 | Z31: 0 | AA31: =barton!AA31+gambetta!AA31+acapulco!AA31 -> 0 | AB31: =barton!AB31+gambetta!AB31+acapulco!AB31 -> 0 | AC31: =barton!AC31+gambetta!AC31+acapulco!AC31 -> 0 | AD31: =barton!AD31+gambetta!AD31+acapulco!AD31 -> 0 | AE31: =barton!AE31+gambetta!AE31+acapulco!AE31 -> 0 | AF31: 0 | AG31: =barton!AG31+gambetta!AG31+acapulco!AG31 -> 0 | AH31: =barton!AH31+gambetta!AH31+acapulco!AH31 -> 0 | AI31: =barton!AI31+gambetta!AI31+acapulco!AI31 -> 0 | AJ31: =barton!AJ31+gambetta!AJ31+acapulco!AJ31 -> 0 | AK31: =barton!AK31+gambetta!AK31+acapulco!AK31 -> 0 | AL31: 0 | AM31: =barton!AM31+gambetta!AM31+acapulco!AM31 -> 0 | AN31: =barton!AN31+gambetta!AN31+acapulco!AN31 -> 0 | AO31: =barton!AO31+gambetta!AO31+acapulco!AO31 -> 0 | AP31: =barton!AP31+gambetta!AP31+acapulco!AP31 -> 0 | AQ31: =barton!AQ31+gambetta!AQ31+acapulco!AQ31 -> 0 | AR31: 0 | AS31: =barton!AS31+gambetta!AS31+acapulco!AS31 -> 0 | AT31: =barton!AT31+gambetta!AT31+acapulco!AT31 -> 0 | AU31: =barton!AU31+gambetta!AU31+acapulco!AU31 -> 0 | AV31: =barton!AV31+gambetta!AV31+acapulco!AV31 -> 0 | AW31: =barton!AW31+gambetta!AW31+acapulco!AW31 -> 0 | AX31: 0 | AY31: =barton!AY31+gambetta!AY31+acapulco!AY31 -> 0 | AZ31: =barton!AZ31+gambetta!AZ31+acapulco!AZ31 -> 0 | BA31: =barton!BA31+gambetta!BA31+acapulco!BA31 -> 0 | BB31: =barton!BB31+gambetta!BB31+acapulco!BB31 -> 0 | BC31: =barton!BC31+gambetta!BC31+acapulco!BC31 -> 0 | BD31: 0 | BE31: =barton!BE31+gambetta!BE31+acapulco!BE31 -> 0 | BF31: =barton!BF31+gambetta!BF31+acapulco!BF31 -> 0 | BG31: =barton!BG31+gambetta!BG31+acapulco!BG31 -> 0 | BH31: =barton!BH31+gambetta!BH31+acapulco!BH31 -> 0 | BI31: =barton!BI31+gambetta!BI31+acapulco!BI31 -> 0 | BJ31: 0 | BK31: =barton!BK31+gambetta!BK31+acapulco!BK31 -> 0 | BL31: =barton!BL31+gambetta!BL31+acapulco!BL31 -> 0 | BM31: =barton!BM31+gambetta!BM31+acapulco!BM31 -> 0 | BN31: =barton!BN31+gambetta!BN31+acapulco!BN31 -> 0 | BO31: =barton!BO31+gambetta!BO31+acapulco!BO31 -> 0 | BP31: 0 | BQ31: =barton!BQ31+gambetta!BQ31+acapulco!BQ31 -> 0 | BR31: =barton!BR31+gambetta!BR31+acapulco!BR31 -> 0 | BS31: =barton!BS31+gambetta!BS31+acapulco!BS31 -> 0 | BT31: =barton!BT31+gambetta!BT31+acapulco!BT31 -> 0 | BU31: =barton!BU31+gambetta!BU31+acapulco!BU31 -> 0 | BV31: 0 | BW31: =barton!BW31+gambetta!BW31+acapulco!BW31 -> 0 | BX31: =barton!BX31+gambetta!BX31+acapulco!BX31 -> 0 | BY31: =barton!BY31+gambetta!BY31+acapulco!BY31 -> 0 | BZ31: =barton!BZ31+gambetta!BZ31+acapulco!BZ31 -> 0 | CA31: =barton!CA31+gambetta!CA31+acapulco!CA31 -> 0
A32: PROTEINAS EN LCR Y LIQ. BIOLOGICOS | B32: 0 | C32: =SUMIF($I$8:$CA32,$C$8,I32:CA32) -> 0 | D32: =SUMIF($I$8:$CA32,$D$8,I32:CA32) -> 0 | E32: =SUMIF($I$8:$CA32,$E$8,I32:CA32) -> 0 | F32: =SUMIF($I$8:$CA32,$F$8,I32:CA32) -> 0 | G32: =SUMIF($I$8:$CA32,$G$8,I32:CA32) -> 0 | H32: 0 | I32: =barton!I32+gambetta!I32+acapulco!I32 -> 0 | J32: =barton!J32+gambetta!J32+acapulco!J32 -> 0 | K32: =barton!K32+gambetta!K32+acapulco!K32 -> 0 | L32: =barton!L32+gambetta!L32+acapulco!L32 -> 0 | M32: =barton!M32+gambetta!M32+acapulco!M32 -> 0 | N32: 0 | O32: =barton!O32+gambetta!O32+acapulco!O32 -> 0 | P32: =barton!P32+gambetta!P32+acapulco!P32 -> 0 | Q32: =barton!Q32+gambetta!Q32+acapulco!Q32 -> 0 | R32: =barton!R32+gambetta!R32+acapulco!R32 -> 0 | S32: =barton!S32+gambetta!S32+acapulco!S32 -> 0 | T32: 0 | U32: =barton!U32+gambetta!U32+acapulco!U32 -> 0 | V32: =barton!V32+gambetta!V32+acapulco!V32 -> 0 | W32: =barton!W32+gambetta!W32+acapulco!W32 -> 0 | X32: =barton!X32+gambetta!X32+acapulco!X32 -> 0 | Y32: =barton!Y32+gambetta!Y32+acapulco!Y32 -> 0 | Z32: 0 | AA32: =barton!AA32+gambetta!AA32+acapulco!AA32 -> 0 | AB32: =barton!AB32+gambetta!AB32+acapulco!AB32 -> 0 | AC32: =barton!AC32+gambetta!AC32+acapulco!AC32 -> 0 | AD32: =barton!AD32+gambetta!AD32+acapulco!AD32 -> 0 | AE32: =barton!AE32+gambetta!AE32+acapulco!AE32 -> 0 | AF32: 0 | AG32: =barton!AG32+gambetta!AG32+acapulco!AG32 -> 0 | AH32: =barton!AH32+gambetta!AH32+acapulco!AH32 -> 0 | AI32: =barton!AI32+gambetta!AI32+acapulco!AI32 -> 0 | AJ32: =barton!AJ32+gambetta!AJ32+acapulco!AJ32 -> 0 | AK32: =barton!AK32+gambetta!AK32+acapulco!AK32 -> 0 | AL32: 0 | AM32: =barton!AM32+gambetta!AM32+acapulco!AM32 -> 0 | AN32: =barton!AN32+gambetta!AN32+acapulco!AN32 -> 0 | AO32: =barton!AO32+gambetta!AO32+acapulco!AO32 -> 0 | AP32: =barton!AP32+gambetta!AP32+acapulco!AP32 -> 0 | AQ32: =barton!AQ32+gambetta!AQ32+acapulco!AQ32 -> 0 | AR32: 0 | AS32: =barton!AS32+gambetta!AS32+acapulco!AS32 -> 0 | AT32: =barton!AT32+gambetta!AT32+acapulco!AT32 -> 0 | AU32: =barton!AU32+gambetta!AU32+acapulco!AU32 -> 0 | AV32: =barton!AV32+gambetta!AV32+acapulco!AV32 -> 0 | AW32: =barton!AW32+gambetta!AW32+acapulco!AW32 -> 0 | AX32: 0 | AY32: =barton!AY32+gambetta!AY32+acapulco!AY32 -> 0 | AZ32: =barton!AZ32+gambetta!AZ32+acapulco!AZ32 -> 0 | BA32: =barton!BA32+gambetta!BA32+acapulco!BA32 -> 0 | BB32: =barton!BB32+gambetta!BB32+acapulco!BB32 -> 0 | BC32: =barton!BC32+gambetta!BC32+acapulco!BC32 -> 0 | BD32: 0 | BE32: =barton!BE32+gambetta!BE32+acapulco!BE32 -> 0 | BF32: =barton!BF32+gambetta!BF32+acapulco!BF32 -> 0 | BG32: =barton!BG32+gambetta!BG32+acapulco!BG32 -> 0 | BH32: =barton!BH32+gambetta!BH32+acapulco!BH32 -> 0 | BI32: =barton!BI32+gambetta!BI32+acapulco!BI32 -> 0 | BJ32: 0 | BK32: =barton!BK32+gambetta!BK32+acapulco!BK32 -> 0 | BL32: =barton!BL32+gambetta!BL32+acapulco!BL32 -> 0 | BM32: =barton!BM32+gambetta!BM32+acapulco!BM32 -> 0 | BN32: =barton!BN32+gambetta!BN32+acapulco!BN32 -> 0 | BO32: =barton!BO32+gambetta!BO32+acapulco!BO32 -> 0 | BP32: 0 | BQ32: =barton!BQ32+gambetta!BQ32+acapulco!BQ32 -> 0 | BR32: =barton!BR32+gambetta!BR32+acapulco!BR32 -> 0 | BS32: =barton!BS32+gambetta!BS32+acapulco!BS32 -> 0 | BT32: =barton!BT32+gambetta!BT32+acapulco!BT32 -> 0 | BU32: =barton!BU32+gambetta!BU32+acapulco!BU32 -> 0 | BV32: 0 | BW32: =barton!BW32+gambetta!BW32+acapulco!BW32 -> 0 | BX32: =barton!BX32+gambetta!BX32+acapulco!BX32 -> 0 | BY32: =barton!BY32+gambetta!BY32+acapulco!BY32 -> 0 | BZ32: =barton!BZ32+gambetta!BZ32+acapulco!BZ32 -> 0 | CA32: =barton!CA32+gambetta!CA32+acapulco!CA32 -> 0
A33: PROTEINAS TOTALES Y FRACCIONADAS | B33: 8704 | C33: =SUMIF($I$8:$CA33,$C$8,I33:CA33) -> 87 | D33: =SUMIF($I$8:$CA33,$D$8,I33:CA33) -> 8216 | E33: =SUMIF($I$8:$CA33,$E$8,I33:CA33) -> 200 | F33: =SUMIF($I$8:$CA33,$F$8,I33:CA33) -> 170 | G33: =SUMIF($I$8:$CA33,$G$8,I33:CA33) -> 31 | H33: 679 | I33: =barton!I33+gambetta!I33+acapulco!I33 -> 10 | J33: =barton!J33+gambetta!J33+acapulco!J33 -> 616 | K33: =barton!K33+gambetta!K33+acapulco!K33 -> 32 | L33: =barton!L33+gambetta!L33+acapulco!L33 -> 21 | M33: =barton!M33+gambetta!M33+acapulco!M33 -> 0 | N33: 1262 | O33: =barton!O33+gambetta!O33+acapulco!O33 -> 14 | P33: =barton!P33+gambetta!P33+acapulco!P33 -> 1163 | Q33: =barton!Q33+gambetta!Q33+acapulco!Q33 -> 46 | R33: =barton!R33+gambetta!R33+acapulco!R33 -> 34 | S33: =barton!S33+gambetta!S33+acapulco!S33 -> 5 | T33: 1581 | U33: =barton!U33+gambetta!U33+acapulco!U33 -> 23 | V33: =barton!V33+gambetta!V33+acapulco!V33 -> 1510 | W33: =barton!W33+gambetta!W33+acapulco!W33 -> 20 | X33: =barton!X33+gambetta!X33+acapulco!X33 -> 19 | Y33: =barton!Y33+gambetta!Y33+acapulco!Y33 -> 9 | Z33: 899 | AA33: =barton!AA33+gambetta!AA33+acapulco!AA33 -> 5 | AB33: =barton!AB33+gambetta!AB33+acapulco!AB33 -> 847 | AC33: =barton!AC33+gambetta!AC33+acapulco!AC33 -> 32 | AD33: =barton!AD33+gambetta!AD33+acapulco!AD33 -> 11 | AE33: =barton!AE33+gambetta!AE33+acapulco!AE33 -> 4 | AF33: 1008 | AG33: =barton!AG33+gambetta!AG33+acapulco!AG33 -> 6 | AH33: =barton!AH33+gambetta!AH33+acapulco!AH33 -> 967 | AI33: =barton!AI33+gambetta!AI33+acapulco!AI33 -> 12 | AJ33: =barton!AJ33+gambetta!AJ33+acapulco!AJ33 -> 20 | AK33: =barton!AK33+gambetta!AK33+acapulco!AK33 -> 3 | AL33: 4 | AM33: =barton!AM33+gambetta!AM33+acapulco!AM33 -> 0 | AN33: =barton!AN33+gambetta!AN33+acapulco!AN33 -> 3 | AO33: =barton!AO33+gambetta!AO33+acapulco!AO33 -> 1 | AP33: =barton!AP33+gambetta!AP33+acapulco!AP33 -> 0 | AQ33: =barton!AQ33+gambetta!AQ33+acapulco!AQ33 -> 0 | AR33: 0 | AS33: =barton!AS33+gambetta!AS33+acapulco!AS33 -> 0 | AT33: =barton!AT33+gambetta!AT33+acapulco!AT33 -> 0 | AU33: =barton!AU33+gambetta!AU33+acapulco!AU33 -> 0 | AV33: =barton!AV33+gambetta!AV33+acapulco!AV33 -> 0 | AW33: =barton!AW33+gambetta!AW33+acapulco!AW33 -> 0 | AX33: 509 | AY33: =barton!AY33+gambetta!AY33+acapulco!AY33 -> 7 | AZ33: =barton!AZ33+gambetta!AZ33+acapulco!AZ33 -> 494 | BA33: =barton!BA33+gambetta!BA33+acapulco!BA33 -> 4 | BB33: =barton!BB33+gambetta!BB33+acapulco!BB33 -> 4 | BC33: =barton!BC33+gambetta!BC33+acapulco!BC33 -> 0 | BD33: 113 | BE33: =barton!BE33+gambetta!BE33+acapulco!BE33 -> 1 | BF33: =barton!BF33+gambetta!BF33+acapulco!BF33 -> 105 | BG33: =barton!BG33+gambetta!BG33+acapulco!BG33 -> 2 | BH33: =barton!BH33+gambetta!BH33+acapulco!BH33 -> 5 | BI33: =barton!BI33+gambetta!BI33+acapulco!BI33 -> 0 | BJ33: 847 | BK33: =barton!BK33+gambetta!BK33+acapulco!BK33 -> 11 | BL33: =barton!BL33+gambetta!BL33+acapulco!BL33 -> 779 | BM33: =barton!BM33+gambetta!BM33+acapulco!BM33 -> 23 | BN33: =barton!BN33+gambetta!BN33+acapulco!BN33 -> 33 | BO33: =barton!BO33+gambetta!BO33+acapulco!BO33 -> 1 | BP33: 933 | BQ33: =barton!BQ33+gambetta!BQ33+acapulco!BQ33 -> 4 | BR33: =barton!BR33+gambetta!BR33+acapulco!BR33 -> 899 | BS33: =barton!BS33+gambetta!BS33+acapulco!BS33 -> 14 | BT33: =barton!BT33+gambetta!BT33+acapulco!BT33 -> 12 | BU33: =barton!BU33+gambetta!BU33+acapulco!BU33 -> 4 | BV33: 869 | BW33: =barton!BW33+gambetta!BW33+acapulco!BW33 -> 6 | BX33: =barton!BX33+gambetta!BX33+acapulco!BX33 -> 833 | BY33: =barton!BY33+gambetta!BY33+acapulco!BY33 -> 14 | BZ33: =barton!BZ33+gambetta!BZ33+acapulco!BZ33 -> 11 | CA33: =barton!CA33+gambetta!CA33+acapulco!CA33 -> 5
A34: PROTEINURIA EN 24 HORAS | B34: 0 | C34: =SUMIF($I$8:$CA34,$C$8,I34:CA34) -> 0 | D34: =SUMIF($I$8:$CA34,$D$8,I34:CA34) -> 0 | E34: =SUMIF($I$8:$CA34,$E$8,I34:CA34) -> 0 | F34: =SUMIF($I$8:$CA34,$F$8,I34:CA34) -> 0 | G34: =SUMIF($I$8:$CA34,$G$8,I34:CA34) -> 0 | H34: 0 | I34: =barton!I34+gambetta!I34+acapulco!I34 -> 0 | J34: =barton!J34+gambetta!J34+acapulco!J34 -> 0 | K34: =barton!K34+gambetta!K34+acapulco!K34 -> 0 | L34: =barton!L34+gambetta!L34+acapulco!L34 -> 0 | M34: =barton!M34+gambetta!M34+acapulco!M34 -> 0 | N34: 0 | O34: =barton!O34+gambetta!O34+acapulco!O34 -> 0 | P34: =barton!P34+gambetta!P34+acapulco!P34 -> 0 | Q34: =barton!Q34+gambetta!Q34+acapulco!Q34 -> 0 | R34: =barton!R34+gambetta!R34+acapulco!R34 -> 0 | S34: =barton!S34+gambetta!S34+acapulco!S34 -> 0 | T34: 0 | U34: =barton!U34+gambetta!U34+acapulco!U34 -> 0 | V34: =barton!V34+gambetta!V34+acapulco!V34 -> 0 | W34: =barton!W34+gambetta!W34+acapulco!W34 -> 0 | X34: =barton!X34+gambetta!X34+acapulco!X34 -> 0 | Y34: =barton!Y34+gambetta!Y34+acapulco!Y34 -> 0 | Z34: 0 | AA34: =barton!AA34+gambetta!AA34+acapulco!AA34 -> 0 | AB34: =barton!AB34+gambetta!AB34+acapulco!AB34 -> 0 | AC34: =barton!AC34+gambetta!AC34+acapulco!AC34 -> 0 | AD34: =barton!AD34+gambetta!AD34+acapulco!AD34 -> 0 | AE34: =barton!AE34+gambetta!AE34+acapulco!AE34 -> 0 | AF34: 0 | AG34: =barton!AG34+gambetta!AG34+acapulco!AG34 -> 0 | AH34: =barton!AH34+gambetta!AH34+acapulco!AH34 -> 0 | AI34: =barton!AI34+gambetta!AI34+acapulco!AI34 -> 0 | AJ34: =barton!AJ34+gambetta!AJ34+acapulco!AJ34 -> 0 | AK34: =barton!AK34+gambetta!AK34+acapulco!AK34 -> 0 | AL34: 0 | AM34: =barton!AM34+gambetta!AM34+acapulco!AM34 -> 0 | AN34: =barton!AN34+gambetta!AN34+acapulco!AN34 -> 0 | AO34: =barton!AO34+gambetta!AO34+acapulco!AO34 -> 0 | AP34: =barton!AP34+gambetta!AP34+acapulco!AP34 -> 0 | AQ34: =barton!AQ34+gambetta!AQ34+acapulco!AQ34 -> 0 | AR34: 0 | AS34: =barton!AS34+gambetta!AS34+acapulco!AS34 -> 0 | AT34: =barton!AT34+gambetta!AT34+acapulco!AT34 -> 0 | AU34: =barton!AU34+gambetta!AU34+acapulco!AU34 -> 0 | AV34: =barton!AV34+gambetta!AV34+acapulco!AV34 -> 0 | AW34: =barton!AW34+gambetta!AW34+acapulco!AW34 -> 0 | AX34: 0 | AY34: =barton!AY34+gambetta!AY34+acapulco!AY34 -> 0 | AZ34: =barton!AZ34+gambetta!AZ34+acapulco!AZ34 -> 0 | BA34: =barton!BA34+gambetta!BA34+acapulco!BA34 -> 0 | BB34: =barton!BB34+gambetta!BB34+acapulco!BB34 -> 0 | BC34: =barton!BC34+gambetta!BC34+acapulco!BC34 -> 0 | BD34: 0 | BE34: =barton!BE34+gambetta!BE34+acapulco!BE34 -> 0 | BF34: =barton!BF34+gambetta!BF34+acapulco!BF34 -> 0 | BG34: =barton!BG34+gambetta!BG34+acapulco!BG34 -> 0 | BH34: =barton!BH34+gambetta!BH34+acapulco!BH34 -> 0 | BI34: =barton!BI34+gambetta!BI34+acapulco!BI34 -> 0 | BJ34: 0 | BK34: =barton!BK34+gambetta!BK34+acapulco!BK34 -> 0 | BL34: =barton!BL34+gambetta!BL34+acapulco!BL34 -> 0 | BM34: =barton!BM34+gambetta!BM34+acapulco!BM34 -> 0 | BN34: =barton!BN34+gambetta!BN34+acapulco!BN34 -> 0 | BO34: =barton!BO34+gambetta!BO34+acapulco!BO34 -> 0 | BP34: 0 | BQ34: =barton!BQ34+gambetta!BQ34+acapulco!BQ34 -> 0 | BR34: =barton!BR34+gambetta!BR34+acapulco!BR34 -> 0 | BS34: =barton!BS34+gambetta!BS34+acapulco!BS34 -> 0 | BT34: =barton!BT34+gambetta!BT34+acapulco!BT34 -> 0 | BU34: =barton!BU34+gambetta!BU34+acapulco!BU34 -> 0 | BV34: 0 | BW34: =barton!BW34+gambetta!BW34+acapulco!BW34 -> 0 | BX34: =barton!BX34+gambetta!BX34+acapulco!BX34 -> 0 | BY34: =barton!BY34+gambetta!BY34+acapulco!BY34 -> 0 | BZ34: =barton!BZ34+gambetta!BZ34+acapulco!BZ34 -> 0 | CA34: =barton!CA34+gambetta!CA34+acapulco!CA34 -> 0
A35: SEDIMENTO URINARIO | B35: 3932 | C35: =SUMIF($I$8:$CA35,$C$8,I35:CA35) -> 113 | D35: =SUMIF($I$8:$CA35,$D$8,I35:CA35) -> 3724 | E35: =SUMIF($I$8:$CA35,$E$8,I35:CA35) -> 57 | F35: =SUMIF($I$8:$CA35,$F$8,I35:CA35) -> 20 | G35: =SUMIF($I$8:$CA35,$G$8,I35:CA35) -> 18 | H35: 388 | I35: =barton!I35+gambetta!I35+acapulco!I35 -> 19 | J35: =barton!J35+gambetta!J35+acapulco!J35 -> 350 | K35: =barton!K35+gambetta!K35+acapulco!K35 -> 18 | L35: =barton!L35+gambetta!L35+acapulco!L35 -> 1 | M35: =barton!M35+gambetta!M35+acapulco!M35 -> 0 | N35: 627 | O35: =barton!O35+gambetta!O35+acapulco!O35 -> 23 | P35: =barton!P35+gambetta!P35+acapulco!P35 -> 586 | Q35: =barton!Q35+gambetta!Q35+acapulco!Q35 -> 13 | R35: =barton!R35+gambetta!R35+acapulco!R35 -> 2 | S35: =barton!S35+gambetta!S35+acapulco!S35 -> 3 | T35: 857 | U35: =barton!U35+gambetta!U35+acapulco!U35 -> 25 | V35: =barton!V35+gambetta!V35+acapulco!V35 -> 813 | W35: =barton!W35+gambetta!W35+acapulco!W35 -> 10 | X35: =barton!X35+gambetta!X35+acapulco!X35 -> 1 | Y35: =barton!Y35+gambetta!Y35+acapulco!Y35 -> 8 | Z35: 609 | AA35: =barton!AA35+gambetta!AA35+acapulco!AA35 -> 15 | AB35: =barton!AB35+gambetta!AB35+acapulco!AB35 -> 578 | AC35: =barton!AC35+gambetta!AC35+acapulco!AC35 -> 0 | AD35: =barton!AD35+gambetta!AD35+acapulco!AD35 -> 14 | AE35: =barton!AE35+gambetta!AE35+acapulco!AE35 -> 2 | AF35: 689 | AG35: =barton!AG35+gambetta!AG35+acapulco!AG35 -> 18 | AH35: =barton!AH35+gambetta!AH35+acapulco!AH35 -> 660 | AI35: =barton!AI35+gambetta!AI35+acapulco!AI35 -> 8 | AJ35: =barton!AJ35+gambetta!AJ35+acapulco!AJ35 -> 1 | AK35: =barton!AK35+gambetta!AK35+acapulco!AK35 -> 2 | AL35: 0 | AM35: =barton!AM35+gambetta!AM35+acapulco!AM35 -> 0 | AN35: =barton!AN35+gambetta!AN35+acapulco!AN35 -> 0 | AO35: =barton!AO35+gambetta!AO35+acapulco!AO35 -> 0 | AP35: =barton!AP35+gambetta!AP35+acapulco!AP35 -> 0 | AQ35: =barton!AQ35+gambetta!AQ35+acapulco!AQ35 -> 0 | AR35: 0 | AS35: =barton!AS35+gambetta!AS35+acapulco!AS35 -> 0 | AT35: =barton!AT35+gambetta!AT35+acapulco!AT35 -> 0 | AU35: =barton!AU35+gambetta!AU35+acapulco!AU35 -> 0 | AV35: =barton!AV35+gambetta!AV35+acapulco!AV35 -> 0 | AW35: =barton!AW35+gambetta!AW35+acapulco!AW35 -> 0 | AX35: 0 | AY35: =barton!AY35+gambetta!AY35+acapulco!AY35 -> 0 | AZ35: =barton!AZ35+gambetta!AZ35+acapulco!AZ35 -> 0 | BA35: =barton!BA35+gambetta!BA35+acapulco!BA35 -> 0 | BB35: =barton!BB35+gambetta!BB35+acapulco!BB35 -> 0 | BC35: =barton!BC35+gambetta!BC35+acapulco!BC35 -> 0 | BD35: 762 | BE35: =barton!BE35+gambetta!BE35+acapulco!BE35 -> 13 | BF35: =barton!BF35+gambetta!BF35+acapulco!BF35 -> 737 | BG35: =barton!BG35+gambetta!BG35+acapulco!BG35 -> 8 | BH35: =barton!BH35+gambetta!BH35+acapulco!BH35 -> 1 | BI35: =barton!BI35+gambetta!BI35+acapulco!BI35 -> 3 | BJ35: 0 | BK35: =barton!BK35+gambetta!BK35+acapulco!BK35 -> 0 | BL35: =barton!BL35+gambetta!BL35+acapulco!BL35 -> 0 | BM35: =barton!BM35+gambetta!BM35+acapulco!BM35 -> 0 | BN35: =barton!BN35+gambetta!BN35+acapulco!BN35 -> 0 | BO35: =barton!BO35+gambetta!BO35+acapulco!BO35 -> 0 | BP35: 0 | BQ35: =barton!BQ35+gambetta!BQ35+acapulco!BQ35 -> 0 | BR35: =barton!BR35+gambetta!BR35+acapulco!BR35 -> 0 | BS35: =barton!BS35+gambetta!BS35+acapulco!BS35 -> 0 | BT35: =barton!BT35+gambetta!BT35+acapulco!BT35 -> 0 | BU35: =barton!BU35+gambetta!BU35+acapulco!BU35 -> 0 | BV35: 0 | BW35: =barton!BW35+gambetta!BW35+acapulco!BW35 -> 0 | BX35: =barton!BX35+gambetta!BX35+acapulco!BX35 -> 0 | BY35: =barton!BY35+gambetta!BY35+acapulco!BY35 -> 0 | BZ35: =barton!BZ35+gambetta!BZ35+acapulco!BZ35 -> 0 | CA35: =barton!CA35+gambetta!CA35+acapulco!CA35 -> 0
A36: T.G.O. (TRANSAMINASAS) | B36: 8865 | C36: =SUMIF($I$8:$CA36,$C$8,I36:CA36) -> 93 | D36: =SUMIF($I$8:$CA36,$D$8,I36:CA36) -> 8366 | E36: =SUMIF($I$8:$CA36,$E$8,I36:CA36) -> 214 | F36: =SUMIF($I$8:$CA36,$F$8,I36:CA36) -> 160 | G36: =SUMIF($I$8:$CA36,$G$8,I36:CA36) -> 32 | H36: 714 | I36: =barton!I36+gambetta!I36+acapulco!I36 -> 11 | J36: =barton!J36+gambetta!J36+acapulco!J36 -> 648 | K36: =barton!K36+gambetta!K36+acapulco!K36 -> 34 | L36: =barton!L36+gambetta!L36+acapulco!L36 -> 21 | M36: =barton!M36+gambetta!M36+acapulco!M36 -> 0 | N36: 1316 | O36: =barton!O36+gambetta!O36+acapulco!O36 -> 16 | P36: =barton!P36+gambetta!P36+acapulco!P36 -> 1215 | Q36: =barton!Q36+gambetta!Q36+acapulco!Q36 -> 46 | R36: =barton!R36+gambetta!R36+acapulco!R36 -> 34 | S36: =barton!S36+gambetta!S36+acapulco!S36 -> 5 | T36: 1668 | U36: =barton!U36+gambetta!U36+acapulco!U36 -> 24 | V36: =barton!V36+gambetta!V36+acapulco!V36 -> 1596 | W36: =barton!W36+gambetta!W36+acapulco!W36 -> 20 | X36: =barton!X36+gambetta!X36+acapulco!X36 -> 19 | Y36: =barton!Y36+gambetta!Y36+acapulco!Y36 -> 9 | Z36: 740 | AA36: =barton!AA36+gambetta!AA36+acapulco!AA36 -> 5 | AB36: =barton!AB36+gambetta!AB36+acapulco!AB36 -> 708 | AC36: =barton!AC36+gambetta!AC36+acapulco!AC36 -> 16 | AD36: =barton!AD36+gambetta!AD36+acapulco!AD36 -> 7 | AE36: =barton!AE36+gambetta!AE36+acapulco!AE36 -> 4 | AF36: 129 | AG36: =barton!AG36+gambetta!AG36+acapulco!AG36 -> 0 | AH36: =barton!AH36+gambetta!AH36+acapulco!AH36 -> 125 | AI36: =barton!AI36+gambetta!AI36+acapulco!AI36 -> 3 | AJ36: =barton!AJ36+gambetta!AJ36+acapulco!AJ36 -> 0 | AK36: =barton!AK36+gambetta!AK36+acapulco!AK36 -> 1 | AL36: 5 | AM36: =barton!AM36+gambetta!AM36+acapulco!AM36 -> 0 | AN36: =barton!AN36+gambetta!AN36+acapulco!AN36 -> 4 | AO36: =barton!AO36+gambetta!AO36+acapulco!AO36 -> 1 | AP36: =barton!AP36+gambetta!AP36+acapulco!AP36 -> 0 | AQ36: =barton!AQ36+gambetta!AQ36+acapulco!AQ36 -> 0 | AR36: 560 | AS36: =barton!AS36+gambetta!AS36+acapulco!AS36 -> 4 | AT36: =barton!AT36+gambetta!AT36+acapulco!AT36 -> 535 | AU36: =barton!AU36+gambetta!AU36+acapulco!AU36 -> 13 | AV36: =barton!AV36+gambetta!AV36+acapulco!AV36 -> 5 | AW36: =barton!AW36+gambetta!AW36+acapulco!AW36 -> 3 | AX36: 863 | AY36: =barton!AY36+gambetta!AY36+acapulco!AY36 -> 11 | AZ36: =barton!AZ36+gambetta!AZ36+acapulco!AZ36 -> 814 | BA36: =barton!BA36+gambetta!BA36+acapulco!BA36 -> 25 | BB36: =barton!BB36+gambetta!BB36+acapulco!BB36 -> 13 | BC36: =barton!BC36+gambetta!BC36+acapulco!BC36 -> 0 | BD36: 121 | BE36: =barton!BE36+gambetta!BE36+acapulco!BE36 -> 1 | BF36: =barton!BF36+gambetta!BF36+acapulco!BF36 -> 112 | BG36: =barton!BG36+gambetta!BG36+acapulco!BG36 -> 3 | BH36: =barton!BH36+gambetta!BH36+acapulco!BH36 -> 5 | BI36: =barton!BI36+gambetta!BI36+acapulco!BI36 -> 0 | BJ36: 885 | BK36: =barton!BK36+gambetta!BK36+acapulco!BK36 -> 11 | BL36: =barton!BL36+gambetta!BL36+acapulco!BL36 -> 816 | BM36: =barton!BM36+gambetta!BM36+acapulco!BM36 -> 24 | BN36: =barton!BN36+gambetta!BN36+acapulco!BN36 -> 33 | BO36: =barton!BO36+gambetta!BO36+acapulco!BO36 -> 1 | BP36: 952 | BQ36: =barton!BQ36+gambetta!BQ36+acapulco!BQ36 -> 4 | BR36: =barton!BR36+gambetta!BR36+acapulco!BR36 -> 918 | BS36: =barton!BS36+gambetta!BS36+acapulco!BS36 -> 14 | BT36: =barton!BT36+gambetta!BT36+acapulco!BT36 -> 12 | BU36: =barton!BU36+gambetta!BU36+acapulco!BU36 -> 4 | BV36: 912 | BW36: =barton!BW36+gambetta!BW36+acapulco!BW36 -> 6 | BX36: =barton!BX36+gambetta!BX36+acapulco!BX36 -> 875 | BY36: =barton!BY36+gambetta!BY36+acapulco!BY36 -> 15 | BZ36: =barton!BZ36+gambetta!BZ36+acapulco!BZ36 -> 11 | CA36: =barton!CA36+gambetta!CA36+acapulco!CA36 -> 5
A37: T.G.P. (TRANSAMINASAS) | B37: 8269 | C37: =SUMIF($I$8:$CA37,$C$8,I37:CA37) -> 87 | D37: =SUMIF($I$8:$CA37,$D$8,I37:CA37) -> 7791 | E37: =SUMIF($I$8:$CA37,$E$8,I37:CA37) -> 204 | F37: =SUMIF($I$8:$CA37,$F$8,I37:CA37) -> 158 | G37: =SUMIF($I$8:$CA37,$G$8,I37:CA37) -> 29 | H37: 714 | I37: =barton!I37+gambetta!I37+acapulco!I37 -> 11 | J37: =barton!J37+gambetta!J37+acapulco!J37 -> 648 | K37: =barton!K37+gambetta!K37+acapulco!K37 -> 34 | L37: =barton!L37+gambetta!L37+acapulco!L37 -> 21 | M37: =barton!M37+gambetta!M37+acapulco!M37 -> 0 | N37: 1316 | O37: =barton!O37+gambetta!O37+acapulco!O37 -> 16 | P37: =barton!P37+gambetta!P37+acapulco!P37 -> 1215 | Q37: =barton!Q37+gambetta!Q37+acapulco!Q37 -> 46 | R37: =barton!R37+gambetta!R37+acapulco!R37 -> 34 | S37: =barton!S37+gambetta!S37+acapulco!S37 -> 5 | T37: 1272 | U37: =barton!U37+gambetta!U37+acapulco!U37 -> 21 | V37: =barton!V37+gambetta!V37+acapulco!V37 -> 1216 | W37: =barton!W37+gambetta!W37+acapulco!W37 -> 10 | X37: =barton!X37+gambetta!X37+acapulco!X37 -> 19 | Y37: =barton!Y37+gambetta!Y37+acapulco!Y37 -> 6 | Z37: 640 | AA37: =barton!AA37+gambetta!AA37+acapulco!AA37 -> 3 | AB37: =barton!AB37+gambetta!AB37+acapulco!AB37 -> 611 | AC37: =barton!AC37+gambetta!AC37+acapulco!AC37 -> 15 | AD37: =barton!AD37+gambetta!AD37+acapulco!AD37 -> 7 | AE37: =barton!AE37+gambetta!AE37+acapulco!AE37 -> 4 | AF37: 130 | AG37: =barton!AG37+gambetta!AG37+acapulco!AG37 -> 0 | AH37: =barton!AH37+gambetta!AH37+acapulco!AH37 -> 125 | AI37: =barton!AI37+gambetta!AI37+acapulco!AI37 -> 4 | AJ37: =barton!AJ37+gambetta!AJ37+acapulco!AJ37 -> 0 | AK37: =barton!AK37+gambetta!AK37+acapulco!AK37 -> 1 | AL37: 5 | AM37: =barton!AM37+gambetta!AM37+acapulco!AM37 -> 0 | AN37: =barton!AN37+gambetta!AN37+acapulco!AN37 -> 4 | AO37: =barton!AO37+gambetta!AO37+acapulco!AO37 -> 1 | AP37: =barton!AP37+gambetta!AP37+acapulco!AP37 -> 0 | AQ37: =barton!AQ37+gambetta!AQ37+acapulco!AQ37 -> 0 | AR37: 561 | AS37: =barton!AS37+gambetta!AS37+acapulco!AS37 -> 5 | AT37: =barton!AT37+gambetta!AT37+acapulco!AT37 -> 535 | AU37: =barton!AU37+gambetta!AU37+acapulco!AU37 -> 13 | AV37: =barton!AV37+gambetta!AV37+acapulco!AV37 -> 5 | AW37: =barton!AW37+gambetta!AW37+acapulco!AW37 -> 3 | AX37: 760 | AY37: =barton!AY37+gambetta!AY37+acapulco!AY37 -> 9 | AZ37: =barton!AZ37+gambetta!AZ37+acapulco!AZ37 -> 715 | BA37: =barton!BA37+gambetta!BA37+acapulco!BA37 -> 25 | BB37: =barton!BB37+gambetta!BB37+acapulco!BB37 -> 11 | BC37: =barton!BC37+gambetta!BC37+acapulco!BC37 -> 0 | BD37: 121 | BE37: =barton!BE37+gambetta!BE37+acapulco!BE37 -> 1 | BF37: =barton!BF37+gambetta!BF37+acapulco!BF37 -> 112 | BG37: =barton!BG37+gambetta!BG37+acapulco!BG37 -> 3 | BH37: =barton!BH37+gambetta!BH37+acapulco!BH37 -> 5 | BI37: =barton!BI37+gambetta!BI37+acapulco!BI37 -> 0 | BJ37: 886 | BK37: =barton!BK37+gambetta!BK37+acapulco!BK37 -> 11 | BL37: =barton!BL37+gambetta!BL37+acapulco!BL37 -> 817 | BM37: =barton!BM37+gambetta!BM37+acapulco!BM37 -> 24 | BN37: =barton!BN37+gambetta!BN37+acapulco!BN37 -> 33 | BO37: =barton!BO37+gambetta!BO37+acapulco!BO37 -> 1 | BP37: 952 | BQ37: =barton!BQ37+gambetta!BQ37+acapulco!BQ37 -> 4 | BR37: =barton!BR37+gambetta!BR37+acapulco!BR37 -> 918 | BS37: =barton!BS37+gambetta!BS37+acapulco!BS37 -> 14 | BT37: =barton!BT37+gambetta!BT37+acapulco!BT37 -> 12 | BU37: =barton!BU37+gambetta!BU37+acapulco!BU37 -> 4 | BV37: 912 | BW37: =barton!BW37+gambetta!BW37+acapulco!BW37 -> 6 | BX37: =barton!BX37+gambetta!BX37+acapulco!BX37 -> 875 | BY37: =barton!BY37+gambetta!BY37+acapulco!BY37 -> 15 | BZ37: =barton!BZ37+gambetta!BZ37+acapulco!BZ37 -> 11 | CA37: =barton!CA37+gambetta!CA37+acapulco!CA37 -> 5
A38: TEST DE GLUCOSA POSTPRANDIAL | B38: 742 | C38: =SUMIF($I$8:$CA38,$C$8,I38:CA38) -> 3 | D38: =SUMIF($I$8:$CA38,$D$8,I38:CA38) -> 683 | E38: =SUMIF($I$8:$CA38,$E$8,I38:CA38) -> 8 | F38: =SUMIF($I$8:$CA38,$F$8,I38:CA38) -> 2 | G38: =SUMIF($I$8:$CA38,$G$8,I38:CA38) -> 46 | H38: 24 | I38: =barton!I38+gambetta!I38+acapulco!I38 -> 0 | J38: =barton!J38+gambetta!J38+acapulco!J38 -> 21 | K38: =barton!K38+gambetta!K38+acapulco!K38 -> 2 | L38: =barton!L38+gambetta!L38+acapulco!L38 -> 1 | M38: =barton!M38+gambetta!M38+acapulco!M38 -> 0 | N38: 40 | O38: =barton!O38+gambetta!O38+acapulco!O38 -> 1 | P38: =barton!P38+gambetta!P38+acapulco!P38 -> 39 | Q38: =barton!Q38+gambetta!Q38+acapulco!Q38 -> 0 | R38: =barton!R38+gambetta!R38+acapulco!R38 -> 0 | S38: =barton!S38+gambetta!S38+acapulco!S38 -> 0 | T38: 87 | U38: =barton!U38+gambetta!U38+acapulco!U38 -> 0 | V38: =barton!V38+gambetta!V38+acapulco!V38 -> 82 | W38: =barton!W38+gambetta!W38+acapulco!W38 -> 0 | X38: =barton!X38+gambetta!X38+acapulco!X38 -> 0 | Y38: =barton!Y38+gambetta!Y38+acapulco!Y38 -> 5 | Z38: 35 | AA38: =barton!AA38+gambetta!AA38+acapulco!AA38 -> 0 | AB38: =barton!AB38+gambetta!AB38+acapulco!AB38 -> 35 | AC38: =barton!AC38+gambetta!AC38+acapulco!AC38 -> 0 | AD38: =barton!AD38+gambetta!AD38+acapulco!AD38 -> 0 | AE38: =barton!AE38+gambetta!AE38+acapulco!AE38 -> 0 | AF38: 152 | AG38: =barton!AG38+gambetta!AG38+acapulco!AG38 -> 0 | AH38: =barton!AH38+gambetta!AH38+acapulco!AH38 -> 111 | AI38: =barton!AI38+gambetta!AI38+acapulco!AI38 -> 0 | AJ38: =barton!AJ38+gambetta!AJ38+acapulco!AJ38 -> 0 | AK38: =barton!AK38+gambetta!AK38+acapulco!AK38 -> 41 | AL38: 58 | AM38: =barton!AM38+gambetta!AM38+acapulco!AM38 -> 0 | AN38: =barton!AN38+gambetta!AN38+acapulco!AN38 -> 56 | AO38: =barton!AO38+gambetta!AO38+acapulco!AO38 -> 2 | AP38: =barton!AP38+gambetta!AP38+acapulco!AP38 -> 0 | AQ38: =barton!AQ38+gambetta!AQ38+acapulco!AQ38 -> 0 | AR38: 65 | AS38: =barton!AS38+gambetta!AS38+acapulco!AS38 -> 0 | AT38: =barton!AT38+gambetta!AT38+acapulco!AT38 -> 64 | AU38: =barton!AU38+gambetta!AU38+acapulco!AU38 -> 0 | AV38: =barton!AV38+gambetta!AV38+acapulco!AV38 -> 1 | AW38: =barton!AW38+gambetta!AW38+acapulco!AW38 -> 0 | AX38: 174 | AY38: =barton!AY38+gambetta!AY38+acapulco!AY38 -> 2 | AZ38: =barton!AZ38+gambetta!AZ38+acapulco!AZ38 -> 168 | BA38: =barton!BA38+gambetta!BA38+acapulco!BA38 -> 4 | BB38: =barton!BB38+gambetta!BB38+acapulco!BB38 -> 0 | BC38: =barton!BC38+gambetta!BC38+acapulco!BC38 -> 0 | BD38: 63 | BE38: =barton!BE38+gambetta!BE38+acapulco!BE38 -> 0 | BF38: =barton!BF38+gambetta!BF38+acapulco!BF38 -> 63 | BG38: =barton!BG38+gambetta!BG38+acapulco!BG38 -> 0 | BH38: =barton!BH38+gambetta!BH38+acapulco!BH38 -> 0 | BI38: =barton!BI38+gambetta!BI38+acapulco!BI38 -> 0 | BJ38: 0 | BK38: =barton!BK38+gambetta!BK38+acapulco!BK38 -> 0 | BL38: =barton!BL38+gambetta!BL38+acapulco!BL38 -> 0 | BM38: =barton!BM38+gambetta!BM38+acapulco!BM38 -> 0 | BN38: =barton!BN38+gambetta!BN38+acapulco!BN38 -> 0 | BO38: =barton!BO38+gambetta!BO38+acapulco!BO38 -> 0 | BP38: 44 | BQ38: =barton!BQ38+gambetta!BQ38+acapulco!BQ38 -> 0 | BR38: =barton!BR38+gambetta!BR38+acapulco!BR38 -> 44 | BS38: =barton!BS38+gambetta!BS38+acapulco!BS38 -> 0 | BT38: =barton!BT38+gambetta!BT38+acapulco!BT38 -> 0 | BU38: =barton!BU38+gambetta!BU38+acapulco!BU38 -> 0 | BV38: 0 | BW38: =barton!BW38+gambetta!BW38+acapulco!BW38 -> 0 | BX38: =barton!BX38+gambetta!BX38+acapulco!BX38 -> 0 | BY38: =barton!BY38+gambetta!BY38+acapulco!BY38 -> 0 | BZ38: =barton!BZ38+gambetta!BZ38+acapulco!BZ38 -> 0 | CA38: =barton!CA38+gambetta!CA38+acapulco!CA38 -> 0
A39: TEST TOLERANCIA A LA GLUCOSA | B39: 1063 | C39: =SUMIF($I$8:$CA39,$C$8,I39:CA39) -> 8 | D39: =SUMIF($I$8:$CA39,$D$8,I39:CA39) -> 1030 | E39: =SUMIF($I$8:$CA39,$E$8,I39:CA39) -> 19 | F39: =SUMIF($I$8:$CA39,$F$8,I39:CA39) -> 5 | G39: =SUMIF($I$8:$CA39,$G$8,I39:CA39) -> 1 | H39: 45 | I39: =barton!I39+gambetta!I39+acapulco!I39 -> 0 | J39: =barton!J39+gambetta!J39+acapulco!J39 -> 33 | K39: =barton!K39+gambetta!K39+acapulco!K39 -> 8 | L39: =barton!L39+gambetta!L39+acapulco!L39 -> 4 | M39: =barton!M39+gambetta!M39+acapulco!M39 -> 0 | N39: 88 | O39: =barton!O39+gambetta!O39+acapulco!O39 -> 4 | P39: =barton!P39+gambetta!P39+acapulco!P39 -> 84 | Q39: =barton!Q39+gambetta!Q39+acapulco!Q39 -> 0 | R39: =barton!R39+gambetta!R39+acapulco!R39 -> 0 | S39: =barton!S39+gambetta!S39+acapulco!S39 -> 0 | T39: 37 | U39: =barton!U39+gambetta!U39+acapulco!U39 -> 0 | V39: =barton!V39+gambetta!V39+acapulco!V39 -> 36 | W39: =barton!W39+gambetta!W39+acapulco!W39 -> 0 | X39: =barton!X39+gambetta!X39+acapulco!X39 -> 0 | Y39: =barton!Y39+gambetta!Y39+acapulco!Y39 -> 1 | Z39: 68 | AA39: =barton!AA39+gambetta!AA39+acapulco!AA39 -> 0 | AB39: =barton!AB39+gambetta!AB39+acapulco!AB39 -> 68 | AC39: =barton!AC39+gambetta!AC39+acapulco!AC39 -> 0 | AD39: =barton!AD39+gambetta!AD39+acapulco!AD39 -> 0 | AE39: =barton!AE39+gambetta!AE39+acapulco!AE39 -> 0 | AF39: 105 | AG39: =barton!AG39+gambetta!AG39+acapulco!AG39 -> 0 | AH39: =barton!AH39+gambetta!AH39+acapulco!AH39 -> 105 | AI39: =barton!AI39+gambetta!AI39+acapulco!AI39 -> 0 | AJ39: =barton!AJ39+gambetta!AJ39+acapulco!AJ39 -> 0 | AK39: =barton!AK39+gambetta!AK39+acapulco!AK39 -> 0 | AL39: 127 | AM39: =barton!AM39+gambetta!AM39+acapulco!AM39 -> 0 | AN39: =barton!AN39+gambetta!AN39+acapulco!AN39 -> 119 | AO39: =barton!AO39+gambetta!AO39+acapulco!AO39 -> 8 | AP39: =barton!AP39+gambetta!AP39+acapulco!AP39 -> 0 | AQ39: =barton!AQ39+gambetta!AQ39+acapulco!AQ39 -> 0 | AR39: 65 | AS39: =barton!AS39+gambetta!AS39+acapulco!AS39 -> 0 | AT39: =barton!AT39+gambetta!AT39+acapulco!AT39 -> 64 | AU39: =barton!AU39+gambetta!AU39+acapulco!AU39 -> 0 | AV39: =barton!AV39+gambetta!AV39+acapulco!AV39 -> 1 | AW39: =barton!AW39+gambetta!AW39+acapulco!AW39 -> 0 | AX39: 96 | AY39: =barton!AY39+gambetta!AY39+acapulco!AY39 -> 3 | AZ39: =barton!AZ39+gambetta!AZ39+acapulco!AZ39 -> 90 | BA39: =barton!BA39+gambetta!BA39+acapulco!BA39 -> 3 | BB39: =barton!BB39+gambetta!BB39+acapulco!BB39 -> 0 | BC39: =barton!BC39+gambetta!BC39+acapulco!BC39 -> 0 | BD39: 129 | BE39: =barton!BE39+gambetta!BE39+acapulco!BE39 -> 0 | BF39: =barton!BF39+gambetta!BF39+acapulco!BF39 -> 129 | BG39: =barton!BG39+gambetta!BG39+acapulco!BG39 -> 0 | BH39: =barton!BH39+gambetta!BH39+acapulco!BH39 -> 0 | BI39: =barton!BI39+gambetta!BI39+acapulco!BI39 -> 0 | BJ39: 172 | BK39: =barton!BK39+gambetta!BK39+acapulco!BK39 -> 0 | BL39: =barton!BL39+gambetta!BL39+acapulco!BL39 -> 172 | BM39: =barton!BM39+gambetta!BM39+acapulco!BM39 -> 0 | BN39: =barton!BN39+gambetta!BN39+acapulco!BN39 -> 0 | BO39: =barton!BO39+gambetta!BO39+acapulco!BO39 -> 0 | BP39: 94 | BQ39: =barton!BQ39+gambetta!BQ39+acapulco!BQ39 -> 0 | BR39: =barton!BR39+gambetta!BR39+acapulco!BR39 -> 94 | BS39: =barton!BS39+gambetta!BS39+acapulco!BS39 -> 0 | BT39: =barton!BT39+gambetta!BT39+acapulco!BT39 -> 0 | BU39: =barton!BU39+gambetta!BU39+acapulco!BU39 -> 0 | BV39: 37 | BW39: =barton!BW39+gambetta!BW39+acapulco!BW39 -> 1 | BX39: =barton!BX39+gambetta!BX39+acapulco!BX39 -> 36 | BY39: =barton!BY39+gambetta!BY39+acapulco!BY39 -> 0 | BZ39: =barton!BZ39+gambetta!BZ39+acapulco!BZ39 -> 0 | CA39: =barton!CA39+gambetta!CA39+acapulco!CA39 -> 0
A40: TRIGLICERIDOS | B40: 27165 | C40: =SUMIF($I$8:$CA40,$C$8,I40:CA40) -> 272 | D40: =SUMIF($I$8:$CA40,$D$8,I40:CA40) -> 22362 | E40: =SUMIF($I$8:$CA40,$E$8,I40:CA40) -> 422 | F40: =SUMIF($I$8:$CA40,$F$8,I40:CA40) -> 223 | G40: =SUMIF($I$8:$CA40,$G$8,I40:CA40) -> 3886 | H40: 978 | I40: =barton!I40+gambetta!I40+acapulco!I40 -> 24 | J40: =barton!J40+gambetta!J40+acapulco!J40 -> 891 | K40: =barton!K40+gambetta!K40+acapulco!K40 -> 37 | L40: =barton!L40+gambetta!L40+acapulco!L40 -> 24 | M40: =barton!M40+gambetta!M40+acapulco!M40 -> 2 | N40: 2552 | O40: =barton!O40+gambetta!O40+acapulco!O40 -> 30 | P40: =barton!P40+gambetta!P40+acapulco!P40 -> 1861 | Q40: =barton!Q40+gambetta!Q40+acapulco!Q40 -> 48 | R40: =barton!R40+gambetta!R40+acapulco!R40 -> 31 | S40: =barton!S40+gambetta!S40+acapulco!S40 -> 582 | T40: 4169 | U40: =barton!U40+gambetta!U40+acapulco!U40 -> 36 | V40: =barton!V40+gambetta!V40+acapulco!V40 -> 2690 | W40: =barton!W40+gambetta!W40+acapulco!W40 -> 27 | X40: =barton!X40+gambetta!X40+acapulco!X40 -> 19 | Y40: =barton!Y40+gambetta!Y40+acapulco!Y40 -> 1397 | Z40: 2938 | AA40: =barton!AA40+gambetta!AA40+acapulco!AA40 -> 19 | AB40: =barton!AB40+gambetta!AB40+acapulco!AB40 -> 1902 | AC40: =barton!AC40+gambetta!AC40+acapulco!AC40 -> 41 | AD40: =barton!AD40+gambetta!AD40+acapulco!AD40 -> 9 | AE40: =barton!AE40+gambetta!AE40+acapulco!AE40 -> 967 | AF40: 2574 | AG40: =barton!AG40+gambetta!AG40+acapulco!AG40 -> 20 | AH40: =barton!AH40+gambetta!AH40+acapulco!AH40 -> 2018 | AI40: =barton!AI40+gambetta!AI40+acapulco!AI40 -> 35 | AJ40: =barton!AJ40+gambetta!AJ40+acapulco!AJ40 -> 20 | AK40: =barton!AK40+gambetta!AK40+acapulco!AK40 -> 481 | AL40: 1850 | AM40: =barton!AM40+gambetta!AM40+acapulco!AM40 -> 22 | AN40: =barton!AN40+gambetta!AN40+acapulco!AN40 -> 1784 | AO40: =barton!AO40+gambetta!AO40+acapulco!AO40 -> 32 | AP40: =barton!AP40+gambetta!AP40+acapulco!AP40 -> 12 | AQ40: =barton!AQ40+gambetta!AQ40+acapulco!AQ40 -> 0 | AR40: 1966 | AS40: =barton!AS40+gambetta!AS40+acapulco!AS40 -> 20 | AT40: =barton!AT40+gambetta!AT40+acapulco!AT40 -> 1769 | AU40: =barton!AU40+gambetta!AU40+acapulco!AU40 -> 21 | AV40: =barton!AV40+gambetta!AV40+acapulco!AV40 -> 18 | AW40: =barton!AW40+gambetta!AW40+acapulco!AW40 -> 138 | AX40: 1980 | AY40: =barton!AY40+gambetta!AY40+acapulco!AY40 -> 25 | AZ40: =barton!AZ40+gambetta!AZ40+acapulco!AZ40 -> 1824 | BA40: =barton!BA40+gambetta!BA40+acapulco!BA40 -> 51 | BB40: =barton!BB40+gambetta!BB40+acapulco!BB40 -> 14 | BC40: =barton!BC40+gambetta!BC40+acapulco!BC40 -> 66 | BD40: 2205 | BE40: =barton!BE40+gambetta!BE40+acapulco!BE40 -> 28 | BF40: =barton!BF40+gambetta!BF40+acapulco!BF40 -> 2119 | BG40: =barton!BG40+gambetta!BG40+acapulco!BG40 -> 20 | BH40: =barton!BH40+gambetta!BH40+acapulco!BH40 -> 23 | BI40: =barton!BI40+gambetta!BI40+acapulco!BI40 -> 15 | BJ40: 2171 | BK40: =barton!BK40+gambetta!BK40+acapulco!BK40 -> 24 | BL40: =barton!BL40+gambetta!BL40+acapulco!BL40 -> 1927 | BM40: =barton!BM40+gambetta!BM40+acapulco!BM40 -> 70 | BN40: =barton!BN40+gambetta!BN40+acapulco!BN40 -> 32 | BO40: =barton!BO40+gambetta!BO40+acapulco!BO40 -> 118 | BP40: 2233 | BQ40: =barton!BQ40+gambetta!BQ40+acapulco!BQ40 -> 9 | BR40: =barton!BR40+gambetta!BR40+acapulco!BR40 -> 2129 | BS40: =barton!BS40+gambetta!BS40+acapulco!BS40 -> 20 | BT40: =barton!BT40+gambetta!BT40+acapulco!BT40 -> 10 | BU40: =barton!BU40+gambetta!BU40+acapulco!BU40 -> 65 | BV40: 1549 | BW40: =barton!BW40+gambetta!BW40+acapulco!BW40 -> 15 | BX40: =barton!BX40+gambetta!BX40+acapulco!BX40 -> 1448 | BY40: =barton!BY40+gambetta!BY40+acapulco!BY40 -> 20 | BZ40: =barton!BZ40+gambetta!BZ40+acapulco!BZ40 -> 11 | CA40: =barton!CA40+gambetta!CA40+acapulco!CA40 -> 55
A41: UREA | B41: 13181 | C41: =SUMIF($I$8:$CA41,$C$8,I41:CA41) -> 141 | D41: =SUMIF($I$8:$CA41,$D$8,I41:CA41) -> 11398 | E41: =SUMIF($I$8:$CA41,$E$8,I41:CA41) -> 302 | F41: =SUMIF($I$8:$CA41,$F$8,I41:CA41) -> 214 | G41: =SUMIF($I$8:$CA41,$G$8,I41:CA41) -> 1126 | H41: 627 | I41: =barton!I41+gambetta!I41+acapulco!I41 -> 9 | J41: =barton!J41+gambetta!J41+acapulco!J41 -> 565 | K41: =barton!K41+gambetta!K41+acapulco!K41 -> 31 | L41: =barton!L41+gambetta!L41+acapulco!L41 -> 21 | M41: =barton!M41+gambetta!M41+acapulco!M41 -> 1 | N41: 1400 | O41: =barton!O41+gambetta!O41+acapulco!O41 -> 16 | P41: =barton!P41+gambetta!P41+acapulco!P41 -> 995 | Q41: =barton!Q41+gambetta!Q41+acapulco!Q41 -> 41 | R41: =barton!R41+gambetta!R41+acapulco!R41 -> 29 | S41: =barton!S41+gambetta!S41+acapulco!S41 -> 319 | T41: 2134 | U41: =barton!U41+gambetta!U41+acapulco!U41 -> 28 | V41: =barton!V41+gambetta!V41+acapulco!V41 -> 1496 | W41: =barton!W41+gambetta!W41+acapulco!W41 -> 21 | X41: =barton!X41+gambetta!X41+acapulco!X41 -> 17 | Y41: =barton!Y41+gambetta!Y41+acapulco!Y41 -> 572 | Z41: 994 | AA41: =barton!AA41+gambetta!AA41+acapulco!AA41 -> 9 | AB41: =barton!AB41+gambetta!AB41+acapulco!AB41 -> 940 | AC41: =barton!AC41+gambetta!AC41+acapulco!AC41 -> 30 | AD41: =barton!AD41+gambetta!AD41+acapulco!AD41 -> 11 | AE41: =barton!AE41+gambetta!AE41+acapulco!AE41 -> 4 | AF41: 1153 | AG41: =barton!AG41+gambetta!AG41+acapulco!AG41 -> 8 | AH41: =barton!AH41+gambetta!AH41+acapulco!AH41 -> 1102 | AI41: =barton!AI41+gambetta!AI41+acapulco!AI41 -> 25 | AJ41: =barton!AJ41+gambetta!AJ41+acapulco!AJ41 -> 18 | AK41: =barton!AK41+gambetta!AK41+acapulco!AK41 -> 0 | AL41: 1012 | AM41: =barton!AM41+gambetta!AM41+acapulco!AM41 -> 11 | AN41: =barton!AN41+gambetta!AN41+acapulco!AN41 -> 969 | AO41: =barton!AO41+gambetta!AO41+acapulco!AO41 -> 19 | AP41: =barton!AP41+gambetta!AP41+acapulco!AP41 -> 13 | AQ41: =barton!AQ41+gambetta!AQ41+acapulco!AQ41 -> 0 | AR41: 1031 | AS41: =barton!AS41+gambetta!AS41+acapulco!AS41 -> 12 | AT41: =barton!AT41+gambetta!AT41+acapulco!AT41 -> 958 | AU41: =barton!AU41+gambetta!AU41+acapulco!AU41 -> 19 | AV41: =barton!AV41+gambetta!AV41+acapulco!AV41 -> 18 | AW41: =barton!AW41+gambetta!AW41+acapulco!AW41 -> 24 | AX41: 1037 | AY41: =barton!AY41+gambetta!AY41+acapulco!AY41 -> 20 | AZ41: =barton!AZ41+gambetta!AZ41+acapulco!AZ41 -> 948 | BA41: =barton!BA41+gambetta!BA41+acapulco!BA41 -> 50 | BB41: =barton!BB41+gambetta!BB41+acapulco!BB41 -> 16 | BC41: =barton!BC41+gambetta!BC41+acapulco!BC41 -> 3 | BD41: 1366 | BE41: =barton!BE41+gambetta!BE41+acapulco!BE41 -> 10 | BF41: =barton!BF41+gambetta!BF41+acapulco!BF41 -> 1123 | BG41: =barton!BG41+gambetta!BG41+acapulco!BG41 -> 19 | BH41: =barton!BH41+gambetta!BH41+acapulco!BH41 -> 18 | BI41: =barton!BI41+gambetta!BI41+acapulco!BI41 -> 196 | BJ41: 1024 | BK41: =barton!BK41+gambetta!BK41+acapulco!BK41 -> 9 | BL41: =barton!BL41+gambetta!BL41+acapulco!BL41 -> 961 | BM41: =barton!BM41+gambetta!BM41+acapulco!BM41 -> 23 | BN41: =barton!BN41+gambetta!BN41+acapulco!BN41 -> 31 | BO41: =barton!BO41+gambetta!BO41+acapulco!BO41 -> 0 | BP41: 733 | BQ41: =barton!BQ41+gambetta!BQ41+acapulco!BQ41 -> 3 | BR41: =barton!BR41+gambetta!BR41+acapulco!BR41 -> 705 | BS41: =barton!BS41+gambetta!BS41+acapulco!BS41 -> 12 | BT41: =barton!BT41+gambetta!BT41+acapulco!BT41 -> 10 | BU41: =barton!BU41+gambetta!BU41+acapulco!BU41 -> 3 | BV41: 670 | BW41: =barton!BW41+gambetta!BW41+acapulco!BW41 -> 6 | BX41: =barton!BX41+gambetta!BX41+acapulco!BX41 -> 636 | BY41: =barton!BY41+gambetta!BY41+acapulco!BY41 -> 12 | BZ41: =barton!BZ41+gambetta!BZ41+acapulco!BZ41 -> 12 | CA41: =barton!CA41+gambetta!CA41+acapulco!CA41 -> 4
A42: FUENTE: ORDEN DE ANALISIS
A45: ANALISIS | B45: TOTAL | C45: DEM | D45: SIS/AUS | E45: EXO | F45: ESTR. | G45: CAMP | H45: TOTAL | I45: DEM | J45: SIS/AUS | K45: EXO | L45: ESTR. | M45: CAMP | N45: TOTAL | O45: DEM | P45: SIS/AUS | Q45: EXO | R45: ESTR. | S45: CAMP | T45: TOTAL | U45: DEM | V45: SIS/AUS | W45: EXO | X45: ESTR. | Y45: CAMP | Z45: TOTAL | AA45: DEM | AB45: SIS/AUS | AC45: EXO | AD45: ESTR. | AE45: CAMP | AF45: TOTAL | AG45: DEM | AH45: SIS/AUS | AI45: EXO | AJ45: ESTR. | AK45: CAMP | AL45: TOTAL | AM45: DEM | AN45: SIS/AUS | AO45: EXO | AP45: ESTR. | AQ45: CAMP | AR45: TOTAL | AS45: DEM | AT45: SIS/AUS | AU45: EXO | AV45: ESTR. | AW45: CAMP | AX45: TOTAL | AY45: DEM | AZ45: SIS/AUS | BA45: EXO | BB45: ESTR. | BC45: CAMP | BD45: TOTAL | BE45: DEM | BF45: SIS/AUS | BG45: EXO | BH45: ESTR. | BI45: CAMP | BJ45: TOTAL | BK45: DEM | BL45: SIS/AUS | BM45: EXO | BN45: ESTR. | BO45: CAMP | BP45: TOTAL | BQ45: DEM | BR45: SIS/AUS | BS45: EXO | BT45: ESTR. | BU45: CAMP | BV45: TOTAL | BW45: DEM | BX45: SIS/AUS | BY45: EXO | BZ45: ESTR. | CA45: CAMP
A46: INMUNOLOGIA
A47: TOTAL | B47: =SUM(B48:B67) -> 18539 | C47: 120 | D47: 10367 | E47: 141 | F47: 5803 | G47: 2108 | H47: 1164 | I47: 5 | J47: 749 | K47: 9 | L47: 401 | M47: 0 | N47: 1104 | O47: 7 | P47: 699 | Q47: 19 | R47: 379 | S47: 0 | T47: 1263 | U47: 8 | V47: 889 | W47: 26 | X47: 305 | Y47: 35 | Z47: 1121 | AA47: 5 | AB47: 636 | AC47: 5 | AD47: 474 | AE47: 1 | AF47: 1248 | AG47: 2 | AH47: =SUM(AH48:AH67) -> 730 | AI47: 10 | AJ47: 506 | AK47: 0 | AL47: 1841 | AM47: 11 | AN47: 774 | AO47: 9 | AP47: 491 | AQ47: 556 | AR47: 1365 | AS47: 5 | AT47: 747 | AU47: 3 | AV47: 362 | AW47: 248 | AX47: 1645 | AY47: 10 | AZ47: 863 | BA47: 24 | BB47: 587 | BC47: 161 | BD47: 2289 | BE47: 7 | BF47: 980 | BG47: 2 | BH47: 597 | BI47: 703 | BJ47: 1810 | BK47: 13 | BL47: 1198 | BM47: 15 | BN47: =SUM(BN48:BN67) -> 524 | BO47: 60 | BP47: 2272 | BQ47: 43 | BR47: 1322 | BS47: 11 | BT47: 620 | BU47: 276 | BV47: 1417 | BW47: 4 | BX47: 780 | BY47: 8 | BZ47: 557 | CA47: 68
A48: AGLUTINACIONES ( O, H, A, B, Brucella ) | B48: =SUM(C48:G48) -> 872 | C48: =SUMIF($I$45:$CA48,$C$45,I48:CA48) -> 7 | D48: =SUMIF($I$45:$CA48,$D$45,I48:CA48) -> 350 | E48: =SUMIF($I$45:$CA48,$E$45,I48:CA48) -> 30 | F48: =SUMIF($I$45:$CA48,$F$45,I48:CA48) -> 0 | G48: =SUMIF($I$45:$CA48,$G$45,I48:CA48) -> 485 | H48: =SUM(I48:M48) -> 43 | I48: =barton!I48+gambetta!I48+acapulco!I48 -> 1 | J48: =barton!J48+gambetta!J48+acapulco!J48 -> 42 | K48: =barton!K48+gambetta!K48+acapulco!K48 -> 0 | L48: =barton!L48+gambetta!L48+acapulco!L48 -> 0 | M48: =barton!M48+gambetta!M48+acapulco!M48 -> 0 | N48: =SUM(O48:S48) -> 20 | O48: =barton!O48+gambetta!O48+acapulco!O48 -> 0 | P48: =barton!P48+gambetta!P48+acapulco!P48 -> 19 | Q48: =barton!Q48+gambetta!Q48+acapulco!Q48 -> 1 | R48: =barton!R48+gambetta!R48+acapulco!R48 -> 0 | S48: =barton!S48+gambetta!S48+acapulco!S48 -> 0 | T48: =SUM(U48:Y48) -> 37 | U48: =barton!U48+gambetta!U48+acapulco!U48 -> 1 | V48: =barton!V48+gambetta!V48+acapulco!V48 -> 14 | W48: =barton!W48+gambetta!W48+acapulco!W48 -> 22 | X48: =barton!X48+gambetta!X48+acapulco!X48 -> 0 | Y48: =barton!Y48+gambetta!Y48+acapulco!Y48 -> 0 | Z48: =SUM(AA48:AE48) -> 35 | AA48: =barton!AA48+gambetta!AA48+acapulco!AA48 -> 1 | AB48: =barton!AB48+gambetta!AB48+acapulco!AB48 -> 33 | AC48: =barton!AC48+gambetta!AC48+acapulco!AC48 -> 1 | AD48: =barton!AD48+gambetta!AD48+acapulco!AD48 -> 0 | AE48: =barton!AE48+gambetta!AE48+acapulco!AE48 -> 0 | AF48: =SUM(AG48:AK48) -> 29 | AG48: =barton!AG48+gambetta!AG48+acapulco!AG48 -> 1 | AH48: =barton!AH48+gambetta!AH48+acapulco!AH48 -> 25 | AI48: =barton!AI48+gambetta!AI48+acapulco!AI48 -> 3 | AJ48: =barton!AJ48+gambetta!AJ48+acapulco!AJ48 -> 0 | AK48: =barton!AK48+gambetta!AK48+acapulco!AK48 -> 0 | AL48: =SUM(AM48:AQ48) -> 35 | AM48: =barton!AM48+gambetta!AM48+acapulco!AM48 -> 2 | AN48: =barton!AN48+gambetta!AN48+acapulco!AN48 -> 33 | AO48: =barton!AO48+gambetta!AO48+acapulco!AO48 -> 0 | AP48: =barton!AP48+gambetta!AP48+acapulco!AP48 -> 0 | AQ48: =barton!AQ48+gambetta!AQ48+acapulco!AQ48 -> 0 | AR48: =SUM(AS48:AW48) -> 38 | AS48: =barton!AS48+gambetta!AS48+acapulco!AS48 -> 0 | AT48: =barton!AT48+gambetta!AT48+acapulco!AT48 -> 38 | AU48: =barton!AU48+gambetta!AU48+acapulco!AU48 -> 0 | AV48: =barton!AV48+gambetta!AV48+acapulco!AV48 -> 0 | AW48: =barton!AW48+gambetta!AW48+acapulco!AW48 -> 0 | AX48: =SUM(AY48:BC48) -> 42 | AY48: =barton!AY48+gambetta!AY48+acapulco!AY48 -> 0 | AZ48: =barton!AZ48+gambetta!AZ48+acapulco!AZ48 -> 41 | BA48: =barton!BA48+gambetta!BA48+acapulco!BA48 -> 1 | BB48: =barton!BB48+gambetta!BB48+acapulco!BB48 -> 0 | BC48: =barton!BC48+gambetta!BC48+acapulco!BC48 -> 0 | BD48: =SUM(BE48:BI48) -> 375 | BE48: =barton!BE48+gambetta!BE48+acapulco!BE48 -> 1 | BF48: =barton!BF48+gambetta!BF48+acapulco!BF48 -> 23 | BG48: =barton!BG48+gambetta!BG48+acapulco!BG48 -> 0 | BH48: =barton!BH48+gambetta!BH48+acapulco!BH48 -> 0 | BI48: =barton!BI48+gambetta!BI48+acapulco!BI48 -> 351 | BJ48: =SUM(BK48:BO48) -> 4 | BK48: =barton!BK48+gambetta!BK48+acapulco!BK48 -> 0 | BL48: =barton!BL48+gambetta!BL48+acapulco!BL48 -> 3 | BM48: =barton!BM48+gambetta!BM48+acapulco!BM48 -> 1 | BN48: =barton!BN48+gambetta!BN48+acapulco!BN48 -> 0 | BO48: =barton!BO48+gambetta!BO48+acapulco!BO48 -> 0 | BP48: =SUM(BQ48:BU48) -> 209 | BQ48: =barton!BQ48+gambetta!BQ48+acapulco!BQ48 -> 0 | BR48: =barton!BR48+gambetta!BR48+acapulco!BR48 -> 76 | BS48: =barton!BS48+gambetta!BS48+acapulco!BS48 -> 0 | BT48: =barton!BT48+gambetta!BT48+acapulco!BT48 -> 0 | BU48: =barton!BU48+gambetta!BU48+acapulco!BU48 -> 133 | BV48: =SUM(BW48:CA48) -> 5 | BW48: =barton!BW48+gambetta!BW48+acapulco!BW48 -> 0 | BX48: =barton!BX48+gambetta!BX48+acapulco!BX48 -> 3 | BY48: =barton!BY48+gambetta!BY48+acapulco!BY48 -> 1 | BZ48: =barton!BZ48+gambetta!BZ48+acapulco!BZ48 -> 0 | CA48: =barton!CA48+gambetta!CA48+acapulco!CA48 -> 1
A49: ANTIESTREPTOLISINA "O" (ASO) | B49: 17 | C49: =SUMIF($I$45:$CA49,$C$45,I49:CA49) -> 1 | D49: =SUMIF($I$45:$CA49,$D$45,I49:CA49) -> 16 | E49: =SUMIF($I$45:$CA49,$E$45,I49:CA49) -> 0 | F49: =SUMIF($I$45:$CA49,$F$45,I49:CA49) -> 0 | G49: =SUMIF($I$45:$CA49,$G$45,I49:CA49) -> 0 | H49: =SUM(I49:M49) -> 0 | I49: =barton!I49+gambetta!I49+acapulco!I49 -> 0 | J49: =barton!J49+gambetta!J49+acapulco!J49 -> 0 | K49: =barton!K49+gambetta!K49+acapulco!K49 -> 0 | L49: =barton!L49+gambetta!L49+acapulco!L49 -> 0 | M49: =barton!M49+gambetta!M49+acapulco!M49 -> 0 | N49: =SUM(O49:S49) -> 0 | O49: =barton!O49+gambetta!O49+acapulco!O49 -> 0 | P49: =barton!P49+gambetta!P49+acapulco!P49 -> 0 | Q49: =barton!Q49+gambetta!Q49+acapulco!Q49 -> 0 | R49: =barton!R49+gambetta!R49+acapulco!R49 -> 0 | S49: =barton!S49+gambetta!S49+acapulco!S49 -> 0 | T49: =SUM(U49:Y49) -> 0 | U49: =barton!U49+gambetta!U49+acapulco!U49 -> 0 | V49: =barton!V49+gambetta!V49+acapulco!V49 -> 0 | W49: =barton!W49+gambetta!W49+acapulco!W49 -> 0 | X49: =barton!X49+gambetta!X49+acapulco!X49 -> 0 | Y49: =barton!Y49+gambetta!Y49+acapulco!Y49 -> 0 | Z49: =SUM(AA49:AE49) -> 0 | AA49: =barton!AA49+gambetta!AA49+acapulco!AA49 -> 0 | AB49: =barton!AB49+gambetta!AB49+acapulco!AB49 -> 0 | AC49: =barton!AC49+gambetta!AC49+acapulco!AC49 -> 0 | AD49: =barton!AD49+gambetta!AD49+acapulco!AD49 -> 0 | AE49: =barton!AE49+gambetta!AE49+acapulco!AE49 -> 0 | AF49: =SUM(AG49:AK49) -> 0 | AG49: =barton!AG49+gambetta!AG49+acapulco!AG49 -> 0 | AH49: =barton!AH49+gambetta!AH49+acapulco!AH49 -> 0 | AI49: =barton!AI49+gambetta!AI49+acapulco!AI49 -> 0 | AJ49: =barton!AJ49+gambetta!AJ49+acapulco!AJ49 -> 0 | AK49: =barton!AK49+gambetta!AK49+acapulco!AK49 -> 0 | AL49: =SUM(AM49:AQ49) -> 7 | AM49: =barton!AM49+gambetta!AM49+acapulco!AM49 -> 1 | AN49: =barton!AN49+gambetta!AN49+acapulco!AN49 -> 6 | AO49: =barton!AO49+gambetta!AO49+acapulco!AO49 -> 0 | AP49: =barton!AP49+gambetta!AP49+acapulco!AP49 -> 0 | AQ49: =barton!AQ49+gambetta!AQ49+acapulco!AQ49 -> 0 | AR49: =SUM(AS49:AW49) -> 1 | AS49: =barton!AS49+gambetta!AS49+acapulco!AS49 -> 0 | AT49: =barton!AT49+gambetta!AT49+acapulco!AT49 -> 1 | AU49: =barton!AU49+gambetta!AU49+acapulco!AU49 -> 0 | AV49: =barton!AV49+gambetta!AV49+acapulco!AV49 -> 0 | AW49: =barton!AW49+gambetta!AW49+acapulco!AW49 -> 0 | AX49: =SUM(AY49:BC49) -> 2 | AY49: =barton!AY49+gambetta!AY49+acapulco!AY49 -> 0 | AZ49: =barton!AZ49+gambetta!AZ49+acapulco!AZ49 -> 2 | BA49: =barton!BA49+gambetta!BA49+acapulco!BA49 -> 0 | BB49: =barton!BB49+gambetta!BB49+acapulco!BB49 -> 0 | BC49: =barton!BC49+gambetta!BC49+acapulco!BC49 -> 0 | BD49: =SUM(BE49:BI49) -> 4 | BE49: =barton!BE49+gambetta!BE49+acapulco!BE49 -> 0 | BF49: =barton!BF49+gambetta!BF49+acapulco!BF49 -> 4 | BG49: =barton!BG49+gambetta!BG49+acapulco!BG49 -> 0 | BH49: =barton!BH49+gambetta!BH49+acapulco!BH49 -> 0 | BI49: =barton!BI49+gambetta!BI49+acapulco!BI49 -> 0 | BJ49: =SUM(BK49:BO49) -> 0 | BK49: =barton!BK49+gambetta!BK49+acapulco!BK49 -> 0 | BL49: =barton!BL49+gambetta!BL49+acapulco!BL49 -> 0 | BM49: =barton!BM49+gambetta!BM49+acapulco!BM49 -> 0 | BN49: =barton!BN49+gambetta!BN49+acapulco!BN49 -> 0 | BO49: =barton!BO49+gambetta!BO49+acapulco!BO49 -> 0 | BP49: =SUM(BQ49:BU49) -> 2 | BQ49: =barton!BQ49+gambetta!BQ49+acapulco!BQ49 -> 0 | BR49: =barton!BR49+gambetta!BR49+acapulco!BR49 -> 2 | BS49: =barton!BS49+gambetta!BS49+acapulco!BS49 -> 0 | BT49: =barton!BT49+gambetta!BT49+acapulco!BT49 -> 0 | BU49: =barton!BU49+gambetta!BU49+acapulco!BU49 -> 0 | BV49: =SUM(BW49:CA49) -> 1 | BW49: =barton!BW49+gambetta!BW49+acapulco!BW49 -> 0 | BX49: =barton!BX49+gambetta!BX49+acapulco!BX49 -> 1 | BY49: =barton!BY49+gambetta!BY49+acapulco!BY49 -> 0 | BZ49: =barton!BZ49+gambetta!BZ49+acapulco!BZ49 -> 0 | CA49: =barton!CA49+gambetta!CA49+acapulco!CA49 -> 0
A50: ANTIGENO PROSTATICO ESPECIFICO (PSA) | B50: 46 | C50: =SUMIF($I$45:$CA50,$C$45,I50:CA50) -> 0 | D50: =SUMIF($I$45:$CA50,$D$45,I50:CA50) -> 23 | E50: =SUMIF($I$45:$CA50,$E$45,I50:CA50) -> 1 | F50: =SUMIF($I$45:$CA50,$F$45,I50:CA50) -> 0 | G50: =SUMIF($I$45:$CA50,$G$45,I50:CA50) -> 22 | H50: 0 | I50: =barton!I50+gambetta!I50+acapulco!I50 -> 0 | J50: =barton!J50+gambetta!J50+acapulco!J50 -> 0 | K50: =barton!K50+gambetta!K50+acapulco!K50 -> 0 | L50: =barton!L50+gambetta!L50+acapulco!L50 -> 0 | M50: =barton!M50+gambetta!M50+acapulco!M50 -> 0 | N50: 0 | O50: =barton!O50+gambetta!O50+acapulco!O50 -> 0 | P50: =barton!P50+gambetta!P50+acapulco!P50 -> 0 | Q50: =barton!Q50+gambetta!Q50+acapulco!Q50 -> 0 | R50: =barton!R50+gambetta!R50+acapulco!R50 -> 0 | S50: =barton!S50+gambetta!S50+acapulco!S50 -> 0 | T50: 7 | U50: =barton!U50+gambetta!U50+acapulco!U50 -> 0 | V50: =barton!V50+gambetta!V50+acapulco!V50 -> 6 | W50: =barton!W50+gambetta!W50+acapulco!W50 -> 1 | X50: =barton!X50+gambetta!X50+acapulco!X50 -> 0 | Y50: =barton!Y50+gambetta!Y50+acapulco!Y50 -> 0 | Z50: 0 | AA50: =barton!AA50+gambetta!AA50+acapulco!AA50 -> 0 | AB50: =barton!AB50+gambetta!AB50+acapulco!AB50 -> 0 | AC50: =barton!AC50+gambetta!AC50+acapulco!AC50 -> 0 | AD50: =barton!AD50+gambetta!AD50+acapulco!AD50 -> 0 | AE50: =barton!AE50+gambetta!AE50+acapulco!AE50 -> 0 | AF50: 0 | AG50: =barton!AG50+gambetta!AG50+acapulco!AG50 -> 0 | AH50: =barton!AH50+gambetta!AH50+acapulco!AH50 -> 0 | AI50: =barton!AI50+gambetta!AI50+acapulco!AI50 -> 0 | AJ50: =barton!AJ50+gambetta!AJ50+acapulco!AJ50 -> 0 | AK50: =barton!AK50+gambetta!AK50+acapulco!AK50 -> 0 | AL50: 0 | AM50: =barton!AM50+gambetta!AM50+acapulco!AM50 -> 0 | AN50: =barton!AN50+gambetta!AN50+acapulco!AN50 -> 0 | AO50: =barton!AO50+gambetta!AO50+acapulco!AO50 -> 0 | AP50: =barton!AP50+gambetta!AP50+acapulco!AP50 -> 0 | AQ50: =barton!AQ50+gambetta!AQ50+acapulco!AQ50 -> 0 | AR50: 36 | AS50: =barton!AS50+gambetta!AS50+acapulco!AS50 -> 0 | AT50: =barton!AT50+gambetta!AT50+acapulco!AT50 -> 14 | AU50: =barton!AU50+gambetta!AU50+acapulco!AU50 -> 0 | AV50: =barton!AV50+gambetta!AV50+acapulco!AV50 -> 0 | AW50: =barton!AW50+gambetta!AW50+acapulco!AW50 -> 22 | AX50: 0 | AY50: =barton!AY50+gambetta!AY50+acapulco!AY50 -> 0 | AZ50: =barton!AZ50+gambetta!AZ50+acapulco!AZ50 -> 0 | BA50: =barton!BA50+gambetta!BA50+acapulco!BA50 -> 0 | BB50: =barton!BB50+gambetta!BB50+acapulco!BB50 -> 0 | BC50: =barton!BC50+gambetta!BC50+acapulco!BC50 -> 0 | BD50: 0 | BE50: =barton!BE50+gambetta!BE50+acapulco!BE50 -> 0 | BF50: =barton!BF50+gambetta!BF50+acapulco!BF50 -> 0 | BG50: =barton!BG50+gambetta!BG50+acapulco!BG50 -> 0 | BH50: =barton!BH50+gambetta!BH50+acapulco!BH50 -> 0 | BI50: =barton!BI50+gambetta!BI50+acapulco!BI50 -> 0 | BJ50: 3 | BK50: =barton!BK50+gambetta!BK50+acapulco!BK50 -> 0 | BL50: =barton!BL50+gambetta!BL50+acapulco!BL50 -> 3 | BM50: =barton!BM50+gambetta!BM50+acapulco!BM50 -> 0 | BN50: =barton!BN50+gambetta!BN50+acapulco!BN50 -> 0 | BO50: =barton!BO50+gambetta!BO50+acapulco!BO50 -> 0 | BP50: 0 | BQ50: =barton!BQ50+gambetta!BQ50+acapulco!BQ50 -> 0 | BR50: =barton!BR50+gambetta!BR50+acapulco!BR50 -> 0 | BS50: =barton!BS50+gambetta!BS50+acapulco!BS50 -> 0 | BT50: =barton!BT50+gambetta!BT50+acapulco!BT50 -> 0 | BU50: =barton!BU50+gambetta!BU50+acapulco!BU50 -> 0 | BV50: 0 | BW50: =barton!BW50+gambetta!BW50+acapulco!BW50 -> 0 | BX50: =barton!BX50+gambetta!BX50+acapulco!BX50 -> 0 | BY50: =barton!BY50+gambetta!BY50+acapulco!BY50 -> 0 | BZ50: =barton!BZ50+gambetta!BZ50+acapulco!BZ50 -> 0 | CA50: =barton!CA50+gambetta!CA50+acapulco!CA50 -> 0
A51: DOS MERCAPTO ETANOL | B51: 0 | C51: =SUMIF($I$45:$CA51,$C$45,I51:CA51) -> 0 | D51: =SUMIF($I$45:$CA51,$D$45,I51:CA51) -> 0 | E51: =SUMIF($I$45:$CA51,$E$45,I51:CA51) -> 0 | F51: =SUMIF($I$45:$CA51,$F$45,I51:CA51) -> 0 | G51: =SUMIF($I$45:$CA51,$G$45,I51:CA51) -> 0 | H51: 0 | I51: =barton!I51+gambetta!I51+acapulco!I51 -> 0 | J51: =barton!J51+gambetta!J51+acapulco!J51 -> 0 | K51: =barton!K51+gambetta!K51+acapulco!K51 -> 0 | L51: =barton!L51+gambetta!L51+acapulco!L51 -> 0 | M51: =barton!M51+gambetta!M51+acapulco!M51 -> 0 | N51: 0 | O51: =barton!O51+gambetta!O51+acapulco!O51 -> 0 | P51: =barton!P51+gambetta!P51+acapulco!P51 -> 0 | Q51: =barton!Q51+gambetta!Q51+acapulco!Q51 -> 0 | R51: =barton!R51+gambetta!R51+acapulco!R51 -> 0 | S51: =barton!S51+gambetta!S51+acapulco!S51 -> 0 | T51: 0 | U51: =barton!U51+gambetta!U51+acapulco!U51 -> 0 | V51: =barton!V51+gambetta!V51+acapulco!V51 -> 0 | W51: =barton!W51+gambetta!W51+acapulco!W51 -> 0 | X51: =barton!X51+gambetta!X51+acapulco!X51 -> 0 | Y51: =barton!Y51+gambetta!Y51+acapulco!Y51 -> 0 | Z51: 0 | AA51: =barton!AA51+gambetta!AA51+acapulco!AA51 -> 0 | AB51: =barton!AB51+gambetta!AB51+acapulco!AB51 -> 0 | AC51: =barton!AC51+gambetta!AC51+acapulco!AC51 -> 0 | AD51: =barton!AD51+gambetta!AD51+acapulco!AD51 -> 0 | AE51: =barton!AE51+gambetta!AE51+acapulco!AE51 -> 0 | AF51: 0 | AG51: =barton!AG51+gambetta!AG51+acapulco!AG51 -> 0 | AH51: =barton!AH51+gambetta!AH51+acapulco!AH51 -> 0 | AI51: =barton!AI51+gambetta!AI51+acapulco!AI51 -> 0 | AJ51: =barton!AJ51+gambetta!AJ51+acapulco!AJ51 -> 0 | AK51: =barton!AK51+gambetta!AK51+acapulco!AK51 -> 0 | AL51: 0 | AM51: =barton!AM51+gambetta!AM51+acapulco!AM51 -> 0 | AN51: =barton!AN51+gambetta!AN51+acapulco!AN51 -> 0 | AO51: =barton!AO51+gambetta!AO51+acapulco!AO51 -> 0 | AP51: =barton!AP51+gambetta!AP51+acapulco!AP51 -> 0 | AQ51: =barton!AQ51+gambetta!AQ51+acapulco!AQ51 -> 0 | AR51: 0 | AS51: =barton!AS51+gambetta!AS51+acapulco!AS51 -> 0 | AT51: =barton!AT51+gambetta!AT51+acapulco!AT51 -> 0 | AU51: =barton!AU51+gambetta!AU51+acapulco!AU51 -> 0 | AV51: =barton!AV51+gambetta!AV51+acapulco!AV51 -> 0 | AW51: =barton!AW51+gambetta!AW51+acapulco!AW51 -> 0 | AX51: 0 | AY51: =barton!AY51+gambetta!AY51+acapulco!AY51 -> 0 | AZ51: =barton!AZ51+gambetta!AZ51+acapulco!AZ51 -> 0 | BA51: =barton!BA51+gambetta!BA51+acapulco!BA51 -> 0 | BB51: =barton!BB51+gambetta!BB51+acapulco!BB51 -> 0 | BC51: =barton!BC51+gambetta!BC51+acapulco!BC51 -> 0 | BD51: 0 | BE51: =barton!BE51+gambetta!BE51+acapulco!BE51 -> 0 | BF51: =barton!BF51+gambetta!BF51+acapulco!BF51 -> 0 | BG51: =barton!BG51+gambetta!BG51+acapulco!BG51 -> 0 | BH51: =barton!BH51+gambetta!BH51+acapulco!BH51 -> 0 | BI51: =barton!BI51+gambetta!BI51+acapulco!BI51 -> 0 | BJ51: 0 | BK51: =barton!BK51+gambetta!BK51+acapulco!BK51 -> 0 | BL51: =barton!BL51+gambetta!BL51+acapulco!BL51 -> 0 | BM51: =barton!BM51+gambetta!BM51+acapulco!BM51 -> 0 | BN51: =barton!BN51+gambetta!BN51+acapulco!BN51 -> 0 | BO51: =barton!BO51+gambetta!BO51+acapulco!BO51 -> 0 | BP51: 0 | BQ51: =barton!BQ51+gambetta!BQ51+acapulco!BQ51 -> 0 | BR51: =barton!BR51+gambetta!BR51+acapulco!BR51 -> 0 | BS51: =barton!BS51+gambetta!BS51+acapulco!BS51 -> 0 | BT51: =barton!BT51+gambetta!BT51+acapulco!BT51 -> 0 | BU51: =barton!BU51+gambetta!BU51+acapulco!BU51 -> 0 | BV51: 0 | BW51: =barton!BW51+gambetta!BW51+acapulco!BW51 -> 0 | BX51: =barton!BX51+gambetta!BX51+acapulco!BX51 -> 0 | BY51: =barton!BY51+gambetta!BY51+acapulco!BY51 -> 0 | BZ51: =barton!BZ51+gambetta!BZ51+acapulco!BZ51 -> 0 | CA51: =barton!CA51+gambetta!CA51+acapulco!CA51 -> 0
A52: FACTOR REUMATOIDEO | B52: 297 | C52: =SUMIF($I$45:$CA52,$C$45,I52:CA52) -> 4 | D52: =SUMIF($I$45:$CA52,$D$45,I52:CA52) -> 284 | E52: =SUMIF($I$45:$CA52,$E$45,I52:CA52) -> 9 | F52: =SUMIF($I$45:$CA52,$F$45,I52:CA52) -> 0 | G52: =SUMIF($I$45:$CA52,$G$45,I52:CA52) -> 0 | H52: 0 | I52: =barton!I52+gambetta!I52+acapulco!I52 -> 0 | J52: =barton!J52+gambetta!J52+acapulco!J52 -> 0 | K52: =barton!K52+gambetta!K52+acapulco!K52 -> 0 | L52: =barton!L52+gambetta!L52+acapulco!L52 -> 0 | M52: =barton!M52+gambetta!M52+acapulco!M52 -> 0 | N52: 0 | O52: =barton!O52+gambetta!O52+acapulco!O52 -> 0 | P52: =barton!P52+gambetta!P52+acapulco!P52 -> 0 | Q52: =barton!Q52+gambetta!Q52+acapulco!Q52 -> 0 | R52: =barton!R52+gambetta!R52+acapulco!R52 -> 0 | S52: =barton!S52+gambetta!S52+acapulco!S52 -> 0 | T52: 0 | U52: =barton!U52+gambetta!U52+acapulco!U52 -> 0 | V52: =barton!V52+gambetta!V52+acapulco!V52 -> 0 | W52: =barton!W52+gambetta!W52+acapulco!W52 -> 0 | X52: =barton!X52+gambetta!X52+acapulco!X52 -> 0 | Y52: =barton!Y52+gambetta!Y52+acapulco!Y52 -> 0 | Z52: 0 | AA52: =barton!AA52+gambetta!AA52+acapulco!AA52 -> 0 | AB52: =barton!AB52+gambetta!AB52+acapulco!AB52 -> 0 | AC52: =barton!AC52+gambetta!AC52+acapulco!AC52 -> 0 | AD52: =barton!AD52+gambetta!AD52+acapulco!AD52 -> 0 | AE52: =barton!AE52+gambetta!AE52+acapulco!AE52 -> 0 | AF52: 0 | AG52: =barton!AG52+gambetta!AG52+acapulco!AG52 -> 0 | AH52: =barton!AH52+gambetta!AH52+acapulco!AH52 -> 0 | AI52: =barton!AI52+gambetta!AI52+acapulco!AI52 -> 0 | AJ52: =barton!AJ52+gambetta!AJ52+acapulco!AJ52 -> 0 | AK52: =barton!AK52+gambetta!AK52+acapulco!AK52 -> 0 | AL52: 16 | AM52: =barton!AM52+gambetta!AM52+acapulco!AM52 -> 1 | AN52: =barton!AN52+gambetta!AN52+acapulco!AN52 -> 15 | AO52: =barton!AO52+gambetta!AO52+acapulco!AO52 -> 0 | AP52: =barton!AP52+gambetta!AP52+acapulco!AP52 -> 0 | AQ52: =barton!AQ52+gambetta!AQ52+acapulco!AQ52 -> 0 | AR52: 41 | AS52: =barton!AS52+gambetta!AS52+acapulco!AS52 -> 0 | AT52: =barton!AT52+gambetta!AT52+acapulco!AT52 -> 40 | AU52: =barton!AU52+gambetta!AU52+acapulco!AU52 -> 1 | AV52: =barton!AV52+gambetta!AV52+acapulco!AV52 -> 0 | AW52: =barton!AW52+gambetta!AW52+acapulco!AW52 -> 0 | AX52: 33 | AY52: =barton!AY52+gambetta!AY52+acapulco!AY52 -> 1 | AZ52: =barton!AZ52+gambetta!AZ52+acapulco!AZ52 -> 30 | BA52: =barton!BA52+gambetta!BA52+acapulco!BA52 -> 2 | BB52: =barton!BB52+gambetta!BB52+acapulco!BB52 -> 0 | BC52: =barton!BC52+gambetta!BC52+acapulco!BC52 -> 0 | BD52: 53 | BE52: =barton!BE52+gambetta!BE52+acapulco!BE52 -> 0 | BF52: =barton!BF52+gambetta!BF52+acapulco!BF52 -> 53 | BG52: =barton!BG52+gambetta!BG52+acapulco!BG52 -> 0 | BH52: =barton!BH52+gambetta!BH52+acapulco!BH52 -> 0 | BI52: =barton!BI52+gambetta!BI52+acapulco!BI52 -> 0 | BJ52: 82 | BK52: =barton!BK52+gambetta!BK52+acapulco!BK52 -> 1 | BL52: =barton!BL52+gambetta!BL52+acapulco!BL52 -> 78 | BM52: =barton!BM52+gambetta!BM52+acapulco!BM52 -> 3 | BN52: =barton!BN52+gambetta!BN52+acapulco!BN52 -> 0 | BO52: =barton!BO52+gambetta!BO52+acapulco!BO52 -> 0 | BP52: 57 | BQ52: =barton!BQ52+gambetta!BQ52+acapulco!BQ52 -> 1 | BR52: =barton!BR52+gambetta!BR52+acapulco!BR52 -> 53 | BS52: =barton!BS52+gambetta!BS52+acapulco!BS52 -> 3 | BT52: =barton!BT52+gambetta!BT52+acapulco!BT52 -> 0 | BU52: =barton!BU52+gambetta!BU52+acapulco!BU52 -> 0 | BV52: 15 | BW52: =barton!BW52+gambetta!BW52+acapulco!BW52 -> 0 | BX52: =barton!BX52+gambetta!BX52+acapulco!BX52 -> 15 | BY52: =barton!BY52+gambetta!BY52+acapulco!BY52 -> 0 | BZ52: =barton!BZ52+gambetta!BZ52+acapulco!BZ52 -> 0 | CA52: =barton!CA52+gambetta!CA52+acapulco!CA52 -> 0
A53: HCG BETA CUALITATIVO | B53: 288 | C53: =SUMIF($I$45:$CA53,$C$45,I53:CA53) -> 2 | D53: =SUMIF($I$45:$CA53,$D$45,I53:CA53) -> 269 | E53: =SUMIF($I$45:$CA53,$E$45,I53:CA53) -> 5 | F53: =SUMIF($I$45:$CA53,$F$45,I53:CA53) -> 12 | G53: =SUMIF($I$45:$CA53,$G$45,I53:CA53) -> 0 | H53: 15 | I53: =barton!I53+gambetta!I53+acapulco!I53 -> 0 | J53: =barton!J53+gambetta!J53+acapulco!J53 -> 15 | K53: =barton!K53+gambetta!K53+acapulco!K53 -> 0 | L53: =barton!L53+gambetta!L53+acapulco!L53 -> 0 | M53: =barton!M53+gambetta!M53+acapulco!M53 -> 0 | N53: 20 | O53: =barton!O53+gambetta!O53+acapulco!O53 -> 1 | P53: =barton!P53+gambetta!P53+acapulco!P53 -> 19 | Q53: =barton!Q53+gambetta!Q53+acapulco!Q53 -> 0 | R53: =barton!R53+gambetta!R53+acapulco!R53 -> 0 | S53: =barton!S53+gambetta!S53+acapulco!S53 -> 0 | T53: 16 | U53: =barton!U53+gambetta!U53+acapulco!U53 -> 0 | V53: =barton!V53+gambetta!V53+acapulco!V53 -> 15 | W53: =barton!W53+gambetta!W53+acapulco!W53 -> 0 | X53: =barton!X53+gambetta!X53+acapulco!X53 -> 1 | Y53: =barton!Y53+gambetta!Y53+acapulco!Y53 -> 0 | Z53: 25 | AA53: =barton!AA53+gambetta!AA53+acapulco!AA53 -> 1 | AB53: =barton!AB53+gambetta!AB53+acapulco!AB53 -> 22 | AC53: =barton!AC53+gambetta!AC53+acapulco!AC53 -> 1 | AD53: =barton!AD53+gambetta!AD53+acapulco!AD53 -> 1 | AE53: =barton!AE53+gambetta!AE53+acapulco!AE53 -> 0 | AF53: 23 | AG53: =barton!AG53+gambetta!AG53+acapulco!AG53 -> 0 | AH53: =barton!AH53+gambetta!AH53+acapulco!AH53 -> 23 | AI53: =barton!AI53+gambetta!AI53+acapulco!AI53 -> 0 | AJ53: =barton!AJ53+gambetta!AJ53+acapulco!AJ53 -> 0 | AK53: =barton!AK53+gambetta!AK53+acapulco!AK53 -> 0 | AL53: 25 | AM53: =barton!AM53+gambetta!AM53+acapulco!AM53 -> 0 | AN53: =barton!AN53+gambetta!AN53+acapulco!AN53 -> 25 | AO53: =barton!AO53+gambetta!AO53+acapulco!AO53 -> 0 | AP53: =barton!AP53+gambetta!AP53+acapulco!AP53 -> 0 | AQ53: =barton!AQ53+gambetta!AQ53+acapulco!AQ53 -> 0 | AR53: 28 | AS53: =barton!AS53+gambetta!AS53+acapulco!AS53 -> 0 | AT53: =barton!AT53+gambetta!AT53+acapulco!AT53 -> 27 | AU53: =barton!AU53+gambetta!AU53+acapulco!AU53 -> 1 | AV53: =barton!AV53+gambetta!AV53+acapulco!AV53 -> 0 | AW53: =barton!AW53+gambetta!AW53+acapulco!AW53 -> 0 | AX53: 28 | AY53: =barton!AY53+gambetta!AY53+acapulco!AY53 -> 0 | AZ53: =barton!AZ53+gambetta!AZ53+acapulco!AZ53 -> 27 | BA53: =barton!BA53+gambetta!BA53+acapulco!BA53 -> 1 | BB53: =barton!BB53+gambetta!BB53+acapulco!BB53 -> 0 | BC53: =barton!BC53+gambetta!BC53+acapulco!BC53 -> 0 | BD53: 39 | BE53: =barton!BE53+gambetta!BE53+acapulco!BE53 -> 0 | BF53: =barton!BF53+gambetta!BF53+acapulco!BF53 -> 39 | BG53: =barton!BG53+gambetta!BG53+acapulco!BG53 -> 0 | BH53: =barton!BH53+gambetta!BH53+acapulco!BH53 -> 0 | BI53: =barton!BI53+gambetta!BI53+acapulco!BI53 -> 0 | BJ53: 32 | BK53: =barton!BK53+gambetta!BK53+acapulco!BK53 -> 0 | BL53: =barton!BL53+gambetta!BL53+acapulco!BL53 -> 24 | BM53: =barton!BM53+gambetta!BM53+acapulco!BM53 -> 0 | BN53: =barton!BN53+gambetta!BN53+acapulco!BN53 -> 8 | BO53: =barton!BO53+gambetta!BO53+acapulco!BO53 -> 0 | BP53: 22 | BQ53: =barton!BQ53+gambetta!BQ53+acapulco!BQ53 -> 0 | BR53: =barton!BR53+gambetta!BR53+acapulco!BR53 -> 20 | BS53: =barton!BS53+gambetta!BS53+acapulco!BS53 -> 2 | BT53: =barton!BT53+gambetta!BT53+acapulco!BT53 -> 0 | BU53: =barton!BU53+gambetta!BU53+acapulco!BU53 -> 0 | BV53: 15 | BW53: =barton!BW53+gambetta!BW53+acapulco!BW53 -> 0 | BX53: =barton!BX53+gambetta!BX53+acapulco!BX53 -> 13 | BY53: =barton!BY53+gambetta!BY53+acapulco!BY53 -> 0 | BZ53: =barton!BZ53+gambetta!BZ53+acapulco!BZ53 -> 2 | CA53: =barton!CA53+gambetta!CA53+acapulco!CA53 -> 0
A54: HCG BETA CUANTITATIVO | B54: 0 | C54: =SUMIF($I$45:$CA54,$C$45,I54:CA54) -> 0 | D54: =SUMIF($I$45:$CA54,$D$45,I54:CA54) -> 0 | E54: =SUMIF($I$45:$CA54,$E$45,I54:CA54) -> 0 | F54: =SUMIF($I$45:$CA54,$F$45,I54:CA54) -> 0 | G54: =SUMIF($I$45:$CA54,$G$45,I54:CA54) -> 0 | H54: 0 | I54: =barton!I54+gambetta!I54+acapulco!I54 -> 0 | J54: =barton!J54+gambetta!J54+acapulco!J54 -> 0 | K54: =barton!K54+gambetta!K54+acapulco!K54 -> 0 | L54: =barton!L54+gambetta!L54+acapulco!L54 -> 0 | M54: =barton!M54+gambetta!M54+acapulco!M54 -> 0 | N54: 0 | O54: =barton!O54+gambetta!O54+acapulco!O54 -> 0 | P54: =barton!P54+gambetta!P54+acapulco!P54 -> 0 | Q54: =barton!Q54+gambetta!Q54+acapulco!Q54 -> 0 | R54: =barton!R54+gambetta!R54+acapulco!R54 -> 0 | S54: =barton!S54+gambetta!S54+acapulco!S54 -> 0 | T54: 0 | U54: =barton!U54+gambetta!U54+acapulco!U54 -> 0 | V54: =barton!V54+gambetta!V54+acapulco!V54 -> 0 | W54: =barton!W54+gambetta!W54+acapulco!W54 -> 0 | X54: =barton!X54+gambetta!X54+acapulco!X54 -> 0 | Y54: =barton!Y54+gambetta!Y54+acapulco!Y54 -> 0 | Z54: 0 | AA54: =barton!AA54+gambetta!AA54+acapulco!AA54 -> 0 | AB54: =barton!AB54+gambetta!AB54+acapulco!AB54 -> 0 | AC54: =barton!AC54+gambetta!AC54+acapulco!AC54 -> 0 | AD54: =barton!AD54+gambetta!AD54+acapulco!AD54 -> 0 | AE54: =barton!AE54+gambetta!AE54+acapulco!AE54 -> 0 | AF54: 0 | AG54: =barton!AG54+gambetta!AG54+acapulco!AG54 -> 0 | AH54: =barton!AH54+gambetta!AH54+acapulco!AH54 -> 0 | AI54: =barton!AI54+gambetta!AI54+acapulco!AI54 -> 0 | AJ54: =barton!AJ54+gambetta!AJ54+acapulco!AJ54 -> 0 | AK54: =barton!AK54+gambetta!AK54+acapulco!AK54 -> 0 | AL54: 0 | AM54: =barton!AM54+gambetta!AM54+acapulco!AM54 -> 0 | AN54: =barton!AN54+gambetta!AN54+acapulco!AN54 -> 0 | AO54: =barton!AO54+gambetta!AO54+acapulco!AO54 -> 0 | AP54: =barton!AP54+gambetta!AP54+acapulco!AP54 -> 0 | AQ54: =barton!AQ54+gambetta!AQ54+acapulco!AQ54 -> 0 | AR54: 0 | AS54: =barton!AS54+gambetta!AS54+acapulco!AS54 -> 0 | AT54: =barton!AT54+gambetta!AT54+acapulco!AT54 -> 0 | AU54: =barton!AU54+gambetta!AU54+acapulco!AU54 -> 0 | AV54: =barton!AV54+gambetta!AV54+acapulco!AV54 -> 0 | AW54: =barton!AW54+gambetta!AW54+acapulco!AW54 -> 0 | AX54: 0 | AY54: =barton!AY54+gambetta!AY54+acapulco!AY54 -> 0 | AZ54: =barton!AZ54+gambetta!AZ54+acapulco!AZ54 -> 0 | BA54: =barton!BA54+gambetta!BA54+acapulco!BA54 -> 0 | BB54: =barton!BB54+gambetta!BB54+acapulco!BB54 -> 0 | BC54: =barton!BC54+gambetta!BC54+acapulco!BC54 -> 0 | BD54: 0 | BE54: =barton!BE54+gambetta!BE54+acapulco!BE54 -> 0 | BF54: =barton!BF54+gambetta!BF54+acapulco!BF54 -> 0 | BG54: =barton!BG54+gambetta!BG54+acapulco!BG54 -> 0 | BH54: =barton!BH54+gambetta!BH54+acapulco!BH54 -> 0 | BI54: =barton!BI54+gambetta!BI54+acapulco!BI54 -> 0 | BJ54: 0 | BK54: =barton!BK54+gambetta!BK54+acapulco!BK54 -> 0 | BL54: =barton!BL54+gambetta!BL54+acapulco!BL54 -> 0 | BM54: =barton!BM54+gambetta!BM54+acapulco!BM54 -> 0 | BN54: =barton!BN54+gambetta!BN54+acapulco!BN54 -> 0 | BO54: =barton!BO54+gambetta!BO54+acapulco!BO54 -> 0 | BP54: 0 | BQ54: =barton!BQ54+gambetta!BQ54+acapulco!BQ54 -> 0 | BR54: =barton!BR54+gambetta!BR54+acapulco!BR54 -> 0 | BS54: =barton!BS54+gambetta!BS54+acapulco!BS54 -> 0 | BT54: =barton!BT54+gambetta!BT54+acapulco!BT54 -> 0 | BU54: =barton!BU54+gambetta!BU54+acapulco!BU54 -> 0 | BV54: 0 | BW54: =barton!BW54+gambetta!BW54+acapulco!BW54 -> 0 | BX54: =barton!BX54+gambetta!BX54+acapulco!BX54 -> 0 | BY54: =barton!BY54+gambetta!BY54+acapulco!BY54 -> 0 | BZ54: =barton!BZ54+gambetta!BZ54+acapulco!BZ54 -> 0 | CA54: =barton!CA54+gambetta!CA54+acapulco!CA54 -> 0
A55: HEMOGLOBINA GLICOSILADA | B55: 230 | C55: =SUMIF($I$45:$CA55,$C$45,I55:CA55) -> 1 | D55: =SUMIF($I$45:$CA55,$D$45,I55:CA55) -> 200 | E55: =SUMIF($I$45:$CA55,$E$45,I55:CA55) -> 24 | F55: =SUMIF($I$45:$CA55,$F$45,I55:CA55) -> 4 | G55: =SUMIF($I$45:$CA55,$G$45,I55:CA55) -> 1 | H55: 22 | I55: =barton!I55+gambetta!I55+acapulco!I55 -> 0 | J55: =barton!J55+gambetta!J55+acapulco!J55 -> 18 | K55: =barton!K55+gambetta!K55+acapulco!K55 -> 4 | L55: =barton!L55+gambetta!L55+acapulco!L55 -> 0 | M55: =barton!M55+gambetta!M55+acapulco!M55 -> 0 | N55: 39 | O55: =barton!O55+gambetta!O55+acapulco!O55 -> 1 | P55: =barton!P55+gambetta!P55+acapulco!P55 -> 32 | Q55: =barton!Q55+gambetta!Q55+acapulco!Q55 -> 5 | R55: =barton!R55+gambetta!R55+acapulco!R55 -> 1 | S55: =barton!S55+gambetta!S55+acapulco!S55 -> 0 | T55: 27 | U55: =barton!U55+gambetta!U55+acapulco!U55 -> 0 | V55: =barton!V55+gambetta!V55+acapulco!V55 -> 26 | W55: =barton!W55+gambetta!W55+acapulco!W55 -> 1 | X55: =barton!X55+gambetta!X55+acapulco!X55 -> 0 | Y55: =barton!Y55+gambetta!Y55+acapulco!Y55 -> 0 | Z55: 41 | AA55: =barton!AA55+gambetta!AA55+acapulco!AA55 -> 0 | AB55: =barton!AB55+gambetta!AB55+acapulco!AB55 -> 37 | AC55: =barton!AC55+gambetta!AC55+acapulco!AC55 -> 2 | AD55: =barton!AD55+gambetta!AD55+acapulco!AD55 -> 1 | AE55: =barton!AE55+gambetta!AE55+acapulco!AE55 -> 1 | AF55: 45 | AG55: =barton!AG55+gambetta!AG55+acapulco!AG55 -> 0 | AH55: =barton!AH55+gambetta!AH55+acapulco!AH55 -> 43 | AI55: =barton!AI55+gambetta!AI55+acapulco!AI55 -> 1 | AJ55: =barton!AJ55+gambetta!AJ55+acapulco!AJ55 -> 1 | AK55: =barton!AK55+gambetta!AK55+acapulco!AK55 -> 0 | AL55: 20 | AM55: =barton!AM55+gambetta!AM55+acapulco!AM55 -> 0 | AN55: =barton!AN55+gambetta!AN55+acapulco!AN55 -> 16 | AO55: =barton!AO55+gambetta!AO55+acapulco!AO55 -> 4 | AP55: =barton!AP55+gambetta!AP55+acapulco!AP55 -> 0 | AQ55: =barton!AQ55+gambetta!AQ55+acapulco!AQ55 -> 0 | AR55: 0 | AS55: =barton!AS55+gambetta!AS55+acapulco!AS55 -> 0 | AT55: =barton!AT55+gambetta!AT55+acapulco!AT55 -> 0 | AU55: =barton!AU55+gambetta!AU55+acapulco!AU55 -> 0 | AV55: =barton!AV55+gambetta!AV55+acapulco!AV55 -> 0 | AW55: =barton!AW55+gambetta!AW55+acapulco!AW55 -> 0 | AX55: 36 | AY55: =barton!AY55+gambetta!AY55+acapulco!AY55 -> 0 | AZ55: =barton!AZ55+gambetta!AZ55+acapulco!AZ55 -> 28 | BA55: =barton!BA55+gambetta!BA55+acapulco!BA55 -> 7 | BB55: =barton!BB55+gambetta!BB55+acapulco!BB55 -> 1 | BC55: =barton!BC55+gambetta!BC55+acapulco!BC55 -> 0 | BD55: 0 | BE55: =barton!BE55+gambetta!BE55+acapulco!BE55 -> 0 | BF55: =barton!BF55+gambetta!BF55+acapulco!BF55 -> 0 | BG55: =barton!BG55+gambetta!BG55+acapulco!BG55 -> 0 | BH55: =barton!BH55+gambetta!BH55+acapulco!BH55 -> 0 | BI55: =barton!BI55+gambetta!BI55+acapulco!BI55 -> 0 | BJ55: 0 | BK55: =barton!BK55+gambetta!BK55+acapulco!BK55 -> 0 | BL55: =barton!BL55+gambetta!BL55+acapulco!BL55 -> 0 | BM55: =barton!BM55+gambetta!BM55+acapulco!BM55 -> 0 | BN55: =barton!BN55+gambetta!BN55+acapulco!BN55 -> 0 | BO55: =barton!BO55+gambetta!BO55+acapulco!BO55 -> 0 | BP55: 0 | BQ55: =barton!BQ55+gambetta!BQ55+acapulco!BQ55 -> 0 | BR55: =barton!BR55+gambetta!BR55+acapulco!BR55 -> 0 | BS55: =barton!BS55+gambetta!BS55+acapulco!BS55 -> 0 | BT55: =barton!BT55+gambetta!BT55+acapulco!BT55 -> 0 | BU55: =barton!BU55+gambetta!BU55+acapulco!BU55 -> 0 | BV55: 0 | BW55: =barton!BW55+gambetta!BW55+acapulco!BW55 -> 0 | BX55: =barton!BX55+gambetta!BX55+acapulco!BX55 -> 0 | BY55: =barton!BY55+gambetta!BY55+acapulco!BY55 -> 0 | BZ55: =barton!BZ55+gambetta!BZ55+acapulco!BZ55 -> 0 | CA55: =barton!CA55+gambetta!CA55+acapulco!CA55 -> 0
A56: HEPATITIS B (PRUEBA RAPIDA) | B56: 105 | C56: =SUMIF($I$45:$CA56,$C$45,I56:CA56) -> 1 | D56: =SUMIF($I$45:$CA56,$D$45,I56:CA56) -> 99 | E56: =SUMIF($I$45:$CA56,$E$45,I56:CA56) -> 2 | F56: =SUMIF($I$45:$CA56,$F$45,I56:CA56) -> 2 | G56: =SUMIF($I$45:$CA56,$G$45,I56:CA56) -> 1 | H56: 0 | I56: =barton!I56+gambetta!I56+acapulco!I56 -> 0 | J56: =barton!J56+gambetta!J56+acapulco!J56 -> 0 | K56: =barton!K56+gambetta!K56+acapulco!K56 -> 0 | L56: =barton!L56+gambetta!L56+acapulco!L56 -> 0 | M56: =barton!M56+gambetta!M56+acapulco!M56 -> 0 | N56: 0 | O56: =barton!O56+gambetta!O56+acapulco!O56 -> 0 | P56: =barton!P56+gambetta!P56+acapulco!P56 -> 0 | Q56: =barton!Q56+gambetta!Q56+acapulco!Q56 -> 0 | R56: =barton!R56+gambetta!R56+acapulco!R56 -> 0 | S56: =barton!S56+gambetta!S56+acapulco!S56 -> 0 | T56: 0 | U56: =barton!U56+gambetta!U56+acapulco!U56 -> 0 | V56: =barton!V56+gambetta!V56+acapulco!V56 -> 0 | W56: =barton!W56+gambetta!W56+acapulco!W56 -> 0 | X56: =barton!X56+gambetta!X56+acapulco!X56 -> 0 | Y56: =barton!Y56+gambetta!Y56+acapulco!Y56 -> 0 | Z56: 0 | AA56: =barton!AA56+gambetta!AA56+acapulco!AA56 -> 0 | AB56: =barton!AB56+gambetta!AB56+acapulco!AB56 -> 0 | AC56: =barton!AC56+gambetta!AC56+acapulco!AC56 -> 0 | AD56: =barton!AD56+gambetta!AD56+acapulco!AD56 -> 0 | AE56: =barton!AE56+gambetta!AE56+acapulco!AE56 -> 0 | AF56: 0 | AG56: =barton!AG56+gambetta!AG56+acapulco!AG56 -> 0 | AH56: =barton!AH56+gambetta!AH56+acapulco!AH56 -> 0 | AI56: =barton!AI56+gambetta!AI56+acapulco!AI56 -> 0 | AJ56: =barton!AJ56+gambetta!AJ56+acapulco!AJ56 -> 0 | AK56: =barton!AK56+gambetta!AK56+acapulco!AK56 -> 0 | AL56: 4 | AM56: =barton!AM56+gambetta!AM56+acapulco!AM56 -> 0 | AN56: =barton!AN56+gambetta!AN56+acapulco!AN56 -> 4 | AO56: =barton!AO56+gambetta!AO56+acapulco!AO56 -> 0 | AP56: =barton!AP56+gambetta!AP56+acapulco!AP56 -> 0 | AQ56: =barton!AQ56+gambetta!AQ56+acapulco!AQ56 -> 0 | AR56: 6 | AS56: =barton!AS56+gambetta!AS56+acapulco!AS56 -> 0 | AT56: =barton!AT56+gambetta!AT56+acapulco!AT56 -> 6 | AU56: =barton!AU56+gambetta!AU56+acapulco!AU56 -> 0 | AV56: =barton!AV56+gambetta!AV56+acapulco!AV56 -> 0 | AW56: =barton!AW56+gambetta!AW56+acapulco!AW56 -> 0 | AX56: 2 | AY56: =barton!AY56+gambetta!AY56+acapulco!AY56 -> 0 | AZ56: =barton!AZ56+gambetta!AZ56+acapulco!AZ56 -> 1 | BA56: =barton!BA56+gambetta!BA56+acapulco!BA56 -> 1 | BB56: =barton!BB56+gambetta!BB56+acapulco!BB56 -> 0 | BC56: =barton!BC56+gambetta!BC56+acapulco!BC56 -> 0 | BD56: 19 | BE56: =barton!BE56+gambetta!BE56+acapulco!BE56 -> 0 | BF56: =barton!BF56+gambetta!BF56+acapulco!BF56 -> 19 | BG56: =barton!BG56+gambetta!BG56+acapulco!BG56 -> 0 | BH56: =barton!BH56+gambetta!BH56+acapulco!BH56 -> 0 | BI56: =barton!BI56+gambetta!BI56+acapulco!BI56 -> 0 | BJ56: 24 | BK56: =barton!BK56+gambetta!BK56+acapulco!BK56 -> 1 | BL56: =barton!BL56+gambetta!BL56+acapulco!BL56 -> 23 | BM56: =barton!BM56+gambetta!BM56+acapulco!BM56 -> 0 | BN56: =barton!BN56+gambetta!BN56+acapulco!BN56 -> 0 | BO56: =barton!BO56+gambetta!BO56+acapulco!BO56 -> 0 | BP56: 22 | BQ56: =barton!BQ56+gambetta!BQ56+acapulco!BQ56 -> 0 | BR56: =barton!BR56+gambetta!BR56+acapulco!BR56 -> 20 | BS56: =barton!BS56+gambetta!BS56+acapulco!BS56 -> 0 | BT56: =barton!BT56+gambetta!BT56+acapulco!BT56 -> 2 | BU56: =barton!BU56+gambetta!BU56+acapulco!BU56 -> 0 | BV56: 28 | BW56: =barton!BW56+gambetta!BW56+acapulco!BW56 -> 0 | BX56: =barton!BX56+gambetta!BX56+acapulco!BX56 -> 26 | BY56: =barton!BY56+gambetta!BY56+acapulco!BY56 -> 1 | BZ56: =barton!BZ56+gambetta!BZ56+acapulco!BZ56 -> 0 | CA56: =barton!CA56+gambetta!CA56+acapulco!CA56 -> 1
A57: HEPATITIS C (PRUEBA RAPIDA) | B57: 2 | C57: =SUMIF($I$45:$CA57,$C$45,I57:CA57) -> 1 | D57: =SUMIF($I$45:$CA57,$D$45,I57:CA57) -> 1 | E57: =SUMIF($I$45:$CA57,$E$45,I57:CA57) -> 0 | F57: =SUMIF($I$45:$CA57,$F$45,I57:CA57) -> 0 | G57: =SUMIF($I$45:$CA57,$G$45,I57:CA57) -> 0 | H57: 0 | I57: =barton!I57+gambetta!I57+acapulco!I57 -> 0 | J57: =barton!J57+gambetta!J57+acapulco!J57 -> 0 | K57: =barton!K57+gambetta!K57+acapulco!K57 -> 0 | L57: =barton!L57+gambetta!L57+acapulco!L57 -> 0 | M57: =barton!M57+gambetta!M57+acapulco!M57 -> 0 | N57: 0 | O57: =barton!O57+gambetta!O57+acapulco!O57 -> 0 | P57: =barton!P57+gambetta!P57+acapulco!P57 -> 0 | Q57: =barton!Q57+gambetta!Q57+acapulco!Q57 -> 0 | R57: =barton!R57+gambetta!R57+acapulco!R57 -> 0 | S57: =barton!S57+gambetta!S57+acapulco!S57 -> 0 | T57: 0 | U57: =barton!U57+gambetta!U57+acapulco!U57 -> 0 | V57: =barton!V57+gambetta!V57+acapulco!V57 -> 0 | W57: =barton!W57+gambetta!W57+acapulco!W57 -> 0 | X57: =barton!X57+gambetta!X57+acapulco!X57 -> 0 | Y57: =barton!Y57+gambetta!Y57+acapulco!Y57 -> 0 | Z57: 0 | AA57: =barton!AA57+gambetta!AA57+acapulco!AA57 -> 0 | AB57: =barton!AB57+gambetta!AB57+acapulco!AB57 -> 0 | AC57: =barton!AC57+gambetta!AC57+acapulco!AC57 -> 0 | AD57: =barton!AD57+gambetta!AD57+acapulco!AD57 -> 0 | AE57: =barton!AE57+gambetta!AE57+acapulco!AE57 -> 0 | AF57: 0 | AG57: =barton!AG57+gambetta!AG57+acapulco!AG57 -> 0 | AH57: =barton!AH57+gambetta!AH57+acapulco!AH57 -> 0 | AI57: =barton!AI57+gambetta!AI57+acapulco!AI57 -> 0 | AJ57: =barton!AJ57+gambetta!AJ57+acapulco!AJ57 -> 0 | AK57: =barton!AK57+gambetta!AK57+acapulco!AK57 -> 0 | AL57: 0 | AM57: =barton!AM57+gambetta!AM57+acapulco!AM57 -> 0 | AN57: =barton!AN57+gambetta!AN57+acapulco!AN57 -> 0 | AO57: =barton!AO57+gambetta!AO57+acapulco!AO57 -> 0 | AP57: =barton!AP57+gambetta!AP57+acapulco!AP57 -> 0 | AQ57: =barton!AQ57+gambetta!AQ57+acapulco!AQ57 -> 0 | AR57: 0 | AS57: =barton!AS57+gambetta!AS57+acapulco!AS57 -> 0 | AT57: =barton!AT57+gambetta!AT57+acapulco!AT57 -> 0 | AU57: =barton!AU57+gambetta!AU57+acapulco!AU57 -> 0 | AV57: =barton!AV57+gambetta!AV57+acapulco!AV57 -> 0 | AW57: =barton!AW57+gambetta!AW57+acapulco!AW57 -> 0 | AX57: 2 | AY57: =barton!AY57+gambetta!AY57+acapulco!AY57 -> 1 | AZ57: =barton!AZ57+gambetta!AZ57+acapulco!AZ57 -> 1 | BA57: =barton!BA57+gambetta!BA57+acapulco!BA57 -> 0 | BB57: =barton!BB57+gambetta!BB57+acapulco!BB57 -> 0 | BC57: =barton!BC57+gambetta!BC57+acapulco!BC57 -> 0 | BD57: 0 | BE57: =barton!BE57+gambetta!BE57+acapulco!BE57 -> 0 | BF57: =barton!BF57+gambetta!BF57+acapulco!BF57 -> 0 | BG57: =barton!BG57+gambetta!BG57+acapulco!BG57 -> 0 | BH57: =barton!BH57+gambetta!BH57+acapulco!BH57 -> 0 | BI57: =barton!BI57+gambetta!BI57+acapulco!BI57 -> 0 | BJ57: 0 | BK57: =barton!BK57+gambetta!BK57+acapulco!BK57 -> 0 | BL57: =barton!BL57+gambetta!BL57+acapulco!BL57 -> 0 | BM57: =barton!BM57+gambetta!BM57+acapulco!BM57 -> 0 | BN57: =barton!BN57+gambetta!BN57+acapulco!BN57 -> 0 | BO57: =barton!BO57+gambetta!BO57+acapulco!BO57 -> 0 | BP57: 0 | BQ57: =barton!BQ57+gambetta!BQ57+acapulco!BQ57 -> 0 | BR57: =barton!BR57+gambetta!BR57+acapulco!BR57 -> 0 | BS57: =barton!BS57+gambetta!BS57+acapulco!BS57 -> 0 | BT57: =barton!BT57+gambetta!BT57+acapulco!BT57 -> 0 | BU57: =barton!BU57+gambetta!BU57+acapulco!BU57 -> 0 | BV57: 0 | BW57: =barton!BW57+gambetta!BW57+acapulco!BW57 -> 0 | BX57: =barton!BX57+gambetta!BX57+acapulco!BX57 -> 0 | BY57: =barton!BY57+gambetta!BY57+acapulco!BY57 -> 0 | BZ57: =barton!BZ57+gambetta!BZ57+acapulco!BZ57 -> 0 | CA57: =barton!CA57+gambetta!CA57+acapulco!CA57 -> 0
A58: PROTEINAS "C" REACTIVA (P.C.R.) | B58: 259 | C58: =SUMIF($I$45:$CA58,$C$45,I58:CA58) -> 5 | D58: =SUMIF($I$45:$CA58,$D$45,I58:CA58) -> 246 | E58: =SUMIF($I$45:$CA58,$E$45,I58:CA58) -> 7 | F58: =SUMIF($I$45:$CA58,$F$45,I58:CA58) -> 0 | G58: =SUMIF($I$45:$CA58,$G$45,I58:CA58) -> 1 | H58: 0 | I58: =barton!I58+gambetta!I58+acapulco!I58 -> 0 | J58: =barton!J58+gambetta!J58+acapulco!J58 -> 0 | K58: =barton!K58+gambetta!K58+acapulco!K58 -> 0 | L58: =barton!L58+gambetta!L58+acapulco!L58 -> 0 | M58: =barton!M58+gambetta!M58+acapulco!M58 -> 0 | N58: 0 | O58: =barton!O58+gambetta!O58+acapulco!O58 -> 0 | P58: =barton!P58+gambetta!P58+acapulco!P58 -> 0 | Q58: =barton!Q58+gambetta!Q58+acapulco!Q58 -> 0 | R58: =barton!R58+gambetta!R58+acapulco!R58 -> 0 | S58: =barton!S58+gambetta!S58+acapulco!S58 -> 0 | T58: 0 | U58: =barton!U58+gambetta!U58+acapulco!U58 -> 0 | V58: =barton!V58+gambetta!V58+acapulco!V58 -> 0 | W58: =barton!W58+gambetta!W58+acapulco!W58 -> 0 | X58: =barton!X58+gambetta!X58+acapulco!X58 -> 0 | Y58: =barton!Y58+gambetta!Y58+acapulco!Y58 -> 0 | Z58: 0 | AA58: =barton!AA58+gambetta!AA58+acapulco!AA58 -> 0 | AB58: =barton!AB58+gambetta!AB58+acapulco!AB58 -> 0 | AC58: =barton!AC58+gambetta!AC58+acapulco!AC58 -> 0 | AD58: =barton!AD58+gambetta!AD58+acapulco!AD58 -> 0 | AE58: =barton!AE58+gambetta!AE58+acapulco!AE58 -> 0 | AF58: 0 | AG58: =barton!AG58+gambetta!AG58+acapulco!AG58 -> 0 | AH58: =barton!AH58+gambetta!AH58+acapulco!AH58 -> 0 | AI58: =barton!AI58+gambetta!AI58+acapulco!AI58 -> 0 | AJ58: =barton!AJ58+gambetta!AJ58+acapulco!AJ58 -> 0 | AK58: =barton!AK58+gambetta!AK58+acapulco!AK58 -> 0 | AL58: 14 | AM58: =barton!AM58+gambetta!AM58+acapulco!AM58 -> 1 | AN58: =barton!AN58+gambetta!AN58+acapulco!AN58 -> 13 | AO58: =barton!AO58+gambetta!AO58+acapulco!AO58 -> 0 | AP58: =barton!AP58+gambetta!AP58+acapulco!AP58 -> 0 | AQ58: =barton!AQ58+gambetta!AQ58+acapulco!AQ58 -> 0 | AR58: 28 | AS58: =barton!AS58+gambetta!AS58+acapulco!AS58 -> 1 | AT58: =barton!AT58+gambetta!AT58+acapulco!AT58 -> 26 | AU58: =barton!AU58+gambetta!AU58+acapulco!AU58 -> 1 | AV58: =barton!AV58+gambetta!AV58+acapulco!AV58 -> 0 | AW58: =barton!AW58+gambetta!AW58+acapulco!AW58 -> 0 | AX58: 27 | AY58: =barton!AY58+gambetta!AY58+acapulco!AY58 -> 2 | AZ58: =barton!AZ58+gambetta!AZ58+acapulco!AZ58 -> 24 | BA58: =barton!BA58+gambetta!BA58+acapulco!BA58 -> 1 | BB58: =barton!BB58+gambetta!BB58+acapulco!BB58 -> 0 | BC58: =barton!BC58+gambetta!BC58+acapulco!BC58 -> 0 | BD58: 87 | BE58: =barton!BE58+gambetta!BE58+acapulco!BE58 -> 0 | BF58: =barton!BF58+gambetta!BF58+acapulco!BF58 -> 87 | BG58: =barton!BG58+gambetta!BG58+acapulco!BG58 -> 0 | BH58: =barton!BH58+gambetta!BH58+acapulco!BH58 -> 0 | BI58: =barton!BI58+gambetta!BI58+acapulco!BI58 -> 0 | BJ58: 39 | BK58: =barton!BK58+gambetta!BK58+acapulco!BK58 -> 1 | BL58: =barton!BL58+gambetta!BL58+acapulco!BL58 -> 36 | BM58: =barton!BM58+gambetta!BM58+acapulco!BM58 -> 2 | BN58: =barton!BN58+gambetta!BN58+acapulco!BN58 -> 0 | BO58: =barton!BO58+gambetta!BO58+acapulco!BO58 -> 0 | BP58: 29 | BQ58: =barton!BQ58+gambetta!BQ58+acapulco!BQ58 -> 0 | BR58: =barton!BR58+gambetta!BR58+acapulco!BR58 -> 28 | BS58: =barton!BS58+gambetta!BS58+acapulco!BS58 -> 1 | BT58: =barton!BT58+gambetta!BT58+acapulco!BT58 -> 0 | BU58: =barton!BU58+gambetta!BU58+acapulco!BU58 -> 0 | BV58: 35 | BW58: =barton!BW58+gambetta!BW58+acapulco!BW58 -> 0 | BX58: =barton!BX58+gambetta!BX58+acapulco!BX58 -> 32 | BY58: =barton!BY58+gambetta!BY58+acapulco!BY58 -> 2 | BZ58: =barton!BZ58+gambetta!BZ58+acapulco!BZ58 -> 0 | CA58: =barton!CA58+gambetta!CA58+acapulco!CA58 -> 1
A59: R.P.R. | B59: 10205 | C59: =SUMIF($I$45:$CA59,$C$45,I59:CA59) -> 39 | D59: =SUMIF($I$45:$CA59,$D$45,I59:CA59) -> 5479 | E59: =SUMIF($I$45:$CA59,$E$45,I59:CA59) -> 45 | F59: =SUMIF($I$45:$CA59,$F$45,I59:CA59) -> 3076 | G59: =SUMIF($I$45:$CA59,$G$45,I59:CA59) -> 1566 | H59: 670 | I59: =barton!I59+gambetta!I59+acapulco!I59 -> 3 | J59: =barton!J59+gambetta!J59+acapulco!J59 -> 456 | K59: =barton!K59+gambetta!K59+acapulco!K59 -> 5 | L59: =barton!L59+gambetta!L59+acapulco!L59 -> 206 | M59: =barton!M59+gambetta!M59+acapulco!M59 -> 0 | N59: 625 | O59: =barton!O59+gambetta!O59+acapulco!O59 -> 4 | P59: =barton!P59+gambetta!P59+acapulco!P59 -> 407 | Q59: =barton!Q59+gambetta!Q59+acapulco!Q59 -> 11 | R59: =barton!R59+gambetta!R59+acapulco!R59 -> 203 | S59: =barton!S59+gambetta!S59+acapulco!S59 -> 0 | T59: 619 | U59: =barton!U59+gambetta!U59+acapulco!U59 -> 5 | V59: =barton!V59+gambetta!V59+acapulco!V59 -> 388 | W59: =barton!W59+gambetta!W59+acapulco!W59 -> 2 | X59: =barton!X59+gambetta!X59+acapulco!X59 -> 189 | Y59: =barton!Y59+gambetta!Y59+acapulco!Y59 -> 35 | Z59: 612 | AA59: =barton!AA59+gambetta!AA59+acapulco!AA59 -> 2 | AB59: =barton!AB59+gambetta!AB59+acapulco!AB59 -> 344 | AC59: =barton!AC59+gambetta!AC59+acapulco!AC59 -> 1 | AD59: =barton!AD59+gambetta!AD59+acapulco!AD59 -> 265 | AE59: =barton!AE59+gambetta!AE59+acapulco!AE59 -> 0 | AF59: 682 | AG59: =barton!AG59+gambetta!AG59+acapulco!AG59 -> 1 | AH59: =barton!AH59+gambetta!AH59+acapulco!AH59 -> 387 | AI59: =barton!AI59+gambetta!AI59+acapulco!AI59 -> 3 | AJ59: =barton!AJ59+gambetta!AJ59+acapulco!AJ59 -> 291 | AK59: =barton!AK59+gambetta!AK59+acapulco!AK59 -> 0 | AL59: 1219 | AM59: =barton!AM59+gambetta!AM59+acapulco!AM59 -> 5 | AN59: =barton!AN59+gambetta!AN59+acapulco!AN59 -> 405 | AO59: =barton!AO59+gambetta!AO59+acapulco!AO59 -> 4 | AP59: =barton!AP59+gambetta!AP59+acapulco!AP59 -> 249 | AQ59: =barton!AQ59+gambetta!AQ59+acapulco!AQ59 -> 556 | AR59: 753 | AS59: =barton!AS59+gambetta!AS59+acapulco!AS59 -> 2 | AT59: =barton!AT59+gambetta!AT59+acapulco!AT59 -> 339 | AU59: =barton!AU59+gambetta!AU59+acapulco!AU59 -> 0 | AV59: =barton!AV59+gambetta!AV59+acapulco!AV59 -> 186 | AW59: =barton!AW59+gambetta!AW59+acapulco!AW59 -> 226 | AX59: 910 | AY59: =barton!AY59+gambetta!AY59+acapulco!AY59 -> 3 | AZ59: =barton!AZ59+gambetta!AZ59+acapulco!AZ59 -> 426 | BA59: =barton!BA59+gambetta!BA59+acapulco!BA59 -> 8 | BB59: =barton!BB59+gambetta!BB59+acapulco!BB59 -> 312 | BC59: =barton!BC59+gambetta!BC59+acapulco!BC59 -> 161 | BD59: 1109 | BE59: =barton!BE59+gambetta!BE59+acapulco!BE59 -> 3 | BF59: =barton!BF59+gambetta!BF59+acapulco!BF59 -> 443 | BG59: =barton!BG59+gambetta!BG59+acapulco!BG59 -> 1 | BH59: =barton!BH59+gambetta!BH59+acapulco!BH59 -> 310 | BI59: =barton!BI59+gambetta!BI59+acapulco!BI59 -> 352 | BJ59: 970 | BK59: =barton!BK59+gambetta!BK59+acapulco!BK59 -> 8 | BL59: =barton!BL59+gambetta!BL59+acapulco!BL59 -> 658 | BM59: =barton!BM59+gambetta!BM59+acapulco!BM59 -> 7 | BN59: =barton!BN59+gambetta!BN59+acapulco!BN59 -> 267 | BO59: =barton!BO59+gambetta!BO59+acapulco!BO59 -> 30 | BP59: 1298 | BQ59: =barton!BQ59+gambetta!BQ59+acapulco!BQ59 -> 1 | BR59: =barton!BR59+gambetta!BR59+acapulco!BR59 -> 839 | BS59: =barton!BS59+gambetta!BS59+acapulco!BS59 -> 1 | BT59: =barton!BT59+gambetta!BT59+acapulco!BT59 -> 315 | BU59: =barton!BU59+gambetta!BU59+acapulco!BU59 -> 142 | BV59: 738 | BW59: =barton!BW59+gambetta!BW59+acapulco!BW59 -> 2 | BX59: =barton!BX59+gambetta!BX59+acapulco!BX59 -> 387 | BY59: =barton!BY59+gambetta!BY59+acapulco!BY59 -> 2 | BZ59: =barton!BZ59+gambetta!BZ59+acapulco!BZ59 -> 283 | CA59: =barton!CA59+gambetta!CA59+acapulco!CA59 -> 64
A60: ROSA DE BENGALA | B60: 0 | C60: =SUMIF($I$45:$CA60,$C$45,I60:CA60) -> 0 | D60: =SUMIF($I$45:$CA60,$D$45,I60:CA60) -> 0 | E60: =SUMIF($I$45:$CA60,$E$45,I60:CA60) -> 0 | F60: =SUMIF($I$45:$CA60,$F$45,I60:CA60) -> 0 | G60: =SUMIF($I$45:$CA60,$G$45,I60:CA60) -> 0 | H60: 0 | I60: =barton!I60+gambetta!I60+acapulco!I60 -> 0 | J60: =barton!J60+gambetta!J60+acapulco!J60 -> 0 | K60: =barton!K60+gambetta!K60+acapulco!K60 -> 0 | L60: =barton!L60+gambetta!L60+acapulco!L60 -> 0 | M60: =barton!M60+gambetta!M60+acapulco!M60 -> 0 | N60: 0 | O60: =barton!O60+gambetta!O60+acapulco!O60 -> 0 | P60: =barton!P60+gambetta!P60+acapulco!P60 -> 0 | Q60: =barton!Q60+gambetta!Q60+acapulco!Q60 -> 0 | R60: =barton!R60+gambetta!R60+acapulco!R60 -> 0 | S60: =barton!S60+gambetta!S60+acapulco!S60 -> 0 | T60: 0 | U60: =barton!U60+gambetta!U60+acapulco!U60 -> 0 | V60: =barton!V60+gambetta!V60+acapulco!V60 -> 0 | W60: =barton!W60+gambetta!W60+acapulco!W60 -> 0 | X60: =barton!X60+gambetta!X60+acapulco!X60 -> 0 | Y60: =barton!Y60+gambetta!Y60+acapulco!Y60 -> 0 | Z60: 0 | AA60: =barton!AA60+gambetta!AA60+acapulco!AA60 -> 0 | AB60: =barton!AB60+gambetta!AB60+acapulco!AB60 -> 0 | AC60: =barton!AC60+gambetta!AC60+acapulco!AC60 -> 0 | AD60: =barton!AD60+gambetta!AD60+acapulco!AD60 -> 0 | AE60: =barton!AE60+gambetta!AE60+acapulco!AE60 -> 0 | AF60: 0 | AG60: =barton!AG60+gambetta!AG60+acapulco!AG60 -> 0 | AH60: =barton!AH60+gambetta!AH60+acapulco!AH60 -> 0 | AI60: =barton!AI60+gambetta!AI60+acapulco!AI60 -> 0 | AJ60: =barton!AJ60+gambetta!AJ60+acapulco!AJ60 -> 0 | AK60: =barton!AK60+gambetta!AK60+acapulco!AK60 -> 0 | AL60: 0 | AM60: =barton!AM60+gambetta!AM60+acapulco!AM60 -> 0 | AN60: =barton!AN60+gambetta!AN60+acapulco!AN60 -> 0 | AO60: =barton!AO60+gambetta!AO60+acapulco!AO60 -> 0 | AP60: =barton!AP60+gambetta!AP60+acapulco!AP60 -> 0 | AQ60: =barton!AQ60+gambetta!AQ60+acapulco!AQ60 -> 0 | AR60: 0 | AS60: =barton!AS60+gambetta!AS60+acapulco!AS60 -> 0 | AT60: =barton!AT60+gambetta!AT60+acapulco!AT60 -> 0 | AU60: =barton!AU60+gambetta!AU60+acapulco!AU60 -> 0 | AV60: =barton!AV60+gambetta!AV60+acapulco!AV60 -> 0 | AW60: =barton!AW60+gambetta!AW60+acapulco!AW60 -> 0 | AX60: 0 | AY60: =barton!AY60+gambetta!AY60+acapulco!AY60 -> 0 | AZ60: =barton!AZ60+gambetta!AZ60+acapulco!AZ60 -> 0 | BA60: =barton!BA60+gambetta!BA60+acapulco!BA60 -> 0 | BB60: =barton!BB60+gambetta!BB60+acapulco!BB60 -> 0 | BC60: =barton!BC60+gambetta!BC60+acapulco!BC60 -> 0 | BD60: 0 | BE60: =barton!BE60+gambetta!BE60+acapulco!BE60 -> 0 | BF60: =barton!BF60+gambetta!BF60+acapulco!BF60 -> 0 | BG60: =barton!BG60+gambetta!BG60+acapulco!BG60 -> 0 | BH60: =barton!BH60+gambetta!BH60+acapulco!BH60 -> 0 | BI60: =barton!BI60+gambetta!BI60+acapulco!BI60 -> 0 | BJ60: 0 | BK60: =barton!BK60+gambetta!BK60+acapulco!BK60 -> 0 | BL60: =barton!BL60+gambetta!BL60+acapulco!BL60 -> 0 | BM60: =barton!BM60+gambetta!BM60+acapulco!BM60 -> 0 | BN60: =barton!BN60+gambetta!BN60+acapulco!BN60 -> 0 | BO60: =barton!BO60+gambetta!BO60+acapulco!BO60 -> 0 | BP60: 0 | BQ60: =barton!BQ60+gambetta!BQ60+acapulco!BQ60 -> 0 | BR60: =barton!BR60+gambetta!BR60+acapulco!BR60 -> 0 | BS60: =barton!BS60+gambetta!BS60+acapulco!BS60 -> 0 | BT60: =barton!BT60+gambetta!BT60+acapulco!BT60 -> 0 | BU60: =barton!BU60+gambetta!BU60+acapulco!BU60 -> 0 | BV60: 0 | BW60: =barton!BW60+gambetta!BW60+acapulco!BW60 -> 0 | BX60: =barton!BX60+gambetta!BX60+acapulco!BX60 -> 0 | BY60: =barton!BY60+gambetta!BY60+acapulco!BY60 -> 0 | BZ60: =barton!BZ60+gambetta!BZ60+acapulco!BZ60 -> 0 | CA60: =barton!CA60+gambetta!CA60+acapulco!CA60 -> 0
A61: ROTAVIRUS/ADENOVIRUS EN HECES | B61: 0 | C61: =SUMIF($I$45:$CA61,$C$45,I61:CA61) -> 0 | D61: =SUMIF($I$45:$CA61,$D$45,I61:CA61) -> 0 | E61: =SUMIF($I$45:$CA61,$E$45,I61:CA61) -> 0 | F61: =SUMIF($I$45:$CA61,$F$45,I61:CA61) -> 0 | G61: =SUMIF($I$45:$CA61,$G$45,I61:CA61) -> 0 | H61: 0 | I61: =barton!I61+gambetta!I61+acapulco!I61 -> 0 | J61: =barton!J61+gambetta!J61+acapulco!J61 -> 0 | K61: =barton!K61+gambetta!K61+acapulco!K61 -> 0 | L61: =barton!L61+gambetta!L61+acapulco!L61 -> 0 | M61: =barton!M61+gambetta!M61+acapulco!M61 -> 0 | N61: 0 | O61: =barton!O61+gambetta!O61+acapulco!O61 -> 0 | P61: =barton!P61+gambetta!P61+acapulco!P61 -> 0 | Q61: =barton!Q61+gambetta!Q61+acapulco!Q61 -> 0 | R61: =barton!R61+gambetta!R61+acapulco!R61 -> 0 | S61: =barton!S61+gambetta!S61+acapulco!S61 -> 0 | T61: 0 | U61: =barton!U61+gambetta!U61+acapulco!U61 -> 0 | V61: =barton!V61+gambetta!V61+acapulco!V61 -> 0 | W61: =barton!W61+gambetta!W61+acapulco!W61 -> 0 | X61: =barton!X61+gambetta!X61+acapulco!X61 -> 0 | Y61: =barton!Y61+gambetta!Y61+acapulco!Y61 -> 0 | Z61: 0 | AA61: =barton!AA61+gambetta!AA61+acapulco!AA61 -> 0 | AB61: =barton!AB61+gambetta!AB61+acapulco!AB61 -> 0 | AC61: =barton!AC61+gambetta!AC61+acapulco!AC61 -> 0 | AD61: =barton!AD61+gambetta!AD61+acapulco!AD61 -> 0 | AE61: =barton!AE61+gambetta!AE61+acapulco!AE61 -> 0 | AF61: 0 | AG61: =barton!AG61+gambetta!AG61+acapulco!AG61 -> 0 | AH61: =barton!AH61+gambetta!AH61+acapulco!AH61 -> 0 | AI61: =barton!AI61+gambetta!AI61+acapulco!AI61 -> 0 | AJ61: =barton!AJ61+gambetta!AJ61+acapulco!AJ61 -> 0 | AK61: =barton!AK61+gambetta!AK61+acapulco!AK61 -> 0 | AL61: 0 | AM61: =barton!AM61+gambetta!AM61+acapulco!AM61 -> 0 | AN61: =barton!AN61+gambetta!AN61+acapulco!AN61 -> 0 | AO61: =barton!AO61+gambetta!AO61+acapulco!AO61 -> 0 | AP61: =barton!AP61+gambetta!AP61+acapulco!AP61 -> 0 | AQ61: =barton!AQ61+gambetta!AQ61+acapulco!AQ61 -> 0 | AR61: 0 | AS61: =barton!AS61+gambetta!AS61+acapulco!AS61 -> 0 | AT61: =barton!AT61+gambetta!AT61+acapulco!AT61 -> 0 | AU61: =barton!AU61+gambetta!AU61+acapulco!AU61 -> 0 | AV61: =barton!AV61+gambetta!AV61+acapulco!AV61 -> 0 | AW61: =barton!AW61+gambetta!AW61+acapulco!AW61 -> 0 | AX61: 0 | AY61: =barton!AY61+gambetta!AY61+acapulco!AY61 -> 0 | AZ61: =barton!AZ61+gambetta!AZ61+acapulco!AZ61 -> 0 | BA61: =barton!BA61+gambetta!BA61+acapulco!BA61 -> 0 | BB61: =barton!BB61+gambetta!BB61+acapulco!BB61 -> 0 | BC61: =barton!BC61+gambetta!BC61+acapulco!BC61 -> 0 | BD61: 0 | BE61: =barton!BE61+gambetta!BE61+acapulco!BE61 -> 0 | BF61: =barton!BF61+gambetta!BF61+acapulco!BF61 -> 0 | BG61: =barton!BG61+gambetta!BG61+acapulco!BG61 -> 0 | BH61: =barton!BH61+gambetta!BH61+acapulco!BH61 -> 0 | BI61: =barton!BI61+gambetta!BI61+acapulco!BI61 -> 0 | BJ61: 0 | BK61: =barton!BK61+gambetta!BK61+acapulco!BK61 -> 0 | BL61: =barton!BL61+gambetta!BL61+acapulco!BL61 -> 0 | BM61: =barton!BM61+gambetta!BM61+acapulco!BM61 -> 0 | BN61: =barton!BN61+gambetta!BN61+acapulco!BN61 -> 0 | BO61: =barton!BO61+gambetta!BO61+acapulco!BO61 -> 0 | BP61: 0 | BQ61: =barton!BQ61+gambetta!BQ61+acapulco!BQ61 -> 0 | BR61: =barton!BR61+gambetta!BR61+acapulco!BR61 -> 0 | BS61: =barton!BS61+gambetta!BS61+acapulco!BS61 -> 0 | BT61: =barton!BT61+gambetta!BT61+acapulco!BT61 -> 0 | BU61: =barton!BU61+gambetta!BU61+acapulco!BU61 -> 0 | BV61: 0 | BW61: =barton!BW61+gambetta!BW61+acapulco!BW61 -> 0 | BX61: =barton!BX61+gambetta!BX61+acapulco!BX61 -> 0 | BY61: =barton!BY61+gambetta!BY61+acapulco!BY61 -> 0 | BZ61: =barton!BZ61+gambetta!BZ61+acapulco!BZ61 -> 0 | CA61: =barton!CA61+gambetta!CA61+acapulco!CA61 -> 0
A62: TEST DE COOMBS DIRECTO | B62: 0 | C62: =SUMIF($I$45:$CA62,$C$45,I62:CA62) -> 0 | D62: =SUMIF($I$45:$CA62,$D$45,I62:CA62) -> 0 | E62: =SUMIF($I$45:$CA62,$E$45,I62:CA62) -> 0 | F62: =SUMIF($I$45:$CA62,$F$45,I62:CA62) -> 0 | G62: =SUMIF($I$45:$CA62,$G$45,I62:CA62) -> 0 | H62: 0 | I62: =barton!I62+gambetta!I62+acapulco!I62 -> 0 | J62: =barton!J62+gambetta!J62+acapulco!J62 -> 0 | K62: =barton!K62+gambetta!K62+acapulco!K62 -> 0 | L62: =barton!L62+gambetta!L62+acapulco!L62 -> 0 | M62: =barton!M62+gambetta!M62+acapulco!M62 -> 0 | N62: 0 | O62: =barton!O62+gambetta!O62+acapulco!O62 -> 0 | P62: =barton!P62+gambetta!P62+acapulco!P62 -> 0 | Q62: =barton!Q62+gambetta!Q62+acapulco!Q62 -> 0 | R62: =barton!R62+gambetta!R62+acapulco!R62 -> 0 | S62: =barton!S62+gambetta!S62+acapulco!S62 -> 0 | T62: 0 | U62: =barton!U62+gambetta!U62+acapulco!U62 -> 0 | V62: =barton!V62+gambetta!V62+acapulco!V62 -> 0 | W62: =barton!W62+gambetta!W62+acapulco!W62 -> 0 | X62: =barton!X62+gambetta!X62+acapulco!X62 -> 0 | Y62: =barton!Y62+gambetta!Y62+acapulco!Y62 -> 0 | Z62: 0 | AA62: =barton!AA62+gambetta!AA62+acapulco!AA62 -> 0 | AB62: =barton!AB62+gambetta!AB62+acapulco!AB62 -> 0 | AC62: =barton!AC62+gambetta!AC62+acapulco!AC62 -> 0 | AD62: =barton!AD62+gambetta!AD62+acapulco!AD62 -> 0 | AE62: =barton!AE62+gambetta!AE62+acapulco!AE62 -> 0 | AF62: 0 | AG62: =barton!AG62+gambetta!AG62+acapulco!AG62 -> 0 | AH62: =barton!AH62+gambetta!AH62+acapulco!AH62 -> 0 | AI62: =barton!AI62+gambetta!AI62+acapulco!AI62 -> 0 | AJ62: =barton!AJ62+gambetta!AJ62+acapulco!AJ62 -> 0 | AK62: =barton!AK62+gambetta!AK62+acapulco!AK62 -> 0 | AL62: 0 | AM62: =barton!AM62+gambetta!AM62+acapulco!AM62 -> 0 | AN62: =barton!AN62+gambetta!AN62+acapulco!AN62 -> 0 | AO62: =barton!AO62+gambetta!AO62+acapulco!AO62 -> 0 | AP62: =barton!AP62+gambetta!AP62+acapulco!AP62 -> 0 | AQ62: =barton!AQ62+gambetta!AQ62+acapulco!AQ62 -> 0 | AR62: 0 | AS62: =barton!AS62+gambetta!AS62+acapulco!AS62 -> 0 | AT62: =barton!AT62+gambetta!AT62+acapulco!AT62 -> 0 | AU62: =barton!AU62+gambetta!AU62+acapulco!AU62 -> 0 | AV62: =barton!AV62+gambetta!AV62+acapulco!AV62 -> 0 | AW62: =barton!AW62+gambetta!AW62+acapulco!AW62 -> 0 | AX62: 0 | AY62: =barton!AY62+gambetta!AY62+acapulco!AY62 -> 0 | AZ62: =barton!AZ62+gambetta!AZ62+acapulco!AZ62 -> 0 | BA62: =barton!BA62+gambetta!BA62+acapulco!BA62 -> 0 | BB62: =barton!BB62+gambetta!BB62+acapulco!BB62 -> 0 | BC62: =barton!BC62+gambetta!BC62+acapulco!BC62 -> 0 | BD62: 0 | BE62: =barton!BE62+gambetta!BE62+acapulco!BE62 -> 0 | BF62: =barton!BF62+gambetta!BF62+acapulco!BF62 -> 0 | BG62: =barton!BG62+gambetta!BG62+acapulco!BG62 -> 0 | BH62: =barton!BH62+gambetta!BH62+acapulco!BH62 -> 0 | BI62: =barton!BI62+gambetta!BI62+acapulco!BI62 -> 0 | BJ62: 0 | BK62: =barton!BK62+gambetta!BK62+acapulco!BK62 -> 0 | BL62: =barton!BL62+gambetta!BL62+acapulco!BL62 -> 0 | BM62: =barton!BM62+gambetta!BM62+acapulco!BM62 -> 0 | BN62: =barton!BN62+gambetta!BN62+acapulco!BN62 -> 0 | BO62: =barton!BO62+gambetta!BO62+acapulco!BO62 -> 0 | BP62: 0 | BQ62: =barton!BQ62+gambetta!BQ62+acapulco!BQ62 -> 0 | BR62: =barton!BR62+gambetta!BR62+acapulco!BR62 -> 0 | BS62: =barton!BS62+gambetta!BS62+acapulco!BS62 -> 0 | BT62: =barton!BT62+gambetta!BT62+acapulco!BT62 -> 0 | BU62: =barton!BU62+gambetta!BU62+acapulco!BU62 -> 0 | BV62: 0 | BW62: =barton!BW62+gambetta!BW62+acapulco!BW62 -> 0 | BX62: =barton!BX62+gambetta!BX62+acapulco!BX62 -> 0 | BY62: =barton!BY62+gambetta!BY62+acapulco!BY62 -> 0 | BZ62: =barton!BZ62+gambetta!BZ62+acapulco!BZ62 -> 0 | CA62: =barton!CA62+gambetta!CA62+acapulco!CA62 -> 0
A63: TEST DE COOMBS INDIRECTO | B63: 0 | C63: =SUMIF($I$45:$CA63,$C$45,I63:CA63) -> 0 | D63: =SUMIF($I$45:$CA63,$D$45,I63:CA63) -> 0 | E63: =SUMIF($I$45:$CA63,$E$45,I63:CA63) -> 0 | F63: =SUMIF($I$45:$CA63,$F$45,I63:CA63) -> 0 | G63: =SUMIF($I$45:$CA63,$G$45,I63:CA63) -> 0 | H63: 0 | I63: =barton!I63+gambetta!I63+acapulco!I63 -> 0 | J63: =barton!J63+gambetta!J63+acapulco!J63 -> 0 | K63: =barton!K63+gambetta!K63+acapulco!K63 -> 0 | L63: =barton!L63+gambetta!L63+acapulco!L63 -> 0 | M63: =barton!M63+gambetta!M63+acapulco!M63 -> 0 | N63: 0 | O63: =barton!O63+gambetta!O63+acapulco!O63 -> 0 | P63: =barton!P63+gambetta!P63+acapulco!P63 -> 0 | Q63: =barton!Q63+gambetta!Q63+acapulco!Q63 -> 0 | R63: =barton!R63+gambetta!R63+acapulco!R63 -> 0 | S63: =barton!S63+gambetta!S63+acapulco!S63 -> 0 | T63: 0 | U63: =barton!U63+gambetta!U63+acapulco!U63 -> 0 | V63: =barton!V63+gambetta!V63+acapulco!V63 -> 0 | W63: =barton!W63+gambetta!W63+acapulco!W63 -> 0 | X63: =barton!X63+gambetta!X63+acapulco!X63 -> 0 | Y63: =barton!Y63+gambetta!Y63+acapulco!Y63 -> 0 | Z63: 0 | AA63: =barton!AA63+gambetta!AA63+acapulco!AA63 -> 0 | AB63: =barton!AB63+gambetta!AB63+acapulco!AB63 -> 0 | AC63: =barton!AC63+gambetta!AC63+acapulco!AC63 -> 0 | AD63: =barton!AD63+gambetta!AD63+acapulco!AD63 -> 0 | AE63: =barton!AE63+gambetta!AE63+acapulco!AE63 -> 0 | AF63: 0 | AG63: =barton!AG63+gambetta!AG63+acapulco!AG63 -> 0 | AH63: =barton!AH63+gambetta!AH63+acapulco!AH63 -> 0 | AI63: =barton!AI63+gambetta!AI63+acapulco!AI63 -> 0 | AJ63: =barton!AJ63+gambetta!AJ63+acapulco!AJ63 -> 0 | AK63: =barton!AK63+gambetta!AK63+acapulco!AK63 -> 0 | AL63: 0 | AM63: =barton!AM63+gambetta!AM63+acapulco!AM63 -> 0 | AN63: =barton!AN63+gambetta!AN63+acapulco!AN63 -> 0 | AO63: =barton!AO63+gambetta!AO63+acapulco!AO63 -> 0 | AP63: =barton!AP63+gambetta!AP63+acapulco!AP63 -> 0 | AQ63: =barton!AQ63+gambetta!AQ63+acapulco!AQ63 -> 0 | AR63: 0 | AS63: =barton!AS63+gambetta!AS63+acapulco!AS63 -> 0 | AT63: =barton!AT63+gambetta!AT63+acapulco!AT63 -> 0 | AU63: =barton!AU63+gambetta!AU63+acapulco!AU63 -> 0 | AV63: =barton!AV63+gambetta!AV63+acapulco!AV63 -> 0 | AW63: =barton!AW63+gambetta!AW63+acapulco!AW63 -> 0 | AX63: 0 | AY63: =barton!AY63+gambetta!AY63+acapulco!AY63 -> 0 | AZ63: =barton!AZ63+gambetta!AZ63+acapulco!AZ63 -> 0 | BA63: =barton!BA63+gambetta!BA63+acapulco!BA63 -> 0 | BB63: =barton!BB63+gambetta!BB63+acapulco!BB63 -> 0 | BC63: =barton!BC63+gambetta!BC63+acapulco!BC63 -> 0 | BD63: 0 | BE63: =barton!BE63+gambetta!BE63+acapulco!BE63 -> 0 | BF63: =barton!BF63+gambetta!BF63+acapulco!BF63 -> 0 | BG63: =barton!BG63+gambetta!BG63+acapulco!BG63 -> 0 | BH63: =barton!BH63+gambetta!BH63+acapulco!BH63 -> 0 | BI63: =barton!BI63+gambetta!BI63+acapulco!BI63 -> 0 | BJ63: 0 | BK63: =barton!BK63+gambetta!BK63+acapulco!BK63 -> 0 | BL63: =barton!BL63+gambetta!BL63+acapulco!BL63 -> 0 | BM63: =barton!BM63+gambetta!BM63+acapulco!BM63 -> 0 | BN63: =barton!BN63+gambetta!BN63+acapulco!BN63 -> 0 | BO63: =barton!BO63+gambetta!BO63+acapulco!BO63 -> 0 | BP63: 0 | BQ63: =barton!BQ63+gambetta!BQ63+acapulco!BQ63 -> 0 | BR63: =barton!BR63+gambetta!BR63+acapulco!BR63 -> 0 | BS63: =barton!BS63+gambetta!BS63+acapulco!BS63 -> 0 | BT63: =barton!BT63+gambetta!BT63+acapulco!BT63 -> 0 | BU63: =barton!BU63+gambetta!BU63+acapulco!BU63 -> 0 | BV63: 0 | BW63: =barton!BW63+gambetta!BW63+acapulco!BW63 -> 0 | BX63: =barton!BX63+gambetta!BX63+acapulco!BX63 -> 0 | BY63: =barton!BY63+gambetta!BY63+acapulco!BY63 -> 0 | BZ63: =barton!BZ63+gambetta!BZ63+acapulco!BZ63 -> 0 | CA63: =barton!CA63+gambetta!CA63+acapulco!CA63 -> 0
A64: TEST DE EMBARAZO(INMUNOCROMATOGRAFICA) | B64: 101 | C64: =SUMIF($I$45:$CA64,$C$45,I64:CA64) -> 5 | D64: =SUMIF($I$45:$CA64,$D$45,I64:CA64) -> 96 | E64: =SUMIF($I$45:$CA64,$E$45,I64:CA64) -> 0 | F64: =SUMIF($I$45:$CA64,$F$45,I64:CA64) -> 0 | G64: =SUMIF($I$45:$CA64,$G$45,I64:CA64) -> 0 | H64: 16 | I64: =barton!I64+gambetta!I64+acapulco!I64 -> 1 | J64: =barton!J64+gambetta!J64+acapulco!J64 -> 15 | K64: =barton!K64+gambetta!K64+acapulco!K64 -> 0 | L64: =barton!L64+gambetta!L64+acapulco!L64 -> 0 | M64: =barton!M64+gambetta!M64+acapulco!M64 -> 0 | N64: 11 | O64: =barton!O64+gambetta!O64+acapulco!O64 -> 1 | P64: =barton!P64+gambetta!P64+acapulco!P64 -> 10 | Q64: =barton!Q64+gambetta!Q64+acapulco!Q64 -> 0 | R64: =barton!R64+gambetta!R64+acapulco!R64 -> 0 | S64: =barton!S64+gambetta!S64+acapulco!S64 -> 0 | T64: 17 | U64: =barton!U64+gambetta!U64+acapulco!U64 -> 1 | V64: =barton!V64+gambetta!V64+acapulco!V64 -> 16 | W64: =barton!W64+gambetta!W64+acapulco!W64 -> 0 | X64: =barton!X64+gambetta!X64+acapulco!X64 -> 0 | Y64: =barton!Y64+gambetta!Y64+acapulco!Y64 -> 0 | Z64: 14 | AA64: =barton!AA64+gambetta!AA64+acapulco!AA64 -> 1 | AB64: =barton!AB64+gambetta!AB64+acapulco!AB64 -> 13 | AC64: =barton!AC64+gambetta!AC64+acapulco!AC64 -> 0 | AD64: =barton!AD64+gambetta!AD64+acapulco!AD64 -> 0 | AE64: =barton!AE64+gambetta!AE64+acapulco!AE64 -> 0 | AF64: 21 | AG64: =barton!AG64+gambetta!AG64+acapulco!AG64 -> 0 | AH64: =barton!AH64+gambetta!AH64+acapulco!AH64 -> 21 | AI64: =barton!AI64+gambetta!AI64+acapulco!AI64 -> 0 | AJ64: =barton!AJ64+gambetta!AJ64+acapulco!AJ64 -> 0 | AK64: =barton!AK64+gambetta!AK64+acapulco!AK64 -> 0 | AL64: 0 | AM64: =barton!AM64+gambetta!AM64+acapulco!AM64 -> 0 | AN64: =barton!AN64+gambetta!AN64+acapulco!AN64 -> 0 | AO64: =barton!AO64+gambetta!AO64+acapulco!AO64 -> 0 | AP64: =barton!AP64+gambetta!AP64+acapulco!AP64 -> 0 | AQ64: =barton!AQ64+gambetta!AQ64+acapulco!AQ64 -> 0 | AR64: 0 | AS64: =barton!AS64+gambetta!AS64+acapulco!AS64 -> 0 | AT64: =barton!AT64+gambetta!AT64+acapulco!AT64 -> 0 | AU64: =barton!AU64+gambetta!AU64+acapulco!AU64 -> 0 | AV64: =barton!AV64+gambetta!AV64+acapulco!AV64 -> 0 | AW64: =barton!AW64+gambetta!AW64+acapulco!AW64 -> 0 | AX64: 0 | AY64: =barton!AY64+gambetta!AY64+acapulco!AY64 -> 0 | AZ64: =barton!AZ64+gambetta!AZ64+acapulco!AZ64 -> 0 | BA64: =barton!BA64+gambetta!BA64+acapulco!BA64 -> 0 | BB64: =barton!BB64+gambetta!BB64+acapulco!BB64 -> 0 | BC64: =barton!BC64+gambetta!BC64+acapulco!BC64 -> 0 | BD64: 1 | BE64: =barton!BE64+gambetta!BE64+acapulco!BE64 -> 0 | BF64: =barton!BF64+gambetta!BF64+acapulco!BF64 -> 1 | BG64: =barton!BG64+gambetta!BG64+acapulco!BG64 -> 0 | BH64: =barton!BH64+gambetta!BH64+acapulco!BH64 -> 0 | BI64: =barton!BI64+gambetta!BI64+acapulco!BI64 -> 0 | BJ64: 7 | BK64: =barton!BK64+gambetta!BK64+acapulco!BK64 -> 0 | BL64: =barton!BL64+gambetta!BL64+acapulco!BL64 -> 7 | BM64: =barton!BM64+gambetta!BM64+acapulco!BM64 -> 0 | BN64: =barton!BN64+gambetta!BN64+acapulco!BN64 -> 0 | BO64: =barton!BO64+gambetta!BO64+acapulco!BO64 -> 0 | BP64: 4 | BQ64: =barton!BQ64+gambetta!BQ64+acapulco!BQ64 -> 0 | BR64: =barton!BR64+gambetta!BR64+acapulco!BR64 -> 4 | BS64: =barton!BS64+gambetta!BS64+acapulco!BS64 -> 0 | BT64: =barton!BT64+gambetta!BT64+acapulco!BT64 -> 0 | BU64: =barton!BU64+gambetta!BU64+acapulco!BU64 -> 0 | BV64: 10 | BW64: =barton!BW64+gambetta!BW64+acapulco!BW64 -> 1 | BX64: =barton!BX64+gambetta!BX64+acapulco!BX64 -> 9 | BY64: =barton!BY64+gambetta!BY64+acapulco!BY64 -> 0 | BZ64: =barton!BZ64+gambetta!BZ64+acapulco!BZ64 -> 0 | CA64: =barton!CA64+gambetta!CA64+acapulco!CA64 -> 0
A65: V.D.R.L. (SEROLOGICAS) | B65: 0 | C65: =SUMIF($I$45:$CA65,$C$45,I65:CA65) -> 0 | D65: =SUMIF($I$45:$CA65,$D$45,I65:CA65) -> 0 | E65: =SUMIF($I$45:$CA65,$E$45,I65:CA65) -> 0 | F65: =SUMIF($I$45:$CA65,$F$45,I65:CA65) -> 0 | G65: =SUMIF($I$45:$CA65,$G$45,I65:CA65) -> 0 | H65: 0 | I65: =barton!I65+gambetta!I65+acapulco!I65 -> 0 | J65: =barton!J65+gambetta!J65+acapulco!J65 -> 0 | K65: =barton!K65+gambetta!K65+acapulco!K65 -> 0 | L65: =barton!L65+gambetta!L65+acapulco!L65 -> 0 | M65: =barton!M65+gambetta!M65+acapulco!M65 -> 0 | N65: 0 | O65: =barton!O65+gambetta!O65+acapulco!O65 -> 0 | P65: =barton!P65+gambetta!P65+acapulco!P65 -> 0 | Q65: =barton!Q65+gambetta!Q65+acapulco!Q65 -> 0 | R65: =barton!R65+gambetta!R65+acapulco!R65 -> 0 | S65: =barton!S65+gambetta!S65+acapulco!S65 -> 0 | T65: 0 | U65: =barton!U65+gambetta!U65+acapulco!U65 -> 0 | V65: =barton!V65+gambetta!V65+acapulco!V65 -> 0 | W65: =barton!W65+gambetta!W65+acapulco!W65 -> 0 | X65: =barton!X65+gambetta!X65+acapulco!X65 -> 0 | Y65: =barton!Y65+gambetta!Y65+acapulco!Y65 -> 0 | Z65: 0 | AA65: =barton!AA65+gambetta!AA65+acapulco!AA65 -> 0 | AB65: =barton!AB65+gambetta!AB65+acapulco!AB65 -> 0 | AC65: =barton!AC65+gambetta!AC65+acapulco!AC65 -> 0 | AD65: =barton!AD65+gambetta!AD65+acapulco!AD65 -> 0 | AE65: =barton!AE65+gambetta!AE65+acapulco!AE65 -> 0 | AF65: 0 | AG65: =barton!AG65+gambetta!AG65+acapulco!AG65 -> 0 | AH65: =barton!AH65+gambetta!AH65+acapulco!AH65 -> 0 | AI65: =barton!AI65+gambetta!AI65+acapulco!AI65 -> 0 | AJ65: =barton!AJ65+gambetta!AJ65+acapulco!AJ65 -> 0 | AK65: =barton!AK65+gambetta!AK65+acapulco!AK65 -> 0 | AL65: 0 | AM65: =barton!AM65+gambetta!AM65+acapulco!AM65 -> 0 | AN65: =barton!AN65+gambetta!AN65+acapulco!AN65 -> 0 | AO65: =barton!AO65+gambetta!AO65+acapulco!AO65 -> 0 | AP65: =barton!AP65+gambetta!AP65+acapulco!AP65 -> 0 | AQ65: =barton!AQ65+gambetta!AQ65+acapulco!AQ65 -> 0 | AR65: 0 | AS65: =barton!AS65+gambetta!AS65+acapulco!AS65 -> 0 | AT65: =barton!AT65+gambetta!AT65+acapulco!AT65 -> 0 | AU65: =barton!AU65+gambetta!AU65+acapulco!AU65 -> 0 | AV65: =barton!AV65+gambetta!AV65+acapulco!AV65 -> 0 | AW65: =barton!AW65+gambetta!AW65+acapulco!AW65 -> 0 | AX65: 0 | AY65: =barton!AY65+gambetta!AY65+acapulco!AY65 -> 0 | AZ65: =barton!AZ65+gambetta!AZ65+acapulco!AZ65 -> 0 | BA65: =barton!BA65+gambetta!BA65+acapulco!BA65 -> 0 | BB65: =barton!BB65+gambetta!BB65+acapulco!BB65 -> 0 | BC65: =barton!BC65+gambetta!BC65+acapulco!BC65 -> 0 | BD65: 0 | BE65: =barton!BE65+gambetta!BE65+acapulco!BE65 -> 0 | BF65: =barton!BF65+gambetta!BF65+acapulco!BF65 -> 0 | BG65: =barton!BG65+gambetta!BG65+acapulco!BG65 -> 0 | BH65: =barton!BH65+gambetta!BH65+acapulco!BH65 -> 0 | BI65: =barton!BI65+gambetta!BI65+acapulco!BI65 -> 0 | BJ65: 0 | BK65: =barton!BK65+gambetta!BK65+acapulco!BK65 -> 0 | BL65: =barton!BL65+gambetta!BL65+acapulco!BL65 -> 0 | BM65: =barton!BM65+gambetta!BM65+acapulco!BM65 -> 0 | BN65: =barton!BN65+gambetta!BN65+acapulco!BN65 -> 0 | BO65: =barton!BO65+gambetta!BO65+acapulco!BO65 -> 0 | BP65: 0 | BQ65: =barton!BQ65+gambetta!BQ65+acapulco!BQ65 -> 0 | BR65: =barton!BR65+gambetta!BR65+acapulco!BR65 -> 0 | BS65: =barton!BS65+gambetta!BS65+acapulco!BS65 -> 0 | BT65: =barton!BT65+gambetta!BT65+acapulco!BT65 -> 0 | BU65: =barton!BU65+gambetta!BU65+acapulco!BU65 -> 0 | BV65: 0 | BW65: =barton!BW65+gambetta!BW65+acapulco!BW65 -> 0 | BX65: =barton!BX65+gambetta!BX65+acapulco!BX65 -> 0 | BY65: =barton!BY65+gambetta!BY65+acapulco!BY65 -> 0 | BZ65: =barton!BZ65+gambetta!BZ65+acapulco!BZ65 -> 0 | CA65: =barton!CA65+gambetta!CA65+acapulco!CA65 -> 0
A66: VIH - ELISA | B66: 0 | C66: =SUMIF($I$45:$CA66,$C$45,I66:CA66) -> 0 | D66: =SUMIF($I$45:$CA66,$D$45,I66:CA66) -> 0 | E66: =SUMIF($I$45:$CA66,$E$45,I66:CA66) -> 0 | F66: =SUMIF($I$45:$CA66,$F$45,I66:CA66) -> 0 | G66: =SUMIF($I$45:$CA66,$G$45,I66:CA66) -> 0 | H66: 0 | I66: =barton!I66+gambetta!I66+acapulco!I66 -> 0 | J66: =barton!J66+gambetta!J66+acapulco!J66 -> 0 | K66: =barton!K66+gambetta!K66+acapulco!K66 -> 0 | L66: =barton!L66+gambetta!L66+acapulco!L66 -> 0 | M66: =barton!M66+gambetta!M66+acapulco!M66 -> 0 | N66: 0 | O66: =barton!O66+gambetta!O66+acapulco!O66 -> 0 | P66: =barton!P66+gambetta!P66+acapulco!P66 -> 0 | Q66: =barton!Q66+gambetta!Q66+acapulco!Q66 -> 0 | R66: =barton!R66+gambetta!R66+acapulco!R66 -> 0 | S66: =barton!S66+gambetta!S66+acapulco!S66 -> 0 | T66: 0 | U66: =barton!U66+gambetta!U66+acapulco!U66 -> 0 | V66: =barton!V66+gambetta!V66+acapulco!V66 -> 0 | W66: =barton!W66+gambetta!W66+acapulco!W66 -> 0 | X66: =barton!X66+gambetta!X66+acapulco!X66 -> 0 | Y66: =barton!Y66+gambetta!Y66+acapulco!Y66 -> 0 | Z66: 0 | AA66: =barton!AA66+gambetta!AA66+acapulco!AA66 -> 0 | AB66: =barton!AB66+gambetta!AB66+acapulco!AB66 -> 0 | AC66: =barton!AC66+gambetta!AC66+acapulco!AC66 -> 0 | AD66: =barton!AD66+gambetta!AD66+acapulco!AD66 -> 0 | AE66: =barton!AE66+gambetta!AE66+acapulco!AE66 -> 0 | AF66: 0 | AG66: =barton!AG66+gambetta!AG66+acapulco!AG66 -> 0 | AH66: =barton!AH66+gambetta!AH66+acapulco!AH66 -> 0 | AI66: =barton!AI66+gambetta!AI66+acapulco!AI66 -> 0 | AJ66: =barton!AJ66+gambetta!AJ66+acapulco!AJ66 -> 0 | AK66: =barton!AK66+gambetta!AK66+acapulco!AK66 -> 0 | AL66: 0 | AM66: =barton!AM66+gambetta!AM66+acapulco!AM66 -> 0 | AN66: =barton!AN66+gambetta!AN66+acapulco!AN66 -> 0 | AO66: =barton!AO66+gambetta!AO66+acapulco!AO66 -> 0 | AP66: =barton!AP66+gambetta!AP66+acapulco!AP66 -> 0 | AQ66: =barton!AQ66+gambetta!AQ66+acapulco!AQ66 -> 0 | AR66: 0 | AS66: =barton!AS66+gambetta!AS66+acapulco!AS66 -> 0 | AT66: =barton!AT66+gambetta!AT66+acapulco!AT66 -> 0 | AU66: =barton!AU66+gambetta!AU66+acapulco!AU66 -> 0 | AV66: =barton!AV66+gambetta!AV66+acapulco!AV66 -> 0 | AW66: =barton!AW66+gambetta!AW66+acapulco!AW66 -> 0 | AX66: 0 | AY66: =barton!AY66+gambetta!AY66+acapulco!AY66 -> 0 | AZ66: =barton!AZ66+gambetta!AZ66+acapulco!AZ66 -> 0 | BA66: =barton!BA66+gambetta!BA66+acapulco!BA66 -> 0 | BB66: =barton!BB66+gambetta!BB66+acapulco!BB66 -> 0 | BC66: =barton!BC66+gambetta!BC66+acapulco!BC66 -> 0 | BD66: 0 | BE66: =barton!BE66+gambetta!BE66+acapulco!BE66 -> 0 | BF66: =barton!BF66+gambetta!BF66+acapulco!BF66 -> 0 | BG66: =barton!BG66+gambetta!BG66+acapulco!BG66 -> 0 | BH66: =barton!BH66+gambetta!BH66+acapulco!BH66 -> 0 | BI66: =barton!BI66+gambetta!BI66+acapulco!BI66 -> 0 | BJ66: 0 | BK66: =barton!BK66+gambetta!BK66+acapulco!BK66 -> 0 | BL66: =barton!BL66+gambetta!BL66+acapulco!BL66 -> 0 | BM66: =barton!BM66+gambetta!BM66+acapulco!BM66 -> 0 | BN66: =barton!BN66+gambetta!BN66+acapulco!BN66 -> 0 | BO66: =barton!BO66+gambetta!BO66+acapulco!BO66 -> 0 | BP66: 0 | BQ66: =barton!BQ66+gambetta!BQ66+acapulco!BQ66 -> 0 | BR66: =barton!BR66+gambetta!BR66+acapulco!BR66 -> 0 | BS66: =barton!BS66+gambetta!BS66+acapulco!BS66 -> 0 | BT66: =barton!BT66+gambetta!BT66+acapulco!BT66 -> 0 | BU66: =barton!BU66+gambetta!BU66+acapulco!BU66 -> 0 | BV66: 0 | BW66: =barton!BW66+gambetta!BW66+acapulco!BW66 -> 0 | BX66: =barton!BX66+gambetta!BX66+acapulco!BX66 -> 0 | BY66: =barton!BY66+gambetta!BY66+acapulco!BY66 -> 0 | BZ66: =barton!BZ66+gambetta!BZ66+acapulco!BZ66 -> 0 | CA66: =barton!CA66+gambetta!CA66+acapulco!CA66 -> 0
A67: VIH - PRUEBA RAPIDA | B67: 6117 | C67: =SUMIF($I$45:$CA67,$C$45,I67:CA67) -> 54 | D67: =SUMIF($I$45:$CA67,$D$45,I67:CA67) -> 3304 | E67: =SUMIF($I$45:$CA67,$E$45,I67:CA67) -> 18 | F67: =SUMIF($I$45:$CA67,$F$45,I67:CA67) -> 2709 | G67: =SUMIF($I$45:$CA67,$G$45,I67:CA67) -> 32 | H67: 398 | I67: =barton!I67+gambetta!I67+acapulco!I67 -> 0 | J67: =barton!J67+gambetta!J67+acapulco!J67 -> 203 | K67: =barton!K67+gambetta!K67+acapulco!K67 -> 0 | L67: =barton!L67+gambetta!L67+acapulco!L67 -> 195 | M67: =barton!M67+gambetta!M67+acapulco!M67 -> 0 | N67: 389 | O67: =barton!O67+gambetta!O67+acapulco!O67 -> 0 | P67: =barton!P67+gambetta!P67+acapulco!P67 -> 212 | Q67: =barton!Q67+gambetta!Q67+acapulco!Q67 -> 2 | R67: =barton!R67+gambetta!R67+acapulco!R67 -> 175 | S67: =barton!S67+gambetta!S67+acapulco!S67 -> 0 | T67: 540 | U67: =barton!U67+gambetta!U67+acapulco!U67 -> 1 | V67: =barton!V67+gambetta!V67+acapulco!V67 -> 424 | W67: =barton!W67+gambetta!W67+acapulco!W67 -> 0 | X67: =barton!X67+gambetta!X67+acapulco!X67 -> 115 | Y67: =barton!Y67+gambetta!Y67+acapulco!Y67 -> 0 | Z67: 394 | AA67: =barton!AA67+gambetta!AA67+acapulco!AA67 -> 0 | AB67: =barton!AB67+gambetta!AB67+acapulco!AB67 -> 187 | AC67: =barton!AC67+gambetta!AC67+acapulco!AC67 -> 0 | AD67: =barton!AD67+gambetta!AD67+acapulco!AD67 -> 207 | AE67: =barton!AE67+gambetta!AE67+acapulco!AE67 -> 0 | AF67: 448 | AG67: =barton!AG67+gambetta!AG67+acapulco!AG67 -> 0 | AH67: =barton!AH67+gambetta!AH67+acapulco!AH67 -> 231 | AI67: =barton!AI67+gambetta!AI67+acapulco!AI67 -> 3 | AJ67: =barton!AJ67+gambetta!AJ67+acapulco!AJ67 -> 214 | AK67: =barton!AK67+gambetta!AK67+acapulco!AK67 -> 0 | AL67: 501 | AM67: =barton!AM67+gambetta!AM67+acapulco!AM67 -> 1 | AN67: =barton!AN67+gambetta!AN67+acapulco!AN67 -> 257 | AO67: =barton!AO67+gambetta!AO67+acapulco!AO67 -> 1 | AP67: =barton!AP67+gambetta!AP67+acapulco!AP67 -> 242 | AQ67: =barton!AQ67+gambetta!AQ67+acapulco!AQ67 -> 0 | AR67: 434 | AS67: =barton!AS67+gambetta!AS67+acapulco!AS67 -> 2 | AT67: =barton!AT67+gambetta!AT67+acapulco!AT67 -> 256 | AU67: =barton!AU67+gambetta!AU67+acapulco!AU67 -> 0 | AV67: =barton!AV67+gambetta!AV67+acapulco!AV67 -> 176 | AW67: =barton!AW67+gambetta!AW67+acapulco!AW67 -> 0 | AX67: 563 | AY67: =barton!AY67+gambetta!AY67+acapulco!AY67 -> 3 | AZ67: =barton!AZ67+gambetta!AZ67+acapulco!AZ67 -> 283 | BA67: =barton!BA67+gambetta!BA67+acapulco!BA67 -> 3 | BB67: =barton!BB67+gambetta!BB67+acapulco!BB67 -> 274 | BC67: =barton!BC67+gambetta!BC67+acapulco!BC67 -> 0 | BD67: 602 | BE67: =barton!BE67+gambetta!BE67+acapulco!BE67 -> 3 | BF67: =barton!BF67+gambetta!BF67+acapulco!BF67 -> 311 | BG67: =barton!BG67+gambetta!BG67+acapulco!BG67 -> 1 | BH67: =barton!BH67+gambetta!BH67+acapulco!BH67 -> 287 | BI67: =barton!BI67+gambetta!BI67+acapulco!BI67 -> 0 | BJ67: 649 | BK67: =barton!BK67+gambetta!BK67+acapulco!BK67 -> 2 | BL67: =barton!BL67+gambetta!BL67+acapulco!BL67 -> 366 | BM67: =barton!BM67+gambetta!BM67+acapulco!BM67 -> 2 | BN67: =barton!BN67+gambetta!BN67+acapulco!BN67 -> 249 | BO67: =barton!BO67+gambetta!BO67+acapulco!BO67 -> 30 | BP67: 629 | BQ67: =barton!BQ67+gambetta!BQ67+acapulco!BQ67 -> 41 | BR67: =barton!BR67+gambetta!BR67+acapulco!BR67 -> 280 | BS67: =barton!BS67+gambetta!BS67+acapulco!BS67 -> 4 | BT67: =barton!BT67+gambetta!BT67+acapulco!BT67 -> 303 | BU67: =barton!BU67+gambetta!BU67+acapulco!BU67 -> 1 | BV67: 570 | BW67: =barton!BW67+gambetta!BW67+acapulco!BW67 -> 1 | BX67: =barton!BX67+gambetta!BX67+acapulco!BX67 -> 294 | BY67: =barton!BY67+gambetta!BY67+acapulco!BY67 -> 2 | BZ67: =barton!BZ67+gambetta!BZ67+acapulco!BZ67 -> 272 | CA67: =barton!CA67+gambetta!CA67+acapulco!CA67 -> 1
A68: FUENTE: ORDEN DE ANALISIS
A71: ANALISIS | B71: TOTAL | C71: DEM | D71: SIS/AUS | E71: EXO | F71: ESTR. | G71: CAMP | H71: TOTAL | I71: DEM | J71: SIS/AUS | K71: EXO | L71: ESTR. | M71: CAMP | N71: TOTAL | O71: DEM | P71: SIS/AUS | Q71: EXO | R71: ESTR. | S71: CAMP | T71: TOTAL | U71: DEM | V71: SIS/AUS | W71: EXO | X71: ESTR. | Y71: CAMP | Z71: TOTAL | AA71: DEM | AB71: SIS/AUS | AC71: EXO | AD71: ESTR. | AE71: CAMP | AF71: TOTAL | AG71: DEM | AH71: SIS/AUS | AI71: EXO | AJ71: ESTR. | AK71: CAMP | AL71: TOTAL | AM71: DEM | AN71: SIS/AUS | AO71: EXO | AP71: ESTR. | AQ71: CAMP | AR71: TOTAL | AS71: DEM | AT71: SIS/AUS | AU71: EXO | AV71: ESTR. | AW71: CAMP | AX71: TOTAL | AY71: DEM | AZ71: SIS/AUS | BA71: EXO | BB71: ESTR. | BC71: CAMP | BD71: TOTAL | BE71: DEM | BF71: SIS/AUS | BG71: EXO | BH71: ESTR. | BI71: CAMP | BJ71: TOTAL | BK71: DEM | BL71: SIS/AUS | BM71: EXO | BN71: ESTR. | BO71: CAMP | BP71: TOTAL | BQ71: DEM | BR71: SIS/AUS | BS71: EXO | BT71: ESTR. | BU71: CAMP | BV71: TOTAL | BW71: DEM | BX71: SIS/AUS | BY71: EXO | BZ71: ESTR. | CA71: CAMP
A72: INMUNOLOGIA ESPECIAL:
A73: TOTAL | B73: =SUM(B74:B91) -> 157 | C73: 3 | D73: 81 | E73: 2 | F73: 0 | G73: 71 | H73: 0 | I73: 0 | J73: 0 | K73: 0 | L73: 0 | M73: 0 | N73: 0 | O73: 0 | P73: 0 | Q73: 0 | R73: 0 | S73: 0 | T73: 0 | U73: 0 | V73: 0 | W73: 0 | X73: 0 | Y73: 0 | Z73: 0 | AA73: 0 | AB73: 0 | AC73: 0 | AD73: 0 | AE73: 0 | AF73: 63 | AG73: 1 | AH73: =SUM(AH74:AH91) -> 10 | AI73: 0 | AJ73: 0 | AK73: 52 | AL73: 6 | AM73: 0 | AN73: 6 | AO73: 0 | AP73: 0 | AQ73: 0 | AR73: 0 | AS73: 0 | AT73: 0 | AU73: 0 | AV73: 0 | AW73: 0 | AX73: 62 | AY73: 1 | AZ73: 42 | BA73: 0 | BB73: 0 | BC73: 19 | BD73: 15 | BE73: 1 | BF73: 12 | BG73: 2 | BH73: 0 | BI73: 0 | BJ73: 3 | BK73: 0 | BL73: 3 | BM73: 0 | BN73: =SUM(BN74:BN91) -> 0 | BO73: 0 | BP73: 8 | BQ73: 0 | BR73: 8 | BS73: 0 | BT73: 0 | BU73: 0 | BV73: 0 | BW73: 0 | BX73: 0 | BY73: 0 | BZ73: 0 | CA73: 0
A74: AFP | B74: =SUM(C74:G74) -> 0 | C74: =SUMIF($I$71:$CA74,$C$71,I74:CA74) -> 0 | D74: =SUMIF($I$71:$CA74,$D$71,I74:CA74) -> 0 | E74: =SUMIF($I$71:$CA74,$E$71,I74:CA74) -> 0 | F74: =SUMIF($I$71:$CA74,$F$71,I74:CA74) -> 0 | G74: =SUMIF($I$71:$CA74,$G$71,I74:CA74) -> 0 | H74: =SUM(I74:M74) -> 0 | I74: =barton!I74+gambetta!I74+acapulco!I74 -> 0 | J74: =barton!J74+gambetta!J74+acapulco!J74 -> 0 | K74: =barton!K74+gambetta!K74+acapulco!K74 -> 0 | L74: =barton!L74+gambetta!L74+acapulco!L74 -> 0 | M74: =barton!M74+gambetta!M74+acapulco!M74 -> 0 | N74: =SUM(O74:S74) -> 0 | O74: =barton!O74+gambetta!O74+acapulco!O74 -> 0 | P74: =barton!P74+gambetta!P74+acapulco!P74 -> 0 | Q74: =barton!Q74+gambetta!Q74+acapulco!Q74 -> 0 | R74: =barton!R74+gambetta!R74+acapulco!R74 -> 0 | S74: =barton!S74+gambetta!S74+acapulco!S74 -> 0 | T74: =SUM(U74:Y74) -> 0 | U74: =barton!U74+gambetta!U74+acapulco!U74 -> 0 | V74: =barton!V74+gambetta!V74+acapulco!V74 -> 0 | W74: =barton!W74+gambetta!W74+acapulco!W74 -> 0 | X74: =barton!X74+gambetta!X74+acapulco!X74 -> 0 | Y74: =barton!Y74+gambetta!Y74+acapulco!Y74 -> 0 | Z74: =SUM(AA74:AE74) -> 0 | AA74: =barton!AA74+gambetta!AA74+acapulco!AA74 -> 0 | AB74: =barton!AB74+gambetta!AB74+acapulco!AB74 -> 0 | AC74: =barton!AC74+gambetta!AC74+acapulco!AC74 -> 0 | AD74: =barton!AD74+gambetta!AD74+acapulco!AD74 -> 0 | AE74: =barton!AE74+gambetta!AE74+acapulco!AE74 -> 0 | AF74: =SUM(AG74:AK74) -> 0 | AG74: =barton!AG74+gambetta!AG74+acapulco!AG74 -> 0 | AH74: =barton!AH74+gambetta!AH74+acapulco!AH74 -> 0 | AI74: =barton!AI74+gambetta!AI74+acapulco!AI74 -> 0 | AJ74: =barton!AJ74+gambetta!AJ74+acapulco!AJ74 -> 0 | AK74: =barton!AK74+gambetta!AK74+acapulco!AK74 -> 0 | AL74: =SUM(AM74:AQ74) -> 0 | AM74: =barton!AM74+gambetta!AM74+acapulco!AM74 -> 0 | AN74: =barton!AN74+gambetta!AN74+acapulco!AN74 -> 0 | AO74: =barton!AO74+gambetta!AO74+acapulco!AO74 -> 0 | AP74: =barton!AP74+gambetta!AP74+acapulco!AP74 -> 0 | AQ74: =barton!AQ74+gambetta!AQ74+acapulco!AQ74 -> 0 | AR74: =SUM(AS74:AW74) -> 0 | AS74: =barton!AS74+gambetta!AS74+acapulco!AS74 -> 0 | AT74: =barton!AT74+gambetta!AT74+acapulco!AT74 -> 0 | AU74: =barton!AU74+gambetta!AU74+acapulco!AU74 -> 0 | AV74: =barton!AV74+gambetta!AV74+acapulco!AV74 -> 0 | AW74: =barton!AW74+gambetta!AW74+acapulco!AW74 -> 0 | AX74: =SUM(AY74:BC74) -> 0 | AY74: =barton!AY74+gambetta!AY74+acapulco!AY74 -> 0 | AZ74: =barton!AZ74+gambetta!AZ74+acapulco!AZ74 -> 0 | BA74: =barton!BA74+gambetta!BA74+acapulco!BA74 -> 0 | BB74: =barton!BB74+gambetta!BB74+acapulco!BB74 -> 0 | BC74: =barton!BC74+gambetta!BC74+acapulco!BC74 -> 0 | BD74: =SUM(BE74:BI74) -> 0 | BE74: =barton!BE74+gambetta!BE74+acapulco!BE74 -> 0 | BF74: =barton!BF74+gambetta!BF74+acapulco!BF74 -> 0 | BG74: =barton!BG74+gambetta!BG74+acapulco!BG74 -> 0 | BH74: =barton!BH74+gambetta!BH74+acapulco!BH74 -> 0 | BI74: =barton!BI74+gambetta!BI74+acapulco!BI74 -> 0 | BJ74: =SUM(BK74:BO74) -> 0 | BK74: =barton!BK74+gambetta!BK74+acapulco!BK74 -> 0 | BL74: =barton!BL74+gambetta!BL74+acapulco!BL74 -> 0 | BM74: =barton!BM74+gambetta!BM74+acapulco!BM74 -> 0 | BN74: =barton!BN74+gambetta!BN74+acapulco!BN74 -> 0 | BO74: =barton!BO74+gambetta!BO74+acapulco!BO74 -> 0 | BP74: =SUM(BQ74:BU74) -> 0 | BQ74: =barton!BQ74+gambetta!BQ74+acapulco!BQ74 -> 0 | BR74: =barton!BR74+gambetta!BR74+acapulco!BR74 -> 0 | BS74: =barton!BS74+gambetta!BS74+acapulco!BS74 -> 0 | BT74: =barton!BT74+gambetta!BT74+acapulco!BT74 -> 0 | BU74: =barton!BU74+gambetta!BU74+acapulco!BU74 -> 0 | BV74: =SUM(BW74:CA74) -> 0 | BW74: =barton!BW74+gambetta!BW74+acapulco!BW74 -> 0 | BX74: =barton!BX74+gambetta!BX74+acapulco!BX74 -> 0 | BY74: =barton!BY74+gambetta!BY74+acapulco!BY74 -> 0 | BZ74: =barton!BZ74+gambetta!BZ74+acapulco!BZ74 -> 0 | CA74: =barton!CA74+gambetta!CA74+acapulco!CA74 -> 0
A75: CA - 125 | B75: 0 | C75: =SUMIF($I$71:$CA75,$C$71,I75:CA75) -> 0 | D75: =SUMIF($I$71:$CA75,$D$71,I75:CA75) -> 0 | E75: =SUMIF($I$71:$CA75,$E$71,I75:CA75) -> 0 | F75: =SUMIF($I$71:$CA75,$F$71,I75:CA75) -> 0 | G75: =SUMIF($I$71:$CA75,$G$71,I75:CA75) -> 0 | H75: =SUM(I75:M75) -> 0 | I75: =barton!I75+gambetta!I75+acapulco!I75 -> 0 | J75: =barton!J75+gambetta!J75+acapulco!J75 -> 0 | K75: =barton!K75+gambetta!K75+acapulco!K75 -> 0 | L75: =barton!L75+gambetta!L75+acapulco!L75 -> 0 | M75: =barton!M75+gambetta!M75+acapulco!M75 -> 0 | N75: =SUM(O75:S75) -> 0 | O75: =barton!O75+gambetta!O75+acapulco!O75 -> 0 | P75: =barton!P75+gambetta!P75+acapulco!P75 -> 0 | Q75: =barton!Q75+gambetta!Q75+acapulco!Q75 -> 0 | R75: =barton!R75+gambetta!R75+acapulco!R75 -> 0 | S75: =barton!S75+gambetta!S75+acapulco!S75 -> 0 | T75: =SUM(U75:Y75) -> 0 | U75: =barton!U75+gambetta!U75+acapulco!U75 -> 0 | V75: =barton!V75+gambetta!V75+acapulco!V75 -> 0 | W75: =barton!W75+gambetta!W75+acapulco!W75 -> 0 | X75: =barton!X75+gambetta!X75+acapulco!X75 -> 0 | Y75: =barton!Y75+gambetta!Y75+acapulco!Y75 -> 0 | Z75: =SUM(AA75:AE75) -> 0 | AA75: =barton!AA75+gambetta!AA75+acapulco!AA75 -> 0 | AB75: =barton!AB75+gambetta!AB75+acapulco!AB75 -> 0 | AC75: =barton!AC75+gambetta!AC75+acapulco!AC75 -> 0 | AD75: =barton!AD75+gambetta!AD75+acapulco!AD75 -> 0 | AE75: =barton!AE75+gambetta!AE75+acapulco!AE75 -> 0 | AF75: =SUM(AG75:AK75) -> 0 | AG75: =barton!AG75+gambetta!AG75+acapulco!AG75 -> 0 | AH75: =barton!AH75+gambetta!AH75+acapulco!AH75 -> 0 | AI75: =barton!AI75+gambetta!AI75+acapulco!AI75 -> 0 | AJ75: =barton!AJ75+gambetta!AJ75+acapulco!AJ75 -> 0 | AK75: =barton!AK75+gambetta!AK75+acapulco!AK75 -> 0 | AL75: =SUM(AM75:AQ75) -> 0 | AM75: =barton!AM75+gambetta!AM75+acapulco!AM75 -> 0 | AN75: =barton!AN75+gambetta!AN75+acapulco!AN75 -> 0 | AO75: =barton!AO75+gambetta!AO75+acapulco!AO75 -> 0 | AP75: =barton!AP75+gambetta!AP75+acapulco!AP75 -> 0 | AQ75: =barton!AQ75+gambetta!AQ75+acapulco!AQ75 -> 0 | AR75: =SUM(AS75:AW75) -> 0 | AS75: =barton!AS75+gambetta!AS75+acapulco!AS75 -> 0 | AT75: =barton!AT75+gambetta!AT75+acapulco!AT75 -> 0 | AU75: =barton!AU75+gambetta!AU75+acapulco!AU75 -> 0 | AV75: =barton!AV75+gambetta!AV75+acapulco!AV75 -> 0 | AW75: =barton!AW75+gambetta!AW75+acapulco!AW75 -> 0 | AX75: =SUM(AY75:BC75) -> 0 | AY75: =barton!AY75+gambetta!AY75+acapulco!AY75 -> 0 | AZ75: =barton!AZ75+gambetta!AZ75+acapulco!AZ75 -> 0 | BA75: =barton!BA75+gambetta!BA75+acapulco!BA75 -> 0 | BB75: =barton!BB75+gambetta!BB75+acapulco!BB75 -> 0 | BC75: =barton!BC75+gambetta!BC75+acapulco!BC75 -> 0 | BD75: =SUM(BE75:BI75) -> 0 | BE75: =barton!BE75+gambetta!BE75+acapulco!BE75 -> 0 | BF75: =barton!BF75+gambetta!BF75+acapulco!BF75 -> 0 | BG75: =barton!BG75+gambetta!BG75+acapulco!BG75 -> 0 | BH75: =barton!BH75+gambetta!BH75+acapulco!BH75 -> 0 | BI75: =barton!BI75+gambetta!BI75+acapulco!BI75 -> 0 | BJ75: =SUM(BK75:BO75) -> 0 | BK75: =barton!BK75+gambetta!BK75+acapulco!BK75 -> 0 | BL75: =barton!BL75+gambetta!BL75+acapulco!BL75 -> 0 | BM75: =barton!BM75+gambetta!BM75+acapulco!BM75 -> 0 | BN75: =barton!BN75+gambetta!BN75+acapulco!BN75 -> 0 | BO75: =barton!BO75+gambetta!BO75+acapulco!BO75 -> 0 | BP75: =SUM(BQ75:BU75) -> 0 | BQ75: =barton!BQ75+gambetta!BQ75+acapulco!BQ75 -> 0 | BR75: =barton!BR75+gambetta!BR75+acapulco!BR75 -> 0 | BS75: =barton!BS75+gambetta!BS75+acapulco!BS75 -> 0 | BT75: =barton!BT75+gambetta!BT75+acapulco!BT75 -> 0 | BU75: =barton!BU75+gambetta!BU75+acapulco!BU75 -> 0 | BV75: =SUM(BW75:CA75) -> 0 | BW75: =barton!BW75+gambetta!BW75+acapulco!BW75 -> 0 | BX75: =barton!BX75+gambetta!BX75+acapulco!BX75 -> 0 | BY75: =barton!BY75+gambetta!BY75+acapulco!BY75 -> 0 | BZ75: =barton!BZ75+gambetta!BZ75+acapulco!BZ75 -> 0 | CA75: =barton!CA75+gambetta!CA75+acapulco!CA75 -> 0
A76: CA - 19 - 9 | B76: 0 | C76: =SUMIF($I$71:$CA76,$C$71,I76:CA76) -> 0 | D76: =SUMIF($I$71:$CA76,$D$71,I76:CA76) -> 0 | E76: =SUMIF($I$71:$CA76,$E$71,I76:CA76) -> 0 | F76: =SUMIF($I$71:$CA76,$F$71,I76:CA76) -> 0 | G76: =SUMIF($I$71:$CA76,$G$71,I76:CA76) -> 0 | H76: 0 | I76: =barton!I76+gambetta!I76+acapulco!I76 -> 0 | J76: =barton!J76+gambetta!J76+acapulco!J76 -> 0 | K76: =barton!K76+gambetta!K76+acapulco!K76 -> 0 | L76: =barton!L76+gambetta!L76+acapulco!L76 -> 0 | M76: =barton!M76+gambetta!M76+acapulco!M76 -> 0 | N76: 0 | O76: =barton!O76+gambetta!O76+acapulco!O76 -> 0 | P76: =barton!P76+gambetta!P76+acapulco!P76 -> 0 | Q76: =barton!Q76+gambetta!Q76+acapulco!Q76 -> 0 | R76: =barton!R76+gambetta!R76+acapulco!R76 -> 0 | S76: =barton!S76+gambetta!S76+acapulco!S76 -> 0 | T76: 0 | U76: =barton!U76+gambetta!U76+acapulco!U76 -> 0 | V76: =barton!V76+gambetta!V76+acapulco!V76 -> 0 | W76: =barton!W76+gambetta!W76+acapulco!W76 -> 0 | X76: =barton!X76+gambetta!X76+acapulco!X76 -> 0 | Y76: =barton!Y76+gambetta!Y76+acapulco!Y76 -> 0 | Z76: 0 | AA76: =barton!AA76+gambetta!AA76+acapulco!AA76 -> 0 | AB76: =barton!AB76+gambetta!AB76+acapulco!AB76 -> 0 | AC76: =barton!AC76+gambetta!AC76+acapulco!AC76 -> 0 | AD76: =barton!AD76+gambetta!AD76+acapulco!AD76 -> 0 | AE76: =barton!AE76+gambetta!AE76+acapulco!AE76 -> 0 | AF76: 0 | AG76: =barton!AG76+gambetta!AG76+acapulco!AG76 -> 0 | AH76: =barton!AH76+gambetta!AH76+acapulco!AH76 -> 0 | AI76: =barton!AI76+gambetta!AI76+acapulco!AI76 -> 0 | AJ76: =barton!AJ76+gambetta!AJ76+acapulco!AJ76 -> 0 | AK76: =barton!AK76+gambetta!AK76+acapulco!AK76 -> 0 | AL76: 0 | AM76: =barton!AM76+gambetta!AM76+acapulco!AM76 -> 0 | AN76: =barton!AN76+gambetta!AN76+acapulco!AN76 -> 0 | AO76: =barton!AO76+gambetta!AO76+acapulco!AO76 -> 0 | AP76: =barton!AP76+gambetta!AP76+acapulco!AP76 -> 0 | AQ76: =barton!AQ76+gambetta!AQ76+acapulco!AQ76 -> 0 | AR76: 0 | AS76: =barton!AS76+gambetta!AS76+acapulco!AS76 -> 0 | AT76: =barton!AT76+gambetta!AT76+acapulco!AT76 -> 0 | AU76: =barton!AU76+gambetta!AU76+acapulco!AU76 -> 0 | AV76: =barton!AV76+gambetta!AV76+acapulco!AV76 -> 0 | AW76: =barton!AW76+gambetta!AW76+acapulco!AW76 -> 0 | AX76: 0 | AY76: =barton!AY76+gambetta!AY76+acapulco!AY76 -> 0 | AZ76: =barton!AZ76+gambetta!AZ76+acapulco!AZ76 -> 0 | BA76: =barton!BA76+gambetta!BA76+acapulco!BA76 -> 0 | BB76: =barton!BB76+gambetta!BB76+acapulco!BB76 -> 0 | BC76: =barton!BC76+gambetta!BC76+acapulco!BC76 -> 0 | BD76: 0 | BE76: =barton!BE76+gambetta!BE76+acapulco!BE76 -> 0 | BF76: =barton!BF76+gambetta!BF76+acapulco!BF76 -> 0 | BG76: =barton!BG76+gambetta!BG76+acapulco!BG76 -> 0 | BH76: =barton!BH76+gambetta!BH76+acapulco!BH76 -> 0 | BI76: =barton!BI76+gambetta!BI76+acapulco!BI76 -> 0 | BJ76: 0 | BK76: =barton!BK76+gambetta!BK76+acapulco!BK76 -> 0 | BL76: =barton!BL76+gambetta!BL76+acapulco!BL76 -> 0 | BM76: =barton!BM76+gambetta!BM76+acapulco!BM76 -> 0 | BN76: =barton!BN76+gambetta!BN76+acapulco!BN76 -> 0 | BO76: =barton!BO76+gambetta!BO76+acapulco!BO76 -> 0 | BP76: 0 | BQ76: =barton!BQ76+gambetta!BQ76+acapulco!BQ76 -> 0 | BR76: =barton!BR76+gambetta!BR76+acapulco!BR76 -> 0 | BS76: =barton!BS76+gambetta!BS76+acapulco!BS76 -> 0 | BT76: =barton!BT76+gambetta!BT76+acapulco!BT76 -> 0 | BU76: =barton!BU76+gambetta!BU76+acapulco!BU76 -> 0 | BV76: 0 | BW76: =barton!BW76+gambetta!BW76+acapulco!BW76 -> 0 | BX76: =barton!BX76+gambetta!BX76+acapulco!BX76 -> 0 | BY76: =barton!BY76+gambetta!BY76+acapulco!BY76 -> 0 | BZ76: =barton!BZ76+gambetta!BZ76+acapulco!BZ76 -> 0 | CA76: =barton!CA76+gambetta!CA76+acapulco!CA76 -> 0
A77: CEA | B77: 0 | C77: =SUMIF($I$71:$CA77,$C$71,I77:CA77) -> 0 | D77: =SUMIF($I$71:$CA77,$D$71,I77:CA77) -> 0 | E77: =SUMIF($I$71:$CA77,$E$71,I77:CA77) -> 0 | F77: =SUMIF($I$71:$CA77,$F$71,I77:CA77) -> 0 | G77: =SUMIF($I$71:$CA77,$G$71,I77:CA77) -> 0 | H77: 0 | I77: =barton!I77+gambetta!I77+acapulco!I77 -> 0 | J77: =barton!J77+gambetta!J77+acapulco!J77 -> 0 | K77: =barton!K77+gambetta!K77+acapulco!K77 -> 0 | L77: =barton!L77+gambetta!L77+acapulco!L77 -> 0 | M77: =barton!M77+gambetta!M77+acapulco!M77 -> 0 | N77: 0 | O77: =barton!O77+gambetta!O77+acapulco!O77 -> 0 | P77: =barton!P77+gambetta!P77+acapulco!P77 -> 0 | Q77: =barton!Q77+gambetta!Q77+acapulco!Q77 -> 0 | R77: =barton!R77+gambetta!R77+acapulco!R77 -> 0 | S77: =barton!S77+gambetta!S77+acapulco!S77 -> 0 | T77: 0 | U77: =barton!U77+gambetta!U77+acapulco!U77 -> 0 | V77: =barton!V77+gambetta!V77+acapulco!V77 -> 0 | W77: =barton!W77+gambetta!W77+acapulco!W77 -> 0 | X77: =barton!X77+gambetta!X77+acapulco!X77 -> 0 | Y77: =barton!Y77+gambetta!Y77+acapulco!Y77 -> 0 | Z77: 0 | AA77: =barton!AA77+gambetta!AA77+acapulco!AA77 -> 0 | AB77: =barton!AB77+gambetta!AB77+acapulco!AB77 -> 0 | AC77: =barton!AC77+gambetta!AC77+acapulco!AC77 -> 0 | AD77: =barton!AD77+gambetta!AD77+acapulco!AD77 -> 0 | AE77: =barton!AE77+gambetta!AE77+acapulco!AE77 -> 0 | AF77: 0 | AG77: =barton!AG77+gambetta!AG77+acapulco!AG77 -> 0 | AH77: =barton!AH77+gambetta!AH77+acapulco!AH77 -> 0 | AI77: =barton!AI77+gambetta!AI77+acapulco!AI77 -> 0 | AJ77: =barton!AJ77+gambetta!AJ77+acapulco!AJ77 -> 0 | AK77: =barton!AK77+gambetta!AK77+acapulco!AK77 -> 0 | AL77: 0 | AM77: =barton!AM77+gambetta!AM77+acapulco!AM77 -> 0 | AN77: =barton!AN77+gambetta!AN77+acapulco!AN77 -> 0 | AO77: =barton!AO77+gambetta!AO77+acapulco!AO77 -> 0 | AP77: =barton!AP77+gambetta!AP77+acapulco!AP77 -> 0 | AQ77: =barton!AQ77+gambetta!AQ77+acapulco!AQ77 -> 0 | AR77: 0 | AS77: =barton!AS77+gambetta!AS77+acapulco!AS77 -> 0 | AT77: =barton!AT77+gambetta!AT77+acapulco!AT77 -> 0 | AU77: =barton!AU77+gambetta!AU77+acapulco!AU77 -> 0 | AV77: =barton!AV77+gambetta!AV77+acapulco!AV77 -> 0 | AW77: =barton!AW77+gambetta!AW77+acapulco!AW77 -> 0 | AX77: 0 | AY77: =barton!AY77+gambetta!AY77+acapulco!AY77 -> 0 | AZ77: =barton!AZ77+gambetta!AZ77+acapulco!AZ77 -> 0 | BA77: =barton!BA77+gambetta!BA77+acapulco!BA77 -> 0 | BB77: =barton!BB77+gambetta!BB77+acapulco!BB77 -> 0 | BC77: =barton!BC77+gambetta!BC77+acapulco!BC77 -> 0 | BD77: 0 | BE77: =barton!BE77+gambetta!BE77+acapulco!BE77 -> 0 | BF77: =barton!BF77+gambetta!BF77+acapulco!BF77 -> 0 | BG77: =barton!BG77+gambetta!BG77+acapulco!BG77 -> 0 | BH77: =barton!BH77+gambetta!BH77+acapulco!BH77 -> 0 | BI77: =barton!BI77+gambetta!BI77+acapulco!BI77 -> 0 | BJ77: 0 | BK77: =barton!BK77+gambetta!BK77+acapulco!BK77 -> 0 | BL77: =barton!BL77+gambetta!BL77+acapulco!BL77 -> 0 | BM77: =barton!BM77+gambetta!BM77+acapulco!BM77 -> 0 | BN77: =barton!BN77+gambetta!BN77+acapulco!BN77 -> 0 | BO77: =barton!BO77+gambetta!BO77+acapulco!BO77 -> 0 | BP77: 0 | BQ77: =barton!BQ77+gambetta!BQ77+acapulco!BQ77 -> 0 | BR77: =barton!BR77+gambetta!BR77+acapulco!BR77 -> 0 | BS77: =barton!BS77+gambetta!BS77+acapulco!BS77 -> 0 | BT77: =barton!BT77+gambetta!BT77+acapulco!BT77 -> 0 | BU77: =barton!BU77+gambetta!BU77+acapulco!BU77 -> 0 | BV77: 0 | BW77: =barton!BW77+gambetta!BW77+acapulco!BW77 -> 0 | BX77: =barton!BX77+gambetta!BX77+acapulco!BX77 -> 0 | BY77: =barton!BY77+gambetta!BY77+acapulco!BY77 -> 0 | BZ77: =barton!BZ77+gambetta!BZ77+acapulco!BZ77 -> 0 | CA77: =barton!CA77+gambetta!CA77+acapulco!CA77 -> 0
A78: ESTRADIOL | B78: 0 | C78: =SUMIF($I$71:$CA78,$C$71,I78:CA78) -> 0 | D78: =SUMIF($I$71:$CA78,$D$71,I78:CA78) -> 0 | E78: =SUMIF($I$71:$CA78,$E$71,I78:CA78) -> 0 | F78: =SUMIF($I$71:$CA78,$F$71,I78:CA78) -> 0 | G78: =SUMIF($I$71:$CA78,$G$71,I78:CA78) -> 0 | H78: 0 | I78: =barton!I78+gambetta!I78+acapulco!I78 -> 0 | J78: =barton!J78+gambetta!J78+acapulco!J78 -> 0 | K78: =barton!K78+gambetta!K78+acapulco!K78 -> 0 | L78: =barton!L78+gambetta!L78+acapulco!L78 -> 0 | M78: =barton!M78+gambetta!M78+acapulco!M78 -> 0 | N78: 0 | O78: =barton!O78+gambetta!O78+acapulco!O78 -> 0 | P78: =barton!P78+gambetta!P78+acapulco!P78 -> 0 | Q78: =barton!Q78+gambetta!Q78+acapulco!Q78 -> 0 | R78: =barton!R78+gambetta!R78+acapulco!R78 -> 0 | S78: =barton!S78+gambetta!S78+acapulco!S78 -> 0 | T78: 0 | U78: =barton!U78+gambetta!U78+acapulco!U78 -> 0 | V78: =barton!V78+gambetta!V78+acapulco!V78 -> 0 | W78: =barton!W78+gambetta!W78+acapulco!W78 -> 0 | X78: =barton!X78+gambetta!X78+acapulco!X78 -> 0 | Y78: =barton!Y78+gambetta!Y78+acapulco!Y78 -> 0 | Z78: 0 | AA78: =barton!AA78+gambetta!AA78+acapulco!AA78 -> 0 | AB78: =barton!AB78+gambetta!AB78+acapulco!AB78 -> 0 | AC78: =barton!AC78+gambetta!AC78+acapulco!AC78 -> 0 | AD78: =barton!AD78+gambetta!AD78+acapulco!AD78 -> 0 | AE78: =barton!AE78+gambetta!AE78+acapulco!AE78 -> 0 | AF78: 0 | AG78: =barton!AG78+gambetta!AG78+acapulco!AG78 -> 0 | AH78: =barton!AH78+gambetta!AH78+acapulco!AH78 -> 0 | AI78: =barton!AI78+gambetta!AI78+acapulco!AI78 -> 0 | AJ78: =barton!AJ78+gambetta!AJ78+acapulco!AJ78 -> 0 | AK78: =barton!AK78+gambetta!AK78+acapulco!AK78 -> 0 | AL78: 0 | AM78: =barton!AM78+gambetta!AM78+acapulco!AM78 -> 0 | AN78: =barton!AN78+gambetta!AN78+acapulco!AN78 -> 0 | AO78: =barton!AO78+gambetta!AO78+acapulco!AO78 -> 0 | AP78: =barton!AP78+gambetta!AP78+acapulco!AP78 -> 0 | AQ78: =barton!AQ78+gambetta!AQ78+acapulco!AQ78 -> 0 | AR78: 0 | AS78: =barton!AS78+gambetta!AS78+acapulco!AS78 -> 0 | AT78: =barton!AT78+gambetta!AT78+acapulco!AT78 -> 0 | AU78: =barton!AU78+gambetta!AU78+acapulco!AU78 -> 0 | AV78: =barton!AV78+gambetta!AV78+acapulco!AV78 -> 0 | AW78: =barton!AW78+gambetta!AW78+acapulco!AW78 -> 0 | AX78: 0 | AY78: =barton!AY78+gambetta!AY78+acapulco!AY78 -> 0 | AZ78: =barton!AZ78+gambetta!AZ78+acapulco!AZ78 -> 0 | BA78: =barton!BA78+gambetta!BA78+acapulco!BA78 -> 0 | BB78: =barton!BB78+gambetta!BB78+acapulco!BB78 -> 0 | BC78: =barton!BC78+gambetta!BC78+acapulco!BC78 -> 0 | BD78: 0 | BE78: =barton!BE78+gambetta!BE78+acapulco!BE78 -> 0 | BF78: =barton!BF78+gambetta!BF78+acapulco!BF78 -> 0 | BG78: =barton!BG78+gambetta!BG78+acapulco!BG78 -> 0 | BH78: =barton!BH78+gambetta!BH78+acapulco!BH78 -> 0 | BI78: =barton!BI78+gambetta!BI78+acapulco!BI78 -> 0 | BJ78: 0 | BK78: =barton!BK78+gambetta!BK78+acapulco!BK78 -> 0 | BL78: =barton!BL78+gambetta!BL78+acapulco!BL78 -> 0 | BM78: =barton!BM78+gambetta!BM78+acapulco!BM78 -> 0 | BN78: =barton!BN78+gambetta!BN78+acapulco!BN78 -> 0 | BO78: =barton!BO78+gambetta!BO78+acapulco!BO78 -> 0 | BP78: 0 | BQ78: =barton!BQ78+gambetta!BQ78+acapulco!BQ78 -> 0 | BR78: =barton!BR78+gambetta!BR78+acapulco!BR78 -> 0 | BS78: =barton!BS78+gambetta!BS78+acapulco!BS78 -> 0 | BT78: =barton!BT78+gambetta!BT78+acapulco!BT78 -> 0 | BU78: =barton!BU78+gambetta!BU78+acapulco!BU78 -> 0 | BV78: 0 | BW78: =barton!BW78+gambetta!BW78+acapulco!BW78 -> 0 | BX78: =barton!BX78+gambetta!BX78+acapulco!BX78 -> 0 | BY78: =barton!BY78+gambetta!BY78+acapulco!BY78 -> 0 | BZ78: =barton!BZ78+gambetta!BZ78+acapulco!BZ78 -> 0 | CA78: =barton!CA78+gambetta!CA78+acapulco!CA78 -> 0
A79: FSH | B79: 0 | C79: =SUMIF($I$71:$CA79,$C$71,I79:CA79) -> 0 | D79: =SUMIF($I$71:$CA79,$D$71,I79:CA79) -> 0 | E79: =SUMIF($I$71:$CA79,$E$71,I79:CA79) -> 0 | F79: =SUMIF($I$71:$CA79,$F$71,I79:CA79) -> 0 | G79: =SUMIF($I$71:$CA79,$G$71,I79:CA79) -> 0 | H79: 0 | I79: =barton!I79+gambetta!I79+acapulco!I79 -> 0 | J79: =barton!J79+gambetta!J79+acapulco!J79 -> 0 | K79: =barton!K79+gambetta!K79+acapulco!K79 -> 0 | L79: =barton!L79+gambetta!L79+acapulco!L79 -> 0 | M79: =barton!M79+gambetta!M79+acapulco!M79 -> 0 | N79: 0 | O79: =barton!O79+gambetta!O79+acapulco!O79 -> 0 | P79: =barton!P79+gambetta!P79+acapulco!P79 -> 0 | Q79: =barton!Q79+gambetta!Q79+acapulco!Q79 -> 0 | R79: =barton!R79+gambetta!R79+acapulco!R79 -> 0 | S79: =barton!S79+gambetta!S79+acapulco!S79 -> 0 | T79: 0 | U79: =barton!U79+gambetta!U79+acapulco!U79 -> 0 | V79: =barton!V79+gambetta!V79+acapulco!V79 -> 0 | W79: =barton!W79+gambetta!W79+acapulco!W79 -> 0 | X79: =barton!X79+gambetta!X79+acapulco!X79 -> 0 | Y79: =barton!Y79+gambetta!Y79+acapulco!Y79 -> 0 | Z79: 0 | AA79: =barton!AA79+gambetta!AA79+acapulco!AA79 -> 0 | AB79: =barton!AB79+gambetta!AB79+acapulco!AB79 -> 0 | AC79: =barton!AC79+gambetta!AC79+acapulco!AC79 -> 0 | AD79: =barton!AD79+gambetta!AD79+acapulco!AD79 -> 0 | AE79: =barton!AE79+gambetta!AE79+acapulco!AE79 -> 0 | AF79: 0 | AG79: =barton!AG79+gambetta!AG79+acapulco!AG79 -> 0 | AH79: =barton!AH79+gambetta!AH79+acapulco!AH79 -> 0 | AI79: =barton!AI79+gambetta!AI79+acapulco!AI79 -> 0 | AJ79: =barton!AJ79+gambetta!AJ79+acapulco!AJ79 -> 0 | AK79: =barton!AK79+gambetta!AK79+acapulco!AK79 -> 0 | AL79: 0 | AM79: =barton!AM79+gambetta!AM79+acapulco!AM79 -> 0 | AN79: =barton!AN79+gambetta!AN79+acapulco!AN79 -> 0 | AO79: =barton!AO79+gambetta!AO79+acapulco!AO79 -> 0 | AP79: =barton!AP79+gambetta!AP79+acapulco!AP79 -> 0 | AQ79: =barton!AQ79+gambetta!AQ79+acapulco!AQ79 -> 0 | AR79: 0 | AS79: =barton!AS79+gambetta!AS79+acapulco!AS79 -> 0 | AT79: =barton!AT79+gambetta!AT79+acapulco!AT79 -> 0 | AU79: =barton!AU79+gambetta!AU79+acapulco!AU79 -> 0 | AV79: =barton!AV79+gambetta!AV79+acapulco!AV79 -> 0 | AW79: =barton!AW79+gambetta!AW79+acapulco!AW79 -> 0 | AX79: 0 | AY79: =barton!AY79+gambetta!AY79+acapulco!AY79 -> 0 | AZ79: =barton!AZ79+gambetta!AZ79+acapulco!AZ79 -> 0 | BA79: =barton!BA79+gambetta!BA79+acapulco!BA79 -> 0 | BB79: =barton!BB79+gambetta!BB79+acapulco!BB79 -> 0 | BC79: =barton!BC79+gambetta!BC79+acapulco!BC79 -> 0 | BD79: 0 | BE79: =barton!BE79+gambetta!BE79+acapulco!BE79 -> 0 | BF79: =barton!BF79+gambetta!BF79+acapulco!BF79 -> 0 | BG79: =barton!BG79+gambetta!BG79+acapulco!BG79 -> 0 | BH79: =barton!BH79+gambetta!BH79+acapulco!BH79 -> 0 | BI79: =barton!BI79+gambetta!BI79+acapulco!BI79 -> 0 | BJ79: 0 | BK79: =barton!BK79+gambetta!BK79+acapulco!BK79 -> 0 | BL79: =barton!BL79+gambetta!BL79+acapulco!BL79 -> 0 | BM79: =barton!BM79+gambetta!BM79+acapulco!BM79 -> 0 | BN79: =barton!BN79+gambetta!BN79+acapulco!BN79 -> 0 | BO79: =barton!BO79+gambetta!BO79+acapulco!BO79 -> 0 | BP79: 0 | BQ79: =barton!BQ79+gambetta!BQ79+acapulco!BQ79 -> 0 | BR79: =barton!BR79+gambetta!BR79+acapulco!BR79 -> 0 | BS79: =barton!BS79+gambetta!BS79+acapulco!BS79 -> 0 | BT79: =barton!BT79+gambetta!BT79+acapulco!BT79 -> 0 | BU79: =barton!BU79+gambetta!BU79+acapulco!BU79 -> 0 | BV79: 0 | BW79: =barton!BW79+gambetta!BW79+acapulco!BW79 -> 0 | BX79: =barton!BX79+gambetta!BX79+acapulco!BX79 -> 0 | BY79: =barton!BY79+gambetta!BY79+acapulco!BY79 -> 0 | BZ79: =barton!BZ79+gambetta!BZ79+acapulco!BZ79 -> 0 | CA79: =barton!CA79+gambetta!CA79+acapulco!CA79 -> 0
A80: HCG | B80: 0 | C80: =SUMIF($I$71:$CA80,$C$71,I80:CA80) -> 0 | D80: =SUMIF($I$71:$CA80,$D$71,I80:CA80) -> 0 | E80: =SUMIF($I$71:$CA80,$E$71,I80:CA80) -> 0 | F80: =SUMIF($I$71:$CA80,$F$71,I80:CA80) -> 0 | G80: =SUMIF($I$71:$CA80,$G$71,I80:CA80) -> 0 | H80: 0 | I80: =barton!I80+gambetta!I80+acapulco!I80 -> 0 | J80: =barton!J80+gambetta!J80+acapulco!J80 -> 0 | K80: =barton!K80+gambetta!K80+acapulco!K80 -> 0 | L80: =barton!L80+gambetta!L80+acapulco!L80 -> 0 | M80: =barton!M80+gambetta!M80+acapulco!M80 -> 0 | N80: 0 | O80: =barton!O80+gambetta!O80+acapulco!O80 -> 0 | P80: =barton!P80+gambetta!P80+acapulco!P80 -> 0 | Q80: =barton!Q80+gambetta!Q80+acapulco!Q80 -> 0 | R80: =barton!R80+gambetta!R80+acapulco!R80 -> 0 | S80: =barton!S80+gambetta!S80+acapulco!S80 -> 0 | T80: 0 | U80: =barton!U80+gambetta!U80+acapulco!U80 -> 0 | V80: =barton!V80+gambetta!V80+acapulco!V80 -> 0 | W80: =barton!W80+gambetta!W80+acapulco!W80 -> 0 | X80: =barton!X80+gambetta!X80+acapulco!X80 -> 0 | Y80: =barton!Y80+gambetta!Y80+acapulco!Y80 -> 0 | Z80: 0 | AA80: =barton!AA80+gambetta!AA80+acapulco!AA80 -> 0 | AB80: =barton!AB80+gambetta!AB80+acapulco!AB80 -> 0 | AC80: =barton!AC80+gambetta!AC80+acapulco!AC80 -> 0 | AD80: =barton!AD80+gambetta!AD80+acapulco!AD80 -> 0 | AE80: =barton!AE80+gambetta!AE80+acapulco!AE80 -> 0 | AF80: 0 | AG80: =barton!AG80+gambetta!AG80+acapulco!AG80 -> 0 | AH80: =barton!AH80+gambetta!AH80+acapulco!AH80 -> 0 | AI80: =barton!AI80+gambetta!AI80+acapulco!AI80 -> 0 | AJ80: =barton!AJ80+gambetta!AJ80+acapulco!AJ80 -> 0 | AK80: =barton!AK80+gambetta!AK80+acapulco!AK80 -> 0 | AL80: 0 | AM80: =barton!AM80+gambetta!AM80+acapulco!AM80 -> 0 | AN80: =barton!AN80+gambetta!AN80+acapulco!AN80 -> 0 | AO80: =barton!AO80+gambetta!AO80+acapulco!AO80 -> 0 | AP80: =barton!AP80+gambetta!AP80+acapulco!AP80 -> 0 | AQ80: =barton!AQ80+gambetta!AQ80+acapulco!AQ80 -> 0 | AR80: 0 | AS80: =barton!AS80+gambetta!AS80+acapulco!AS80 -> 0 | AT80: =barton!AT80+gambetta!AT80+acapulco!AT80 -> 0 | AU80: =barton!AU80+gambetta!AU80+acapulco!AU80 -> 0 | AV80: =barton!AV80+gambetta!AV80+acapulco!AV80 -> 0 | AW80: =barton!AW80+gambetta!AW80+acapulco!AW80 -> 0 | AX80: 0 | AY80: =barton!AY80+gambetta!AY80+acapulco!AY80 -> 0 | AZ80: =barton!AZ80+gambetta!AZ80+acapulco!AZ80 -> 0 | BA80: =barton!BA80+gambetta!BA80+acapulco!BA80 -> 0 | BB80: =barton!BB80+gambetta!BB80+acapulco!BB80 -> 0 | BC80: =barton!BC80+gambetta!BC80+acapulco!BC80 -> 0 | BD80: 0 | BE80: =barton!BE80+gambetta!BE80+acapulco!BE80 -> 0 | BF80: =barton!BF80+gambetta!BF80+acapulco!BF80 -> 0 | BG80: =barton!BG80+gambetta!BG80+acapulco!BG80 -> 0 | BH80: =barton!BH80+gambetta!BH80+acapulco!BH80 -> 0 | BI80: =barton!BI80+gambetta!BI80+acapulco!BI80 -> 0 | BJ80: 0 | BK80: =barton!BK80+gambetta!BK80+acapulco!BK80 -> 0 | BL80: =barton!BL80+gambetta!BL80+acapulco!BL80 -> 0 | BM80: =barton!BM80+gambetta!BM80+acapulco!BM80 -> 0 | BN80: =barton!BN80+gambetta!BN80+acapulco!BN80 -> 0 | BO80: =barton!BO80+gambetta!BO80+acapulco!BO80 -> 0 | BP80: 0 | BQ80: =barton!BQ80+gambetta!BQ80+acapulco!BQ80 -> 0 | BR80: =barton!BR80+gambetta!BR80+acapulco!BR80 -> 0 | BS80: =barton!BS80+gambetta!BS80+acapulco!BS80 -> 0 | BT80: =barton!BT80+gambetta!BT80+acapulco!BT80 -> 0 | BU80: =barton!BU80+gambetta!BU80+acapulco!BU80 -> 0 | BV80: 0 | BW80: =barton!BW80+gambetta!BW80+acapulco!BW80 -> 0 | BX80: =barton!BX80+gambetta!BX80+acapulco!BX80 -> 0 | BY80: =barton!BY80+gambetta!BY80+acapulco!BY80 -> 0 | BZ80: =barton!BZ80+gambetta!BZ80+acapulco!BZ80 -> 0 | CA80: =barton!CA80+gambetta!CA80+acapulco!CA80 -> 0
A81: IgE | B81: 0 | C81: =SUMIF($I$71:$CA81,$C$71,I81:CA81) -> 0 | D81: =SUMIF($I$71:$CA81,$D$71,I81:CA81) -> 0 | E81: =SUMIF($I$71:$CA81,$E$71,I81:CA81) -> 0 | F81: =SUMIF($I$71:$CA81,$F$71,I81:CA81) -> 0 | G81: =SUMIF($I$71:$CA81,$G$71,I81:CA81) -> 0 | H81: 0 | I81: =barton!I81+gambetta!I81+acapulco!I81 -> 0 | J81: =barton!J81+gambetta!J81+acapulco!J81 -> 0 | K81: =barton!K81+gambetta!K81+acapulco!K81 -> 0 | L81: =barton!L81+gambetta!L81+acapulco!L81 -> 0 | M81: =barton!M81+gambetta!M81+acapulco!M81 -> 0 | N81: 0 | O81: =barton!O81+gambetta!O81+acapulco!O81 -> 0 | P81: =barton!P81+gambetta!P81+acapulco!P81 -> 0 | Q81: =barton!Q81+gambetta!Q81+acapulco!Q81 -> 0 | R81: =barton!R81+gambetta!R81+acapulco!R81 -> 0 | S81: =barton!S81+gambetta!S81+acapulco!S81 -> 0 | T81: 0 | U81: =barton!U81+gambetta!U81+acapulco!U81 -> 0 | V81: =barton!V81+gambetta!V81+acapulco!V81 -> 0 | W81: =barton!W81+gambetta!W81+acapulco!W81 -> 0 | X81: =barton!X81+gambetta!X81+acapulco!X81 -> 0 | Y81: =barton!Y81+gambetta!Y81+acapulco!Y81 -> 0 | Z81: 0 | AA81: =barton!AA81+gambetta!AA81+acapulco!AA81 -> 0 | AB81: =barton!AB81+gambetta!AB81+acapulco!AB81 -> 0 | AC81: =barton!AC81+gambetta!AC81+acapulco!AC81 -> 0 | AD81: =barton!AD81+gambetta!AD81+acapulco!AD81 -> 0 | AE81: =barton!AE81+gambetta!AE81+acapulco!AE81 -> 0 | AF81: 0 | AG81: =barton!AG81+gambetta!AG81+acapulco!AG81 -> 0 | AH81: =barton!AH81+gambetta!AH81+acapulco!AH81 -> 0 | AI81: =barton!AI81+gambetta!AI81+acapulco!AI81 -> 0 | AJ81: =barton!AJ81+gambetta!AJ81+acapulco!AJ81 -> 0 | AK81: =barton!AK81+gambetta!AK81+acapulco!AK81 -> 0 | AL81: 0 | AM81: =barton!AM81+gambetta!AM81+acapulco!AM81 -> 0 | AN81: =barton!AN81+gambetta!AN81+acapulco!AN81 -> 0 | AO81: =barton!AO81+gambetta!AO81+acapulco!AO81 -> 0 | AP81: =barton!AP81+gambetta!AP81+acapulco!AP81 -> 0 | AQ81: =barton!AQ81+gambetta!AQ81+acapulco!AQ81 -> 0 | AR81: 0 | AS81: =barton!AS81+gambetta!AS81+acapulco!AS81 -> 0 | AT81: =barton!AT81+gambetta!AT81+acapulco!AT81 -> 0 | AU81: =barton!AU81+gambetta!AU81+acapulco!AU81 -> 0 | AV81: =barton!AV81+gambetta!AV81+acapulco!AV81 -> 0 | AW81: =barton!AW81+gambetta!AW81+acapulco!AW81 -> 0 | AX81: 0 | AY81: =barton!AY81+gambetta!AY81+acapulco!AY81 -> 0 | AZ81: =barton!AZ81+gambetta!AZ81+acapulco!AZ81 -> 0 | BA81: =barton!BA81+gambetta!BA81+acapulco!BA81 -> 0 | BB81: =barton!BB81+gambetta!BB81+acapulco!BB81 -> 0 | BC81: =barton!BC81+gambetta!BC81+acapulco!BC81 -> 0 | BD81: 0 | BE81: =barton!BE81+gambetta!BE81+acapulco!BE81 -> 0 | BF81: =barton!BF81+gambetta!BF81+acapulco!BF81 -> 0 | BG81: =barton!BG81+gambetta!BG81+acapulco!BG81 -> 0 | BH81: =barton!BH81+gambetta!BH81+acapulco!BH81 -> 0 | BI81: =barton!BI81+gambetta!BI81+acapulco!BI81 -> 0 | BJ81: 0 | BK81: =barton!BK81+gambetta!BK81+acapulco!BK81 -> 0 | BL81: =barton!BL81+gambetta!BL81+acapulco!BL81 -> 0 | BM81: =barton!BM81+gambetta!BM81+acapulco!BM81 -> 0 | BN81: =barton!BN81+gambetta!BN81+acapulco!BN81 -> 0 | BO81: =barton!BO81+gambetta!BO81+acapulco!BO81 -> 0 | BP81: 0 | BQ81: =barton!BQ81+gambetta!BQ81+acapulco!BQ81 -> 0 | BR81: =barton!BR81+gambetta!BR81+acapulco!BR81 -> 0 | BS81: =barton!BS81+gambetta!BS81+acapulco!BS81 -> 0 | BT81: =barton!BT81+gambetta!BT81+acapulco!BT81 -> 0 | BU81: =barton!BU81+gambetta!BU81+acapulco!BU81 -> 0 | BV81: 0 | BW81: =barton!BW81+gambetta!BW81+acapulco!BW81 -> 0 | BX81: =barton!BX81+gambetta!BX81+acapulco!BX81 -> 0 | BY81: =barton!BY81+gambetta!BY81+acapulco!BY81 -> 0 | BZ81: =barton!BZ81+gambetta!BZ81+acapulco!BZ81 -> 0 | CA81: =barton!CA81+gambetta!CA81+acapulco!CA81 -> 0
A82: LH | B82: 0 | C82: =SUMIF($I$71:$CA82,$C$71,I82:CA82) -> 0 | D82: =SUMIF($I$71:$CA82,$D$71,I82:CA82) -> 0 | E82: =SUMIF($I$71:$CA82,$E$71,I82:CA82) -> 0 | F82: =SUMIF($I$71:$CA82,$F$71,I82:CA82) -> 0 | G82: =SUMIF($I$71:$CA82,$G$71,I82:CA82) -> 0 | H82: 0 | I82: =barton!I82+gambetta!I82+acapulco!I82 -> 0 | J82: =barton!J82+gambetta!J82+acapulco!J82 -> 0 | K82: =barton!K82+gambetta!K82+acapulco!K82 -> 0 | L82: =barton!L82+gambetta!L82+acapulco!L82 -> 0 | M82: =barton!M82+gambetta!M82+acapulco!M82 -> 0 | N82: 0 | O82: =barton!O82+gambetta!O82+acapulco!O82 -> 0 | P82: =barton!P82+gambetta!P82+acapulco!P82 -> 0 | Q82: =barton!Q82+gambetta!Q82+acapulco!Q82 -> 0 | R82: =barton!R82+gambetta!R82+acapulco!R82 -> 0 | S82: =barton!S82+gambetta!S82+acapulco!S82 -> 0 | T82: 0 | U82: =barton!U82+gambetta!U82+acapulco!U82 -> 0 | V82: =barton!V82+gambetta!V82+acapulco!V82 -> 0 | W82: =barton!W82+gambetta!W82+acapulco!W82 -> 0 | X82: =barton!X82+gambetta!X82+acapulco!X82 -> 0 | Y82: =barton!Y82+gambetta!Y82+acapulco!Y82 -> 0 | Z82: 0 | AA82: =barton!AA82+gambetta!AA82+acapulco!AA82 -> 0 | AB82: =barton!AB82+gambetta!AB82+acapulco!AB82 -> 0 | AC82: =barton!AC82+gambetta!AC82+acapulco!AC82 -> 0 | AD82: =barton!AD82+gambetta!AD82+acapulco!AD82 -> 0 | AE82: =barton!AE82+gambetta!AE82+acapulco!AE82 -> 0 | AF82: 0 | AG82: =barton!AG82+gambetta!AG82+acapulco!AG82 -> 0 | AH82: =barton!AH82+gambetta!AH82+acapulco!AH82 -> 0 | AI82: =barton!AI82+gambetta!AI82+acapulco!AI82 -> 0 | AJ82: =barton!AJ82+gambetta!AJ82+acapulco!AJ82 -> 0 | AK82: =barton!AK82+gambetta!AK82+acapulco!AK82 -> 0 | AL82: 0 | AM82: =barton!AM82+gambetta!AM82+acapulco!AM82 -> 0 | AN82: =barton!AN82+gambetta!AN82+acapulco!AN82 -> 0 | AO82: =barton!AO82+gambetta!AO82+acapulco!AO82 -> 0 | AP82: =barton!AP82+gambetta!AP82+acapulco!AP82 -> 0 | AQ82: =barton!AQ82+gambetta!AQ82+acapulco!AQ82 -> 0 | AR82: 0 | AS82: =barton!AS82+gambetta!AS82+acapulco!AS82 -> 0 | AT82: =barton!AT82+gambetta!AT82+acapulco!AT82 -> 0 | AU82: =barton!AU82+gambetta!AU82+acapulco!AU82 -> 0 | AV82: =barton!AV82+gambetta!AV82+acapulco!AV82 -> 0 | AW82: =barton!AW82+gambetta!AW82+acapulco!AW82 -> 0 | AX82: 0 | AY82: =barton!AY82+gambetta!AY82+acapulco!AY82 -> 0 | AZ82: =barton!AZ82+gambetta!AZ82+acapulco!AZ82 -> 0 | BA82: =barton!BA82+gambetta!BA82+acapulco!BA82 -> 0 | BB82: =barton!BB82+gambetta!BB82+acapulco!BB82 -> 0 | BC82: =barton!BC82+gambetta!BC82+acapulco!BC82 -> 0 | BD82: 0 | BE82: =barton!BE82+gambetta!BE82+acapulco!BE82 -> 0 | BF82: =barton!BF82+gambetta!BF82+acapulco!BF82 -> 0 | BG82: =barton!BG82+gambetta!BG82+acapulco!BG82 -> 0 | BH82: =barton!BH82+gambetta!BH82+acapulco!BH82 -> 0 | BI82: =barton!BI82+gambetta!BI82+acapulco!BI82 -> 0 | BJ82: 0 | BK82: =barton!BK82+gambetta!BK82+acapulco!BK82 -> 0 | BL82: =barton!BL82+gambetta!BL82+acapulco!BL82 -> 0 | BM82: =barton!BM82+gambetta!BM82+acapulco!BM82 -> 0 | BN82: =barton!BN82+gambetta!BN82+acapulco!BN82 -> 0 | BO82: =barton!BO82+gambetta!BO82+acapulco!BO82 -> 0 | BP82: 0 | BQ82: =barton!BQ82+gambetta!BQ82+acapulco!BQ82 -> 0 | BR82: =barton!BR82+gambetta!BR82+acapulco!BR82 -> 0 | BS82: =barton!BS82+gambetta!BS82+acapulco!BS82 -> 0 | BT82: =barton!BT82+gambetta!BT82+acapulco!BT82 -> 0 | BU82: =barton!BU82+gambetta!BU82+acapulco!BU82 -> 0 | BV82: 0 | BW82: =barton!BW82+gambetta!BW82+acapulco!BW82 -> 0 | BX82: =barton!BX82+gambetta!BX82+acapulco!BX82 -> 0 | BY82: =barton!BY82+gambetta!BY82+acapulco!BY82 -> 0 | BZ82: =barton!BZ82+gambetta!BZ82+acapulco!BZ82 -> 0 | CA82: =barton!CA82+gambetta!CA82+acapulco!CA82 -> 0
